Workbook

Sheet ReadMe
A1: MODEL TITLE AND PURPOSE
A2: Model title: Can Pandemic Preparedness Benefit from Health-Economic Modelling? The Case for Nipah Virus
A4: Global pandemic preparedness efforts rely on epidemiological models like the SEIR framework (Susceptible, Exposed, Infected, Recovered). However, SEIR models alone may not fully support healthcare decision-making, especially concerning resource allocation and economic impacts. This study integrates health economic (HE) modeling into SEIR to assess the cost-effectiveness of treatments for potential future pandemics, using Nipah virus as a case study.
A6: Target population: Adults at risk for Nipah infection
A7: Perspective: Healthcare systems
A10: MODEL OVERVIEW
A11: Model type: Markov Monte-Carlo Model
A12: Time horizon: 120 weeks
A13: Cycle length: Weekly cycles
A14: Discount rates: 3%
A15: Currency and price year: EUR, 2023
A17: Intervention: Standard care
A18: Comparator: Ribavirin
A21: WORKBOOK STRUCTURE
A23: ReadMe – Overview, instructions, and contact details.
A25: Inputs & Results – All model parameters with the option to be edited with respective microsimulation results.
A27: 1. Strategy Calcs – Markov State Graph and Cohort State Proportions for Standard care.
A29: 2. Strategy Calcs – Markov State Graph and Cohort State Proportions for Ribavirin.
A31: State Trans Diag – State Transition Diagram for all comparators.
A33: Input Tables – All tables used in the model, here table for general mortality.
A35: Original Data & Results – Original model input and cost-effectiveness rankings.
A37: Time Discounting – Table overview over discounted model values.
A40: HOW TO USE THIS MODEL
A42: For base-case results:
A44: Go to the Original Data & Results sheet to view total costs, QALYs, incremental results, and ICER.
A46: To change inputs:
A48: Go to the Inputs & Results sheet. Edit cells highlighted in green (user input). Do not modify other cells. Results are recalculated on pressing Enter.
A51: CONTACT
A52: Contact: wendelin.schramm@hs-heilbronn.de
A53: Model version: 1.1
A54: Date: 19/01/2026
A55: Nipah Project Webseite

Sheet Inputs & Results
B2: Model Information
B3: DESCRIPTION
B4: Nipah Virus Model
B6: STRATEGIES
B7: Standard Care
B9: Ribavirin
B12: Green cells are editable
B13: Gray cells - no impact on calculation
B14: INPUTS | F14: MODEL RESULTS
B15: Description | C15: Value | D15: Reference in TreeAge | F15: WTP: | G15: 23500
B16: Parameter Variables | F16: Strategy | G16: Cost | H16: Eff | I16: Payoff 3 - Quality of Life
B17: per definition 100% | C17: 1 | D17: pDeadToDead | F17: Standard Care | G17: ='1. Strategy Calcs'!L130 -> 1522.79616 | H17: ='1. Strategy Calcs'!O130 -> 109.4005648 | I17: ='1. Strategy Calcs'!R130 -> 103.9060161
B18: Probability to be infected by Nipah virus, in an active outbreak | C18: 0.10209924 | D18: pHealthyToInfected | F18: Ribavirin | G18: ='2. Strategy Calcs'!L130 -> 1601.705807 | H18: ='2. Strategy Calcs'!O130 -> 112.0167784 | I18: ='2. Strategy Calcs'!R130 -> 106.3882466
B19: Probability to get the overt disease, when infected | C19: 0.4240985509 | D19: pInfectedToDiseased
B20: Probability to Die when experiencing a relapse of the Nipa virus disease | C20: 0.04840212599 | D20: pRelapseToDeath
B21: TDC for drugs in standard care | C21: 25 | D21: cDrugs | F21: Category | G21: Strategy | H21: Cost | I21: Incr. Cost | J21: Eff | K21: Incr. Eff | L21: ICER | M21: NMB | N21: CE
B22: TDC for ambulatory care | C22: 49.75 | D22: cOutpatientCare | F22: Undominated | G22: Standard Care | H22: 1522.79616 | J22: 109.4005648 | M22: =J22*WTP - H22 -> 2569390.476 | N22: 13.91945428
B23: TDC for inpatient care | C23: 1296.6825 | D23: cInpatientCare | F23: Undominated | G23: Ribavirin | H23: 1601.705807 | I23: 78.90964679 | J23: 112.0167784 | K23: 2.616213676 | L23: 30.16177445 | M23: =J23*WTP - H23 -> 2630792.587 | N23: 14.29880263
B24: TDC for intensive care unit at a hospital (with ventilation) | C24: 196.77775 | D24: cICUWithVentilation
B25: TDC on Ribavirine on top of standard care costs | C25: 101.01 | D25: cRibavirine
B26: Quality of Life estimate when healthy | C26: 1 | D26: vQoLHealthy
B27: Quality of Life estimate when dead | C27: 0 | D27: vQoLDead
B28: Quality of Life estimate when healed | C28: 0.95 | D28: vQoLHealed
B29: Quality of Life estimate when infected | C29: 0.9 | D29: vQoLInfected
B30: Quality of Life estimate when diseased | C30: 0.26 | D30: vQoLDiseased
B31: Quality of Life estimate when suffering from a relapse | C31: 0.4 | D31: vQoLRelapse
B32: Probability to experience a relapse, when healed before | C32: 0.002229653479 | D32: pHealedToRelapse
B33: Laboratory Cost for a PCR virus test | C33: 59 | D33: cPCRTest
B34: TDC for intensive care unit at a hospital (without ventilation) | C34: 754.21125 | D34: cICUWithoutVentilation
B35: Probability to Die from a Nipah virus disease | C35: 0.1416128007 | D35: pDiseasedToDead (Defined in node Standard Care)
B36: Probability to Die from a Nipah virus disease | C36: 0.08287936378 | D36: pDiseasedToDead (Defined in node Ribavirin)

Sheet 1. Strategy Calcs
B1: Strategy | C1: 1 | D1: Standard Care
B2: States | C2: All
V3: Healthy - State 1.1 | AB3: Infected - State 1.2 | AG3: Diseased - State 1.3 | AM3: Dead - State 1.4 | AP3: Healed - State 1.5 | AV3: Relapse - State 1.6
D4: Cohort State Proportions | V4: Cohort % | Z4: Payoff 1 - Life Expectancy | AA4: Payoff 3 - Quality of Life | AB4: Cohort % | AE4: Payoff 1 - Life Expectancy | AF4: Payoff 3 - Quality of Life | AG4: Cohort % | AJ4: Payoff 2 - Total Direct Cost | AK4: Payoff 1 - Life Expectancy | AL4: Payoff 3 - Quality of Life | AM4: Cohort % | AO4: Payoff 3 - Quality of Life | AP4: Cohort % | AT4: Payoff 1 - Life Expectancy | AU4: Payoff 3 - Quality of Life | AV4: Cohort % | AY4: Payoff 2 - Total Direct Cost | AZ4: Payoff 1 - Life Expectancy | BA4: Payoff 3 - Quality of Life
B5: Cycle | D5: Healthy | E5: Infected | F5: Diseased | G5: Dead | H5: Healed | I5: Relapse | J5: Payoff 2 - Total Direct Cost | M5: Payoff 1 - Life Expectancy | P5: Payoff 3 - Quality of Life | T5: Checksum of Cohort % | V5: 1.1 State | W5: 1.1.1 Transition | X5: 1.1.2 Transition | Y5: 1.1.3 Transition | Z5: 1.1 State | AA5: 1.1 State | AB5: 1.2 State | AC5: 1.2.1 Transition | AD5: 1.2.2 Transition | AE5: 1.2 State | AF5: 1.2 State | AG5: 1.3 State | AH5: 1.3.1 Transition | AI5: 1.3.2 Transition | AJ5: 1.3 State | AK5: 1.3 State | AL5: 1.3 State | AM5: 1.4 State | AN5: 1.4.1 Transition | AO5: 1.4 State | AP5: 1.5 State | AQ5: 1.5.1 Transition | AR5: 1.5.2 Transition | AS5: 1.5.3 Transition | AT5: 1.5 State | AU5: 1.5 State | AV5: 1.6 State | AW5: 1.6.1 Transition | AX5: 1.6.2 Transition | AY5: 1.6 State | AZ5: 1.6 State | BA5: 1.6 State | BC5: pHealedToDead | BD5: pHealthyToDead
J6: No Discount | K6: Discounted | L6: Cum Disc | M6: No Discount | N6: Discounted | O6: Cum Disc | P6: No Discount | Q6: Discounted | R6: Cum Disc | V6: Healthy | W6: HealthyToHealthy | X6: HealthyToInfected | Y6: HealthyToDead | Z6: Healthy | AA6: Healthy | AB6: Infected | AC6: InfectedToHealed | AD6: InfectedToDiseased | AE6: Infected | AF6: Infected | AG6: Diseased | AH6: DiseasedToDead | AI6: DiseasedToHealed | AJ6: Diseased | AK6: Diseased | AL6: Diseased | AM6: Dead | AN6: DeadToDead | AO6: Dead | AP6: Healed | AQ6: HealedToHealed | AR6: HealedToRelapse | AS6: HealedToDeath | AT6: Healed | AU6: Healed | AV6: Relapse | AW6: RelapseToHealed | AX6: RelapseToDeath | AY6: Relapse | AZ6: Relapse | BA6: Relapse
B8: 0 | D8: =1 -> 1 | E8: =0 -> 0 | F8: =0 -> 0 | G8: =0 -> 0 | H8: =0 -> 0 | I8: =0 -> 0 | J8: ='1. Strategy Calcs'!AJ8 + '1. Strategy Calcs'!AY8 -> 0 | K8: =J8*'Time Discounting'!D5 -> 0 | L8: =K8 -> 0 | M8: ='1. Strategy Calcs'!Z8 + '1. Strategy Calcs'!AE8 + '1. Strategy Calcs'!AK8 + '1. Strategy Calcs'!AT8 + '1. Strategy Calcs'!AZ8 -> 0 | N8: =M8*'Time Discounting'!C5 -> 0 | O8: =N8 -> 0 | P8: ='1. Strategy Calcs'!AA8 + '1. Strategy Calcs'!AF8 + '1. Strategy Calcs'!AL8 + '1. Strategy Calcs'!AO8 + '1. Strategy Calcs'!AU8 + '1. Strategy Calcs'!BA8 -> 0 | Q8: =P8*'Time Discounting'!E5 -> 0 | R8: =Q8 -> 0 | T8: =SUM(D8:I8) -> 1 | V8: ='1. Strategy Calcs'!D8 -> 1 | W8: =V8*(1-(pHealthyToInfected)-(INDEX(pHealthyToDead_1,cycle+1))) -> 0.8970801931 | X8: =V8*(pHealthyToInfected) -> 0.10209924 | Y8: =V8*(INDEX(pHealthyToDead_1,cycle+1)) -> 0.0008205669428 | Z8: =0 -> 0 | AA8: =0 -> 0 | AB8: ='1. Strategy Calcs'!E8 -> 0 | AC8: =AB8*(1-(pInfectedToDiseased)) -> 0 | AD8: =AB8*(pInfectedToDiseased) -> 0 | AE8: =0 -> 0 | AF8: =0 -> 0 | AG8: ='1. Strategy Calcs'!F8 -> 0 | AH8: =AG8*(pDiseasedToDead_Node1) -> 0 | AI8: =AG8*(1-(pDiseasedToDead_Node1)) -> 0 | AJ8: =0 -> 0 | AK8: =0 -> 0 | AL8: =0 -> 0 | AM8: ='1. Strategy Calcs'!G8 -> 0 | AN8: =AM8*(pDeadToDead) -> 0 | AO8: =0 -> 0 | AP8: ='1. Strategy Calcs'!H8 -> 0 | AQ8: =AP8*(1-(pHealedToRelapse)-(INDEX(pHealedToDead_1,cycle+1))) -> 0 | AR8: =AP8*(pHealedToRelapse) -> 0 | AS8: =AP8*(INDEX(pHealedToDead_1,cycle+1)) -> 0 | AT8: =0 -> 0 | AU8: =0 -> 0 | AV8: ='1. Strategy Calcs'!I8 -> 0 | AW8: =AV8*(1-(pRelapseToDeath)) -> 0 | AX8: =AV8*(pRelapseToDeath) -> 0 | AY8: =0 -> 0 | AZ8: =0 -> 0 | BA8: =0 -> 0 | BC8: =IF((INDEX(pHealthyToDead_1,cycle+1))=1,1,(1-EXP(LN(1-(INDEX(pHealthyToDead_1,cycle+1)))*(1/4)))) -> 0.0002052048906 | BD8: =IF((InterpolateTable(tGeneralMortality,VALUE(cycle),2))=1,1,(1-EXP(LN(1-(InterpolateTable(tGeneralMortality,VALUE(cycle),2)))*(1/4)))) -> 0.0008205669428
B9: 1 | D9: ='1. Strategy Calcs'!V9 -> 0.8970801931 | E9: ='1. Strategy Calcs'!AB9 -> 0.10209924 | F9: ='1. Strategy Calcs'!AG9 -> 0 | G9: ='1. Strategy Calcs'!AM9 -> 0.0008205669428 | H9: ='1. Strategy Calcs'!AP9 -> 0 | I9: ='1. Strategy Calcs'!AV9 -> 0 | J9: ='1. Strategy Calcs'!AJ9 + '1. Strategy Calcs'!AY9 -> 0 | K9: =J9*'Time Discounting'!D6 -> 0 | L9: =L8 + K9 -> 0 | M9: ='1. Strategy Calcs'!Z9 + '1. Strategy Calcs'!AE9 + '1. Strategy Calcs'!AK9 + '1. Strategy Calcs'!AT9 + '1. Strategy Calcs'!AZ9 -> 0.9991794331 | N9: =M9*'Time Discounting'!C6 -> 0.9991737728 | O9: =O8 + N9 -> 0.9991737728 | P9: ='1. Strategy Calcs'!AA9 + '1. Strategy Calcs'!AF9 + '1. Strategy Calcs'!AL9 + '1. Strategy Calcs'!AO9 + '1. Strategy Calcs'!AU9 + '1. Strategy Calcs'!BA9 -> 0.9889695091 | Q9: =P9*'Time Discounting'!E6 -> 0.9889639066 | R9: =R8 + Q9 -> 0.9889639066 | T9: 1 | V9: =0 + W8 -> 0.8970801931 | W9: 0.8047528728 | X9: 0.09159120592 | Y9: 0.0007361143514 | Z9: =V9*(1) -> 0.8970801931 | AA9: =V9*(vQoLHealthy) -> 0.8970801931 | AB9: =0 + '1. Strategy Calcs'!X8 -> 0.10209924 | AC9: 0.05879910026 | AD9: 0.04330013973 | AE9: =AB9*(1) -> 0.10209924 | AF9: =AB9*(vQoLInfected) -> 0.09188931599 | AG9: =0 + '1. Strategy Calcs'!AD8 -> 0 | AH9: 0 | AI9: 0 | AJ9: =AG9*((((((cDrugs+cICUWithoutVentilation)+cICUWithVentilation)+cInpatientCare)+cOutpatientCare)+cPCRTest)) -> 0 | AK9: =AG9*(1) -> 0 | AL9: =AG9*(vQoLDiseased) -> 0 | AM9: =0 + '1. Strategy Calcs'!Y8 + '1. Strategy Calcs'!AH8 + AN8 + '1. Strategy Calcs'!AS8 + '1. Strategy Calcs'!AX8 -> 0.0008205669428 | AN9: 0.0008205669428 | AO9: =AM9*(vQoLDead) -> 0 | AP9: =0 + '1. Strategy Calcs'!AC8 + '1. Strategy Calcs'!AI8 + AQ8 + '1. Strategy Calcs'!AW8 -> 0 | AQ9: 0 | AR9: 0 | AS9: 0 | AT9: =AP9*(1) -> 0 | AU9: =AP9*(vQoLHealed) -> 0 | AV9: =0 + '1. Strategy Calcs'!AR8 -> 0 | AW9: 0 | AX9: 0 | AY9: =AV9*((((((cDrugs+cICUWithoutVentilation)+cICUWithVentilation)+cInpatientCare)+cOutpatientCare)+cPCRTest)) -> 0 | AZ9: =AV9*(1) -> 0 | BA9: =AV9*(vQoLRelapse) -> 0 | BC9: 0.0002052048906 | BD9: =IF((InterpolateTable(tGeneralMortality,VALUE(cycle),2))=1,1,(1-EXP(LN(1-(InterpolateTable(tGeneralMortality,VALUE(cycle),2)))*(1/4)))) -> 0.0008205669428
B10: 2 | D10: ='1. Strategy Calcs'!V10 -> 0.8047528728 | E10: ='1. Strategy Calcs'!AB10 -> 0.09159120592 | F10: ='1. Strategy Calcs'!AG10 -> 0.04330013973 | G10: ='1. Strategy Calcs'!AM10 -> 0.001556681294 | H10: ='1. Strategy Calcs'!AP10 -> 0.05879910026 | I10: ='1. Strategy Calcs'!AV10 -> 0 | J10: ='1. Strategy Calcs'!AJ10 + '1. Strategy Calcs'!AY10 -> 103.1158837 | K10: =J10*'Time Discounting'!D7 -> 103.1147154 | L10: 103.1147154 | M10: ='1. Strategy Calcs'!Z10 + '1. Strategy Calcs'!AE10 + '1. Strategy Calcs'!AK10 + '1. Strategy Calcs'!AT10 + '1. Strategy Calcs'!AZ10 -> 0.9984433187 | N10: =M10*'Time Discounting'!C7 -> 0.9984320065 | O10: 1.997605779 | P10: ='1. Strategy Calcs'!AA10 + '1. Strategy Calcs'!AF10 + '1. Strategy Calcs'!AL10 + '1. Strategy Calcs'!AO10 + '1. Strategy Calcs'!AU10 + '1. Strategy Calcs'!BA10 -> 0.9543021397 | Q10: =P10*'Time Discounting'!E7 -> 0.9542913276 | R10: 1.943255234 | T10: 1 | V10: 0.8047528728 | W10: 0.7219278625 | X10: 0.08216465669 | Y10: 0.0006603536045 | Z10: 0.8047528728 | AA10: 0.8047528728 | AB10: =0 + '1. Strategy Calcs'!X9 -> 0.09159120592 | AC10: 0.05274750821 | AD10: 0.03884369771 | AE10: 0.09159120592 | AF10: 0.08243208533 | AG10: =0 + '1. Strategy Calcs'!AD9 -> 0.04330013973 | AH10: 0.006131854056 | AI10: 0.03716828567 | AJ10: 103.1158837 | AK10: 0.04330013973 | AL10: 0.01125803633 | AM10: =0 + '1. Strategy Calcs'!Y9 + '1. Strategy Calcs'!AH9 + AN9 + '1. Strategy Calcs'!AS9 + '1. Strategy Calcs'!AX9 -> 0.001556681294 | AN10: 0.001556681294 | AO10: 0 | AP10: =0 + '1. Strategy Calcs'!AC9 + '1. Strategy Calcs'!AI9 + AQ9 + '1. Strategy Calcs'!AW9 -> 0.05879910026 | AQ10: 0.05865593278 | AR10: 0.0001311016184 | AS10: 1.206586294e-05 | AT10: 0.05879910026 | AU10: 0.05585914524 | AV10: =0 + '1. Strategy Calcs'!AR9 -> 0 | AW10: 0 | AX10: 0 | AY10: 0 | AZ10: 0 | BA10: 0 | BC10: 0.0002052048906 | BD10: =IF((InterpolateTable(tGeneralMortality,VALUE(cycle),2))=1,1,(1-EXP(LN(1-(InterpolateTable(tGeneralMortality,VALUE(cycle),2)))*(1/4)))) -> 0.0008205669428
B11: 3 | D11: ='1. Strategy Calcs'!V11 -> 0.7219278625 | E11: ='1. Strategy Calcs'!AB11 -> 0.08216465669 | F11: ='1. Strategy Calcs'!AG11 -> 0.03884369771 | G11: ='1. Strategy Calcs'!AM11 -> 0.008360954818 | H11: ='1. Strategy Calcs'!AP11 -> 0.1485717267 | I11: ='1. Strategy Calcs'!AV11 -> 0.0001311016184 | J11: ='1. Strategy Calcs'!AJ11 + '1. Strategy Calcs'!AY11 -> 92.81542508 | K11: =J11*'Time Discounting'!D8 -> 92.81384771 | L11: 195.9285631 | M11: ='1. Strategy Calcs'!Z11 + '1. Strategy Calcs'!AE11 + '1. Strategy Calcs'!AK11 + '1. Strategy Calcs'!AT11 + '1. Strategy Calcs'!AZ11 -> 0.9916390452 | N11: =M11*'Time Discounting'!C8 -> 0.9916221926 | O11: 2.989227972 | P11: ='1. Strategy Calcs'!AA11 + '1. Strategy Calcs'!AF11 + '1. Strategy Calcs'!AL11 + '1. Strategy Calcs'!AO11 + '1. Strategy Calcs'!AU11 + '1. Strategy Calcs'!BA11 -> 0.9471709959 | Q11: =P11*'Time Discounting'!E8 -> 0.9471548991 | R11: 2.890410133 | T11: 1 | V11: 0.7219278625 | W11: 0.6476271863 | X11: 0.07370828609 | Y11: 0.000592390139 | Z11: 0.7219278625 | AA11: 0.7219278625 | AB11: =0 + '1. Strategy Calcs'!X10 -> 0.08216465669 | AC11: 0.04731874485 | AD11: 0.03484591184 | AE11: 0.08216465669 | AF11: 0.07394819102 | AG11: =0 + '1. Strategy Calcs'!AD10 -> 0.03884369771 | AH11: 0.00550076482 | AI11: 0.03334293289 | AJ11: 92.50321686 | AK11: 0.03884369771 | AL11: 0.0100993614 | AM11: =0 + '1. Strategy Calcs'!Y10 + '1. Strategy Calcs'!AH10 + AN10 + '1. Strategy Calcs'!AS10 + '1. Strategy Calcs'!AX10 -> 0.008360954818 | AN11: 0.008360954818 | AO11: 0 | AP11: =0 + '1. Strategy Calcs'!AC10 + '1. Strategy Calcs'!AI10 + AQ10 + '1. Strategy Calcs'!AW10 -> 0.1485717267 | AQ11: 0.1482099756 | AR11: 0.0003312634672 | AS11: 3.048764492e-05 | AT11: 0.1485717267 | AU11: 0.1411431403 | AV11: =0 + '1. Strategy Calcs'!AR10 -> 0.0001311016184 | AW11: 0.0001247560214 | AX11: 6.345597054e-06 | AY11: 0.3122082128 | AZ11: 0.0001311016184 | BA11: 5.244064738e-05 | BC11: 0.0002052048906 | BD11: =IF((InterpolateTable(tGeneralMortality,VALUE(cycle),2))=1,1,(1-EXP(LN(1-(InterpolateTable(tGeneralMortality,VALUE(cycle),2)))*(1/4)))) -> 0.0008205669428
B12: 4 | D12: ='1. Strategy Calcs'!V12 -> 0.6476271863 | E12: ='1. Strategy Calcs'!AB12 -> 0.07370828609 | F12: ='1. Strategy Calcs'!AG12 -> 0.03484591184 | G12: ='1. Strategy Calcs'!AM12 -> 0.01449094302 | H12: ='1. Strategy Calcs'!AP12 -> 0.2289964093 | I12: ='1. Strategy Calcs'!AV12 -> 0.0003312634672 | J12: ='1. Strategy Calcs'!AJ12 + '1. Strategy Calcs'!AY12 -> 83.77168159 | K12: =J12*'Time Discounting'!D9 -> 83.76978337 | L12: 279.6983465 | M12: ='1. Strategy Calcs'!Z12 + '1. Strategy Calcs'!AE12 + '1. Strategy Calcs'!AK12 + '1. Strategy Calcs'!AT12 + '1. Strategy Calcs'!AZ12 -> 0.985509057 | N12: =M12*'Time Discounting'!C9 -> 0.9854867259 | O12: 3.974714698 | P12: ='1. Strategy Calcs'!AA12 + '1. Strategy Calcs'!AF12 + '1. Strategy Calcs'!AL12 + '1. Strategy Calcs'!AO12 + '1. Strategy Calcs'!AU12 + '1. Strategy Calcs'!BA12 -> 0.9407036751 | Q12: =P12*'Time Discounting'!E9 -> 0.9406823592 | R12: 3.831092493 | T12: 1 | V12: 0.6476271863 | W12: 0.5809735213 | X12: 0.06612224351 | Y12: 0.0005314214603 | Z12: 0.6476271863 | AA12: 0.6476271863 | AB12: =0 + '1. Strategy Calcs'!X11 -> 0.07370828609 | AC12: 0.04244870877 | AD12: 0.03125957732 | AE12: 0.07370828609 | AF12: 0.06633745748 | AG12: =0 + '1. Strategy Calcs'!AD11 -> 0.03484591184 | AH12: 0.004934627167 | AI12: 0.02991128467 | AJ12: 82.98280364 | AK12: 0.03484591184 | AL12: 0.009059937079 | AM12: =0 + '1. Strategy Calcs'!Y11 + '1. Strategy Calcs'!AH11 + AN11 + '1. Strategy Calcs'!AS11 + '1. Strategy Calcs'!AX11 -> 0.01449094302 | AN12: 0.01449094302 | AO12: 0 | AP12: =0 + '1. Strategy Calcs'!AC11 + '1. Strategy Calcs'!AI11 + AQ11 + '1. Strategy Calcs'!AW11 -> 0.2289964093 | AQ12: 0.2284388355 | AR12: 0.0005105826407 | AS12: 4.699118313e-05 | AT12: 0.2289964093 | AU12: 0.2175465888 | AV12: =0 + '1. Strategy Calcs'!AR11 -> 0.0003312634672 | AW12: 0.0003152296111 | AX12: 1.603385608e-05 | AY12: 0.788877943 | AZ12: 0.0003312634672 | BA12: 0.0001325053869 | BC12: 0.0002052048906 | BD12: =IF((InterpolateTable(tGeneralMortality,VALUE(cycle),2))=1,1,(1-EXP(LN(1-(InterpolateTable(tGeneralMortality,VALUE(cycle),2)))*(1/4)))) -> 0.0008205669428
B13: 5 | D13: ='1. Strategy Calcs'!V13 -> 0.5809735213 | E13: ='1. Strategy Calcs'!AB13 -> 0.06612224351 | F13: ='1. Strategy Calcs'!AG13 -> 0.03125957732 | G13: ='1. Strategy Calcs'!AM13 -> 0.02002001669 | H13: ='1. Strategy Calcs'!AP13 -> 0.3011140585 | I13: ='1. Strategy Calcs'!AV13 -> 0.0005105826407 | J13: ='1. Strategy Calcs'!AJ13 + '1. Strategy Calcs'!AY13 -> 75.65814199 | K13: =J13*'Time Discounting'!D10 -> 75.65599903 | L13: 355.3543455 | M13: ='1. Strategy Calcs'!Z13 + '1. Strategy Calcs'!AE13 + '1. Strategy Calcs'!AK13 + '1. Strategy Calcs'!AT13 + '1. Strategy Calcs'!AZ13 -> 0.9799799833 | N13: =M13*'Time Discounting'!C10 -> 0.9799522261 | O13: 4.954666924 | P13: ='1. Strategy Calcs'!AA13 + '1. Strategy Calcs'!AF13 + '1. Strategy Calcs'!AL13 + '1. Strategy Calcs'!AO13 + '1. Strategy Calcs'!AU13 + '1. Strategy Calcs'!BA13 -> 0.9348736192 | Q13: =P13*'Time Discounting'!E10 -> 0.9348471396 | R13: 4.765939632 | T13: 1 | V13: 0.5809735213 | W13: 0.5211798387 | X13: 0.05931695498 | Y13: 0.0004767276662 | Z13: 0.5809735213 | AA13: 0.5809735213 | AB13: =0 + '1. Strategy Calcs'!X12 -> 0.06612224351 | AC13: 0.03807989586 | AD13: 0.02804234766 | AE13: 0.06612224351 | AF13: 0.05951001916 | AG13: =0 + '1. Strategy Calcs'!AD12 -> 0.03125957732 | AH13: 0.004426756292 | AI13: 0.02683282103 | AJ13: 74.44222951 | AK13: 0.03125957732 | AL13: 0.008127490104 | AM13: =0 + '1. Strategy Calcs'!Y12 + '1. Strategy Calcs'!AH12 + AN12 + '1. Strategy Calcs'!AS12 + '1. Strategy Calcs'!AX12 -> 0.02002001669 | AN13: 0.02002001669 | AO13: 0 | AP13: =0 + '1. Strategy Calcs'!AC12 + '1. Strategy Calcs'!AI12 + AQ12 + '1. Strategy Calcs'!AW12 -> 0.3011140585 | AQ13: 0.3003808885 | AR13: 0.0006713800081 | AS13: 6.179007745e-05 | AT13: 0.3011140585 | AU13: 0.2860583556 | AV13: =0 + '1. Strategy Calcs'!AR12 -> 0.0005105826407 | AW13: 0.0004858693554 | AX13: 2.47132853e-05 | AY13: 1.215912478 | AZ13: 0.0005105826407 | BA13: 0.0002042330563 | BC13: 0.0002052048906 | BD13: =IF((InterpolateTable(tGeneralMortality,VALUE(cycle),2))=1,1,(1-EXP(LN(1-(InterpolateTable(tGeneralMortality,VALUE(cycle),2)))*(1/4)))) -> 0.0008205669428
B14: 6 | D14: ='1. Strategy Calcs'!V14 -> 0.5211798387 | E14: ='1. Strategy Calcs'!AB14 -> 0.05931695498 | F14: ='1. Strategy Calcs'!AG14 -> 0.02804234766 | G14: ='1. Strategy Calcs'!AM14 -> 0.02501000401 | H14: ='1. Strategy Calcs'!AP14 -> 0.3657794747 | I14: ='1. Strategy Calcs'!AV14 -> 0.0006713800081 | J14: ='1. Strategy Calcs'!AJ14 + '1. Strategy Calcs'!AY14 -> 68.37948841 | K14: =J14*'Time Discounting'!D11 -> 68.37716426 | L14: 423.7315098 | M14: ='1. Strategy Calcs'!Z14 + '1. Strategy Calcs'!AE14 + '1. Strategy Calcs'!AK14 + '1. Strategy Calcs'!AT14 + '1. Strategy Calcs'!AZ14 -> 0.974989996 | N14: =M14*'Time Discounting'!C11 -> 0.974956857 | O14: 5.929623781 | P14: ='1. Strategy Calcs'!AA14 + '1. Strategy Calcs'!AF14 + '1. Strategy Calcs'!AL14 + '1. Strategy Calcs'!AO14 + '1. Strategy Calcs'!AU14 + '1. Strategy Calcs'!BA14 -> 0.9296151615 | Q14: =P14*'Time Discounting'!E11 -> 0.9295835648 | R14: 5.695523197 | T14: 1 | V14: 0.5211798387 | W14: 0.4675401103 | X14: 0.05321206542 | Y14: 0.0004276629468 | Z14: 0.5211798387 | AA14: 0.5211798387 | AB14: =0 + '1. Strategy Calcs'!X13 -> 0.05931695498 | AC14: 0.03416072033 | AD14: 0.02515623465 | AE14: 0.05931695498 | AF14: 0.05338525948 | AG14: =0 + '1. Strategy Calcs'!AD13 -> 0.02804234766 | AH14: 0.003971155389 | AI14: 0.02407119227 | AJ14: 66.78064963 | AK14: 0.02804234766 | AL14: 0.007291010391 | AM14: =0 + '1. Strategy Calcs'!Y13 + '1. Strategy Calcs'!AH13 + AN13 + '1. Strategy Calcs'!AS13 + '1. Strategy Calcs'!AX13 -> 0.02501000401 | AN14: 0.02501000401 | AO14: 0 | AP14: =0 + '1. Strategy Calcs'!AC13 + '1. Strategy Calcs'!AI13 + AQ13 + '1. Strategy Calcs'!AW13 -> 0.3657794747 | AQ14: 0.3648888535 | AR14: 0.0008155614782 | AS14: 7.50597371e-05 | AT14: 0.3657794747 | AU14: 0.347490501 | AV14: =0 + '1. Strategy Calcs'!AR13 -> 0.0006713800081 | AW14: 0.0006388837884 | AX14: 3.249621974e-05 | AY14: 1.598838786 | AZ14: 0.0006713800081 | BA14: 0.0002685520033 | BC14: 0.0002052048906 | BD14: =IF((InterpolateTable(tGeneralMortality,VALUE(cycle),2))=1,1,(1-EXP(LN(1-(InterpolateTable(tGeneralMortality,VALUE(cycle),2)))*(1/4)))) -> 0.0008205669428
B15: 7 | D15: ='1. Strategy Calcs'!V15 -> 0.4675401103 | E15: ='1. Strategy Calcs'!AB15 -> 0.05321206542 | F15: ='1. Strategy Calcs'!AG15 -> 0.02515623465 | G15: ='1. Strategy Calcs'!AM15 -> 0.0295163783 | H15: ='1. Strategy Calcs'!AP15 -> 0.4237596499 | I15: ='1. Strategy Calcs'!AV15 -> 0.0008155614782 | J15: ='1. Strategy Calcs'!AJ15 + '1. Strategy Calcs'!AY15 -> 61.8497937 | K15: =J15*'Time Discounting'!D12 -> 61.84734112 | L15: 485.5788509 | M15: ='1. Strategy Calcs'!Z15 + '1. Strategy Calcs'!AE15 + '1. Strategy Calcs'!AK15 + '1. Strategy Calcs'!AT15 + '1. Strategy Calcs'!AZ15 -> 0.9704836217 | N15: =M15*'Time Discounting'!C12 -> 0.9704451384 | O15: 6.900068919 | P15: ='1. Strategy Calcs'!AA15 + '1. Strategy Calcs'!AF15 + '1. Strategy Calcs'!AL15 + '1. Strategy Calcs'!AO15 + '1. Strategy Calcs'!AU15 + '1. Strategy Calcs'!BA15 -> 0.9248694821 | Q15: =P15*'Time Discounting'!E12 -> 0.9248328076 | R15: 6.620356005 | T15: 1 | V15: 0.4675401103 | W15: 0.4194209724 | X15: 0.04773548992 | Y15: 0.0003836479589 | Z15: 0.4675401103 | AA15: 0.4675401103 | AB15: =0 + '1. Strategy Calcs'!X14 -> 0.05321206542 | AC15: 0.03064490559 | AD15: 0.02256715984 | AE15: 0.05321206542 | AF15: 0.04789085888 | AG15: =0 + '1. Strategy Calcs'!AD14 -> 0.02515623465 | AH15: 0.003562444843 | AI15: 0.02159378981 | AJ15: 59.90759806 | AK15: 0.02515623465 | AL15: 0.00654062101 | AM15: =0 + '1. Strategy Calcs'!Y14 + '1. Strategy Calcs'!AH14 + AN14 + '1. Strategy Calcs'!AS14 + '1. Strategy Calcs'!AX14 -> 0.0295163783 | AN15: 0.0295163783 | AO15: 0 | AP15: =0 + '1. Strategy Calcs'!AC14 + '1. Strategy Calcs'!AI14 + AQ14 + '1. Strategy Calcs'!AW14 -> 0.4237596499 | AQ15: 0.4227278551 | AR15: 0.0009448371775 | AS15: 8.69575526e-05 | AT15: 0.4237596499 | AU15: 0.4025716674 | AV15: =0 + '1. Strategy Calcs'!AR14 -> 0.0008155614782 | AW15: 0.0007760865688 | AX15: 3.947490942e-05 | AY15: 1.942195639 | AZ15: 0.0008155614782 | BA15: 0.0003262245913 | BC15: 0.0002052048906 | BD15: =IF((InterpolateTable(tGeneralMortality,VALUE(cycle),2))=1,1,(1-EXP(LN(1-(InterpolateTable(tGeneralMortality,VALUE(cycle),2)))*(1/4)))) -> 0.0008205669428
B16: 8 | D16: ='1. Strategy Calcs'!V16 -> 0.4194209724 | E16: ='1. Strategy Calcs'!AB16 -> 0.04773548992 | F16: ='1. Strategy Calcs'!AG16 -> 0.02256715984 | G16: ='1. Strategy Calcs'!AM16 -> 0.03358890356 | H16: ='1. Strategy Calcs'!AP16 -> 0.4757426371 | I16: ='1. Strategy Calcs'!AV16 -> 0.0009448371775 | J16: ='1. Strategy Calcs'!AJ16 + '1. Strategy Calcs'!AY16 -> 55.9919752 | K16: =J16*'Time Discounting'!D13 -> 55.98943773 | L16: 541.5682887 | M16: ='1. Strategy Calcs'!Z16 + '1. Strategy Calcs'!AE16 + '1. Strategy Calcs'!AK16 + '1. Strategy Calcs'!AT16 + '1. Strategy Calcs'!AZ16 -> 0.9664110964 | N16: =M16*'Time Discounting'!C13 -> 0.9663673002 | O16: 7.86643622 | P16: ='1. Strategy Calcs'!AA16 + '1. Strategy Calcs'!AF16 + '1. Strategy Calcs'!AL16 + '1. Strategy Calcs'!AO16 + '1. Strategy Calcs'!AU16 + '1. Strategy Calcs'!BA16 -> 0.920583815 | Q16: =P16*'Time Discounting'!E13 -> 0.9205420956 | R16: 7.5408981 | T16: 1 | V16: 0.4194209724 | W16: 0.3762542469 | X16: 0.04282256252 | Y16: 0.0003441629851 | Z16: 0.4194209724 | AA16: 0.4194209724 | AB16: =0 + '1. Strategy Calcs'!X15 -> 0.04773548992 | AC16: 0.02749093782 | AD16: 0.0202445521 | AE16: 0.04773548992 | AF16: 0.04296194093 | AG16: =0 + '1. Strategy Calcs'!AD15 -> 0.02256715984 | AH16: 0.003195798708 | AI16: 0.01937136113 | AJ16: 53.74191963 | AK16: 0.02256715984 | AL16: 0.005867461558 | AM16: =0 + '1. Strategy Calcs'!Y15 + '1. Strategy Calcs'!AH15 + AN15 + '1. Strategy Calcs'!AS15 + '1. Strategy Calcs'!AX15 -> 0.03358890356 | AN16: 0.03358890356 | AO16: 0 | AP16: =0 + '1. Strategy Calcs'!AC15 + '1. Strategy Calcs'!AI15 + AQ15 + '1. Strategy Calcs'!AW15 -> 0.4757426371 | AQ16: 0.4745842712 | AR16: 0.001060741226 | AS16: 9.762471581e-05 | AT16: 0.4757426371 | AU16: 0.4519555052 | AV16: =0 + '1. Strategy Calcs'!AR15 -> 0.0009448371775 | AW16: 0.0008991050494 | AX16: 4.573212811e-05 | AY16: 2.250055569 | AZ16: 0.0009448371775 | BA16: 0.000377934871 | BC16: 0.0002052048906 | BD16: =IF((InterpolateTable(tGeneralMortality,VALUE(cycle),2))=1,1,(1-EXP(LN(1-(InterpolateTable(tGeneralMortality,VALUE(cycle),2)))*(1/4)))) -> 0.0008205669428
B17: 9 | D17: ='1. Strategy Calcs'!V17 -> 0.3762542469 | E17: ='1. Strategy Calcs'!AB17 -> 0.04282256252 | F17: ='1. Strategy Calcs'!AG17 -> 0.0202445521 | G17: ='1. Strategy Calcs'!AM17 -> 0.0372722221 | H17: ='1. Strategy Calcs'!AP17 -> 0.5223456752 | I17: ='1. Strategy Calcs'!AV17 -> 0.001060741226 | J17: ='1. Strategy Calcs'!AJ17 + '1. Strategy Calcs'!AY17 -> 50.7368836 | K17: =J17*'Time Discounting'!D14 -> 50.73429688 | L17: 592.3025855 | M17: ='1. Strategy Calcs'!Z17 + '1. Strategy Calcs'!AE17 + '1. Strategy Calcs'!AK17 + '1. Strategy Calcs'!AT17 + '1. Strategy Calcs'!AZ17 -> 0.9627277779 | N17: =M17*'Time Discounting'!C14 -> 0.9626786951 | O17: 8.829114915 | P17: ='1. Strategy Calcs'!AA17 + '1. Strategy Calcs'!AF17 + '1. Strategy Calcs'!AL17 + '1. Strategy Calcs'!AO17 + '1. Strategy Calcs'!AU17 + '1. Strategy Calcs'!BA17 -> 0.9167108246 | Q17: =P17*'Time Discounting'!E14 -> 0.9166640879 | R17: 8.457562188 | T17: 1 | V17: 0.3762542469 | W17: 0.3375302325 | X17: 0.03841527265 | Y17: 0.0003087417971 | Z17: 0.3762542469 | AA17: 0.3762542469 | AB17: =0 + '1. Strategy Calcs'!X16 -> 0.04282256252 | AC17: 0.02466157581 | AD17: 0.01816098671 | AE17: 0.04282256252 | AF17: 0.03854030627 | AG17: =0 + '1. Strategy Calcs'!AD16 -> 0.0202445521 | AH17: 0.002866887722 | AI17: 0.01737766438 | AJ17: 48.21081164 | AK17: 0.0202445521 | AL17: 0.005263583547 | AM17: =0 + '1. Strategy Calcs'!Y16 + '1. Strategy Calcs'!AH16 + AN16 + '1. Strategy Calcs'!AS16 + '1. Strategy Calcs'!AX16 -> 0.0372722221 | AN17: 0.0372722221 | AO17: 0 | AP17: =0 + '1. Strategy Calcs'!AC16 + '1. Strategy Calcs'!AI16 + AQ16 + '1. Strategy Calcs'!AW16 -> 0.5223456752 | AQ17: 0.5210738374 | AR17: 0.001164649852 | AS17: 0.0001071878871 | AT17: 0.5223456752 | AU17: 0.4962283914 | AV17: =0 + '1. Strategy Calcs'!AR16 -> 0.001060741226 | AW17: 0.001009399095 | AX17: 5.134213046e-05 | AY17: 2.526071961 | AZ17: 0.001060741226 | BA17: 0.0004242964903 | BC17: 0.0002052048906 | BD17: =IF((InterpolateTable(tGeneralMortality,VALUE(cycle),2))=1,1,(1-EXP(LN(1-(InterpolateTable(tGeneralMortality,VALUE(cycle),2)))*(1/4)))) -> 0.0008205669428
B18: 10 | D18: ='1. Strategy Calcs'!V18 -> 0.3375302325 | E18: ='1. Strategy Calcs'!AB18 -> 0.03841527265 | F18: ='1. Strategy Calcs'!AG18 -> 0.01816098671 | G18: ='1. Strategy Calcs'!AM18 -> 0.04060638164 | H18: ='1. Strategy Calcs'!AP18 -> 0.5641224767 | I18: ='1. Strategy Calcs'!AV18 -> 0.001164649852 | J18: ='1. Strategy Calcs'!AJ18 + '1. Strategy Calcs'!AY18 -> 46.02248641 | K18: =J18*'Time Discounting'!D15 -> 46.01987934 | L18: 638.3224649 | M18: ='1. Strategy Calcs'!Z18 + '1. Strategy Calcs'!AE18 + '1. Strategy Calcs'!AK18 + '1. Strategy Calcs'!AT18 + '1. Strategy Calcs'!AZ18 -> 0.9593936184 | N18: =M18*'Time Discounting'!C15 -> 0.9593392709 | O18: 9.788454186 | P18: ='1. Strategy Calcs'!AA18 + '1. Strategy Calcs'!AF18 + '1. Strategy Calcs'!AL18 + '1. Strategy Calcs'!AO18 + '1. Strategy Calcs'!AU18 + '1. Strategy Calcs'!BA18 -> 0.9132080472 | Q18: =P18*'Time Discounting'!E15 -> 0.913156316 | R18: 9.370718504 | T18: 1 | V18: 0.3375302325 | W18: 0.3027916861 | X18: 0.03446158021 | Y18: 0.0002769661509 | Z18: 0.3375302325 | AA18: 0.3375302325 | AB18: =0 + '1. Strategy Calcs'!X17 -> 0.03841527265 | AC18: 0.02212341119 | AD18: 0.01629186146 | AE18: 0.03841527265 | AF18: 0.03457374539 | AG18: =0 + '1. Strategy Calcs'!AD17 -> 0.01816098671 | AH18: 0.002571828191 | AI18: 0.01558915852 | AJ18: 43.24896421 | AK18: 0.01816098671 | AL18: 0.004721856545 | AM18: =0 + '1. Strategy Calcs'!Y17 + '1. Strategy Calcs'!AH17 + AN17 + '1. Strategy Calcs'!AS17 + '1. Strategy Calcs'!AX17 -> 0.04060638164 | AN18: 0.04060638164 | AO18: 0 | AP18: =0 + '1. Strategy Calcs'!AC17 + '1. Strategy Calcs'!AI17 + AQ17 + '1. Strategy Calcs'!AW17 -> 0.5641224767 | AQ18: 0.5627489184 | AR18: 0.001257797643 | AS18: 0.0001157606911 | AT18: 0.5641224767 | AU18: 0.5359163529 | AV18: =0 + '1. Strategy Calcs'!AR17 -> 0.001164649852 | AW18: 0.001108278323 | AX18: 5.637152886e-05 | AY18: 2.773522197 | AZ18: 0.001164649852 | BA18: 0.0004658599407 | BC18: 0.0002052048906 | BD18: =IF((InterpolateTable(tGeneralMortality,VALUE(cycle),2))=1,1,(1-EXP(LN(1-(InterpolateTable(tGeneralMortality,VALUE(cycle),2)))*(1/4)))) -> 0.0008205669428
B19: 11 | D19: ='1. Strategy Calcs'!V19 -> 0.3027916861 | E19: ='1. Strategy Calcs'!AB19 -> 0.03446158021 | F19: ='1. Strategy Calcs'!AG19 -> 0.01629186146 | G19: ='1. Strategy Calcs'!AM19 -> 0.0436273082 | H19: ='1. Strategy Calcs'!AP19 -> 0.6015697664 | I19: ='1. Strategy Calcs'!AV19 -> 0.001257797643 | J19: ='1. Strategy Calcs'!AJ19 + '1. Strategy Calcs'!AY19 -> 41.79313552 | K19: =J19*'Time Discounting'!D16 -> 41.79053129 | L19: 680.1129962 | M19: ='1. Strategy Calcs'!Z19 + '1. Strategy Calcs'!AE19 + '1. Strategy Calcs'!AK19 + '1. Strategy Calcs'!AT19 + '1. Strategy Calcs'!AZ19 -> 0.9563726918 | N19: =M19*'Time Discounting'!C16 -> 0.956313098 | O19: 10.74476728 | P19: ='1. Strategy Calcs'!AA19 + '1. Strategy Calcs'!AF19 + '1. Strategy Calcs'!AL19 + '1. Strategy Calcs'!AO19 + '1. Strategy Calcs'!AU19 + '1. Strategy Calcs'!BA19 -> 0.9100373894 | Q19: =P19*'Time Discounting'!E16 -> 0.9099806829 | R19: 10.28069919 | T19: 1 | V19: 0.3027916861 | W19: 0.2716284242 | X19: 0.03091480102 | Y19: 0.0002484608482 | Z19: 0.3027916861 | AA19: 0.3027916861 | AB19: =0 + '1. Strategy Calcs'!X18 -> 0.03446158021 | AC19: 0.01984647398 | AD19: 0.01461510623 | AE19: 0.03446158021 | AF19: 0.03101542219 | AG19: =0 + '1. Strategy Calcs'!AD18 -> 0.01629186146 | AH19: 0.00230713613 | AI19: 0.01398472534 | AJ19: 38.79778917 | AK19: 0.01629186146 | AL19: 0.004235883981 | AM19: =0 + '1. Strategy Calcs'!Y18 + '1. Strategy Calcs'!AH18 + AN18 + '1. Strategy Calcs'!AS18 + '1. Strategy Calcs'!AX18 -> 0.0436273082 | AN19: 0.0436273082 | AO19: 0 | AP19: =0 + '1. Strategy Calcs'!AC18 + '1. Strategy Calcs'!AI18 + AQ18 + '1. Strategy Calcs'!AW18 -> 0.6015697664 | AQ19: 0.6001050292 | AR19: 0.001341292122 | AS19: 0.0001234450581 | AT19: 0.6015697664 | AU19: 0.5714912781 | AV19: =0 + '1. Strategy Calcs'!AR18 -> 0.001257797643 | AW19: 0.001196917563 | AX19: 6.088007997e-05 | AY19: 2.995346349 | AZ19: 0.001257797643 | BA19: 0.0005031190571 | BC19: 0.0002052048906 | BD19: =IF((InterpolateTable(tGeneralMortality,VALUE(cycle),2))=1,1,(1-EXP(LN(1-(InterpolateTable(tGeneralMortality,VALUE(cycle),2)))*(1/4)))) -> 0.0008205669428
B20: 12 | D20: ='1. Strategy Calcs'!V20 -> 0.2716284242 | E20: ='1. Strategy Calcs'!AB20 -> 0.03091480102 | F20: ='1. Strategy Calcs'!AG20 -> 0.01461510623 | G20: ='1. Strategy Calcs'!AM20 -> 0.04636723031 | H20: ='1. Strategy Calcs'!AP20 -> 0.6351331461 | I20: ='1. Strategy Calcs'!AV20 -> 0.001341292122 | J20: ='1. Strategy Calcs'!AJ20 + '1. Strategy Calcs'!AY20 -> 37.9989101 | K20: =J20*'Time Discounting'!D17 -> 37.99632705 | L20: 718.1093232 | M20: ='1. Strategy Calcs'!Z20 + '1. Strategy Calcs'!AE20 + '1. Strategy Calcs'!AK20 + '1. Strategy Calcs'!AT20 + '1. Strategy Calcs'!AZ20 -> 0.9536327697 | N20: =M20*'Time Discounting'!C17 -> 0.9535679447 | O20: 11.69833523 | P20: ='1. Strategy Calcs'!AA20 + '1. Strategy Calcs'!AF20 + '1. Strategy Calcs'!AL20 + '1. Strategy Calcs'!AO20 + '1. Strategy Calcs'!AU20 + '1. Strategy Calcs'!BA20 -> 0.9071646784 | Q20: =P20*'Time Discounting'!E17 -> 0.9071030122 | R20: 11.1878022 | T20: 1 | V20: 0.2716284242 | W20: 0.2436724792 | X20: 0.02773305567 | Y20: 0.0002228893056 | Z20: 0.2716284242 | AA20: 0.2716284242 | AB20: =0 + '1. Strategy Calcs'!X19 -> 0.03091480102 | AC20: 0.01780387871 | AD20: 0.01311092232 | AE20: 0.03091480102 | AF20: 0.02782332092 | AG20: =0 + '1. Strategy Calcs'!AD19 -> 0.01461510623 | AH20: 0.002069686125 | AI20: 0.0125454201 | AJ20: 34.8047282 | AK20: 0.01461510623 | AL20: 0.003799927619 | AM20: =0 + '1. Strategy Calcs'!Y19 + '1. Strategy Calcs'!AH19 + AN19 + '1. Strategy Calcs'!AS19 + '1. Strategy Calcs'!AX19 -> 0.04636723031 | AN20: 0.04636723031 | AO20: 0 | AP20: =0 + '1. Strategy Calcs'!AC19 + '1. Strategy Calcs'!AI19 + AQ19 + '1. Strategy Calcs'!AW19 -> 0.6351331461 | AQ20: 0.6335866868 | AR20: 0.001416126829 | AS20: 0.0001303324278 | AT20: 0.6351331461 | AU20: 0.6033764888 | AV20: =0 + '1. Strategy Calcs'!AR19 -> 0.001341292122 | AW20: 0.001276370732 | AX20: 6.49213903e-05 | AY20: 3.194181898 | AZ20: 0.001341292122 | BA20: 0.000536516849 | BC20: 0.0002052048906 | BD20: =IF((InterpolateTable(tGeneralMortality,VALUE(cycle),2))=1,1,(1-EXP(LN(1-(InterpolateTable(tGeneralMortality,VALUE(cycle),2)))*(1/4)))) -> 0.0008205669428
B21: 13 | D21: ='1. Strategy Calcs'!V21 -> 0.2436724792 | E21: ='1. Strategy Calcs'!AB21 -> 0.02773305567 | F21: ='1. Strategy Calcs'!AG21 -> 0.01311092232 | G21: ='1. Strategy Calcs'!AM21 -> 0.04885505956 | H21: ='1. Strategy Calcs'!AP21 -> 0.6652123564 | I21: ='1. Strategy Calcs'!AV21 -> 0.001416126829 | J21: ='1. Strategy Calcs'!AJ21 + '1. Strategy Calcs'!AY21 -> 34.59502717 | K21: =J21*'Time Discounting'!D18 -> 34.59247954 | L21: 752.7018028 | M21: ='1. Strategy Calcs'!Z21 + '1. Strategy Calcs'!AE21 + '1. Strategy Calcs'!AK21 + '1. Strategy Calcs'!AT21 + '1. Strategy Calcs'!AZ21 -> 0.9511449404 | N21: =M21*'Time Discounting'!C18 -> 0.9510748968 | O21: 12.64941013 | P21: ='1. Strategy Calcs'!AA21 + '1. Strategy Calcs'!AF21 + '1. Strategy Calcs'!AL21 + '1. Strategy Calcs'!AO21 + '1. Strategy Calcs'!AU21 + '1. Strategy Calcs'!BA21 -> 0.9045592584 | Q21: =P21*'Time Discounting'!E18 -> 0.9044926454 | R21: 12.09229484 | T21: 1 | V21: 0.2436724792 | W21: 0.2185706438 | X21: 0.02487877494 | Y21: 0.0002230605165 | Z21: 0.2436724792 | AA21: 0.2436724792 | AB21: =0 + '1. Strategy Calcs'!X20 -> 0.02773305567 | AC21: 0.01597150695 | AD21: 0.01176154872 | AE21: 0.02773305567 | AF21: 0.0249597501 | AG21: =0 + '1. Strategy Calcs'!AD20 -> 0.01311092232 | AH21: 0.001856674428 | AI21: 0.01125424789 | AJ21: 31.22263229 | AK21: 0.01311092232 | AL21: 0.003408839802 | AM21: =0 + '1. Strategy Calcs'!Y20 + '1. Strategy Calcs'!AH20 + AN20 + '1. Strategy Calcs'!AS20 + '1. Strategy Calcs'!AX20 -> 0.04885505956 | AN21: 0.04885505956 | AO21: 0 | AP21: =0 + '1. Strategy Calcs'!AC20 + '1. Strategy Calcs'!AI20 + AQ20 + '1. Strategy Calcs'!AW20 -> 0.6652123564 | AQ21: 0.6635768753 | AR21: 0.001483193045 | AS21: 0.0001522879976 | AT21: 0.6652123564 | AU21: 0.6319517386 | AV21: =0 + '1. Strategy Calcs'!AR20 -> 0.001416126829 | AW21: 0.00134758328 | AX21: 6.854354919e-05 | AY21: 3.372394877 | AZ21: 0.001416126829 | BA21: 0.0005664507315 | BC21: 0.0002289314023 | BD21: =IF((InterpolateTable(tGeneralMortality,VALUE(cycle),2))=1,1,(1-EXP(LN(1-(InterpolateTable(tGeneralMortality,VALUE(cycle),2)))*(1/4)))) -> 0.0009154111996
B22: 14 | D22: ='1. Strategy Calcs'!V22 -> 0.2185706438 | E22: ='1. Strategy Calcs'!AB22 -> 0.02487877494 | F22: ='1. Strategy Calcs'!AG22 -> 0.01176154872 | G22: ='1. Strategy Calcs'!AM22 -> 0.05115562605 | H22: ='1. Strategy Calcs'!AP22 -> 0.6921502135 | I22: ='1. Strategy Calcs'!AV22 -> 0.001483193045 | J22: ='1. Strategy Calcs'!AJ22 + '1. Strategy Calcs'!AY22 -> 31.54131281 | K22: =J22*'Time Discounting'!D19 -> 31.5388114 | L22: 784.2406142 | M22: ='1. Strategy Calcs'!Z22 + '1. Strategy Calcs'!AE22 + '1. Strategy Calcs'!AK22 + '1. Strategy Calcs'!AT22 + '1. Strategy Calcs'!AZ22 -> 0.9488443739 | N22: =M22*'Time Discounting'!C19 -> 0.948769125 | O22: 13.59817925 | P22: ='1. Strategy Calcs'!AA22 + '1. Strategy Calcs'!AF22 + '1. Strategy Calcs'!AL22 + '1. Strategy Calcs'!AO22 + '1. Strategy Calcs'!AU22 + '1. Strategy Calcs'!BA22 -> 0.9021555239 | Q22: =P22*'Time Discounting'!E19 -> 0.9020839776 | R22: 12.99437882 | T22: 1 | V22: 0.2185706438 | W22: 0.1960546652 | X22: 0.02231589661 | Y22: 0.0002000820152 | Z22: 0.2185706438 | AA22: 0.2185706438 | AB22: =0 + '1. Strategy Calcs'!X21 -> 0.02487877494 | AC22: 0.01432772254 | AD22: 0.0105510524 | AE22: 0.02487877494 | AF22: 0.02239089744 | AG22: =0 + '1. Strategy Calcs'!AD21 -> 0.01176154872 | AH22: 0.001665585855 | AI22: 0.01009596287 | AJ22: 28.009205 | AK22: 0.01176154872 | AL22: 0.003058002668 | AM22: =0 + '1. Strategy Calcs'!Y21 + '1. Strategy Calcs'!AH21 + AN21 + '1. Strategy Calcs'!AS21 + '1. Strategy Calcs'!AX21 -> 0.05115562605 | AN22: 0.05115562605 | AO22: 0 | AP22: =0 + '1. Strategy Calcs'!AC21 + '1. Strategy Calcs'!AI21 + AQ21 + '1. Strategy Calcs'!AW21 -> 0.6921502135 | AQ22: 0.6904485034 | AR22: 0.001543255131 | AS22: 0.000158454919 | AT22: 0.6921502135 | AU22: 0.6575427028 | AV22: =0 + '1. Strategy Calcs'!AR21 -> 0.001483193045 | AW22: 0.001411403348 | AX22: 7.178969662e-05 | AY22: 3.532107805 | AZ22: 0.001483193045 | BA22: 0.0005932772178 | BC22: 0.0002289314023 | BD22: =IF((InterpolateTable(tGeneralMortality,VALUE(cycle),2))=1,1,(1-EXP(LN(1-(InterpolateTable(tGeneralMortality,VALUE(cycle),2)))*(1/4)))) -> 0.0009154111996
B23: 15 | D23: ='1. Strategy Calcs'!V23 -> 0.1960546652 | E23: ='1. Strategy Calcs'!AB23 -> 0.02231589661 | F23: ='1. Strategy Calcs'!AG23 -> 0.0105510524 | G23: ='1. Strategy Calcs'!AM23 -> 0.05325153854 | H23: ='1. Strategy Calcs'!AP23 -> 0.7162835922 | I23: ='1. Strategy Calcs'!AV23 -> 0.001543255131 | J23: ='1. Strategy Calcs'!AJ23 + '1. Strategy Calcs'!AY23 -> 28.80164398 | K23: =J23*'Time Discounting'!D20 -> 28.7991967 | L23: 813.0398108 | M23: ='1. Strategy Calcs'!Z23 + '1. Strategy Calcs'!AE23 + '1. Strategy Calcs'!AK23 + '1. Strategy Calcs'!AT23 + '1. Strategy Calcs'!AZ23 -> 0.9467484615 | N23: =M23*'Time Discounting'!C20 -> 0.9466680159 | O23: 14.54484727 | P23: ='1. Strategy Calcs'!AA23 + '1. Strategy Calcs'!AF23 + '1. Strategy Calcs'!AL23 + '1. Strategy Calcs'!AO23 + '1. Strategy Calcs'!AU23 + '1. Strategy Calcs'!BA23 -> 0.8999689603 | Q23: =P23*'Time Discounting'!E20 -> 0.8998924897 | R23: 13.89427131 | T23: 1 | V23: 0.1960546652 | W23: 0.1758581622 | X23: 0.02001703231 | Y23: 0.0001794706362 | Z23: 0.1960546652 | AA23: 0.1960546652 | AB23: =0 + '1. Strategy Calcs'!X22 -> 0.02231589661 | AC23: 0.0128517572 | AD23: 0.009464139417 | AE23: 0.02231589661 | AF23: 0.02008430695 | AG23: =0 + '1. Strategy Calcs'!AD22 -> 0.0105510524 | AH23: 0.00149416408 | AI23: 0.00905688832 | AJ23: 25.12650303 | AK23: 0.0105510524 | AL23: 0.002743273624 | AM23: =0 + '1. Strategy Calcs'!Y22 + '1. Strategy Calcs'!AH22 + AN22 + '1. Strategy Calcs'!AS22 + '1. Strategy Calcs'!AX22 -> 0.05325153854 | AN23: 0.05325153854 | AO23: 0 | AP23: =0 + '1. Strategy Calcs'!AC22 + '1. Strategy Calcs'!AI22 + AQ22 + '1. Strategy Calcs'!AW22 -> 0.7162835922 | AQ23: 0.7145225481 | AR23: 0.001597064203 | AS23: 0.0001639798072 | AT23: 0.7162835922 | AU23: 0.6804694125 | AV23: =0 + '1. Strategy Calcs'!AR22 -> 0.001543255131 | AW23: 0.001468558302 | AX23: 7.469682931e-05 | AY23: 3.67514095 | AZ23: 0.001543255131 | BA23: 0.0006173020525 | BC23: 0.0002289314023 | BD23: =IF((InterpolateTable(tGeneralMortality,VALUE(cycle),2))=1,1,(1-EXP(LN(1-(InterpolateTable(tGeneralMortality,VALUE(cycle),2)))*(1/4)))) -> 0.0009154111996
B24: 16 | D24: ='1. Strategy Calcs'!V24 -> 0.1758581622 | E24: ='1. Strategy Calcs'!AB24 -> 0.02001703231 | F24: ='1. Strategy Calcs'!AG24 -> 0.009464139417 | G24: ='1. Strategy Calcs'!AM24 -> 0.05516384989 | H24: ='1. Strategy Calcs'!AP24 -> 0.737899752 | I24: ='1. Strategy Calcs'!AV24 -> 0.001597064203 | J24: ='1. Strategy Calcs'!AJ24 + '1. Strategy Calcs'!AY24 -> 26.34138812 | K24: =J24*'Time Discounting'!D21 -> 26.33900067 | L24: 839.3788115 | M24: ='1. Strategy Calcs'!Z24 + '1. Strategy Calcs'!AE24 + '1. Strategy Calcs'!AK24 + '1. Strategy Calcs'!AT24 + '1. Strategy Calcs'!AZ24 -> 0.9448361501 | N24: =M24*'Time Discounting'!C21 -> 0.9447505151 | O24: 15.48959778 | P24: ='1. Strategy Calcs'!AA24 + '1. Strategy Calcs'!AF24 + '1. Strategy Calcs'!AL24 + '1. Strategy Calcs'!AO24 + '1. Strategy Calcs'!AU24 + '1. Strategy Calcs'!BA24 -> 0.8979777576 | Q24: =P24*'Time Discounting'!E21 -> 0.8978963696 | R24: 14.79216768 | T24: 1 | V24: 0.1758581622 | W24: 0.157742195 | X24: 0.01795498471 | Y24: 0.0001609825312 | Z24: 0.1758581622 | AA24: 0.1758581622 | AB24: =0 + '1. Strategy Calcs'!X23 -> 0.02001703231 | AC24: 0.01152783791 | AD24: 0.008489194396 | AE24: 0.02001703231 | AF24: 0.01801532908 | AG24: =0 + '1. Strategy Calcs'!AD23 -> 0.009464139417 | AH24: 0.001340243289 | AI24: 0.008123896128 | AJ24: 22.53810509 | AK24: 0.009464139417 | AL24: 0.002460676248 | AM24: =0 + '1. Strategy Calcs'!Y23 + '1. Strategy Calcs'!AH23 + AN23 + '1. Strategy Calcs'!AS23 + '1. Strategy Calcs'!AX23 -> 0.05516384989 | AN24: 0.05516384989 | AO24: 0 | AP24: =0 + '1. Strategy Calcs'!AC23 + '1. Strategy Calcs'!AI23 + AQ23 + '1. Strategy Calcs'!AW23 -> 0.737899752 | AQ24: 0.7360855628 | AR24: 0.001645260749 | AS24: 0.000168928425 | AT24: 0.737899752 | AU24: 0.7010047644 | AV24: =0 + '1. Strategy Calcs'!AR23 -> 0.001597064203 | AW24: 0.0015197629 | AX24: 7.730130278e-05 | AY24: 3.80328303 | AZ24: 0.001597064203 | BA24: 0.0006388256812 | BC24: 0.0002289314023 | BD24: =IF((InterpolateTable(tGeneralMortality,VALUE(cycle),2))=1,1,(1-EXP(LN(1-(InterpolateTable(tGeneralMortality,VALUE(cycle),2)))*(1/4)))) -> 0.0009154111996
B25: 17 | D25: ='1. Strategy Calcs'!V25 -> 0.157742195 | E25: ='1. Strategy Calcs'!AB25 -> 0.01795498471 | F25: ='1. Strategy Calcs'!AG25 -> 0.008489194396 | G25: ='1. Strategy Calcs'!AM25 -> 0.05691130544 | H25: ='1. Strategy Calcs'!AP25 -> 0.7572570597 | I25: ='1. Strategy Calcs'!AV25 -> 0.001645260749 | J25: ='1. Strategy Calcs'!AJ25 + '1. Strategy Calcs'!AY25 -> 24.13440937 | K25: =J25*'Time Discounting'!D22 -> 24.13208525 | L25: 863.5108968 | M25: ='1. Strategy Calcs'!Z25 + '1. Strategy Calcs'!AE25 + '1. Strategy Calcs'!AK25 + '1. Strategy Calcs'!AT25 + '1. Strategy Calcs'!AZ25 -> 0.9430886946 | N25: =M25*'Time Discounting'!C22 -> 0.9429978759 | O25: 16.43259566 | P25: ='1. Strategy Calcs'!AA25 + '1. Strategy Calcs'!AF25 + '1. Strategy Calcs'!AL25 + '1. Strategy Calcs'!AO25 + '1. Strategy Calcs'!AU25 + '1. Strategy Calcs'!BA25 -> 0.8961611828 | Q25: =P25*'Time Discounting'!E22 -> 0.8960748832 | R25: 15.68824256 | T25: 1 | V25: 0.157742195 | W25: 0.1414924378 | X25: 0.01610535822 | Y25: 0.0001443989719 | Z25: 0.157742195 | AA25: 0.157742195 | AB25: =0 + '1. Strategy Calcs'!X24 -> 0.01795498471 | AC25: 0.01034030171 | AD25: 0.007614682997 | AE25: 0.01795498471 | AF25: 0.01615948624 | AG25: =0 + '1. Strategy Calcs'!AD24 -> 0.008489194396 | AH25: 0.001202178594 | AI25: 0.007287015803 | AJ25: 20.21635005 | AK25: 0.008489194396 | AL25: 0.002207190543 | AM25: =0 + '1. Strategy Calcs'!Y24 + '1. Strategy Calcs'!AH24 + AN24 + '1. Strategy Calcs'!AS24 + '1. Strategy Calcs'!AX24 -> 0.05691130544 | AN25: 0.05691130544 | AO25: 0 | AP25: =0 + '1. Strategy Calcs'!AC24 + '1. Strategy Calcs'!AI24 + AQ24 + '1. Strategy Calcs'!AW24 -> 0.7572570597 | AQ25: 0.755395279 | AR25: 0.001688420838 | AS25: 0.0001733599206 | AT25: 0.7572570597 | AU25: 0.7193942067 | AV25: =0 + '1. Strategy Calcs'!AR24 -> 0.001645260749 | AW25: 0.001565626631 | AX25: 7.963411807e-05 | AY25: 3.918059321 | AZ25: 0.001645260749 | BA25: 0.0006581042996 | BC25: 0.0002289314023 | BD25: =IF((InterpolateTable(tGeneralMortality,VALUE(cycle),2))=1,1,(1-EXP(LN(1-(InterpolateTable(tGeneralMortality,VALUE(cycle),2)))*(1/4)))) -> 0.0009154111996
B26: 18 | D26: ='1. Strategy Calcs'!V26 -> 0.1414924378 | E26: ='1. Strategy Calcs'!AB26 -> 0.01610535822 | F26: ='1. Strategy Calcs'!AG26 -> 0.007614682997 | G26: ='1. Strategy Calcs'!AM26 -> 0.05851087704 | H26: ='1. Strategy Calcs'!AP26 -> 0.7745882231 | I26: ='1. Strategy Calcs'!AV26 -> 0.001688420838 | J26: ='1. Strategy Calcs'!AJ26 + '1. Strategy Calcs'!AY26 -> 22.15461149 | K26: =J26*'Time Discounting'!D23 -> 22.15235252 | L26: 885.6632493 | M26: ='1. Strategy Calcs'!Z26 + '1. Strategy Calcs'!AE26 + '1. Strategy Calcs'!AK26 + '1. Strategy Calcs'!AT26 + '1. Strategy Calcs'!AZ26 -> 0.941489123 | N26: =M26*'Time Discounting'!C23 -> 0.9413931254 | O26: 17.37398878 | P26: ='1. Strategy Calcs'!AA26 + '1. Strategy Calcs'!AF26 + '1. Strategy Calcs'!AL26 + '1. Strategy Calcs'!AO26 + '1. Strategy Calcs'!AU26 + '1. Strategy Calcs'!BA26 -> 0.8945012581 | Q26: =P26*'Time Discounting'!E23 -> 0.8944100515 | R26: 16.58265262 | T26: 1 | V26: 0.1414924378 | W26: 0.1269166437 | X26: 0.01444627036 | Y26: 0.0001295237622 | Z26: 0.1414924378 | AA26: 0.1414924378 | AB26: =0 + '1. Strategy Calcs'!X25 -> 0.01610535822 | AC26: 0.009275099137 | AD26: 0.006830259084 | AE26: 0.01610535822 | AF26: 0.0144948224 | AG26: =0 + '1. Strategy Calcs'!AD25 -> 0.007614682997 | AH26: 0.001078336585 | AI26: 0.006536346411 | AJ26: 18.1337698 | AK26: 0.007614682997 | AL26: 0.001979817579 | AM26: =0 + '1. Strategy Calcs'!Y25 + '1. Strategy Calcs'!AH25 + AN25 + '1. Strategy Calcs'!AS25 + '1. Strategy Calcs'!AX25 -> 0.05851087704 | AN26: 0.05851087704 | AO26: 0 | AP26: =0 + '1. Strategy Calcs'!AC25 + '1. Strategy Calcs'!AI25 + AQ25 + '1. Strategy Calcs'!AW25 -> 0.7745882231 | AQ26: 0.7726838322 | AR26: 0.001727063326 | AS26: 0.0001773275681 | AT26: 0.7745882231 | AU26: 0.735858812 | AV26: =0 + '1. Strategy Calcs'!AR25 -> 0.001688420838 | AW26: 0.001606697679 | AX26: 8.172315811e-05 | AY26: 4.020841684 | AZ26: 0.001688420838 | BA26: 0.000675368335 | BC26: 0.0002289314023 | BD26: =IF((InterpolateTable(tGeneralMortality,VALUE(cycle),2))=1,1,(1-EXP(LN(1-(InterpolateTable(tGeneralMortality,VALUE(cycle),2)))*(1/4)))) -> 0.0009154111996
B27: 19 | D27: ='1. Strategy Calcs'!V27 -> 0.1269166437 | E27: ='1. Strategy Calcs'!AB27 -> 0.01444627036 | F27: ='1. Strategy Calcs'!AG27 -> 0.006830259084 | G27: ='1. Strategy Calcs'!AM27 -> 0.05997778812 | H27: ='1. Strategy Calcs'!AP27 -> 0.7901019755 | I27: ='1. Strategy Calcs'!AV27 -> 0.001727063326 | J27: ='1. Strategy Calcs'!AJ27 + '1. Strategy Calcs'!AY27 -> 20.37859157 | K27: =J27*'Time Discounting'!D24 -> 20.37639827 | L27: 906.0396476 | M27: ='1. Strategy Calcs'!Z27 + '1. Strategy Calcs'!AE27 + '1. Strategy Calcs'!AK27 + '1. Strategy Calcs'!AT27 + '1. Strategy Calcs'!AZ27 -> 0.9400222119 | N27: =M27*'Time Discounting'!C24 -> 0.9399210393 | O27: 18.31390982 | P27: ='1. Strategy Calcs'!AA27 + '1. Strategy Calcs'!AF27 + '1. Strategy Calcs'!AL27 + '1. Strategy Calcs'!AO27 + '1. Strategy Calcs'!AU27 + '1. Strategy Calcs'!BA27 -> 0.8929818564 | Q27: =P27*'Time Discounting'!E24 -> 0.8928857466 | R27: 17.47553836 | T27: 1 | V27: 0.1269166437 | W27: 0.1138423699 | X27: 0.01295809286 | Y27: 0.000116180917 | Z27: 0.1269166437 | AA27: 0.1269166437 | AB27: =0 + '1. Strategy Calcs'!X26 -> 0.01444627036 | AC27: 0.008319628035 | AD27: 0.006126642327 | AE27: 0.01444627036 | AF27: 0.01300164333 | AG27: =0 + '1. Strategy Calcs'!AD26 -> 0.006830259084 | AH27: 0.000967252118 | AI27: 0.005863006966 | AJ27: 16.26572583 | AK27: 0.006830259084 | AL27: 0.001775867362 | AM27: =0 + '1. Strategy Calcs'!Y26 + '1. Strategy Calcs'!AH26 + AN26 + '1. Strategy Calcs'!AS26 + '1. Strategy Calcs'!AX26 -> 0.05997778812 | AN27: 0.05997778812 | AO27: 0 | AP27: =0 + '1. Strategy Calcs'!AC26 + '1. Strategy Calcs'!AI26 + AQ26 + '1. Strategy Calcs'!AW26 -> 0.7901019755 | AQ27: 0.7881594427 | AR27: 0.001761653618 | AS27: 0.0001808791532 | AT27: 0.7901019755 | AU27: 0.7505968767 | AV27: =0 + '1. Strategy Calcs'!AR26 -> 0.001727063326 | AW27: 0.00164346979 | AX27: 8.359353672e-05 | AY27: 4.112865737 | AZ27: 0.001727063326 | BA27: 0.0006908253305 | BC27: 0.0002289314023 | BD27: =IF((InterpolateTable(tGeneralMortality,VALUE(cycle),2))=1,1,(1-EXP(LN(1-(InterpolateTable(tGeneralMortality,VALUE(cycle),2)))*(1/4)))) -> 0.0009154111996
B28: 20 | D28: ='1. Strategy Calcs'!V28 -> 0.1138423699 | E28: ='1. Strategy Calcs'!AB28 -> 0.01295809286 | F28: ='1. Strategy Calcs'!AG28 -> 0.006126642327 | G28: ='1. Strategy Calcs'!AM28 -> 0.06132569384 | H28: ='1. Strategy Calcs'!AP28 -> 0.8039855475 | I28: ='1. Strategy Calcs'!AV28 -> 0.001761653618 | J28: ='1. Strategy Calcs'!AJ28 + '1. Strategy Calcs'!AY28 -> 18.78535756 | K28: =J28*'Time Discounting'!D25 -> 18.78322933 | L28: 924.8228769 | M28: ='1. Strategy Calcs'!Z28 + '1. Strategy Calcs'!AE28 + '1. Strategy Calcs'!AK28 + '1. Strategy Calcs'!AT28 + '1. Strategy Calcs'!AZ28 -> 0.9386743062 | N28: =M28*'Time Discounting'!C25 -> 0.9385679617 | O28: 19.25247778 | P28: ='1. Strategy Calcs'!AA28 + '1. Strategy Calcs'!AF28 + '1. Strategy Calcs'!AL28 + '1. Strategy Calcs'!AO28 + '1. Strategy Calcs'!AU28 + '1. Strategy Calcs'!BA28 -> 0.891588512 | Q28: =P28*'Time Discounting'!E25 -> 0.891487502 | R28: 18.36702586 | T28: 1 | V28: 0.1138423699 | W28: 0.1021149379 | X28: 0.01162321944 | Y28: 0.0001042125804 | Z28: 0.1138423699 | AA28: 0.1138423699 | AB28: =0 + '1. Strategy Calcs'!X27 -> 0.01295809286 | AC28: 0.007462584455 | AD28: 0.005495508405 | AE28: 0.01295809286 | AF28: 0.01166228357 | AG28: =0 + '1. Strategy Calcs'!AD27 -> 0.006126642327 | AH28: 0.0008676109785 | AI28: 0.005259031348 | AJ28: 14.59011776 | AK28: 0.006126642327 | AL28: 0.001592927005 | AM28: =0 + '1. Strategy Calcs'!Y27 + '1. Strategy Calcs'!AH27 + AN27 + '1. Strategy Calcs'!AS27 + '1. Strategy Calcs'!AX27 -> 0.06132569384 | AN28: 0.06132569384 | AO28: 0 | AP28: =0 + '1. Strategy Calcs'!AC27 + '1. Strategy Calcs'!AI27 + AQ27 + '1. Strategy Calcs'!AW27 -> 0.8039855475 | AQ28: 0.8020088808 | AR28: 0.001792609173 | AS28: 0.0001840575388 | AT28: 0.8039855475 | AU28: 0.7637862701 | AV28: =0 + '1. Strategy Calcs'!AR27 -> 0.001761653618 | AW28: 0.001676385838 | AX28: 8.526778039e-05 | AY28: 4.195239802 | AZ28: 0.001761653618 | BA28: 0.0007046614473 | BC28: 0.0002289314023 | BD28: =IF((InterpolateTable(tGeneralMortality,VALUE(cycle),2))=1,1,(1-EXP(LN(1-(InterpolateTable(tGeneralMortality,VALUE(cycle),2)))*(1/4)))) -> 0.0009154111996
B29: 21 | D29: ='1. Strategy Calcs'!V29 -> 0.1021149379 | E29: ='1. Strategy Calcs'!AB29 -> 0.01162321944 | F29: ='1. Strategy Calcs'!AG29 -> 0.005495508405 | G29: ='1. Strategy Calcs'!AM29 -> 0.06256684272 | H29: ='1. Strategy Calcs'!AP29 -> 0.8164068824 | I29: ='1. Strategy Calcs'!AV29 -> 0.001792609173 | J29: ='1. Strategy Calcs'!AJ29 + '1. Strategy Calcs'!AY29 -> 17.35607989 | K29: =J29*'Time Discounting'!D26 -> 17.35401528 | L29: 942.1768922 | M29: ='1. Strategy Calcs'!Z29 + '1. Strategy Calcs'!AE29 + '1. Strategy Calcs'!AK29 + '1. Strategy Calcs'!AT29 + '1. Strategy Calcs'!AZ29 -> 0.9374331573 | N29: =M29*'Time Discounting'!C26 -> 0.9373216435 | O29: 20.18979943 | P29: ='1. Strategy Calcs'!AA29 + '1. Strategy Calcs'!AF29 + '1. Strategy Calcs'!AL29 + '1. Strategy Calcs'!AO29 + '1. Strategy Calcs'!AU29 + '1. Strategy Calcs'!BA29 -> 0.8903082495 | Q29: =P29*'Time Discounting'!E26 -> 0.8902023416 | R29: 19.25722821 | T29: 1 | V29: 0.1021149379 | W29: 0.09159560315 | X29: 0.01042585755 | Y29: 9.347715776e-05 | Z29: 0.1021149379 | AA29: 0.1021149379 | AB29: =0 + '1. Strategy Calcs'!X28 -> 0.01162321944 | AC29: 0.00669382892 | AD29: 0.004929390523 | AE29: 0.01162321944 | AF29: 0.0104608975 | AG29: =0 + '1. Strategy Calcs'!AD28 -> 0.005495508405 | AH29: 0.0007782343362 | AI29: 0.004717274068 | AJ29: 13.08712187 | AK29: 0.005495508405 | AL29: 0.001428832185 | AM29: =0 + '1. Strategy Calcs'!Y28 + '1. Strategy Calcs'!AH28 + AN28 + '1. Strategy Calcs'!AS28 + '1. Strategy Calcs'!AX28 -> 0.06256684272 | AN29: 0.06256684272 | AO29: 0 | AP29: =0 + '1. Strategy Calcs'!AC28 + '1. Strategy Calcs'!AI28 + AQ28 + '1. Strategy Calcs'!AW28 -> 0.8164068824 | AQ29: 0.8143996768 | AR29: 0.001820304445 | AS29: 0.0001869011724 | AT29: 0.8164068824 | AU29: 0.7755865383 | AV29: =0 + '1. Strategy Calcs'!AR28 -> 0.001792609173 | AW29: 0.001705843078 | AX29: 8.676609504e-05 | AY29: 4.268958025 | AZ29: 0.001792609173 | BA29: 0.0007170436691 | BC29: 0.0002289314023 | BD29: =IF((InterpolateTable(tGeneralMortality,VALUE(cycle),2))=1,1,(1-EXP(LN(1-(InterpolateTable(tGeneralMortality,VALUE(cycle),2)))*(1/4)))) -> 0.0009154111996
B30: 22 | D30: ='1. Strategy Calcs'!V30 -> 0.09159560315 | E30: ='1. Strategy Calcs'!AB30 -> 0.01042585755 | F30: ='1. Strategy Calcs'!AG30 -> 0.004929390523 | G30: ='1. Strategy Calcs'!AM30 -> 0.06371222148 | H30: ='1. Strategy Calcs'!AP30 -> 0.8275166228 | I30: ='1. Strategy Calcs'!AV30 -> 0.001820304445 | J30: ='1. Strategy Calcs'!AJ30 + '1. Strategy Calcs'!AY30 -> 16.07386872 | K30: =J30*'Time Discounting'!D27 -> 16.07186558 | L30: 958.2487577 | M30: ='1. Strategy Calcs'!Z30 + '1. Strategy Calcs'!AE30 + '1. Strategy Calcs'!AK30 + '1. Strategy Calcs'!AT30 + '1. Strategy Calcs'!AZ30 -> 0.9362877785 | N30: =M30*'Time Discounting'!C27 -> 0.9361710977 | O30: 21.12597052 | P30: ='1. Strategy Calcs'!AA30 + '1. Strategy Calcs'!AF30 + '1. Strategy Calcs'!AL30 + '1. Strategy Calcs'!AO30 + '1. Strategy Calcs'!AU30 + '1. Strategy Calcs'!BA30 -> 0.88912943 | Q30: =P30*'Time Discounting'!E27 -> 0.889018626 | R30: 20.14624683 | T30: 1 | V30: 0.09159560315 | W30: 0.08215991404 | X30: 0.009351841468 | Y30: 8.384764096e-05 | Z30: 0.09159560315 | AA30: 0.09159560315 | AB30: =0 + '1. Strategy Calcs'!X29 -> 0.01042585755 | AC30: 0.006004266469 | AD30: 0.004421591078 | AE30: 0.01042585755 | AF30: 0.009383271792 | AG30: =0 + '1. Strategy Calcs'!AD29 -> 0.004929390523 | AH30: 0.0006980647975 | AI30: 0.004231325726 | AJ30: 11.73895657 | AK30: 0.004929390523 | AL30: 0.001281641536 | AM30: =0 + '1. Strategy Calcs'!Y29 + '1. Strategy Calcs'!AH29 + AN29 + '1. Strategy Calcs'!AS29 + '1. Strategy Calcs'!AX29 -> 0.06371222148 | AN30: 0.06371222148 | AO30: 0 | AP30: =0 + '1. Strategy Calcs'!AC29 + '1. Strategy Calcs'!AI29 + AQ29 + '1. Strategy Calcs'!AW29 -> 0.8275166228 | AQ30: 0.825482103 | AR30: 0.001845075317 | AS30: 0.0001894445409 | AT30: 0.8275166228 | AU30: 0.7861407917 | AV30: =0 + '1. Strategy Calcs'!AR29 -> 0.001820304445 | AW30: 0.00173219784 | AX30: 8.810660512e-05 | AY30: 4.334912143 | AZ30: 0.001820304445 | BA30: 0.0007281217782 | BC30: 0.0002289314023 | BD30: =IF((InterpolateTable(tGeneralMortality,VALUE(cycle),2))=1,1,(1-EXP(LN(1-(InterpolateTable(tGeneralMortality,VALUE(cycle),2)))*(1/4)))) -> 0.0009154111996
B31: 23 | D31: ='1. Strategy Calcs'!V31 -> 0.08215991404 | E31: ='1. Strategy Calcs'!AB31 -> 0.009351841468 | F31: ='1. Strategy Calcs'!AG31 -> 0.004421591078 | G31: ='1. Strategy Calcs'!AM31 -> 0.06477168507 | H31: ='1. Strategy Calcs'!AP31 -> 0.837449893 | I31: ='1. Strategy Calcs'!AV31 -> 0.001845075317 | J31: ='1. Strategy Calcs'!AJ31 + '1. Strategy Calcs'!AY31 -> 14.92357409 | K31: =J31*'Time Discounting'!D28 -> 14.92162977 | L31: 973.1703875 | M31: ='1. Strategy Calcs'!Z31 + '1. Strategy Calcs'!AE31 + '1. Strategy Calcs'!AK31 + '1. Strategy Calcs'!AT31 + '1. Strategy Calcs'!AZ31 -> 0.9352283149 | N31: =M31*'Time Discounting'!C28 -> 0.9351064688 | O31: 22.06107699 | P31: ='1. Strategy Calcs'!AA31 + '1. Strategy Calcs'!AF31 + '1. Strategy Calcs'!AL31 + '1. Strategy Calcs'!AO31 + '1. Strategy Calcs'!AU31 + '1. Strategy Calcs'!BA31 -> 0.8880416135 | Q31: =P31*'Time Discounting'!E28 -> 0.8879259151 | R31: 21.03417275 | T31: 1 | V31: 0.08215991404 | W31: 0.07369623916 | X31: 0.008388464781 | Y31: 7.521010547e-05 | Z31: 0.08215991404 | AA31: 0.08215991404 | AB31: =0 + '1. Strategy Calcs'!X30 -> 0.009351841468 | AC31: 0.005385739053 | AD31: 0.003966102415 | AE31: 0.009351841468 | AF31: 0.008416657321 | AG31: =0 + '1. Strategy Calcs'!AD30 -> 0.004421591078 | AH31: 0.0006261538959 | AI31: 0.003795437182 | AJ31: 10.52967206 | AK31: 0.004421591078 | AL31: 0.00114961368 | AM31: =0 + '1. Strategy Calcs'!Y30 + '1. Strategy Calcs'!AH30 + AN30 + '1. Strategy Calcs'!AS30 + '1. Strategy Calcs'!AX30 -> 0.06477168507 | AN31: 0.06477168507 | AO31: 0 | AP31: =0 + '1. Strategy Calcs'!AC30 + '1. Strategy Calcs'!AI30 + AQ30 + '1. Strategy Calcs'!AW30 -> 0.837449893 | AQ31: 0.8353909514 | AR31: 0.001867223067 | AS31: 0.0001917185783 | AT31: 0.837449893 | AU31: 0.7955773984 | AV31: =0 + '1. Strategy Calcs'!AR30 -> 0.001845075317 | AW31: 0.001755769749 | AX31: 8.930556796e-05 | AY31: 4.393902029 | AZ31: 0.001845075317 | BA31: 0.0007380301268 | BC31: 0.0002289314023 | BD31: =IF((InterpolateTable(tGeneralMortality,VALUE(cycle),2))=1,1,(1-EXP(LN(1-(InterpolateTable(tGeneralMortality,VALUE(cycle),2)))*(1/4)))) -> 0.0009154111996
B32: 24 | D32: ='1. Strategy Calcs'!V32 -> 0.07369623916 | E32: ='1. Strategy Calcs'!AB32 -> 0.008388464781 | F32: ='1. Strategy Calcs'!AG32 -> 0.003966102415 | G32: ='1. Strategy Calcs'!AM32 -> 0.06575407321 | H32: ='1. Strategy Calcs'!AP32 -> 0.8463278974 | I32: ='1. Strategy Calcs'!AV32 -> 0.001867223067 | J32: ='1. Strategy Calcs'!AJ32 + '1. Strategy Calcs'!AY32 -> 13.89160672 | K32: =J32*'Time Discounting'!D29 -> 13.88971817 | L32: 987.0601057 | M32: ='1. Strategy Calcs'!Z32 + '1. Strategy Calcs'!AE32 + '1. Strategy Calcs'!AK32 + '1. Strategy Calcs'!AT32 + '1. Strategy Calcs'!AZ32 -> 0.9342459268 | N32: =M32*'Time Discounting'!C29 -> 0.9341189169 | O32: 22.99519591 | P32: ='1. Strategy Calcs'!AA32 + '1. Strategy Calcs'!AF32 + '1. Strategy Calcs'!AL32 + '1. Strategy Calcs'!AO32 + '1. Strategy Calcs'!AU32 + '1. Strategy Calcs'!BA32 -> 0.8870354358 | Q32: =P32*'Time Discounting'!E29 -> 0.8869148441 | R32: 21.92108759 | T32: 1 | V32: 0.07369623916 | W32: 0.06610444679 | X32: 0.007524330008 | Y32: 6.746236269e-05 | Z32: 0.07369623916 | AA32: 0.07369623916 | AB32: =0 + '1. Strategy Calcs'!X31 -> 0.008388464781 | AC32: 0.004830929023 | AD32: 0.003557535758 | AE32: 0.008388464781 | AF32: 0.007549618303 | AG32: =0 + '1. Strategy Calcs'!AD31 -> 0.003966102415 | AH32: 0.0005616508707 | AI32: 0.003404451545 | AJ32: 9.444961563 | AK32: 0.003966102415 | AL32: 0.001031186628 | AM32: =0 + '1. Strategy Calcs'!Y31 + '1. Strategy Calcs'!AH31 + AN31 + '1. Strategy Calcs'!AS31 + '1. Strategy Calcs'!AX31 -> 0.06575407321 | AN32: 0.06575407321 | AO32: 0 | AP32: =0 + '1. Strategy Calcs'!AC31 + '1. Strategy Calcs'!AI31 + AQ31 + '1. Strategy Calcs'!AW31 -> 0.8463278974 | AQ32: 0.8442471284 | AR32: 0.001887017941 | AS32: 0.0001937510323 | AT32: 0.8463278974 | AU32: 0.8040115025 | AV32: =0 + '1. Strategy Calcs'!AR31 -> 0.001867223067 | AW32: 0.001776845501 | AX32: 9.037756616e-05 | AY32: 4.446645158 | AZ32: 0.001867223067 | BA32: 0.0007468892269 | BC32: 0.0002289314023 | BD32: =IF((InterpolateTable(tGeneralMortality,VALUE(cycle),2))=1,1,(1-EXP(LN(1-(InterpolateTable(tGeneralMortality,VALUE(cycle),2)))*(1/4)))) -> 0.0009154111996
B33: 25 | D33: ='1. Strategy Calcs'!V33 -> 0.06610444679 | E33: ='1. Strategy Calcs'!AB33 -> 0.007524330008 | F33: ='1. Strategy Calcs'!AG33 -> 0.003557535758 | G33: ='1. Strategy Calcs'!AM33 -> 0.06666731505 | H33: ='1. Strategy Calcs'!AP33 -> 0.8542593545 | I33: ='1. Strategy Calcs'!AV33 -> 0.001887017941 | J33: ='1. Strategy Calcs'!AJ33 + '1. Strategy Calcs'!AY33 -> 12.96577724 | K33: =J33*'Time Discounting'!D30 -> 12.96394111 | L33: 1000.024047 | M33: ='1. Strategy Calcs'!Z33 + '1. Strategy Calcs'!AE33 + '1. Strategy Calcs'!AK33 + '1. Strategy Calcs'!AT33 + '1. Strategy Calcs'!AZ33 -> 0.933332685 | N33: =M33*'Time Discounting'!C30 -> 0.9332005127 | O33: 23.92839642 | P33: ='1. Strategy Calcs'!AA33 + '1. Strategy Calcs'!AF33 + '1. Strategy Calcs'!AL33 + '1. Strategy Calcs'!AO33 + '1. Strategy Calcs'!AU33 + '1. Strategy Calcs'!BA33 -> 0.886102497 | Q33: =P33*'Time Discounting'!E30 -> 0.8859770131 | R33: 22.8070646 | T33: 1 | V33: 0.06610444679 | W33: 0.05928820053 | X33: 0.006749213777 | Y33: 6.703247851e-05 | Z33: 0.06610444679 | AA33: 0.06610444679 | AB33: =0 + '1. Strategy Calcs'!X32 -> 0.007524330008 | AC33: 0.004333272555 | AD33: 0.003191057453 | AE33: 0.007524330008 | AF33: 0.006771897007 | AG33: =0 + '1. Strategy Calcs'!AD32 -> 0.003557535758 | AH33: 0.0005037926022 | AI33: 0.003053743156 | AJ33: 8.471992142 | AK33: 0.003557535758 | AL33: 0.0009249592972 | AM33: =0 + '1. Strategy Calcs'!Y32 + '1. Strategy Calcs'!AH32 + AN32 + '1. Strategy Calcs'!AS32 + '1. Strategy Calcs'!AX32 -> 0.06666731505 | AN33: 0.06666731505 | AO33: 0 | AP33: =0 + '1. Strategy Calcs'!AC32 + '1. Strategy Calcs'!AI32 + AQ32 + '1. Strategy Calcs'!AW32 -> 0.8542593545 | AQ33: 0.8521380067 | AR33: 0.001904702342 | AS33: 0.0002166454476 | AT33: 0.8542593545 | AU33: 0.8115463867 | AV33: =0 + '1. Strategy Calcs'!AR32 -> 0.001887017941 | AW33: 0.00179568226 | AX33: 9.133568011e-05 | AY33: 4.493785095 | AZ33: 0.001887017941 | BA33: 0.0007548071762 | BC33: 0.0002536061753 | BD33: =IF((InterpolateTable(tGeneralMortality,VALUE(cycle),2))=1,1,(1-EXP(LN(1-(InterpolateTable(tGeneralMortality,VALUE(cycle),2)))*(1/4)))) -> 0.00101403887
B34: 26 | D34: ='1. Strategy Calcs'!V34 -> 0.05928820053 | E34: ='1. Strategy Calcs'!AB34 -> 0.006749213777 | F34: ='1. Strategy Calcs'!AG34 -> 0.003191057453 | G34: ='1. Strategy Calcs'!AM34 -> 0.06754612125 | H34: ='1. Strategy Calcs'!AP34 -> 0.8613207046 | I34: ='1. Strategy Calcs'!AV34 -> 0.001904702342 | J34: ='1. Strategy Calcs'!AJ34 + '1. Strategy Calcs'!AY34 -> 12.13515193 | K34: =J34*'Time Discounting'!D31 -> 12.1333647 | L34: 1012.157411 | M34: ='1. Strategy Calcs'!Z34 + '1. Strategy Calcs'!AE34 + '1. Strategy Calcs'!AK34 + '1. Strategy Calcs'!AT34 + '1. Strategy Calcs'!AZ34 -> 0.9324538787 | N34: =M34*'Time Discounting'!C31 -> 0.9323165494 | O34: 24.86071297 | P34: ='1. Strategy Calcs'!AA34 + '1. Strategy Calcs'!AF34 + '1. Strategy Calcs'!AL34 + '1. Strategy Calcs'!AO34 + '1. Strategy Calcs'!AU34 + '1. Strategy Calcs'!BA34 -> 0.8852087182 | Q34: =P34*'Time Discounting'!E31 -> 0.885078347 | R34: 23.69214295 | T34: 1 | V34: 0.05928820053 | W34: 0.05317479978 | X34: 0.006053280215 | Y34: 6.012053986e-05 | Z34: 0.05928820053 | AA34: 0.05928820053 | AB34: =0 + '1. Strategy Calcs'!X33 -> 0.006749213777 | AC34: 0.003886881994 | AD34: 0.002862331783 | AE34: 0.006749213777 | AF34: 0.006074292399 | AG34: =0 + '1. Strategy Calcs'!AD33 -> 0.003191057453 | AH34: 0.000451894583 | AI34: 0.00273916287 | AJ34: 7.599252827 | AK34: 0.003191057453 | AL34: 0.0008296749378 | AM34: =0 + '1. Strategy Calcs'!Y33 + '1. Strategy Calcs'!AH33 + AN33 + '1. Strategy Calcs'!AS33 + '1. Strategy Calcs'!AX33 -> 0.06754612125 | AN34: 0.06754612125 | AO34: 0 | AP34: =0 + '1. Strategy Calcs'!AC33 + '1. Strategy Calcs'!AI33 + AQ33 + '1. Strategy Calcs'!AW33 -> 0.8613207046 | AQ34: 0.8591818217 | AR34: 0.001920446705 | AS34: 0.0002184362496 | AT34: 0.8613207046 | AU34: 0.8182546694 | AV34: =0 + '1. Strategy Calcs'!AR33 -> 0.001904702342 | AW34: 0.001812510699 | AX34: 9.219164271e-05 | AY34: 4.535899107 | AZ34: 0.001904702342 | BA34: 0.0007618809366 | BC34: 0.0002536061753 | BD34: =IF((InterpolateTable(tGeneralMortality,VALUE(cycle),2))=1,1,(1-EXP(LN(1-(InterpolateTable(tGeneralMortality,VALUE(cycle),2)))*(1/4)))) -> 0.00101403887
B35: 27 | D35: ='1. Strategy Calcs'!V35 -> 0.05317479978 | E35: ='1. Strategy Calcs'!AB35 -> 0.006053280215 | F35: ='1. Strategy Calcs'!AG35 -> 0.002862331783 | G35: ='1. Strategy Calcs'!AM35 -> 0.06836876427 | H35: ='1. Strategy Calcs'!AP35 -> 0.8676203773 | I35: ='1. Strategy Calcs'!AV35 -> 0.001920446705 | J35: ='1. Strategy Calcs'!AJ35 + '1. Strategy Calcs'!AY35 -> 11.38981152 | K35: =J35*'Time Discounting'!D32 -> 11.38806955 | L35: 1023.545481 | M35: ='1. Strategy Calcs'!Z35 + '1. Strategy Calcs'!AE35 + '1. Strategy Calcs'!AK35 + '1. Strategy Calcs'!AT35 + '1. Strategy Calcs'!AZ35 -> 0.9316312357 | N35: =M35*'Time Discounting'!C32 -> 0.9314887507 | O35: 25.79220172 | P35: ='1. Strategy Calcs'!AA35 + '1. Strategy Calcs'!AF35 + '1. Strategy Calcs'!AL35 + '1. Strategy Calcs'!AO35 + '1. Strategy Calcs'!AU35 + '1. Strategy Calcs'!BA35 -> 0.8843744953 | Q35: =P35*'Time Discounting'!E32 -> 0.8842392378 | R35: 24.57638219 | T35: 1 | V35: 0.05317479978 | W35: 0.04769177182 | X35: 0.005429106644 | Y35: 5.392131387e-05 | Z35: 0.05317479978 | AA35: 0.05317479978 | AB35: =0 + '1. Strategy Calcs'!X34 -> 0.006053280215 | AC35: 0.003486092847 | AD35: 0.002567187367 | AE35: 0.006053280215 | AF35: 0.005447952193 | AG35: =0 + '1. Strategy Calcs'!AD34 -> 0.002862331783 | AH35: 0.0004053428201 | AI35: 0.002456988963 | AJ35: 6.816418447 | AK35: 0.002862331783 | AL35: 0.0007442062635 | AM35: =0 + '1. Strategy Calcs'!Y34 + '1. Strategy Calcs'!AH34 + AN34 + '1. Strategy Calcs'!AS34 + '1. Strategy Calcs'!AX34 -> 0.06836876427 | AN35: 0.06836876427 | AO35: 0 | AP35: =0 + '1. Strategy Calcs'!AC34 + '1. Strategy Calcs'!AI34 + AQ34 + '1. Strategy Calcs'!AW34 -> 0.8676203773 | AQ35: 0.8654658506 | AR35: 0.001934492792 | AS35: 0.0002200338855 | AT35: 0.8676203773 | AU35: 0.8242393584 | AV35: =0 + '1. Strategy Calcs'!AR34 -> 0.001920446705 | AW35: 0.001827493002 | AX35: 9.29537034e-05 | AY35: 4.573393074 | AZ35: 0.001920446705 | BA35: 0.0007681786822 | BC35: 0.0002536061753 | BD35: =IF((InterpolateTable(tGeneralMortality,VALUE(cycle),2))=1,1,(1-EXP(LN(1-(InterpolateTable(tGeneralMortality,VALUE(cycle),2)))*(1/4)))) -> 0.00101403887
B36: 28 | D36: ='1. Strategy Calcs'!V36 -> 0.04769177182 | E36: ='1. Strategy Calcs'!AB36 -> 0.005429106644 | F36: ='1. Strategy Calcs'!AG36 -> 0.002567187367 | G36: ='1. Strategy Calcs'!AM36 -> 0.06914101599 | H36: ='1. Strategy Calcs'!AP36 -> 0.8732364254 | I36: ='1. Strategy Calcs'!AV36 -> 0.001934492792 | J36: ='1. Strategy Calcs'!AJ36 + '1. Strategy Calcs'!AY36 -> 10.72039792 | K36: =J36*'Time Discounting'!D33 -> 10.7186976 | L36: 1034.264179 | M36: ='1. Strategy Calcs'!Z36 + '1. Strategy Calcs'!AE36 + '1. Strategy Calcs'!AK36 + '1. Strategy Calcs'!AT36 + '1. Strategy Calcs'!AZ36 -> 0.930858984 | N36: =M36*'Time Discounting'!C33 -> 0.9307113447 | O36: 26.72291307 | P36: ='1. Strategy Calcs'!AA36 + '1. Strategy Calcs'!AF36 + '1. Strategy Calcs'!AL36 + '1. Strategy Calcs'!AO36 + '1. Strategy Calcs'!AU36 + '1. Strategy Calcs'!BA36 -> 0.8835938377 | Q36: =P36*'Time Discounting'!E33 -> 0.8834536949 | R36: 25.45983588 | T36: 1 | V36: 0.04769177182 | W36: 0.04277411685 | X36: 0.004869293656 | Y36: 4.836131039e-05 | Z36: 0.04769177182 | AA36: 0.04769177182 | AB36: =0 + '1. Strategy Calcs'!X35 -> 0.005429106644 | AC36: 0.003126630383 | AD36: 0.002302476261 | AE36: 0.005429106644 | AF36: 0.004886195979 | AG36: =0 + '1. Strategy Calcs'!AD35 -> 0.002567187367 | AH36: 0.0003635465929 | AI36: 0.002203640775 | AJ36: 6.113555191 | AK36: 0.002567187367 | AL36: 0.0006674687155 | AM36: =0 + '1. Strategy Calcs'!Y35 + '1. Strategy Calcs'!AH35 + AN35 + '1. Strategy Calcs'!AS35 + '1. Strategy Calcs'!AX35 -> 0.06914101599 | AN36: 0.06914101599 | AO36: 0 | AP36: =0 + '1. Strategy Calcs'!AC35 + '1. Strategy Calcs'!AI35 + AQ35 + '1. Strategy Calcs'!AW35 -> 0.8732364254 | AQ36: 0.8710679526 | AR36: 0.001947014634 | AS36: 0.00022145815 | AT36: 0.8732364254 | AU36: 0.8295746041 | AV36: =0 + '1. Strategy Calcs'!AR35 -> 0.001934492792 | AW36: 0.001840859229 | AX36: 9.363356387e-05 | AY36: 4.606842728 | AZ36: 0.001934492792 | BA36: 0.000773797117 | BC36: 0.0002536061753 | BD36: =IF((InterpolateTable(tGeneralMortality,VALUE(cycle),2))=1,1,(1-EXP(LN(1-(InterpolateTable(tGeneralMortality,VALUE(cycle),2)))*(1/4)))) -> 0.00101403887
B37: 29 | D37: ='1. Strategy Calcs'!V37 -> 0.04277411685 | E37: ='1. Strategy Calcs'!AB37 -> 0.004869293656 | F37: ='1. Strategy Calcs'!AG37 -> 0.002302476261 | G37: ='1. Strategy Calcs'!AM37 -> 0.06986801561 | H37: ='1. Strategy Calcs'!AP37 -> 0.878239083 | I37: ='1. Strategy Calcs'!AV37 -> 0.001947014634 | J37: ='1. Strategy Calcs'!AJ37 + '1. Strategy Calcs'!AY37 -> 10.11982898 | K37: =J37*'Time Discounting'!D34 -> 10.1181666 | L37: 1044.382345 | M37: ='1. Strategy Calcs'!Z37 + '1. Strategy Calcs'!AE37 + '1. Strategy Calcs'!AK37 + '1. Strategy Calcs'!AT37 + '1. Strategy Calcs'!AZ37 -> 0.9301319844 | N37: =M37*'Time Discounting'!C34 -> 0.9299791921 | O37: 27.65289226 | P37: ='1. Strategy Calcs'!AA37 + '1. Strategy Calcs'!AF37 + '1. Strategy Calcs'!AL37 + '1. Strategy Calcs'!AO37 + '1. Strategy Calcs'!AU37 + '1. Strategy Calcs'!BA37 -> 0.8828610597 | Q37: =P37*'Time Discounting'!E34 -> 0.8827160325 | R37: 26.34255192 | T37: 1 | V37: 0.04277411685 | W37: 0.03836353741 | X37: 0.004367204822 | Y37: 4.337461711e-05 | Z37: 0.04277411685 | AA37: 0.04277411685 | AB37: =0 + '1. Strategy Calcs'!X36 -> 0.004869293656 | AC37: 0.002804233273 | AD37: 0.002065060384 | AE37: 0.004869293656 | AF37: 0.004382364291 | AG37: =0 + '1. Strategy Calcs'!AD36 -> 0.002302476261 | AH37: 0.0003260601117 | AI37: 0.001976416149 | AJ37: 5.48316647 | AK37: 0.002302476261 | AL37: 0.0005986438277 | AM37: =0 + '1. Strategy Calcs'!Y36 + '1. Strategy Calcs'!AH36 + AN36 + '1. Strategy Calcs'!AS36 + '1. Strategy Calcs'!AX36 -> 0.06986801561 | AN37: 0.06986801561 | AO37: 0 | AP37: =0 + '1. Strategy Calcs'!AC36 + '1. Strategy Calcs'!AI36 + AQ36 + '1. Strategy Calcs'!AW36 -> 0.878239083 | AQ37: 0.8760581873 | AR37: 0.001958168827 | AS37: 0.0002227268548 | AT37: 0.878239083 | AU37: 0.8343271288 | AV37: =0 + '1. Strategy Calcs'!AR36 -> 0.001947014634 | AW37: 0.001852774986 | AX37: 9.423964761e-05 | AY37: 4.63666251 | AZ37: 0.001947014634 | BA37: 0.0007788058535 | BC37: 0.0002536061753 | BD37: =IF((InterpolateTable(tGeneralMortality,VALUE(cycle),2))=1,1,(1-EXP(LN(1-(InterpolateTable(tGeneralMortality,VALUE(cycle),2)))*(1/4)))) -> 0.00101403887
B38: 30 | D38: ='1. Strategy Calcs'!V38 -> 0.03836353741 | E38: ='1. Strategy Calcs'!AB38 -> 0.004367204822 | F38: ='1. Strategy Calcs'!AG38 -> 0.002065060384 | G38: ='1. Strategy Calcs'!AM38 -> 0.07055441684 | H38: ='1. Strategy Calcs'!AP38 -> 0.8826916117 | I38: ='1. Strategy Calcs'!AV38 -> 0.001958168827 | J38: ='1. Strategy Calcs'!AJ38 + '1. Strategy Calcs'!AY38 -> 9.581004541 | K38: =J38*'Time Discounting'!D35 -> 9.579376408 | L38: 1053.961722 | M38: ='1. Strategy Calcs'!Z38 + '1. Strategy Calcs'!AE38 + '1. Strategy Calcs'!AK38 + '1. Strategy Calcs'!AT38 + '1. Strategy Calcs'!AZ38 -> 0.9294455832 | N38: =M38*'Time Discounting'!C35 -> 0.9292876392 | O38: 28.5821799 | P38: ='1. Strategy Calcs'!AA38 + '1. Strategy Calcs'!AF38 + '1. Strategy Calcs'!AL38 + '1. Strategy Calcs'!AO38 + '1. Strategy Calcs'!AU38 + '1. Strategy Calcs'!BA38 -> 0.8821712361 | Q38: =P38*'Time Discounting'!E35 -> 0.8820213257 | R38: 27.22457324 | T38: 1 | V38: 0.03836353741 | W38: 0.03440774728 | X38: 0.003916888013 | Y38: 3.890211812e-05 | Z38: 0.03836353741 | AA38: 0.03836353741 | AB38: =0 + '1. Strategy Calcs'!X37 -> 0.004367204822 | AC38: 0.002515079585 | AD38: 0.001852125237 | AE38: 0.004367204822 | AF38: 0.00393048434 | AG38: =0 + '1. Strategy Calcs'!AD37 -> 0.002065060384 | AH38: 0.0002924389845 | AI38: 0.001772621399 | AJ38: 4.917779197 | AK38: 0.002065060384 | AL38: 0.0005369156998 | AM38: =0 + '1. Strategy Calcs'!Y37 + '1. Strategy Calcs'!AH37 + AN37 + '1. Strategy Calcs'!AS37 + '1. Strategy Calcs'!AX37 -> 0.07055441684 | AN38: 0.07055441684 | AO38: 0 | AP38: =0 + '1. Strategy Calcs'!AC37 + '1. Strategy Calcs'!AI37 + AQ37 + '1. Strategy Calcs'!AW37 -> 0.8826916117 | AQ38: 0.8804996592 | AR38: 0.001968096423 | AS38: 0.0002238560436 | AT38: 0.8826916117 | AU38: 0.8385570311 | AV38: =0 + '1. Strategy Calcs'!AR37 -> 0.001958168827 | AW38: 0.001863389292 | AX38: 9.477953426e-05 | AY38: 4.663225344 | AZ38: 0.001958168827 | BA38: 0.0007832675307 | BC38: 0.0002536061753 | BD38: =IF((InterpolateTable(tGeneralMortality,VALUE(cycle),2))=1,1,(1-EXP(LN(1-(InterpolateTable(tGeneralMortality,VALUE(cycle),2)))*(1/4)))) -> 0.00101403887
B39: 31 | D39: ='1. Strategy Calcs'!V39 -> 0.03440774728 | E39: ='1. Strategy Calcs'!AB39 -> 0.003916888013 | F39: ='1. Strategy Calcs'!AG39 -> 0.001852125237 | G39: ='1. Strategy Calcs'!AM39 -> 0.07120439352 | H39: ='1. Strategy Calcs'!AP39 -> 0.8866507495 | I39: ='1. Strategy Calcs'!AV39 -> 0.001968096423 | J39: ='1. Strategy Calcs'!AJ39 + '1. Strategy Calcs'!AY39 -> 9.097557994 | K39: =J39*'Time Discounting'!D36 -> 9.095960486 | L39: 1063.057682 | M39: ='1. Strategy Calcs'!Z39 + '1. Strategy Calcs'!AE39 + '1. Strategy Calcs'!AK39 + '1. Strategy Calcs'!AT39 + '1. Strategy Calcs'!AZ39 -> 0.9287956065 | N39: =M39*'Time Discounting'!C36 -> 0.9286325123 | O39: 29.51081241 | P39: ='1. Strategy Calcs'!AA39 + '1. Strategy Calcs'!AF39 + '1. Strategy Calcs'!AL39 + '1. Strategy Calcs'!AO39 + '1. Strategy Calcs'!AU39 + '1. Strategy Calcs'!BA39 -> 0.8815199497 | Q39: =P39*'Time Discounting'!E36 -> 0.881365157 | R39: 28.1059384 | T39: 1 | V39: 0.03440774728 | W39: 0.03085985164 | X39: 0.003513004847 | Y39: 3.489079317e-05 | Z39: 0.03440774728 | AA39: 0.03440774728 | AB39: =0 + '1. Strategy Calcs'!X38 -> 0.003916888013 | AC39: 0.002255741483 | AD39: 0.001661146531 | AE39: 0.003916888013 | AF39: 0.003525199212 | AG39: =0 + '1. Strategy Calcs'!AD38 -> 0.001852125237 | AH39: 0.0002622846419 | AI39: 0.001589840595 | AJ39: 4.410690859 | AK39: 0.001852125237 | AL39: 0.0004815525615 | AM39: =0 + '1. Strategy Calcs'!Y38 + '1. Strategy Calcs'!AH38 + AN38 + '1. Strategy Calcs'!AS38 + '1. Strategy Calcs'!AX38 -> 0.07120439352 | AN39: 0.07120439352 | AO39: 0 | AP39: =0 + '1. Strategy Calcs'!AC38 + '1. Strategy Calcs'!AI38 + AQ38 + '1. Strategy Calcs'!AW38 -> 0.8866507495 | AQ39: 0.8844489655 | AR39: 0.001976923928 | AS39: 0.0002248601054 | AT39: 0.8866507495 | AU39: 0.842318212 | AV39: =0 + '1. Strategy Calcs'!AR38 -> 0.001968096423 | AW39: 0.001872836372 | AX39: 9.526005102e-05 | AY39: 4.686867135 | AZ39: 0.001968096423 | BA39: 0.0007872385691 | BC39: 0.0002536061753 | BD39: =IF((InterpolateTable(tGeneralMortality,VALUE(cycle),2))=1,1,(1-EXP(LN(1-(InterpolateTable(tGeneralMortality,VALUE(cycle),2)))*(1/4)))) -> 0.00101403887
B40: 32 | D40: ='1. Strategy Calcs'!V40 -> 0.03085985164 | E40: ='1. Strategy Calcs'!AB40 -> 0.003513004847 | F40: ='1. Strategy Calcs'!AG40 -> 0.001661146531 | G40: ='1. Strategy Calcs'!AM40 -> 0.07182168911 | H40: ='1. Strategy Calcs'!AP40 -> 0.8901673839 | I40: ='1. Strategy Calcs'!AV40 -> 0.001976923928 | J40: ='1. Strategy Calcs'!AJ40 + '1. Strategy Calcs'!AY40 -> 8.663779209 | K40: =J40*'Time Discounting'!D37 -> 8.662208801 | L40: 1071.719891 | M40: ='1. Strategy Calcs'!Z40 + '1. Strategy Calcs'!AE40 + '1. Strategy Calcs'!AK40 + '1. Strategy Calcs'!AT40 + '1. Strategy Calcs'!AZ40 -> 0.9281783109 | N40: =M40*'Time Discounting'!C37 -> 0.928010068 | O40: 30.43882248 | P40: ='1. Strategy Calcs'!AA40 + '1. Strategy Calcs'!AF40 + '1. Strategy Calcs'!AL40 + '1. Strategy Calcs'!AO40 + '1. Strategy Calcs'!AU40 + '1. Strategy Calcs'!BA40 -> 0.8809032384 | Q40: =P40*'Time Discounting'!E37 -> 0.8807435647 | R40: 28.98668196 | T40: =SUM(D40:I40) -> 1 | V40: 0.03085985164 | W40: =V40*(1-(pHealthyToInfected)-(INDEX(pHealthyToDead_1,cycle+1))) -> 0.02767779115 | X40: =V40*(pHealthyToInfected) -> 0.003150767399 | Y40: =V40*(INDEX(pHealthyToDead_1,cycle+1)) -> 3.129308908e-05 | Z40: 0.03085985164 | AA40: 0.03085985164 | AB40: =0 + '1. Strategy Calcs'!X39 -> 0.003513004847 | AC40: =AB40*(1-(pInfectedToDiseased)) -> 0.002023144582 | AD40: =AB40*(pInfectedToDiseased) -> 0.001489860265 | AE40: 0.003513004847 | AF40: 0.003161704363 | AG40: =0 + '1. Strategy Calcs'!AD39 -> 0.001661146531 | AH40: =AG40*(pDiseasedToDead_Node1) -> 0.0002352396125 | AI40: =AG40*(1-(pDiseasedToDead_Node1)) -> 0.001425906918 | AJ40: 3.955890063 | AK40: 0.001661146531 | AL40: 0.000431898098 | AM40: =0 + '1. Strategy Calcs'!Y39 + '1. Strategy Calcs'!AH39 + AN39 + '1. Strategy Calcs'!AS39 + '1. Strategy Calcs'!AX39 -> 0.07182168911 | AN40: =AM40*(pDeadToDead) -> 0.07182168911 | AO40: 0 | AP40: =0 + '1. Strategy Calcs'!AC39 + '1. Strategy Calcs'!AI39 + AQ39 + '1. Strategy Calcs'!AW39 -> 0.8901673839 | AQ40: =AP40*(1-(pHealedToRelapse)-(INDEX(pHealedToDead_1,cycle+1))) -> 0.8879568672 | AR40: =AP40*(pHealedToRelapse) -> 0.001984764804 | AS40: =AP40*(INDEX(pHealedToDead_1,cycle+1)) -> 0.0002257519456 | AT40: 0.8901673839 | AU40: 0.8456590147 | AV40: =0 + '1. Strategy Calcs'!AR39 -> 0.001976923928 | AW40: =AV40*(1-(pRelapseToDeath)) -> 0.001881236607 | AX40: =AV40*(pRelapseToDeath) -> 9.568732105e-05 | AY40: 4.707889146 | AZ40: 0.001976923928 | BA40: 0.0007907695713 | BC40: =IF((INDEX(pHealthyToDead_1,cycle+1))=1,1,(1-EXP(LN(1-(INDEX(pHealthyToDead_1,cycle+1)))*(1/4)))) -> 0.0002536061753 | BD40: =IF((InterpolateTable(tGeneralMortality,VALUE(cycle),2))=1,1,(1-EXP(LN(1-(InterpolateTable(tGeneralMortality,VALUE(cycle),2)))*(1/4)))) -> 0.00101403887
B41: 33 | D41: ='1. Strategy Calcs'!V41 -> 0.02767779115 | E41: ='1. Strategy Calcs'!AB41 -> 0.003150767399 | F41: ='1. Strategy Calcs'!AG41 -> 0.001489860265 | G41: ='1. Strategy Calcs'!AM41 -> 0.07240966108 | H41: ='1. Strategy Calcs'!AP41 -> 0.8932871553 | I41: ='1. Strategy Calcs'!AV41 -> 0.001984764804 | J41: ='1. Strategy Calcs'!AJ41 + '1. Strategy Calcs'!AY41 -> 8.274546845 | K41: =J41*'Time Discounting'!D38 -> 8.273000123 | L41: =L40 + K41 -> 1079.992891 | M41: ='1. Strategy Calcs'!Z41 + '1. Strategy Calcs'!AE41 + '1. Strategy Calcs'!AK41 + '1. Strategy Calcs'!AT41 + '1. Strategy Calcs'!AZ41 -> 0.9275903389 | N41: =M41*'Time Discounting'!C38 -> 0.9274169489 | O41: =O40 + N41 -> 31.36623943 | P41: ='1. Strategy Calcs'!AA41 + '1. Strategy Calcs'!AF41 + '1. Strategy Calcs'!AL41 + '1. Strategy Calcs'!AO41 + '1. Strategy Calcs'!AU41 + '1. Strategy Calcs'!BA41 -> 0.8803175489 | Q41: =P41*'Time Discounting'!E38 -> 0.8801529953 | R41: =R40 + Q41 -> 29.86683496 | T41: 1 | V41: =0 + W40 -> 0.02767779115 | W41: 0.02482384336 | X41: 0.002825881441 | Y41: 2.806635606e-05 | Z41: =V41*(1) -> 0.02767779115 | AA41: =V41*(vQoLHealthy) -> 0.02767779115 | AB41: =0 + '1. Strategy Calcs'!X40 -> 0.003150767399 | AC41: 0.001814531511 | AD41: 0.001336235888 | AE41: =AB41*(1) -> 0.003150767399 | AF41: =AB41*(vQoLInfected) -> 0.002835690659 | AG41: =0 + '1. Strategy Calcs'!AD40 -> 0.001489860265 | AH41: 0.0002109832847 | AI41: 0.00127887698 | AJ41: =AG41*((((((cDrugs+cICUWithoutVentilation)+cICUWithVentilation)+cInpatientCare)+cOutpatientCare)+cPCRTest)) -> 3.547985267 | AK41: =AG41*(1) -> 0.001489860265 | AL41: =AG41*(vQoLDiseased) -> 0.0003873636689 | AM41: =0 + '1. Strategy Calcs'!Y40 + '1. Strategy Calcs'!AH40 + AN40 + '1. Strategy Calcs'!AS40 + '1. Strategy Calcs'!AX40 -> 0.07240966108 | AN41: 0.07240966108 | AO41: =AM41*(vQoLDead) -> 0 | AP41: =0 + '1. Strategy Calcs'!AC40 + '1. Strategy Calcs'!AI40 + AQ40 + '1. Strategy Calcs'!AW40 -> 0.8932871553 | AQ41: 0.8910688913 | AR41: 0.001991720813 | AS41: 0.0002265431389 | AT41: =AP41*(1) -> 0.8932871553 | AU41: =AP41*(vQoLHealed) -> 0.8486227975 | AV41: =0 + '1. Strategy Calcs'!AR40 -> 0.001984764804 | AW41: 0.001888697968 | AX41: 9.606683613e-05 | AY41: =AV41*((((((cDrugs+cICUWithoutVentilation)+cICUWithVentilation)+cInpatientCare)+cOutpatientCare)+cPCRTest)) -> 4.726561578 | AZ41: =AV41*(1) -> 0.001984764804 | BA41: =AV41*(vQoLRelapse) -> 0.0007939059217 | BC41: 0.0002536061753 | BD41: =IF((InterpolateTable(tGeneralMortality,VALUE(cycle),2))=1,1,(1-EXP(LN(1-(InterpolateTable(tGeneralMortality,VALUE(cycle),2)))*(1/4)))) -> 0.00101403887
B42: 34 | D42: ='1. Strategy Calcs'!V42 -> 0.02482384336 | E42: ='1. Strategy Calcs'!AB42 -> 0.002825881441 | F42: ='1. Strategy Calcs'!AG42 -> 0.001336235888 | G42: ='1. Strategy Calcs'!AM42 -> 0.0729713207 | H42: ='1. Strategy Calcs'!AP42 -> 0.8960509978 | I42: ='1. Strategy Calcs'!AV42 -> 0.001991720813 | J42: ='1. Strategy Calcs'!AJ42 + '1. Strategy Calcs'!AY42 -> 7.92526764 | K42: =J42*'Time Discounting'!D39 -> 7.92374132 | L42: 1087.916632 | M42: ='1. Strategy Calcs'!Z42 + '1. Strategy Calcs'!AE42 + '1. Strategy Calcs'!AK42 + '1. Strategy Calcs'!AT42 + '1. Strategy Calcs'!AZ42 -> 0.9270286793 | N42: =M42*'Time Discounting'!C39 -> 0.9268501437 | O42: 32.29308957 | P42: ='1. Strategy Calcs'!AA42 + '1. Strategy Calcs'!AF42 + '1. Strategy Calcs'!AL42 + '1. Strategy Calcs'!AO42 + '1. Strategy Calcs'!AU42 + '1. Strategy Calcs'!BA42 -> 0.8797596942 | Q42: =P42*'Time Discounting'!E39 -> 0.8795902621 | R42: 30.74642522 | T42: 1 | V42: 0.02482384336 | W42: 0.02226417547 | X42: 0.00253449554 | Y42: 2.517234206e-05 | Z42: 0.02482384336 | AA42: 0.02482384336 | AB42: =0 + '1. Strategy Calcs'!X41 -> 0.002825881441 | AC42: 0.001627429217 | AD42: 0.001198452224 | AE42: 0.002825881441 | AF42: 0.002543293297 | AG42: =0 + '1. Strategy Calcs'!AD41 -> 0.001336235888 | AH42: 0.0001892281065 | AI42: 0.001147007782 | AJ42: 3.182140873 | AK42: 0.001336235888 | AL42: 0.0003474213309 | AM42: =0 + '1. Strategy Calcs'!Y41 + '1. Strategy Calcs'!AH41 + AN41 + '1. Strategy Calcs'!AS41 + '1. Strategy Calcs'!AX41 -> 0.0729713207 | AN42: 0.0729713207 | AO42: 0 | AP42: =0 + '1. Strategy Calcs'!AC41 + '1. Strategy Calcs'!AI41 + AQ41 + '1. Strategy Calcs'!AW41 -> 0.8960509978 | AQ42: 0.8938258705 | AR42: 0.001997883224 | AS42: 0.0002272440664 | AT42: 0.8960509978 | AU42: 0.8512484479 | AV42: =0 + '1. Strategy Calcs'!AR41 -> 0.001991720813 | AW42: 0.001895317292 | AX42: 9.640352175e-05 | AY42: 4.743126767 | AZ42: 0.001991720813 | BA42: 0.0007966883254 | BC42: 0.0002536061753 | BD42: =IF((InterpolateTable(tGeneralMortality,VALUE(cycle),2))=1,1,(1-EXP(LN(1-(InterpolateTable(tGeneralMortality,VALUE(cycle),2)))*(1/4)))) -> 0.00101403887
B43: 35 | D43: ='1. Strategy Calcs'!V43 -> 0.02226417547 | E43: ='1. Strategy Calcs'!AB43 -> 0.00253449554 | F43: ='1. Strategy Calcs'!AG43 -> 0.001198452224 | G43: ='1. Strategy Calcs'!AM43 -> 0.07350936873 | H43: ='1. Strategy Calcs'!AP43 -> 0.8984956248 | I43: ='1. Strategy Calcs'!AV43 -> 0.001997883224 | J43: ='1. Strategy Calcs'!AJ43 + '1. Strategy Calcs'!AY43 -> 7.611821959 | K43: =J43*'Time Discounting'!D40 -> 7.610312893 | L43: 1095.526945 | M43: ='1. Strategy Calcs'!Z43 + '1. Strategy Calcs'!AE43 + '1. Strategy Calcs'!AK43 + '1. Strategy Calcs'!AT43 + '1. Strategy Calcs'!AZ43 -> 0.9264906313 | N43: =M43*'Time Discounting'!C40 -> 0.9263069518 | O43: 33.21939652 | P43: ='1. Strategy Calcs'!AA43 + '1. Strategy Calcs'!AF43 + '1. Strategy Calcs'!AL43 + '1. Strategy Calcs'!AO43 + '1. Strategy Calcs'!AU43 + '1. Strategy Calcs'!BA43 -> 0.8792268159 | Q43: =P43*'Time Discounting'!E40 -> 0.8790525066 | R43: 31.62547773 | T43: 1 | V43: 0.02226417547 | W43: 0.01996844334 | X43: 0.002273155395 | Y43: 2.257673934e-05 | Z43: 0.02226417547 | AA43: 0.02226417547 | AB43: =0 + '1. Strategy Calcs'!X42 -> 0.00253449554 | AC43: 0.001459619654 | AD43: 0.001074875886 | AE43: 0.00253449554 | AF43: 0.002281045986 | AG43: =0 + '1. Strategy Calcs'!AD42 -> 0.001198452224 | AH43: 0.0001697161759 | AI43: 0.001028736048 | AJ43: 2.854019894 | AK43: 0.001198452224 | AL43: 0.0003115975783 | AM43: =0 + '1. Strategy Calcs'!Y42 + '1. Strategy Calcs'!AH42 + AN42 + '1. Strategy Calcs'!AS42 + '1. Strategy Calcs'!AX42 -> 0.07350936873 | AN43: 0.07350936873 | AO43: 0 | AP43: =0 + '1. Strategy Calcs'!AC42 + '1. Strategy Calcs'!AI42 + AQ42 + '1. Strategy Calcs'!AW42 -> 0.8984956248 | AQ43: 0.8962644269 | AR43: 0.002003333896 | AS43: 0.0002278640389 | AT43: 0.8984956248 | AU43: 0.8535708436 | AV43: =0 + '1. Strategy Calcs'!AR42 -> 0.001997883224 | AW43: 0.001901181429 | AX43: 9.670179555e-05 | AY43: 4.757802065 | AZ43: 0.001997883224 | BA43: 0.0007991532898 | BC43: 0.0002536061753 | BD43: =IF((InterpolateTable(tGeneralMortality,VALUE(cycle),2))=1,1,(1-EXP(LN(1-(InterpolateTable(tGeneralMortality,VALUE(cycle),2)))*(1/4)))) -> 0.00101403887
B44: 36 | D44: ='1. Strategy Calcs'!V44 -> 0.01996844334 | E44: ='1. Strategy Calcs'!AB44 -> 0.002273155395 | F44: ='1. Strategy Calcs'!AG44 -> 0.001074875886 | G44: ='1. Strategy Calcs'!AM44 -> 0.07402622748 | H44: ='1. Strategy Calcs'!AP44 -> 0.900653964 | I44: ='1. Strategy Calcs'!AV44 -> 0.002003333896 | J44: ='1. Strategy Calcs'!AJ44 + '1. Strategy Calcs'!AY44 -> 7.330514955 | K44: =J44*'Time Discounting'!D41 -> 7.329020141 | L44: 1102.855965 | M44: ='1. Strategy Calcs'!Z44 + '1. Strategy Calcs'!AE44 + '1. Strategy Calcs'!AK44 + '1. Strategy Calcs'!AT44 + '1. Strategy Calcs'!AZ44 -> 0.9259737725 | N44: =M44*'Time Discounting'!C41 -> 0.925784951 | O44: 34.14518147 | P44: ='1. Strategy Calcs'!AA44 + '1. Strategy Calcs'!AF44 + '1. Strategy Calcs'!AL44 + '1. Strategy Calcs'!AO44 + '1. Strategy Calcs'!AU44 + '1. Strategy Calcs'!BA44 -> 0.8787163503 | Q44: =P44*'Time Discounting'!E41 -> 0.8785371653 | R44: 32.50401489 | T44: 1 | V44: 0.01996844334 | W44: 0.01790943167 | X44: 0.002038762889 | Y44: 2.024877772e-05 | Z44: 0.01996844334 | AA44: 0.01996844334 | AB44: =0 + '1. Strategy Calcs'!X43 -> 0.002273155395 | AC44: 0.001309113486 | AD44: 0.000964041909 | AE44: 0.002273155395 | AF44: 0.002045839855 | AG44: =0 + '1. Strategy Calcs'!AD43 -> 0.001074875886 | AH44: 0.0001522161846 | AI44: 0.0009226597014 | AJ44: 2.559732545 | AK44: 0.001074875886 | AL44: 0.0002794677304 | AM44: =0 + '1. Strategy Calcs'!Y43 + '1. Strategy Calcs'!AH43 + AN43 + '1. Strategy Calcs'!AS43 + '1. Strategy Calcs'!AX43 -> 0.07402622748 | AN44: 0.07402622748 | AO44: 0 | AP44: =0 + '1. Strategy Calcs'!AC43 + '1. Strategy Calcs'!AI43 + AQ43 + '1. Strategy Calcs'!AW43 -> 0.900653964 | AQ44: 0.8984174063 | AR44: 0.002008146244 | AS44: 0.0002284114071 | AT44: 0.900653964 | AU44: 0.8556212658 | AV44: =0 + '1. Strategy Calcs'!AR43 -> 0.002003333896 | AW44: 0.001906368276 | AX44: 9.696561962e-05 | AY44: 4.770782411 | AZ44: 0.002003333896 | BA44: 0.0008013335582 | BC44: 0.0002536061753 | BD44: =IF((InterpolateTable(tGeneralMortality,VALUE(cycle),2))=1,1,(1-EXP(LN(1-(InterpolateTable(tGeneralMortality,VALUE(cycle),2)))*(1/4)))) -> 0.00101403887
B45: 37 | D45: ='1. Strategy Calcs'!V45 -> 0.01790943167 | E45: ='1. Strategy Calcs'!AB45 -> 0.002038762889 | F45: ='1. Strategy Calcs'!AG45 -> 0.000964041909 | G45: ='1. Strategy Calcs'!AM45 -> 0.07452406947 | H45: ='1. Strategy Calcs'!AP45 -> 0.9025555478 | I45: ='1. Strategy Calcs'!AV45 -> 0.002008146244 | J45: ='1. Strategy Calcs'!AJ45 + '1. Strategy Calcs'!AY45 -> 7.07803277 | K45: =J45*'Time Discounting'!D42 -> 7.076549352 | L45: 1109.932515 | M45: ='1. Strategy Calcs'!Z45 + '1. Strategy Calcs'!AE45 + '1. Strategy Calcs'!AK45 + '1. Strategy Calcs'!AT45 + '1. Strategy Calcs'!AZ45 -> 0.9254759305 | N45: =M45*'Time Discounting'!C42 -> 0.9252819688 | O45: 35.07046344 | P45: ='1. Strategy Calcs'!AA45 + '1. Strategy Calcs'!AF45 + '1. Strategy Calcs'!AL45 + '1. Strategy Calcs'!AO45 + '1. Strategy Calcs'!AU45 + '1. Strategy Calcs'!BA45 -> 0.8782259981 | Q45: =P45*'Time Discounting'!E42 -> 0.8780419391 | R45: 33.38205683 | T45: 1 | V45: 0.01790943167 | W45: 0.01606082233 | X45: 0.001828539363 | Y45: 2.006997778e-05 | Z45: 0.01790943167 | AA45: 0.01790943167 | AB45: =0 + '1. Strategy Calcs'!X44 -> 0.002038762889 | AC45: 0.001174126502 | AD45: 0.0008646363868 | AE45: 0.002038762889 | AF45: 0.0018348866 | AG45: =0 + '1. Strategy Calcs'!AD44 -> 0.000964041909 | AH45: 0.0001365206747 | AI45: 0.0008275212343 | AJ45: 2.295790129 | AK45: 0.000964041909 | AL45: 0.0002506508963 | AM45: =0 + '1. Strategy Calcs'!Y44 + '1. Strategy Calcs'!AH44 + AN44 + '1. Strategy Calcs'!AS44 + '1. Strategy Calcs'!AX44 -> 0.07452406947 | AN45: 0.07452406947 | AO45: 0 | AP45: =0 + '1. Strategy Calcs'!AC44 + '1. Strategy Calcs'!AI44 + AQ44 + '1. Strategy Calcs'!AW44 -> 0.9025555478 | AQ45: 0.900290196 | AR45: 0.002012386117 | AS45: 0.0002529656919 | AT45: 0.9025555478 | AU45: 0.8574277704 | AV45: =0 + '1. Strategy Calcs'!AR44 -> 0.002008146244 | AW45: 0.001910947697 | AX45: 9.719854752e-05 | AY45: 4.782242641 | AZ45: 0.002008146244 | BA45: 0.0008032584976 | BC45: 0.0002802771447 | BD45: =IF((InterpolateTable(tGeneralMortality,VALUE(cycle),2))=1,1,(1-EXP(LN(1-(InterpolateTable(tGeneralMortality,VALUE(cycle),2)))*(1/4)))) -> 0.001120637335
B46: 38 | D46: ='1. Strategy Calcs'!V46 -> 0.01606082233 | E46: ='1. Strategy Calcs'!AB46 -> 0.001828539363 | F46: ='1. Strategy Calcs'!AG46 -> 0.0008646363868 | G46: ='1. Strategy Calcs'!AM46 -> 0.07503082436 | H46: ='1. Strategy Calcs'!AP46 -> 0.9042027914 | I46: ='1. Strategy Calcs'!AV46 -> 0.002012386117 | J46: ='1. Strategy Calcs'!AJ46 + '1. Strategy Calcs'!AY46 -> 6.851403247 | K46: =J46*'Time Discounting'!D43 -> 6.849928522 | L46: 1116.782443 | M46: ='1. Strategy Calcs'!Z46 + '1. Strategy Calcs'!AE46 + '1. Strategy Calcs'!AK46 + '1. Strategy Calcs'!AT46 + '1. Strategy Calcs'!AZ46 -> 0.9249691756 | N46: =M46*'Time Discounting'!C43 -> 0.9247700814 | O46: 35.99523352 | P46: ='1. Strategy Calcs'!AA46 + '1. Strategy Calcs'!AF46 + '1. Strategy Calcs'!AL46 + '1. Strategy Calcs'!AO46 + '1. Strategy Calcs'!AU46 + '1. Strategy Calcs'!BA46 -> 0.8777289195 | Q46: =P46*'Time Discounting'!E43 -> 0.8775399935 | R46: 34.25959683 | T46: 1 | V46: 0.01606082233 | W46: 0.01440302622 | X46: 0.001639797754 | Y46: 1.799835714e-05 | Z46: 0.01606082233 | AA46: 0.01606082233 | AB46: =0 + '1. Strategy Calcs'!X45 -> 0.001828539363 | AC46: 0.001053058469 | AD46: 0.000775480894 | AE46: 0.001828539363 | AF46: 0.001645685426 | AG46: =0 + '1. Strategy Calcs'!AD45 -> 0.0008646363868 | AH46: 0.0001224435803 | AI46: 0.0007421928065 | AJ46: 2.059063681 | AK46: 0.0008646363868 | AL46: 0.0002248054606 | AM46: =0 + '1. Strategy Calcs'!Y45 + '1. Strategy Calcs'!AH45 + AN45 + '1. Strategy Calcs'!AS45 + '1. Strategy Calcs'!AX45 -> 0.07503082436 | AN46: 0.07503082436 | AO46: 0 | AP46: =0 + '1. Strategy Calcs'!AC45 + '1. Strategy Calcs'!AI45 + AQ45 + '1. Strategy Calcs'!AW45 -> 0.9042027914 | AQ46: 0.9019333052 | AR46: 0.002016058899 | AS46: 0.0002534273766 | AT46: 0.9042027914 | AU46: 0.8589926519 | AV46: =0 + '1. Strategy Calcs'!AR45 -> 0.002012386117 | AW46: 0.001914982351 | AX46: 9.740376638e-05 | AY46: 4.792339565 | AZ46: 0.002012386117 | BA46: 0.0008049544468 | BC46: 0.0002802771447 | BD46: =IF((InterpolateTable(tGeneralMortality,VALUE(cycle),2))=1,1,(1-EXP(LN(1-(InterpolateTable(tGeneralMortality,VALUE(cycle),2)))*(1/4)))) -> 0.001120637335
B47: 39 | D47: ='1. Strategy Calcs'!V47 -> 0.01440302622 | E47: ='1. Strategy Calcs'!AB47 -> 0.001639797754 | F47: ='1. Strategy Calcs'!AG47 -> 0.000775480894 | G47: ='1. Strategy Calcs'!AM47 -> 0.07552209744 | H47: ='1. Strategy Calcs'!AP47 -> 0.9056435388 | I47: ='1. Strategy Calcs'!AV47 -> 0.002016058899 | J47: ='1. Strategy Calcs'!AJ47 + '1. Strategy Calcs'!AY47 -> 6.647832882 | K47: =J47*'Time Discounting'!D44 -> 6.646364323 | L47: 1123.428808 | M47: ='1. Strategy Calcs'!Z47 + '1. Strategy Calcs'!AE47 + '1. Strategy Calcs'!AK47 + '1. Strategy Calcs'!AT47 + '1. Strategy Calcs'!AZ47 -> 0.9244779026 | N47: =M47*'Time Discounting'!C44 -> 0.9242736781 | O47: 36.9195072 | P47: ='1. Strategy Calcs'!AA47 + '1. Strategy Calcs'!AF47 + '1. Strategy Calcs'!AL47 + '1. Strategy Calcs'!AO47 + '1. Strategy Calcs'!AU47 + '1. Strategy Calcs'!BA47 -> 0.8772482546 | Q47: =P47*'Time Discounting'!E44 -> 0.8770544636 | R47: 35.13665129 | T47: 1 | V47: 0.01440302622 | W47: 0.01291634762 | X47: 0.001470538031 | Y47: 1.614056892e-05 | Z47: 0.01440302622 | AA47: 0.01440302622 | AB47: =0 + '1. Strategy Calcs'!X46 -> 0.001639797754 | AC47: 0.0009443619026 | AD47: 0.0006954358512 | AE47: 0.001639797754 | AF47: 0.001475817978 | AG47: =0 + '1. Strategy Calcs'!AD46 -> 0.000775480894 | AH47: 0.0001098180212 | AI47: 0.0006656628727 | AJ47: 1.846746874 | AK47: 0.000775480894 | AL47: 0.0002016250324 | AM47: =0 + '1. Strategy Calcs'!Y46 + '1. Strategy Calcs'!AH46 + AN46 + '1. Strategy Calcs'!AS46 + '1. Strategy Calcs'!AX46 -> 0.07552209744 | AN47: 0.07552209744 | AO47: 0 | AP47: =0 + '1. Strategy Calcs'!AC46 + '1. Strategy Calcs'!AI46 + AQ46 + '1. Strategy Calcs'!AW46 -> 0.9056435388 | AQ47: 0.9033704363 | AR47: 0.002019271267 | AS47: 0.0002538311852 | AT47: 0.9056435388 | AU47: 0.8603613618 | AV47: =0 + '1. Strategy Calcs'!AR46 -> 0.002016058899 | AW47: 0.001918477363 | AX47: 9.758153686e-05 | AY47: 4.801086009 | AZ47: 0.002016058899 | BA47: 0.0008064235598 | BC47: 0.0002802771447 | BD47: =IF((InterpolateTable(tGeneralMortality,VALUE(cycle),2))=1,1,(1-EXP(LN(1-(InterpolateTable(tGeneralMortality,VALUE(cycle),2)))*(1/4)))) -> 0.001120637335
B48: 40 | D48: ='1. Strategy Calcs'!V48 -> 0.01291634762 | E48: ='1. Strategy Calcs'!AB48 -> 0.001470538031 | F48: ='1. Strategy Calcs'!AG48 -> 0.0006954358512 | G48: ='1. Strategy Calcs'!AM48 -> 0.07599946876 | H48: ='1. Strategy Calcs'!AP48 -> 0.9068989385 | I48: ='1. Strategy Calcs'!AV48 -> 0.002019271267 | J48: ='1. Strategy Calcs'!AJ48 + '1. Strategy Calcs'!AY48 -> 6.464861897 | K48: =J48*'Time Discounting'!D45 -> 6.463397143 | L48: 1129.892205 | M48: ='1. Strategy Calcs'!Z48 + '1. Strategy Calcs'!AE48 + '1. Strategy Calcs'!AK48 + '1. Strategy Calcs'!AT48 + '1. Strategy Calcs'!AZ48 -> 0.9240005312 | N48: =M48*'Time Discounting'!C45 -> 0.923791179 | O48: 37.84329838 | P48: ='1. Strategy Calcs'!AA48 + '1. Strategy Calcs'!AF48 + '1. Strategy Calcs'!AL48 + '1. Strategy Calcs'!AO48 + '1. Strategy Calcs'!AU48 + '1. Strategy Calcs'!BA48 -> 0.8767823452 | Q48: =P48*'Time Discounting'!E45 -> 0.8765836913 | R48: 36.01323498 | T48: 1 | V48: 0.01291634762 | W48: 0.01158312381 | X48: 0.001318749276 | Y48: 1.447454138e-05 | Z48: 0.01291634762 | AA48: 0.01291634762 | AB48: =0 + '1. Strategy Calcs'!X47 -> 0.001470538031 | AC48: 0.0008468849829 | AD48: 0.000623653048 | AE48: 0.001470538031 | AF48: 0.001323484228 | AG48: =0 + '1. Strategy Calcs'!AD47 -> 0.0006954358512 | AH48: 9.848261857e-05 | AI48: 0.0005969532327 | AJ48: 1.656125888 | AK48: 0.0006954358512 | AL48: 0.0001808133213 | AM48: =0 + '1. Strategy Calcs'!Y47 + '1. Strategy Calcs'!AH47 + AN47 + '1. Strategy Calcs'!AS47 + '1. Strategy Calcs'!AX47 -> 0.07599946876 | AN48: 0.07599946876 | AO48: 0 | AP48: =0 + '1. Strategy Calcs'!AC47 + '1. Strategy Calcs'!AI47 + AQ47 + '1. Strategy Calcs'!AW47 -> 0.9068989385 | AQ48: 0.9046226851 | AR48: 0.002022070373 | AS48: 0.000254183045 | AT48: 0.9068989385 | AU48: 0.8615539915 | AV48: =0 + '1. Strategy Calcs'!AR47 -> 0.002019271267 | AW48: 0.001921534245 | AX48: 9.773702227e-05 | AY48: 4.808736009 | AZ48: 0.002019271267 | BA48: 0.0008077085067 | BC48: 0.0002802771447 | BD48: =IF((InterpolateTable(tGeneralMortality,VALUE(cycle),2))=1,1,(1-EXP(LN(1-(InterpolateTable(tGeneralMortality,VALUE(cycle),2)))*(1/4)))) -> 0.001120637335
B49: 41 | D49: ='1. Strategy Calcs'!V49 -> 0.01158312381 | E49: ='1. Strategy Calcs'!AB49 -> 0.001318749276 | F49: ='1. Strategy Calcs'!AG49 -> 0.000623653048 | G49: ='1. Strategy Calcs'!AM49 -> 0.07646434598 | H49: ='1. Strategy Calcs'!AP49 -> 0.9079880575 | I49: ='1. Strategy Calcs'!AV49 -> 0.002022070373 | J49: ='1. Strategy Calcs'!AJ49 + '1. Strategy Calcs'!AY49 -> 6.300582638 | K49: =J49*'Time Discounting'!D46 -> 6.299119421 | L49: 1136.191324 | M49: ='1. Strategy Calcs'!Z49 + '1. Strategy Calcs'!AE49 + '1. Strategy Calcs'!AK49 + '1. Strategy Calcs'!AT49 + '1. Strategy Calcs'!AZ49 -> 0.923535654 | N49: =M49*'Time Discounting'!C46 -> 0.9233211765 | O49: 38.76661956 | P49: ='1. Strategy Calcs'!AA49 + '1. Strategy Calcs'!AF49 + '1. Strategy Calcs'!AL49 + '1. Strategy Calcs'!AO49 + '1. Strategy Calcs'!AU49 + '1. Strategy Calcs'!BA49 -> 0.8763296307 | Q49: =P49*'Time Discounting'!E46 -> 0.8761261161 | R49: 36.8893611 | T49: 1 | V49: 0.01158312381 | W49: 0.01038751519 | X49: 0.001182628137 | Y49: 1.298048099e-05 | Z49: 0.01158312381 | AA49: 0.01158312381 | AB49: =0 + '1. Strategy Calcs'!X48 -> 0.001318749276 | AC49: 0.0007594696188 | AD49: 0.0005592796569 | AE49: 0.001318749276 | AF49: 0.001186874348 | AG49: =0 + '1. Strategy Calcs'!AD48 -> 0.000623653048 | AH49: 8.831725476e-05 | AI49: 0.0005353357932 | AJ49: 1.485180777 | AK49: 0.000623653048 | AL49: 0.0001621497925 | AM49: =0 + '1. Strategy Calcs'!Y48 + '1. Strategy Calcs'!AH48 + AN48 + '1. Strategy Calcs'!AS48 + '1. Strategy Calcs'!AX48 -> 0.07646434598 | AN49: 0.07646434598 | AO49: 0 | AP49: =0 + '1. Strategy Calcs'!AC48 + '1. Strategy Calcs'!AI48 + AQ48 + '1. Strategy Calcs'!AW48 -> 0.9079880575 | AQ49: 0.9057090705 | AR49: 0.002024498731 | AS49: 0.0002544883002 | AT49: 0.9079880575 | AU49: 0.8625886546 | AV49: =0 + '1. Strategy Calcs'!AR48 -> 0.002022070373 | AW49: 0.001924197868 | AX49: 9.787250497e-05 | AY49: 4.815401861 | AZ49: 0.002022070373 | BA49: 0.0008088281492 | BC49: 0.0002802771447 | BD49: =IF((InterpolateTable(tGeneralMortality,VALUE(cycle),2))=1,1,(1-EXP(LN(1-(InterpolateTable(tGeneralMortality,VALUE(cycle),2)))*(1/4)))) -> 0.001120637335
B50: 42 | D50: ='1. Strategy Calcs'!V50 -> 0.01038751519 | E50: ='1. Strategy Calcs'!AB50 -> 0.001182628137 | F50: ='1. Strategy Calcs'!AG50 -> 0.0005592796569 | G50: ='1. Strategy Calcs'!AM50 -> 0.07691800452 | H50: ='1. Strategy Calcs'!AP50 -> 0.9089280738 | I50: ='1. Strategy Calcs'!AV50 -> 0.002024498731 | J50: ='1. Strategy Calcs'!AJ50 + '1. Strategy Calcs'!AY50 -> 6.153065405 | K50: =J50*'Time Discounting'!D47 -> 6.151601598 | L50: 1142.342926 | M50: ='1. Strategy Calcs'!Z50 + '1. Strategy Calcs'!AE50 + '1. Strategy Calcs'!AK50 + '1. Strategy Calcs'!AT50 + '1. Strategy Calcs'!AZ50 -> 0.9230819955 | N50: =M50*'Time Discounting'!C47 -> 0.9228623954 | O50: 39.68948195 | P50: ='1. Strategy Calcs'!AA50 + '1. Strategy Calcs'!AF50 + '1. Strategy Calcs'!AL50 + '1. Strategy Calcs'!AO50 + '1. Strategy Calcs'!AU50 + '1. Strategy Calcs'!BA50 -> 0.8758887628 | Q50: =P50*'Time Discounting'!E47 -> 0.8756803899 | R50: 37.76504149 | T50: 1 | V50: 0.01038751519 | W50: 0.009315317144 | X50: 0.001060557406 | Y50: 1.164063734e-05 | Z50: 0.01038751519 | AA50: 0.01038751519 | AB50: =0 + '1. Strategy Calcs'!X49 -> 0.001182628137 | AC50: 0.0006810772579 | AD50: 0.0005015508793 | AE50: 0.001182628137 | AF50: 0.001064365324 | AG50: =0 + '1. Strategy Calcs'!AD49 -> 0.0005592796569 | AH50: 7.920115856e-05 | AI50: 0.0004800784983 | AJ50: 1.331880599 | AK50: 0.0005592796569 | AL50: 0.0001454127108 | AM50: =0 + '1. Strategy Calcs'!Y49 + '1. Strategy Calcs'!AH49 + AN49 + '1. Strategy Calcs'!AS49 + '1. Strategy Calcs'!AX49 -> 0.07691800452 | AN50: 0.07691800452 | AO50: 0 | AP50: =0 + '1. Strategy Calcs'!AC49 + '1. Strategy Calcs'!AI49 + AQ49 + '1. Strategy Calcs'!AW49 -> 0.9089280738 | AQ50: 0.9066467274 | AR50: 0.002026594642 | AS50: 0.0002547517652 | AT50: 0.9089280738 | AU50: 0.8634816701 | AV50: =0 + '1. Strategy Calcs'!AR49 -> 0.002024498731 | AW50: 0.001926508689 | AX50: 9.799004266e-05 | AY50: 4.821184805 | AZ50: 0.002024498731 | BA50: 0.0008097994925 | BC50: 0.0002802771447 | BD50: =IF((InterpolateTable(tGeneralMortality,VALUE(cycle),2))=1,1,(1-EXP(LN(1-(InterpolateTable(tGeneralMortality,VALUE(cycle),2)))*(1/4)))) -> 0.001120637335
B51: 43 | D51: ='1. Strategy Calcs'!V51 -> 0.009315317144 | E51: ='1. Strategy Calcs'!AB51 -> 0.001060557406 | F51: ='1. Strategy Calcs'!AG51 -> 0.0005015508793 | G51: ='1. Strategy Calcs'!AM51 -> 0.07736158813 | H51: ='1. Strategy Calcs'!AP51 -> 0.9097343918 | I51: ='1. Strategy Calcs'!AV51 -> 0.002026594642 | J51: ='1. Strategy Calcs'!AJ51 + '1. Strategy Calcs'!AY51 -> 6.020580099 | K51: =J51*'Time Discounting'!D48 -> 6.019113712 | L51: 1148.362039 | M51: ='1. Strategy Calcs'!Z51 + '1. Strategy Calcs'!AE51 + '1. Strategy Calcs'!AK51 + '1. Strategy Calcs'!AT51 + '1. Strategy Calcs'!AZ51 -> 0.9226384119 | N51: =M51*'Time Discounting'!C48 -> 0.9224136919 | O51: 40.61189565 | P51: ='1. Strategy Calcs'!AA51 + '1. Strategy Calcs'!AF51 + '1. Strategy Calcs'!AL51 + '1. Strategy Calcs'!AO51 + '1. Strategy Calcs'!AU51 + '1. Strategy Calcs'!BA51 -> 0.8754585321 | Q51: =P51*'Time Discounting'!E48 -> 0.8752453033 | R51: 38.64028679 | T51: 1 | V51: 0.009315317144 | W51: 0.008353791251 | X51: 0.0009510868007 | Y51: 1.043909218e-05 | Z51: 0.009315317144 | AA51: 0.009315317144 | AB51: =0 + '1. Strategy Calcs'!X50 -> 0.001060557406 | AC51: 0.0006107765469 | AD51: 0.0004497808591 | AE51: 0.001060557406 | AF51: 0.0009545016654 | AG51: =0 + '1. Strategy Calcs'!AD50 -> 0.0005015508793 | AH51: 7.102602469e-05 | AI51: 0.0004305248546 | AJ51: 1.194404047 | AK51: 0.0005015508793 | AL51: 0.0001304032286 | AM51: =0 + '1. Strategy Calcs'!Y50 + '1. Strategy Calcs'!AH50 + AN50 + '1. Strategy Calcs'!AS50 + '1. Strategy Calcs'!AX50 -> 0.07736158813 | AN51: 0.07736158813 | AO51: 0 | AP51: =0 + '1. Strategy Calcs'!AC50 + '1. Strategy Calcs'!AI50 + AQ50 + '1. Strategy Calcs'!AW50 -> 0.9097343918 | AQ51: 0.9074510216 | AR51: 0.002028392451 | AS51: 0.0002549777578 | AT51: 0.9097343918 | AU51: 0.8642476722 | AV51: =0 + '1. Strategy Calcs'!AR50 -> 0.002026594642 | AW51: 0.001928503152 | AX51: 9.809148918e-05 | AY51: 4.826176051 | AZ51: 0.002026594642 | BA51: 0.0008106378567 | BC51: 0.0002802771447 | BD51: =IF((InterpolateTable(tGeneralMortality,VALUE(cycle),2))=1,1,(1-EXP(LN(1-(InterpolateTable(tGeneralMortality,VALUE(cycle),2)))*(1/4)))) -> 0.001120637335
B52: 44 | D52: ='1. Strategy Calcs'!V52 -> 0.008353791251 | E52: ='1. Strategy Calcs'!AB52 -> 0.0009510868007 | F52: ='1. Strategy Calcs'!AG52 -> 0.0004497808591 | G52: ='1. Strategy Calcs'!AM52 -> 0.07779612249 | H52: ='1. Strategy Calcs'!AP52 -> 0.9104208261 | I52: ='1. Strategy Calcs'!AV52 -> 0.002028392451 | J52: ='1. Strategy Calcs'!AJ52 + '1. Strategy Calcs'!AY52 -> 5.901575202 | K52: =J52*'Time Discounting'!D49 -> 5.900104377 | L52: 1154.262144 | M52: ='1. Strategy Calcs'!Z52 + '1. Strategy Calcs'!AE52 + '1. Strategy Calcs'!AK52 + '1. Strategy Calcs'!AT52 + '1. Strategy Calcs'!AZ52 -> 0.9222038775 | N52: =M52*'Time Discounting'!C49 -> 0.9219740404 | O52: 41.53386969 | P52: ='1. Strategy Calcs'!AA52 + '1. Strategy Calcs'!AF52 + '1. Strategy Calcs'!AL52 + '1. Strategy Calcs'!AO52 + '1. Strategy Calcs'!AU52 + '1. Strategy Calcs'!BA52 -> 0.8750378542 | Q52: =P52*'Time Discounting'!E49 -> 0.8748197721 | R52: 39.51510656 | T52: 1 | V52: 0.008353791251 | W52: 0.007491513943 | X52: 0.0008529157378 | Y52: 9.361570366e-06 | Z52: 0.008353791251 | AA52: 0.008353791251 | AB52: =0 + '1. Strategy Calcs'!X51 -> 0.0009510868007 | AC52: 0.0005477322667 | AD52: 0.000403354534 | AE52: 0.0009510868007 | AF52: 0.0008559781206 | AG52: =0 + '1. Strategy Calcs'!AD51 -> 0.0004497808591 | AH52: 6.369472713e-05 | AI52: 0.0003860861319 | AJ52: 1.071117808 | AK52: 0.0004497808591 | AL52: 0.0001169430234 | AM52: =0 + '1. Strategy Calcs'!Y51 + '1. Strategy Calcs'!AH51 + AN51 + '1. Strategy Calcs'!AS51 + '1. Strategy Calcs'!AX51 -> 0.07779612249 | AN52: 0.07779612249 | AO52: 0 | AP52: =0 + '1. Strategy Calcs'!AC51 + '1. Strategy Calcs'!AI51 + AQ51 + '1. Strategy Calcs'!AW51 -> 0.9104208261 | AQ52: 0.908135733 | AR52: 0.002029922962 | AS52: 0.0002551701496 | AT52: 0.9104208261 | AU52: 0.8648997848 | AV52: =0 + '1. Strategy Calcs'!AR51 -> 0.002028392451 | AW52: 0.001930213944 | AX52: 9.8178507e-05 | AY52: 4.830457394 | AZ52: 0.002028392451 | BA52: 0.0008113569806 | BC52: 0.0002802771447 | BD52: =IF((InterpolateTable(tGeneralMortality,VALUE(cycle),2))=1,1,(1-EXP(LN(1-(InterpolateTable(tGeneralMortality,VALUE(cycle),2)))*(1/4)))) -> 0.001120637335
B53: 45 | D53: ='1. Strategy Calcs'!V53 -> 0.007491513943 | E53: ='1. Strategy Calcs'!AB53 -> 0.0008529157378 | F53: ='1. Strategy Calcs'!AG53 -> 0.000403354534 | G53: ='1. Strategy Calcs'!AM53 -> 0.07822252745 | H53: ='1. Strategy Calcs'!AP53 -> 0.9109997654 | I53: ='1. Strategy Calcs'!AV53 -> 0.002029922962 | J53: ='1. Strategy Calcs'!AJ53 + '1. Strategy Calcs'!AY53 -> 5.794659345 | K53: =J53*'Time Discounting'!D50 -> 5.793182348 | L53: 1160.055326 | M53: ='1. Strategy Calcs'!Z53 + '1. Strategy Calcs'!AE53 + '1. Strategy Calcs'!AK53 + '1. Strategy Calcs'!AT53 + '1. Strategy Calcs'!AZ53 -> 0.9217774726 | N53: =M53*'Time Discounting'!C50 -> 0.9215425212 | O53: 42.45541221 | P53: ='1. Strategy Calcs'!AA53 + '1. Strategy Calcs'!AF53 + '1. Strategy Calcs'!AL53 + '1. Strategy Calcs'!AO53 + '1. Strategy Calcs'!AU53 + '1. Strategy Calcs'!BA53 -> 0.8746257566 | Q53: =P53*'Time Discounting'!E50 -> 0.8744028237 | R53: 40.38950939 | T53: 1 | V53: 0.007491513943 | W53: 0.006718240793 | X53: 0.0007648778799 | Y53: 8.395270221e-06 | Z53: 0.007491513943 | AA53: 0.007491513943 | AB53: =0 + '1. Strategy Calcs'!X52 -> 0.0008529157378 | AC53: 0.0004911954093 | AD53: 0.0003617203285 | AE53: 0.0008529157378 | AF53: 0.000767624164 | AG53: =0 + '1. Strategy Calcs'!AD52 -> 0.000403354534 | AH53: 5.712016521e-05 | AI53: 0.0003462343688 | AJ53: 0.9605571593 | AK53: 0.000403354534 | AL53: 0.0001048721788 | AM53: =0 + '1. Strategy Calcs'!Y52 + '1. Strategy Calcs'!AH52 + AN52 + '1. Strategy Calcs'!AS52 + '1. Strategy Calcs'!AX52 -> 0.07822252745 | AN53: 0.07822252745 | AO53: 0 | AP53: =0 + '1. Strategy Calcs'!AC52 + '1. Strategy Calcs'!AI52 + AQ52 + '1. Strategy Calcs'!AW52 -> 0.9109997654 | AQ53: 0.9087132192 | AR53: 0.002031213796 | AS53: 0.000255332413 | AT53: 0.9109997654 | AU53: 0.8654497771 | AV53: =0 + '1. Strategy Calcs'!AR52 -> 0.002029922962 | AW53: 0.001931670375 | AX53: 9.825258697e-05 | AY53: 4.834102186 | AZ53: 0.002029922962 | BA53: 0.0008119691849 | BC53: 0.0002802771447 | BD53: =IF((InterpolateTable(tGeneralMortality,VALUE(cycle),2))=1,1,(1-EXP(LN(1-(InterpolateTable(tGeneralMortality,VALUE(cycle),2)))*(1/4)))) -> 0.001120637335
B54: 46 | D54: ='1. Strategy Calcs'!V54 -> 0.006718240793 | E54: ='1. Strategy Calcs'!AB54 -> 0.0007648778799 | F54: ='1. Strategy Calcs'!AG54 -> 0.0003617203285 | G54: ='1. Strategy Calcs'!AM54 -> 0.07864162788 | H54: ='1. Strategy Calcs'!AP54 -> 0.9114823193 | I54: ='1. Strategy Calcs'!AV54 -> 0.002031213796 | J54: ='1. Strategy Calcs'!AJ54 + '1. Strategy Calcs'!AY54 -> 5.698584772 | K54: =J54*'Time Discounting'!D51 -> 5.69709999 | L54: 1165.752426 | M54: ='1. Strategy Calcs'!Z54 + '1. Strategy Calcs'!AE54 + '1. Strategy Calcs'!AK54 + '1. Strategy Calcs'!AT54 + '1. Strategy Calcs'!AZ54 -> 0.9213583721 | N54: =M54*'Time Discounting'!C51 -> 0.9211183095 | O54: 43.37653052 | P54: ='1. Strategy Calcs'!AA54 + '1. Strategy Calcs'!AF54 + '1. Strategy Calcs'!AL54 + '1. Strategy Calcs'!AO54 + '1. Strategy Calcs'!AU54 + '1. Strategy Calcs'!BA54 -> 0.874221367 | Q54: =P54*'Time Discounting'!E51 -> 0.8739935861 | R54: 41.26350297 | T54: 1 | V54: 0.006718240793 | W54: 0.006024784802 | X54: 0.000685927279 | Y54: 7.528711459e-06 | Z54: 0.006718240793 | AA54: 0.006718240793 | AB54: =0 + '1. Strategy Calcs'!X53 -> 0.0007648778799 | AC54: 0.0004404942794 | AD54: 0.0003243836005 | AE54: 0.0007648778799 | AF54: 0.000688390092 | AG54: =0 + '1. Strategy Calcs'!AD53 -> 0.0003617203285 | AH54: 5.122422877e-05 | AI54: 0.0003104960997 | AJ54: 0.8614085672 | AK54: 0.0003617203285 | AL54: 9.40472854e-05 | AM54: =0 + '1. Strategy Calcs'!Y53 + '1. Strategy Calcs'!AH53 + AN53 + '1. Strategy Calcs'!AS53 + '1. Strategy Calcs'!AX53 -> 0.07864162788 | AN54: 0.07864162788 | AO54: 0 | AP54: =0 + '1. Strategy Calcs'!AC53 + '1. Strategy Calcs'!AI53 + AQ53 + '1. Strategy Calcs'!AW53 -> 0.9114823193 | AQ54: 0.9091945619 | AR54: 0.002032289724 | AS54: 0.0002554676619 | AT54: 0.9114823193 | AU54: 0.8659082034 | AV54: =0 + '1. Strategy Calcs'!AR53 -> 0.002031213796 | AW54: 0.00193289873 | AX54: 9.831506608e-05 | AY54: 4.837176205 | AZ54: 0.002031213796 | BA54: 0.0008124855184 | BC54: 0.0002802771447 | BD54: =IF((InterpolateTable(tGeneralMortality,VALUE(cycle),2))=1,1,(1-EXP(LN(1-(InterpolateTable(tGeneralMortality,VALUE(cycle),2)))*(1/4)))) -> 0.001120637335
B55: 47 | D55: ='1. Strategy Calcs'!V55 -> 0.006024784802 | E55: ='1. Strategy Calcs'!AB55 -> 0.000685927279 | F55: ='1. Strategy Calcs'!AG55 -> 0.0003243836005 | G55: ='1. Strategy Calcs'!AM55 -> 0.07905416355 | H55: ='1. Strategy Calcs'!AP55 -> 0.911878451 | I55: ='1. Strategy Calcs'!AV55 -> 0.002032289724 | J55: ='1. Strategy Calcs'!AJ55 + '1. Strategy Calcs'!AY55 -> 5.612232524 | K55: =J55*'Time Discounting'!D52 -> 5.610738456 | L55: 1171.363165 | M55: ='1. Strategy Calcs'!Z55 + '1. Strategy Calcs'!AE55 + '1. Strategy Calcs'!AK55 + '1. Strategy Calcs'!AT55 + '1. Strategy Calcs'!AZ55 -> 0.9209458365 | N55: =M55*'Time Discounting'!C52 -> 0.9207006656 | O55: 44.29723118 | P55: ='1. Strategy Calcs'!AA55 + '1. Strategy Calcs'!AF55 + '1. Strategy Calcs'!AL55 + '1. Strategy Calcs'!AO55 + '1. Strategy Calcs'!AU55 + '1. Strategy Calcs'!BA55 -> 0.8738239035 | Q55: =P55*'Time Discounting'!E52 -> 0.8735912773 | R55: 42.13709425 | T55: 1 | V55: 0.006024784802 | W55: 0.005402907254 | X55: 0.0006151259494 | Y55: 6.751598786e-06 | Z55: 0.006024784802 | AA55: 0.006024784802 | AB55: =0 + '1. Strategy Calcs'!X54 -> 0.000685927279 | AC55: 0.0003950265139 | AD55: 0.0002909007651 | AE55: 0.000685927279 | AF55: 0.0006173345511 | AG55: =0 + '1. Strategy Calcs'!AD54 -> 0.0003243836005 | AH55: 4.593687016e-05 | AI55: 0.0002784467304 | AJ55: 0.7724940805 | AK55: 0.0003243836005 | AL55: 8.433973614e-05 | AM55: =0 + '1. Strategy Calcs'!Y54 + '1. Strategy Calcs'!AH54 + AN54 + '1. Strategy Calcs'!AS54 + '1. Strategy Calcs'!AX54 -> 0.07905416355 | AN55: 0.07905416355 | AO55: 0 | AP55: =0 + '1. Strategy Calcs'!AC54 + '1. Strategy Calcs'!AI54 + AQ54 + '1. Strategy Calcs'!AW54 -> 0.911878451 | AQ55: 0.9095896994 | AR55: 0.002033172961 | AS55: 0.0002555786886 | AT55: 0.911878451 | AU55: 0.8662845285 | AV55: =0 + '1. Strategy Calcs'!AR54 -> 0.002032289724 | AW55: 0.001933922581 | AX55: 9.836714328e-05 | AY55: 4.839738443 | AZ55: 0.002032289724 | BA55: 0.0008129158897 | BC55: 0.0002802771447 | BD55: =IF((InterpolateTable(tGeneralMortality,VALUE(cycle),2))=1,1,(1-EXP(LN(1-(InterpolateTable(tGeneralMortality,VALUE(cycle),2)))*(1/4)))) -> 0.001120637335
B56: 48 | D56: ='1. Strategy Calcs'!V56 -> 0.005402907254 | E56: ='1. Strategy Calcs'!AB56 -> 0.0006151259494 | F56: ='1. Strategy Calcs'!AG56 -> 0.0002909007651 | G56: ='1. Strategy Calcs'!AM56 -> 0.07946079785 | H56: ='1. Strategy Calcs'!AP56 -> 0.9121970952 | I56: ='1. Strategy Calcs'!AV56 -> 0.002033172961 | J56: ='1. Strategy Calcs'!AJ56 + '1. Strategy Calcs'!AY56 -> 5.534599138 | K56: =J56*'Time Discounting'!D53 -> 5.533094393 | L56: 1176.896259 | M56: ='1. Strategy Calcs'!Z56 + '1. Strategy Calcs'!AE56 + '1. Strategy Calcs'!AK56 + '1. Strategy Calcs'!AT56 + '1. Strategy Calcs'!AZ56 -> 0.9205392021 | N56: =M56*'Time Discounting'!C53 -> 0.9202889262 | O56: 45.21752011 | P56: ='1. Strategy Calcs'!AA56 + '1. Strategy Calcs'!AF56 + '1. Strategy Calcs'!AL56 + '1. Strategy Calcs'!AO56 + '1. Strategy Calcs'!AU56 + '1. Strategy Calcs'!BA56 -> 0.8734326645 | Q56: =P56*'Time Discounting'!E53 -> 0.8731951958 | R56: 43.01028945 | T56: 1 | V56: 0.005402907254 | W56: 0.00484521983 | X56: 0.0005516327244 | Y56: 6.054699587e-06 | Z56: 0.005402907254 | AA56: 0.005402907254 | AB56: =0 + '1. Strategy Calcs'!X55 -> 0.0006151259494 | AC56: 0.0003542519256 | AD56: 0.0002608740238 | AE56: 0.0006151259494 | AF56: 0.0005536133545 | AG56: =0 + '1. Strategy Calcs'!AD55 -> 0.0002909007651 | AH56: 4.119527205e-05 | AI56: 0.000249705493 | AJ56: 0.6927573363 | AK56: 0.0002909007651 | AL56: 7.563419892e-05 | AM56: =0 + '1. Strategy Calcs'!Y55 + '1. Strategy Calcs'!AH55 + AN55 + '1. Strategy Calcs'!AS55 + '1. Strategy Calcs'!AX55 -> 0.07946079785 | AN56: 0.07946079785 | AO56: 0 | AP56: =0 + '1. Strategy Calcs'!AC55 + '1. Strategy Calcs'!AI55 + AQ55 + '1. Strategy Calcs'!AW55 -> 0.9121970952 | AQ56: 0.9099075438 | AR56: 0.002033883427 | AS56: 0.0002556679972 | AT56: 0.9121970952 | AU56: 0.8665872405 | AV56: =0 + '1. Strategy Calcs'!AR55 -> 0.002033172961 | AW56: 0.001934763067 | AX56: 9.840989381e-05 | AY56: 4.841841802 | AZ56: 0.002033172961 | BA56: 0.0008132691843 | BC56: 0.0002802771447 | BD56: =IF((InterpolateTable(tGeneralMortality,VALUE(cycle),2))=1,1,(1-EXP(LN(1-(InterpolateTable(tGeneralMortality,VALUE(cycle),2)))*(1/4)))) -> 0.001120637335
B57: 49 | D57: ='1. Strategy Calcs'!V57 -> 0.00484521983 | E57: ='1. Strategy Calcs'!AB57 -> 0.0005516327244 | F57: ='1. Strategy Calcs'!AG57 -> 0.0002608740238 | G57: ='1. Strategy Calcs'!AM57 -> 0.07986212571 | H57: ='1. Strategy Calcs'!AP57 -> 0.9124462643 | I57: ='1. Strategy Calcs'!AV57 -> 0.002033883427 | J57: ='1. Strategy Calcs'!AJ57 + '1. Strategy Calcs'!AY57 -> 5.46478473 | K57: =J57*'Time Discounting'!D54 -> 5.463268017 | L57: 1182.359527 | M57: ='1. Strategy Calcs'!Z57 + '1. Strategy Calcs'!AE57 + '1. Strategy Calcs'!AK57 + '1. Strategy Calcs'!AT57 + '1. Strategy Calcs'!AZ57 -> 0.9201378743 | N57: =M57*'Time Discounting'!C54 -> 0.9198824964 | O57: 46.1374026 | P57: ='1. Strategy Calcs'!AA57 + '1. Strategy Calcs'!AF57 + '1. Strategy Calcs'!AL57 + '1. Strategy Calcs'!AO57 + '1. Strategy Calcs'!AU57 + '1. Strategy Calcs'!BA57 -> 0.873047021 | Q57: =P57*'Time Discounting'!E54 -> 0.8728047128 | R57: 43.88309416 | T57: 1 | V57: 0.00484521983 | W57: 0.004344487482 | X57: 0.0004946932622 | Y57: 6.039086051e-06 | Z57: 0.00484521983 | AA57: 0.00484521983 | AB57: =0 + '1. Strategy Calcs'!X56 -> 0.0005516327244 | AC57: 0.0003176860853 | AD57: 0.0002339466391 | AE57: 0.0005516327244 | AF57: 0.0004964694519 | AG57: =0 + '1. Strategy Calcs'!AD56 -> 0.0002608740238 | AH57: 3.694310113e-05 | AI57: 0.0002239309227 | AJ57: 0.621251009 | AK57: 0.0002608740238 | AL57: 6.782724619e-05 | AM57: =0 + '1. Strategy Calcs'!Y56 + '1. Strategy Calcs'!AH56 + AN56 + '1. Strategy Calcs'!AS56 + '1. Strategy Calcs'!AX56 -> 0.07986212571 | AN57: 0.07986212571 | AO57: 0 | AP57: =0 + '1. Strategy Calcs'!AC56 + '1. Strategy Calcs'!AI56 + AQ56 + '1. Strategy Calcs'!AW56 -> 0.9124462643 | AQ57: 0.9101273739 | AR57: 0.002034438987 | AS57: 0.0002844514341 | AT57: 0.9124462643 | AU57: 0.8668239511 | AV57: =0 + '1. Strategy Calcs'!AR56 -> 0.002033883427 | AW57: 0.001935439145 | AX57: 9.844428188e-05 | AY57: 4.843533721 | AZ57: 0.002033883427 | BA57: 0.0008135533707 | BC57: 0.0003117459572 | BD57: =IF((InterpolateTable(tGeneralMortality,VALUE(cycle),2))=1,1,(1-EXP(LN(1-(InterpolateTable(tGeneralMortality,VALUE(cycle),2)))*(1/4)))) -> 0.001246400837
B58: 50 | D58: ='1. Strategy Calcs'!V58 -> 0.004344487482 | E58: ='1. Strategy Calcs'!AB58 -> 0.0004946932622 | F58: ='1. Strategy Calcs'!AG58 -> 0.0002339466391 | G58: ='1. Strategy Calcs'!AM58 -> 0.08028800362 | H58: ='1. Strategy Calcs'!AP58 -> 0.91260443 | I58: ='1. Strategy Calcs'!AV58 -> 0.002034438987 | J58: ='1. Strategy Calcs'!AJ58 + '1. Strategy Calcs'!AY58 -> 5.401982301 | K58: =J58*'Time Discounting'!D55 -> 5.400452425 | L58: 1187.759979 | M58: ='1. Strategy Calcs'!Z58 + '1. Strategy Calcs'!AE58 + '1. Strategy Calcs'!AK58 + '1. Strategy Calcs'!AT58 + '1. Strategy Calcs'!AZ58 -> 0.9197119964 | N58: =M58*'Time Discounting'!C55 -> 0.919451528 | O58: 47.05685413 | P58: ='1. Strategy Calcs'!AA58 + '1. Strategy Calcs'!AF58 + '1. Strategy Calcs'!AL58 + '1. Strategy Calcs'!AO58 + '1. Strategy Calcs'!AU58 + '1. Strategy Calcs'!BA58 -> 0.8726385217 | Q58: =P58*'Time Discounting'!E55 -> 0.8723913848 | R58: 44.75548554 | T58: 1 | V58: 0.004344487482 | W58: 0.003895503639 | X58: 0.00044356887 | Y58: 5.414972833e-06 | Z58: 0.004344487482 | AA58: 0.004344487482 | AB58: =0 + '1. Strategy Calcs'!X57 -> 0.0004946932622 | AC58: 0.0002848945666 | AD58: 0.0002097986957 | AE58: 0.0004946932622 | AF58: 0.000445223936 | AG58: =0 + '1. Strategy Calcs'!AD57 -> 0.0002339466391 | AH58: 3.312983876e-05 | AI58: 0.0002008168003 | AJ58: 0.5571255561 | AK58: 0.0002339466391 | AL58: 6.082612616e-05 | AM58: =0 + '1. Strategy Calcs'!Y57 + '1. Strategy Calcs'!AH57 + AN57 + '1. Strategy Calcs'!AS57 + '1. Strategy Calcs'!AX57 -> 0.08028800362 | AN58: 0.08028800362 | AO58: 0 | AP58: =0 + '1. Strategy Calcs'!AC57 + '1. Strategy Calcs'!AI57 + AQ57 + '1. Strategy Calcs'!AW57 -> 0.91260443 | AQ58: 0.9102851376 | AR58: 0.002034791642 | AS58: 0.0002845007416 | AT58: 0.91260443 | AU58: 0.8669742085 | AV58: =0 + '1. Strategy Calcs'!AR57 -> 0.002034438987 | AW58: 0.001935967815 | AX58: 9.847117219e-05 | AY58: 4.844856745 | AZ58: 0.002034438987 | BA58: 0.000813775595 | BC58: 0.0003117459572 | BD58: =IF((InterpolateTable(tGeneralMortality,VALUE(cycle),2))=1,1,(1-EXP(LN(1-(InterpolateTable(tGeneralMortality,VALUE(cycle),2)))*(1/4)))) -> 0.001246400837
B59: 51 | D59: ='1. Strategy Calcs'!V59 -> 0.003895503639 | E59: ='1. Strategy Calcs'!AB59 -> 0.00044356887 | F59: ='1. Strategy Calcs'!AG59 -> 0.0002097986957 | G59: ='1. Strategy Calcs'!AM59 -> 0.08070952034 | H59: ='1. Strategy Calcs'!AP59 -> 0.9127068168 | I59: ='1. Strategy Calcs'!AV59 -> 0.002034791642 | J59: ='1. Strategy Calcs'!AJ59 + '1. Strategy Calcs'!AY59 -> 5.345315689 | K59: =J59*'Time Discounting'!D56 -> 5.343771589 | L59: 1193.103751 | M59: ='1. Strategy Calcs'!Z59 + '1. Strategy Calcs'!AE59 + '1. Strategy Calcs'!AK59 + '1. Strategy Calcs'!AT59 + '1. Strategy Calcs'!AZ59 -> 0.9192904797 | N59: =M59*'Time Discounting'!C56 -> 0.9190249244 | O59: 47.97587906 | P59: ='1. Strategy Calcs'!AA59 + '1. Strategy Calcs'!AF59 + '1. Strategy Calcs'!AL59 + '1. Strategy Calcs'!AO59 + '1. Strategy Calcs'!AU59 + '1. Strategy Calcs'!BA59 -> 0.8722346559 | Q59: =P59*'Time Discounting'!E56 -> 0.8719826937 | R59: 45.62746824 | T59: 1 | V59: 0.003895503639 | W59: 0.003492920319 | X59: 0.0003977279609 | Y59: 4.855358996e-06 | Z59: 0.003895503639 | AA59: 0.003895503639 | AB59: =0 + '1. Strategy Calcs'!X58 -> 0.00044356887 | AC59: 0.000255451955 | AD59: 0.000188116915 | AE59: 0.00044356887 | AF59: 0.000399211983 | AG59: =0 + '1. Strategy Calcs'!AD58 -> 0.0002097986957 | AH59: 2.971018087e-05 | AI59: 0.0001800885148 | AJ59: 0.4996191246 | AK59: 0.0002097986957 | AL59: 5.454766088e-05 | AM59: =0 + '1. Strategy Calcs'!Y58 + '1. Strategy Calcs'!AH58 + AN58 + '1. Strategy Calcs'!AS58 + '1. Strategy Calcs'!AX58 -> 0.08070952034 | AN59: 0.08070952034 | AO59: 0 | AP59: =0 + '1. Strategy Calcs'!AC58 + '1. Strategy Calcs'!AI58 + AQ58 + '1. Strategy Calcs'!AW58 -> 0.9127068168 | AQ59: 0.9103872642 | AR59: 0.002035019929 | AS59: 0.0002845326603 | AT59: 0.9127068168 | AU59: 0.867071476 | AV59: =0 + '1. Strategy Calcs'!AR58 -> 0.002034791642 | AW59: 0.001936303401 | AX59: 9.848824144e-05 | AY59: 4.845696565 | AZ59: 0.002034791642 | BA59: 0.0008139166569 | BC59: 0.0003117459572 | BD59: =IF((InterpolateTable(tGeneralMortality,VALUE(cycle),2))=1,1,(1-EXP(LN(1-(InterpolateTable(tGeneralMortality,VALUE(cycle),2)))*(1/4)))) -> 0.001246400837
B60: 52 | D60: ='1. Strategy Calcs'!V60 -> 0.003492920319 | E60: ='1. Strategy Calcs'!AB60 -> 0.0003977279609 | F60: ='1. Strategy Calcs'!AG60 -> 0.000188116915 | G60: ='1. Strategy Calcs'!AM60 -> 0.08112710678 | H60: ='1. Strategy Calcs'!AP60 -> 0.9127591081 | I60: ='1. Strategy Calcs'!AV60 -> 0.002035019929 | J60: ='1. Strategy Calcs'!AJ60 + '1. Strategy Calcs'!AY60 -> 5.294225878 | K60: =J60*'Time Discounting'!D57 -> 5.292666554 | L60: 1198.396418 | M60: ='1. Strategy Calcs'!Z60 + '1. Strategy Calcs'!AE60 + '1. Strategy Calcs'!AK60 + '1. Strategy Calcs'!AT60 + '1. Strategy Calcs'!AZ60 -> 0.9188728932 | N60: =M60*'Time Discounting'!C57 -> 0.9186022548 | O60: 48.89448131 | P60: ='1. Strategy Calcs'!AA60 + '1. Strategy Calcs'!AF60 + '1. Strategy Calcs'!AL60 + '1. Strategy Calcs'!AO60 + '1. Strategy Calcs'!AU60 + '1. Strategy Calcs'!BA60 -> 0.8718349465 | Q60: =P60*'Time Discounting'!E57 -> 0.8715781623 | R60: 46.4990464 | T60: 1 | V60: 0.003492920319 | W60: 0.00313194223 | X60: 0.0003566245099 | Y60: 4.353578809e-06 | Z60: 0.003492920319 | AA60: 0.003492920319 | AB60: =0 + '1. Strategy Calcs'!X59 -> 0.0003977279609 | AC60: 0.000229052109 | AD60: 0.0001686758519 | AE60: 0.0003977279609 | AF60: 0.0003579551648 | AG60: =0 + '1. Strategy Calcs'!AD59 -> 0.000188116915 | AH60: 2.663976319e-05 | AI60: 0.0001614771518 | AJ60: 0.447985666 | AK60: 0.000188116915 | AL60: 4.891039791e-05 | AM60: =0 + '1. Strategy Calcs'!Y59 + '1. Strategy Calcs'!AH59 + AN59 + '1. Strategy Calcs'!AS59 + '1. Strategy Calcs'!AX59 -> 0.08112710678 | AN60: 0.08112710678 | AO60: 0 | AP60: =0 + '1. Strategy Calcs'!AC59 + '1. Strategy Calcs'!AI59 + AQ59 + '1. Strategy Calcs'!AW59 -> 0.9127591081 | AQ60: 0.9104394226 | AR60: 0.002035136521 | AS60: 0.0002845489619 | AT60: 0.9127591081 | AU60: 0.8671211527 | AV60: =0 + '1. Strategy Calcs'!AR59 -> 0.002035019929 | AW60: 0.001936520638 | AX60: 9.849929102e-05 | AY60: 4.846240212 | AZ60: 0.002035019929 | BA60: 0.0008140079717 | BC60: 0.0003117459572 | BD60: =IF((InterpolateTable(tGeneralMortality,VALUE(cycle),2))=1,1,(1-EXP(LN(1-(InterpolateTable(tGeneralMortality,VALUE(cycle),2)))*(1/4)))) -> 0.001246400837
B61: 53 | D61: ='1. Strategy Calcs'!V61 -> 0.00313194223 | E61: ='1. Strategy Calcs'!AB61 -> 0.0003566245099 | F61: ='1. Strategy Calcs'!AG61 -> 0.0001686758519 | G61: ='1. Strategy Calcs'!AM61 -> 0.08154114838 | H61: ='1. Strategy Calcs'!AP61 -> 0.9127664725 | I61: ='1. Strategy Calcs'!AV61 -> 0.002035136521 | J61: ='1. Strategy Calcs'!AJ61 + '1. Strategy Calcs'!AY61 -> 5.248206166 | K61: =J61*'Time Discounting'!D58 -> 5.246630674 | L61: 1203.643048 | M61: ='1. Strategy Calcs'!Z61 + '1. Strategy Calcs'!AE61 + '1. Strategy Calcs'!AK61 + '1. Strategy Calcs'!AT61 + '1. Strategy Calcs'!AZ61 -> 0.9184588516 | N61: =M61*'Time Discounting'!C58 -> 0.9181831337 | O61: 49.81266445 | P61: ='1. Strategy Calcs'!AA61 + '1. Strategy Calcs'!AF61 + '1. Strategy Calcs'!AL61 + '1. Strategy Calcs'!AO61 + '1. Strategy Calcs'!AU61 + '1. Strategy Calcs'!BA61 -> 0.8714389635 | Q61: =P61*'Time Discounting'!E58 -> 0.8711773608 | R61: 47.37022376 | T61: 1 | V61: 0.00313194223 | W61: 0.002808269654 | X61: 0.0003197689214 | Y61: 3.903655417e-06 | Z61: 0.00313194223 | AA61: 0.00313194223 | AB61: =0 + '1. Strategy Calcs'!X60 -> 0.0003566245099 | AC61: 0.000205380572 | AD61: 0.0001512439379 | AE61: 0.0003566245099 | AF61: 0.0003209620589 | AG61: =0 + '1. Strategy Calcs'!AD60 -> 0.0001686758519 | AH61: 2.388665979e-05 | AI61: 0.0001447891921 | AJ61: 0.4016883002 | AK61: 0.0001686758519 | AL61: 4.385572149e-05 | AM61: =0 + '1. Strategy Calcs'!Y60 + '1. Strategy Calcs'!AH60 + AN60 + '1. Strategy Calcs'!AS60 + '1. Strategy Calcs'!AX60 -> 0.08154114838 | AN61: 0.08154114838 | AO61: 0 | AP61: =0 + '1. Strategy Calcs'!AC60 + '1. Strategy Calcs'!AI60 + AQ60 + '1. Strategy Calcs'!AW60 -> 0.9127664725 | AQ61: 0.9104467683 | AR61: 0.002035152941 | AS61: 0.0002845512577 | AT61: 0.9127664725 | AU61: 0.8671281489 | AV61: =0 + '1. Strategy Calcs'!AR60 -> 0.002035136521 | AW61: 0.001936631586 | AX61: 9.850493429e-05 | AY61: 4.846517866 | AZ61: 0.002035136521 | BA61: 0.0008140546083 | BC61: 0.0003117459572 | BD61: =IF((InterpolateTable(tGeneralMortality,VALUE(cycle),2))=1,1,(1-EXP(LN(1-(InterpolateTable(tGeneralMortality,VALUE(cycle),2)))*(1/4)))) -> 0.001246400837
B62: 54 | D62: ='1. Strategy Calcs'!V62 -> 0.002808269654 | E62: ='1. Strategy Calcs'!AB62 -> 0.0003197689214 | F62: ='1. Strategy Calcs'!AG62 -> 0.0001512439379 | G62: ='1. Strategy Calcs'!AM62 -> 0.08195199489 | H62: ='1. Strategy Calcs'!AP62 -> 0.9127335697 | I62: ='1. Strategy Calcs'!AV62 -> 0.002035152941 | J62: ='1. Strategy Calcs'!AJ62 + '1. Strategy Calcs'!AY62 -> 5.206732534 | K62: =J62*'Time Discounting'!D59 -> 5.205140006 | L62: 1208.848188 | M62: ='1. Strategy Calcs'!Z62 + '1. Strategy Calcs'!AE62 + '1. Strategy Calcs'!AK62 + '1. Strategy Calcs'!AT62 + '1. Strategy Calcs'!AZ62 -> 0.9180480051 | N62: =M62*'Time Discounting'!C59 -> 0.9177672114 | O62: 50.73043166 | P62: ='1. Strategy Calcs'!AA62 + '1. Strategy Calcs'!AF62 + '1. Strategy Calcs'!AL62 + '1. Strategy Calcs'!AO62 + '1. Strategy Calcs'!AU62 + '1. Strategy Calcs'!BA62 -> 0.8710463375 | Q62: =P62*'Time Discounting'!E59 -> 0.8707799197 | R62: 48.24100368 | T62: 1 | V62: 0.002808269654 | W62: 0.002518047227 | X62: 0.0002867221973 | Y62: 3.500229646e-06 | Z62: 0.002808269654 | AA62: 0.002808269654 | AB62: =0 + '1. Strategy Calcs'!X61 -> 0.0003197689214 | AC62: 0.0001841553852 | AD62: 0.0001356135362 | AE62: 0.0003197689214 | AF62: 0.0002877920293 | AG62: =0 + '1. Strategy Calcs'!AD61 -> 0.0001512439379 | AH62: 2.141807763e-05 | AI62: 0.0001298258603 | AJ62: 0.3601755654 | AK62: 0.0001512439379 | AL62: 3.932342385e-05 | AM62: =0 + '1. Strategy Calcs'!Y61 + '1. Strategy Calcs'!AH61 + AN61 + '1. Strategy Calcs'!AS61 + '1. Strategy Calcs'!AX61 -> 0.08195199489 | AN62: 0.08195199489 | AO62: 0 | AP62: =0 + '1. Strategy Calcs'!AC61 + '1. Strategy Calcs'!AI61 + AQ61 + '1. Strategy Calcs'!AW61 -> 0.9127335697 | AQ62: 0.9104139491 | AR62: 0.002035079579 | AS62: 0.0002845410004 | AT62: 0.9127335697 | AU62: 0.8670968912 | AV62: =0 + '1. Strategy Calcs'!AR61 -> 0.002035152941 | AW62: 0.001936647212 | AX62: 9.850572906e-05 | AY62: 4.846556969 | AZ62: 0.002035152941 | BA62: 0.0008140611763 | BC62: 0.0003117459572 | BD62: =IF((InterpolateTable(tGeneralMortality,VALUE(cycle),2))=1,1,(1-EXP(LN(1-(InterpolateTable(tGeneralMortality,VALUE(cycle),2)))*(1/4)))) -> 0.001246400837
B63: 55 | D63: ='1. Strategy Calcs'!V63 -> 0.002518047227 | E63: ='1. Strategy Calcs'!AB63 -> 0.0002867221973 | F63: ='1. Strategy Calcs'!AG63 -> 0.0001356135362 | G63: ='1. Strategy Calcs'!AM63 -> 0.08235995992 | H63: ='1. Strategy Calcs'!AP63 -> 0.9126645775 | I63: ='1. Strategy Calcs'!AV63 -> 0.002035079579 | J63: ='1. Strategy Calcs'!AJ63 + '1. Strategy Calcs'!AY63 -> 5.169335254 | K63: =J63*'Time Discounting'!D60 -> 5.167724889 | L63: 1214.015913 | M63: ='1. Strategy Calcs'!Z63 + '1. Strategy Calcs'!AE63 + '1. Strategy Calcs'!AK63 + '1. Strategy Calcs'!AT63 + '1. Strategy Calcs'!AZ63 -> 0.9176400401 | N63: =M63*'Time Discounting'!C60 -> 0.9173541744 | O63: 51.64778583 | P63: ='1. Strategy Calcs'!AA63 + '1. Strategy Calcs'!AF63 + '1. Strategy Calcs'!AL63 + '1. Strategy Calcs'!AO63 + '1. Strategy Calcs'!AU63 + '1. Strategy Calcs'!BA63 -> 0.8706567372 | Q63: =P63*'Time Discounting'!E60 -> 0.8703855079 | R63: 49.11138919 | T63: 1 | V63: 0.002518047227 | W63: 0.002257818022 | X63: 0.0002570907081 | Y63: 3.138496171e-06 | Z63: 0.002518047227 | AA63: 0.002518047227 | AB63: =0 + '1. Strategy Calcs'!X62 -> 0.0002867221973 | AC63: 0.0001651237289 | AD63: 0.0001215984684 | AE63: 0.0002867221973 | AF63: 0.0002580499776 | AG63: =0 + '1. Strategy Calcs'!AD62 -> 0.0001356135362 | AH63: 1.920461267e-05 | AI63: 0.0001164089235 | AJ63: 0.3229529908 | AK63: 0.0001356135362 | AL63: 3.525951941e-05 | AM63: =0 + '1. Strategy Calcs'!Y62 + '1. Strategy Calcs'!AH62 + AN62 + '1. Strategy Calcs'!AS62 + '1. Strategy Calcs'!AX62 -> 0.08235995992 | AN63: 0.08235995992 | AO63: 0 | AP63: =0 + '1. Strategy Calcs'!AC62 + '1. Strategy Calcs'!AI62 + AQ62 + '1. Strategy Calcs'!AW62 -> 0.9126645775 | AQ63: 0.9103451323 | AR63: 0.00203492575 | AS63: 0.0002845194924 | AT63: 0.9126645775 | AU63: 0.8670313487 | AV63: =0 + '1. Strategy Calcs'!AR62 -> 0.002035079579 | AW63: 0.001936577401 | AX63: 9.850217818e-05 | AY63: 4.846382263 | AZ63: 0.002035079579 | BA63: 0.0008140318315 | BC63: 0.0003117459572 | BD63: =IF((InterpolateTable(tGeneralMortality,VALUE(cycle),2))=1,1,(1-EXP(LN(1-(InterpolateTable(tGeneralMortality,VALUE(cycle),2)))*(1/4)))) -> 0.001246400837
B64: 56 | D64: ='1. Strategy Calcs'!V64 -> 0.002257818022 | E64: ='1. Strategy Calcs'!AB64 -> 0.0002570907081 | F64: ='1. Strategy Calcs'!AG64 -> 0.0001215984684 | G64: ='1. Strategy Calcs'!AM64 -> 0.0827653247 | H64: ='1. Strategy Calcs'!AP64 -> 0.9125632423 | I64: ='1. Strategy Calcs'!AV64 -> 0.00203492575 | J64: ='1. Strategy Calcs'!AJ64 + '1. Strategy Calcs'!AY64 -> 5.13559314 | K64: =J64*'Time Discounting'!D61 -> 5.133964202 | L64: 1219.149877 | M64: ='1. Strategy Calcs'!Z64 + '1. Strategy Calcs'!AE64 + '1. Strategy Calcs'!AK64 + '1. Strategy Calcs'!AT64 + '1. Strategy Calcs'!AZ64 -> 0.9172346753 | N64: =M64*'Time Discounting'!C61 -> 0.9169437414 | O64: 52.56472957 | P64: ='1. Strategy Calcs'!AA64 + '1. Strategy Calcs'!AF64 + '1. Strategy Calcs'!AL64 + '1. Strategy Calcs'!AO64 + '1. Strategy Calcs'!AU64 + '1. Strategy Calcs'!BA64 -> 0.8702698658 | Q64: =P64*'Time Discounting'!E61 -> 0.8699938285 | R64: 49.98138302 | T64: 1 | V64: 0.002257818022 | W64: 0.002024482372 | X64: 0.0002305215041 | Y64: 2.814146273e-06 | Z64: 0.002257818022 | AA64: 0.002257818022 | AB64: =0 + '1. Strategy Calcs'!X63 -> 0.0002570907081 | AC64: 0.0001480589113 | AD64: 0.0001090317968 | AE64: 0.0002570907081 | AF64: 0.0002313816373 | AG64: =0 + '1. Strategy Calcs'!AD63 -> 0.0001215984684 | AH64: 1.721989967e-05 | AI64: 0.0001043785687 | AJ64: 0.289577207 | AK64: 0.0001215984684 | AL64: 3.161560178e-05 | AM64: =0 + '1. Strategy Calcs'!Y63 + '1. Strategy Calcs'!AH63 + AN63 + '1. Strategy Calcs'!AS63 + '1. Strategy Calcs'!AX63 -> 0.0827653247 | AN64: 0.0827653247 | AO64: 0 | AP64: =0 + '1. Strategy Calcs'!AC63 + '1. Strategy Calcs'!AI63 + AQ63 + '1. Strategy Calcs'!AW63 -> 0.9125632423 | AQ64: 0.9102440546 | AR64: 0.002034699808 | AS64: 0.0002844879015 | AT64: 0.9125632423 | AU64: 0.8669350802 | AV64: =0 + '1. Strategy Calcs'!AR63 -> 0.00203492575 | AW64: 0.001936431018 | AX64: 9.849473255e-05 | AY64: 4.846015933 | AZ64: 0.00203492575 | BA64: 0.0008139703001 | BC64: 0.0003117459572 | BD64: =IF((InterpolateTable(tGeneralMortality,VALUE(cycle),2))=1,1,(1-EXP(LN(1-(InterpolateTable(tGeneralMortality,VALUE(cycle),2)))*(1/4)))) -> 0.001246400837
B65: 57 | D65: ='1. Strategy Calcs'!V65 -> 0.002024482372 | E65: ='1. Strategy Calcs'!AB65 -> 0.0002305215041 | F65: ='1. Strategy Calcs'!AG65 -> 0.0001090317968 | G65: ='1. Strategy Calcs'!AM65 -> 0.08316834138 | H65: ='1. Strategy Calcs'!AP65 -> 0.9124329231 | I65: ='1. Strategy Calcs'!AV65 -> 0.002034699808 | J65: ='1. Strategy Calcs'!AJ65 + '1. Strategy Calcs'!AY65 -> 5.105128534 | K65: =J65*'Time Discounting'!D62 -> 5.103480348 | L65: 1224.253358 | M65: ='1. Strategy Calcs'!Z65 + '1. Strategy Calcs'!AE65 + '1. Strategy Calcs'!AK65 + '1. Strategy Calcs'!AT65 + '1. Strategy Calcs'!AZ65 -> 0.9168316586 | N65: =M65*'Time Discounting'!C62 -> 0.9165356605 | O65: 53.48126523 | P65: ='1. Strategy Calcs'!AA65 + '1. Strategy Calcs'!AF65 + '1. Strategy Calcs'!AL65 + '1. Strategy Calcs'!AO65 + '1. Strategy Calcs'!AU65 + '1. Strategy Calcs'!BA65 -> 0.8698854569 | Q65: =P65*'Time Discounting'!E62 -> 0.8696046153 | R65: 50.85098763 | T65: 1 | V65: 0.002024482372 | W65: 0.001815260944 | X65: 0.0002066981115 | Y65: 2.523316523e-06 | Z65: 0.002024482372 | AA65: 0.002024482372 | AB65: =0 + '1. Strategy Calcs'!X64 -> 0.0002305215041 | AC65: 0.0001327576683 | AD65: 9.776383585e-05 | AE65: 0.0002305215041 | AF65: 0.0002074693537 | AG65: =0 + '1. Strategy Calcs'!AD64 -> 0.0001090317968 | AH65: 1.54402981e-05 | AI65: 9.359149866e-05 | AJ65: 0.259650665 | AK65: 0.0001090317968 | AL65: 2.834826716e-05 | AM65: =0 + '1. Strategy Calcs'!Y64 + '1. Strategy Calcs'!AH64 + AN64 + '1. Strategy Calcs'!AS64 + '1. Strategy Calcs'!AX64 -> 0.08316834138 | AN65: 0.08316834138 | AO65: 0 | AP65: =0 + '1. Strategy Calcs'!AC64 + '1. Strategy Calcs'!AI64 + AQ64 + '1. Strategy Calcs'!AW64 -> 0.9124329231 | AQ65: 0.9101140666 | AR65: 0.002034409241 | AS65: 0.000284447275 | AT65: 0.9124329231 | AU65: 0.866811277 | AV65: =0 + '1. Strategy Calcs'!AR64 -> 0.002034699808 | AW65: 0.001936216011 | AX65: 9.848379646e-05 | AY65: 4.845477869 | AZ65: 0.002034699808 | BA65: 0.0008138799232 | BC65: 0.0003117459572 | BD65: =IF((InterpolateTable(tGeneralMortality,VALUE(cycle),2))=1,1,(1-EXP(LN(1-(InterpolateTable(tGeneralMortality,VALUE(cycle),2)))*(1/4)))) -> 0.001246400837
B66: 58 | D66: ='1. Strategy Calcs'!V66 -> 0.001815260944 | E66: ='1. Strategy Calcs'!AB66 -> 0.0002066981115 | F66: ='1. Strategy Calcs'!AG66 -> 9.776383585e-05 | G66: ='1. Strategy Calcs'!AM66 -> 0.08356923607 | H66: ='1. Strategy Calcs'!AP66 -> 0.9122766318 | I66: ='1. Strategy Calcs'!AV66 -> 0.002034409241 | J66: ='1. Strategy Calcs'!AJ66 + '1. Strategy Calcs'!AY66 -> 5.077602808 | K66: =J66*'Time Discounting'!D63 -> 5.075934754 | L66: 1229.329293 | M66: ='1. Strategy Calcs'!Z66 + '1. Strategy Calcs'!AE66 + '1. Strategy Calcs'!AK66 + '1. Strategy Calcs'!AT66 + '1. Strategy Calcs'!AZ66 -> 0.9164307639 | N66: =M66*'Time Discounting'!C63 -> 0.9161297054 | O66: 54.39739494 | P66: ='1. Strategy Calcs'!AA66 + '1. Strategy Calcs'!AF66 + '1. Strategy Calcs'!AL66 + '1. Strategy Calcs'!AO66 + '1. Strategy Calcs'!AU66 + '1. Strategy Calcs'!BA66 -> 0.8695032717 | Q66: =P66*'Time Discounting'!E63 -> 0.8692176295 | R66: 51.72020526 | T66: 1 | V66: 0.001815260944 | W66: 0.001627661638 | X66: 0.0001853367628 | Y66: 2.26254276e-06 | Z66: 0.001815260944 | AA66: 0.001815260944 | AB66: =0 + '1. Strategy Calcs'!X65 -> 0.0002066981115 | AC66: 0.000119037742 | AD66: 8.766036959e-05 | AE66: 0.0002066981115 | AF66: 0.0001860283004 | AG66: =0 + '1. Strategy Calcs'!AD65 -> 9.776383585e-05 | AH66: 1.38446106e-05 | AI66: 8.391922526e-05 | AJ66: 0.2328169006 | AK66: 9.776383585e-05 | AL66: 2.541859732e-05 | AM66: =0 + '1. Strategy Calcs'!Y65 + '1. Strategy Calcs'!AH65 + AN65 + '1. Strategy Calcs'!AS65 + '1. Strategy Calcs'!AX65 -> 0.08356923607 | AN66: 0.08356923607 | AO66: 0 | AP66: =0 + '1. Strategy Calcs'!AC65 + '1. Strategy Calcs'!AI65 + AQ65 + '1. Strategy Calcs'!AW65 -> 0.9122766318 | AQ66: 0.9099581725 | AR66: 0.002034060766 | AS66: 0.0002843985518 | AT66: 0.9122766318 | AU66: 0.8666628002 | AV66: =0 + '1. Strategy Calcs'!AR65 -> 0.002034409241 | AW66: 0.001935939509 | AX66: 9.846973242e-05 | AY66: 4.844785907 | AZ66: 0.002034409241 | BA66: 0.0008137636965 | BC66: 0.0003117459572 | BD66: =IF((InterpolateTable(tGeneralMortality,VALUE(cycle),2))=1,1,(1-EXP(LN(1-(InterpolateTable(tGeneralMortality,VALUE(cycle),2)))*(1/4)))) -> 0.001246400837
B67: 59 | D67: ='1. Strategy Calcs'!V67 -> 0.001627661638 | E67: ='1. Strategy Calcs'!AB67 -> 0.0001853367628 | F67: ='1. Strategy Calcs'!AG67 -> 8.766036959e-05 | G67: ='1. Strategy Calcs'!AM67 -> 0.08396821151 | H67: ='1. Strategy Calcs'!AP67 -> 0.912097069 | I67: ='1. Strategy Calcs'!AV67 -> 0.002034060766 | J67: ='1. Strategy Calcs'!AJ67 + '1. Strategy Calcs'!AY67 -> 5.052712329 | K67: =J67*'Time Discounting'!D64 -> 5.051023838 | L67: 1234.380316 | M67: ='1. Strategy Calcs'!Z67 + '1. Strategy Calcs'!AE67 + '1. Strategy Calcs'!AK67 + '1. Strategy Calcs'!AT67 + '1. Strategy Calcs'!AZ67 -> 0.9160317885 | N67: =M67*'Time Discounting'!C64 -> 0.9157256735 | O67: 55.31312061 | P67: ='1. Strategy Calcs'!AA67 + '1. Strategy Calcs'!AF67 + '1. Strategy Calcs'!AL67 + '1. Strategy Calcs'!AO67 + '1. Strategy Calcs'!AU67 + '1. Strategy Calcs'!BA67 -> 0.8691230962 | Q67: =P67*'Time Discounting'!E64 -> 0.8688326569 | R67: 52.58903792 | T67: 1 | V67: 0.001627661638 | W67: 0.001459449903 | X67: 0.0001661830162 | Y67: 2.028718828e-06 | Z67: 0.001627661638 | AA67: 0.001627661638 | AB67: =0 + '1. Strategy Calcs'!X66 -> 0.0001853367628 | AC67: 0.0001067357102 | AD67: 7.860105252e-05 | AE67: 0.0001853367628 | AF67: 0.0001668030865 | AG67: =0 + '1. Strategy Calcs'!AD66 -> 8.766036959e-05 | AH67: 1.241383044e-05 | AI67: 7.524653915e-05 | AJ67: 0.2087562888 | AK67: 8.766036959e-05 | AL67: 2.279169609e-05 | AM67: =0 + '1. Strategy Calcs'!Y66 + '1. Strategy Calcs'!AH66 + AN66 + '1. Strategy Calcs'!AS66 + '1. Strategy Calcs'!AX66 -> 0.08396821151 | AN67: 0.08396821151 | AO67: 0 | AP67: =0 + '1. Strategy Calcs'!AC66 + '1. Strategy Calcs'!AI66 + AQ66 + '1. Strategy Calcs'!AW66 -> 0.912097069 | AQ67: 0.909779066 | AR67: 0.002033660403 | AS67: 0.0002843425739 | AT67: 0.912097069 | AU67: 0.8664922155 | AV67: =0 + '1. Strategy Calcs'!AR66 -> 0.002034060766 | AW67: 0.0019356079 | AX67: 9.845286546e-05 | AY67: 4.84395604 | AZ67: 0.002034060766 | BA67: 0.0008136243063 | BC67: 0.0003117459572 | BD67: =IF((InterpolateTable(tGeneralMortality,VALUE(cycle),2))=1,1,(1-EXP(LN(1-(InterpolateTable(tGeneralMortality,VALUE(cycle),2)))*(1/4)))) -> 0.001246400837
B68: 60 | D68: ='1. Strategy Calcs'!V68 -> 0.001459449903 | E68: ='1. Strategy Calcs'!AB68 -> 0.0001661830162 | F68: ='1. Strategy Calcs'!AG68 -> 7.860105252e-05 | G68: ='1. Strategy Calcs'!AM68 -> 0.08436544949 | H68: ='1. Strategy Calcs'!AP68 -> 0.9118966561 | I68: ='1. Strategy Calcs'!AV68 -> 0.002033660403 | J68: ='1. Strategy Calcs'!AJ68 + '1. Strategy Calcs'!AY68 -> 5.030184843 | K68: =J68*'Time Discounting'!D65 -> 5.028475395 | L68: 1239.408792 | M68: ='1. Strategy Calcs'!Z68 + '1. Strategy Calcs'!AE68 + '1. Strategy Calcs'!AK68 + '1. Strategy Calcs'!AT68 + '1. Strategy Calcs'!AZ68 -> 0.9156345505 | N68: =M68*'Time Discounting'!C65 -> 0.915323383 | O68: 56.228444 | P68: ='1. Strategy Calcs'!AA68 + '1. Strategy Calcs'!AF68 + '1. Strategy Calcs'!AL68 + '1. Strategy Calcs'!AO68 + '1. Strategy Calcs'!AU68 + '1. Strategy Calcs'!BA68 -> 0.8687447384 | Q68: =P68*'Time Discounting'!E65 -> 0.8684495058 | R68: 53.45748742 | T68: 1 | V68: 0.001459449903 | W68: 0.001308622118 | X68: 0.0001490087259 | Y68: 1.819059581e-06 | Z68: 0.001459449903 | AA68: 0.001459449903 | AB68: =0 + '1. Strategy Calcs'!X67 -> 0.0001661830162 | AC68: 9.570503986e-05 | AD68: 7.047797638e-05 | AE68: 0.0001661830162 | AF68: 0.0001495647146 | AG68: =0 + '1. Strategy Calcs'!AD67 -> 7.860105252e-05 | AH68: 1.113091518e-05 | AI68: 6.747013734e-05 | AJ68: 0.1871822364 | AK68: 7.860105252e-05 | AL68: 2.043627365e-05 | AM68: =0 + '1. Strategy Calcs'!Y67 + '1. Strategy Calcs'!AH67 + AN67 + '1. Strategy Calcs'!AS67 + '1. Strategy Calcs'!AX67 -> 0.08436544949 | AN68: 0.08436544949 | AO68: 0 | AP68: =0 + '1. Strategy Calcs'!AC67 + '1. Strategy Calcs'!AI67 + AQ67 + '1. Strategy Calcs'!AW67 -> 0.9118966561 | AQ68: 0.9095791625 | AR68: 0.002033213552 | AS68: 0.000284280096 | AT68: 0.9118966561 | AU68: 0.8663018233 | AV68: =0 + '1. Strategy Calcs'!AR67 -> 0.002033660403 | AW68: 0.001935226916 | AX68: 9.843348705e-05 | AY68: 4.843002607 | AZ68: 0.002033660403 | BA68: 0.0008134641611 | BC68: 0.0003117459572 | BD68: =IF((InterpolateTable(tGeneralMortality,VALUE(cycle),2))=1,1,(1-EXP(LN(1-(InterpolateTable(tGeneralMortality,VALUE(cycle),2)))*(1/4)))) -> 0.001246400837
B69: 61 | D69: ='1. Strategy Calcs'!V69 -> 0.001308622118 | E69: ='1. Strategy Calcs'!AB69 -> 0.0001490087259 | F69: ='1. Strategy Calcs'!AG69 -> 7.047797638e-05 | G69: ='1. Strategy Calcs'!AM69 -> 0.08476111305 | H69: ='1. Strategy Calcs'!AP69 -> 0.9116775646 | I69: ='1. Strategy Calcs'!AV69 -> 0.002033213552 | J69: ='1. Strategy Calcs'!AJ69 + '1. Strategy Calcs'!AY69 -> 5.009776234 | K69: =J69*'Time Discounting'!D66 -> 5.008045351 | L69: 1244.416837 | M69: ='1. Strategy Calcs'!Z69 + '1. Strategy Calcs'!AE69 + '1. Strategy Calcs'!AK69 + '1. Strategy Calcs'!AT69 + '1. Strategy Calcs'!AZ69 -> 0.9152388869 | N69: =M69*'Time Discounting'!C66 -> 0.9149226709 | O69: 57.14336667 | P69: ='1. Strategy Calcs'!AA69 + '1. Strategy Calcs'!AF69 + '1. Strategy Calcs'!AL69 + '1. Strategy Calcs'!AO69 + '1. Strategy Calcs'!AU69 + '1. Strategy Calcs'!BA69 -> 0.868368026 | Q69: =P69*'Time Discounting'!E66 -> 0.8680680039 | R69: 54.32555543 | T69: 1 | V69: 0.001308622118 | W69: 0.001173149729 | X69: 0.0001336093237 | Y69: 1.863065593e-06 | Z69: 0.001308622118 | AA69: 0.001308622118 | AB69: =0 + '1. Strategy Calcs'!X68 -> 0.0001490087259 | AC69: 8.581434119e-05 | AD69: 6.319438474e-05 | AE69: 0.0001490087259 | AF69: 0.0001341078533 | AG69: =0 + '1. Strategy Calcs'!AD68 -> 7.047797638e-05 | AH69: 9.980583619e-06 | AI69: 6.049739276e-05 | AJ69: 0.1678377682 | AK69: 7.047797638e-05 | AL69: 1.832427386e-05 | AM69: =0 + '1. Strategy Calcs'!Y68 + '1. Strategy Calcs'!AH68 + AN68 + '1. Strategy Calcs'!AS68 + '1. Strategy Calcs'!AX68 -> 0.08476111305 | AN69: 0.08476111305 | AO69: 0 | AP69: =0 + '1. Strategy Calcs'!AC68 + '1. Strategy Calcs'!AI68 + AQ68 + '1. Strategy Calcs'!AW68 -> 0.9116775646 | AQ69: 0.9093201807 | AR69: 0.002032725053 | AS69: 0.0003246587841 | AT69: 0.9116775646 | AU69: 0.8660936863 | AV69: =0 + '1. Strategy Calcs'!AR68 -> 0.002033213552 | AW69: 0.001934801693 | AX69: 9.84118585e-05 | AY69: 4.841938466 | AZ69: 0.002033213552 | BA69: 0.0008132854207 | BC69: 0.0003561114112 | BD69: =IF((InterpolateTable(tGeneralMortality,VALUE(cycle),2))=1,1,(1-EXP(LN(1-(InterpolateTable(tGeneralMortality,VALUE(cycle),2)))*(1/4)))) -> 0.001423684934
B70: 62 | D70: ='1. Strategy Calcs'!V70 -> 0.001173149729 | E70: ='1. Strategy Calcs'!AB70 -> 0.0001336093237 | F70: ='1. Strategy Calcs'!AG70 -> 6.319438474e-05 | G70: ='1. Strategy Calcs'!AM70 -> 0.08519602734 | H70: ='1. Strategy Calcs'!AP70 -> 0.9114012942 | I70: ='1. Strategy Calcs'!AV70 -> 0.002032725053 | J70: ='1. Strategy Calcs'!AJ70 + '1. Strategy Calcs'!AY70 -> 4.991267612 | K70: =J70*'Time Discounting'!D67 -> 4.989514859 | L70: 1249.406352 | M70: ='1. Strategy Calcs'!Z70 + '1. Strategy Calcs'!AE70 + '1. Strategy Calcs'!AK70 + '1. Strategy Calcs'!AT70 + '1. Strategy Calcs'!AZ70 -> 0.9148039727 | N70: =M70*'Time Discounting'!C67 -> 0.9144827264 | O70: 58.05784939 | P70: ='1. Strategy Calcs'!AA70 + '1. Strategy Calcs'!AF70 + '1. Strategy Calcs'!AL70 + '1. Strategy Calcs'!AO70 + '1. Strategy Calcs'!AU70 + '1. Strategy Calcs'!BA70 -> 0.8679541481 | Q70: =P70*'Time Discounting'!E67 -> 0.8676493538 | R70: 55.19320478 | T70: 1 | V70: 0.001173149729 | W70: 0.001051701837 | X70: 0.0001197776957 | Y70: 1.670195593e-06 | Z70: 0.001173149729 | AA70: 0.001173149729 | AB70: =0 + '1. Strategy Calcs'!X69 -> 0.0001336093237 | AC70: 7.694580311e-05 | AD70: 5.666352056e-05 | AE70: 0.0001336093237 | AF70: 0.0001202483913 | AG70: =0 + '1. Strategy Calcs'!AD69 -> 6.319438474e-05 | AH70: 8.949133809e-06 | AI70: 5.424525093e-05 | AJ70: 0.1504924665 | AK70: 6.319438474e-05 | AL70: 1.643054003e-05 | AM70: =0 + '1. Strategy Calcs'!Y69 + '1. Strategy Calcs'!AH69 + AN69 + '1. Strategy Calcs'!AS69 + '1. Strategy Calcs'!AX69 -> 0.08519602734 | AN70: 0.08519602734 | AO70: 0 | AP70: =0 + '1. Strategy Calcs'!AC69 + '1. Strategy Calcs'!AI69 + AQ69 + '1. Strategy Calcs'!AW69 -> 0.9114012942 | AQ70: 0.9090446247 | AR70: 0.002032109066 | AS70: 0.0003245604011 | AT70: 0.9114012942 | AU70: 0.8658312295 | AV70: =0 + '1. Strategy Calcs'!AR69 -> 0.002032725053 | AW70: 0.001934336839 | AX70: 9.838821415e-05 | AY70: 4.840775146 | AZ70: 0.002032725053 | BA70: 0.0008130900214 | BC70: 0.0003561114112 | BD70: =IF((InterpolateTable(tGeneralMortality,VALUE(cycle),2))=1,1,(1-EXP(LN(1-(InterpolateTable(tGeneralMortality,VALUE(cycle),2)))*(1/4)))) -> 0.001423684934
B71: 63 | D71: ='1. Strategy Calcs'!V71 -> 0.001051701837 | E71: ='1. Strategy Calcs'!AB71 -> 0.0001197776957 | F71: ='1. Strategy Calcs'!AG71 -> 5.666352056e-05 | G71: ='1. Strategy Calcs'!AM71 -> 0.08562959529 | H71: ='1. Strategy Calcs'!AP71 -> 0.9111101526 | I71: ='1. Strategy Calcs'!AV71 -> 0.002032109066 | J71: ='1. Strategy Calcs'!AJ71 + '1. Strategy Calcs'!AY71 -> 4.974247947 | K71: =J71*'Time Discounting'!D68 -> 4.972473001 | L71: 1254.378825 | M71: ='1. Strategy Calcs'!Z71 + '1. Strategy Calcs'!AE71 + '1. Strategy Calcs'!AK71 + '1. Strategy Calcs'!AT71 + '1. Strategy Calcs'!AZ71 -> 0.9143704047 | N71: =M71*'Time Discounting'!C68 -> 0.9140441327 | O71: 58.97189353 | P71: ='1. Strategy Calcs'!AA71 + '1. Strategy Calcs'!AF71 + '1. Strategy Calcs'!AL71 + '1. Strategy Calcs'!AO71 + '1. Strategy Calcs'!AU71 + '1. Strategy Calcs'!BA71 -> 0.8675417229 | Q71: =P71*'Time Discounting'!E68 -> 0.8672321606 | R71: 56.06043694 | T71: 1 | V71: 0.001051701837 | W71: 0.000942826587 | X71: 0.0001073779583 | Y71: 1.49729206e-06 | Z71: 0.001051701837 | AA71: 0.001051701837 | AB71: =0 + '1. Strategy Calcs'!X70 -> 0.0001197776957 | AC71: 6.898014851e-05 | AD71: 5.079754717e-05 | AE71: 0.0001197776957 | AF71: 0.0001077999261 | AG71: =0 + '1. Strategy Calcs'!AD70 -> 5.666352056e-05 | AH71: 8.024279841e-06 | AI71: 4.863924072e-05 | AJ71: 0.1349397261 | AK71: 5.666352056e-05 | AL71: 1.473251534e-05 | AM71: =0 + '1. Strategy Calcs'!Y70 + '1. Strategy Calcs'!AH70 + AN70 + '1. Strategy Calcs'!AS70 + '1. Strategy Calcs'!AX70 -> 0.08562959529 | AN71: 0.08562959529 | AO71: 0 | AP71: =0 + '1. Strategy Calcs'!AC70 + '1. Strategy Calcs'!AI70 + AQ70 + '1. Strategy Calcs'!AW70 -> 0.9111101526 | AQ71: 0.9087542359 | AR71: 0.002031459921 | AS71: 0.0003244567222 | AT71: 0.9111101526 | AU71: 0.865554645 | AV71: =0 + '1. Strategy Calcs'!AR70 -> 0.002032109066 | AW71: 0.001933750667 | AX71: 9.835839905e-05 | AY71: 4.83930822 | AZ71: 0.002032109066 | BA71: 0.0008128436265 | BC71: 0.0003561114112 | BD71: =IF((InterpolateTable(tGeneralMortality,VALUE(cycle),2))=1,1,(1-EXP(LN(1-(InterpolateTable(tGeneralMortality,VALUE(cycle),2)))*(1/4)))) -> 0.001423684934
B72: 64 | D72: ='1. Strategy Calcs'!V72 -> 0.000942826587 | E72: ='1. Strategy Calcs'!AB72 -> 0.0001073779583 | F72: ='1. Strategy Calcs'!AG72 -> 5.079754717e-05 | G72: ='1. Strategy Calcs'!AM72 -> 0.08606193198 | H72: ='1. Strategy Calcs'!AP72 -> 0.910805606 | I72: ='1. Strategy Calcs'!AV72 -> 0.002031459921 | J72: ='1. Strategy Calcs'!AJ72 + '1. Strategy Calcs'!AY72 -> 4.958732704 | K72: =J72*'Time Discounting'!D69 -> 4.956935214 | L72: 1259.33576 | M72: ='1. Strategy Calcs'!Z72 + '1. Strategy Calcs'!AE72 + '1. Strategy Calcs'!AK72 + '1. Strategy Calcs'!AT72 + '1. Strategy Calcs'!AZ72 -> 0.913938068 | N72: =M72*'Time Discounting'!C69 -> 0.9136067747 | O72: 59.8855003 | P72: ='1. Strategy Calcs'!AA72 + '1. Strategy Calcs'!AF72 + '1. Strategy Calcs'!AL72 + '1. Strategy Calcs'!AO72 + '1. Strategy Calcs'!AU72 + '1. Strategy Calcs'!BA72 -> 0.8671305838 | Q72: =P72*'Time Discounting'!E69 -> 0.8668162577 | R72: 56.9272532 | T72: =SUM(D72:I72) -> 1 | V72: 0.000942826587 | W72: =V72*(1-(pHealthyToInfected)-(INDEX(pHealthyToDead_1,cycle+1))) -> 0.000845222421 | X72: =V72*(pHealthyToInfected) -> 9.626187797e-05 | Y72: =V72*(INDEX(pHealthyToDead_1,cycle+1)) -> 1.342288007e-06 | Z72: 0.000942826587 | AA72: 0.000942826587 | AB72: =0 + '1. Strategy Calcs'!X71 -> 0.0001073779583 | AC72: =AB72*(1-(pInfectedToDiseased)) -> 6.183912177e-05 | AD72: =AB72*(pInfectedToDiseased) -> 4.553883651e-05 | AE72: 0.0001073779583 | AF72: 9.664016245e-05 | AG72: =0 + '1. Strategy Calcs'!AD71 -> 5.079754717e-05 | AH72: =AG72*(pDiseasedToDead_Node1) -> 7.193582921e-06 | AI72: =AG72*(1-(pDiseasedToDead_Node1)) -> 4.360396425e-05 | AJ72: 0.120970371 | AK72: 5.079754717e-05 | AL72: 1.320736226e-05 | AM72: =0 + '1. Strategy Calcs'!Y71 + '1. Strategy Calcs'!AH71 + AN71 + '1. Strategy Calcs'!AS71 + '1. Strategy Calcs'!AX71 -> 0.08606193198 | AN72: =AM72*(pDeadToDead) -> 0.08606193198 | AO72: 0 | AP72: =0 + '1. Strategy Calcs'!AC71 + '1. Strategy Calcs'!AI71 + AQ71 + '1. Strategy Calcs'!AW71 -> 0.910805606 | AQ72: =AP72*(1-(pHealedToRelapse)-(INDEX(pHealedToDead_1,cycle+1))) -> 0.9084504768 | AR72: =AP72*(pHealedToRelapse) -> 0.002030780888 | AS72: =AP72*(INDEX(pHealedToDead_1,cycle+1)) -> 0.0003243482697 | AT72: 0.910805606 | AU72: 0.8652653257 | AV72: =0 + '1. Strategy Calcs'!AR71 -> 0.002031459921 | AW72: =AV72*(1-(pRelapseToDeath)) -> 0.001933132942 | AX72: =AV72*(pRelapseToDeath) -> 9.832697906e-05 | AY72: 4.837762333 | AZ72: 0.002031459921 | BA72: 0.0008125839685 | BC72: =IF((INDEX(pHealthyToDead_1,cycle+1))=1,1,(1-EXP(LN(1-(INDEX(pHealthyToDead_1,cycle+1)))*(1/4)))) -> 0.0003561114112 | BD72: =IF((InterpolateTable(tGeneralMortality,VALUE(cycle),2))=1,1,(1-EXP(LN(1-(InterpolateTable(tGeneralMortality,VALUE(cycle),2)))*(1/4)))) -> 0.001423684934
B73: 65 | D73: ='1. Strategy Calcs'!V73 -> 0.000845222421 | E73: ='1. Strategy Calcs'!AB73 -> 9.626187797e-05 | F73: ='1. Strategy Calcs'!AG73 -> 4.553883651e-05 | G73: ='1. Strategy Calcs'!AM73 -> 0.0864931431 | H73: ='1. Strategy Calcs'!AP73 -> 0.9104890529 | I73: ='1. Strategy Calcs'!AV73 -> 0.002030780888 | J73: ='1. Strategy Calcs'!AJ73 + '1. Strategy Calcs'!AY73 -> 4.944592433 | K73: =J73*'Time Discounting'!D70 -> 4.942772067 | L73: =L72 + K73 -> 1264.278532 | M73: ='1. Strategy Calcs'!Z73 + '1. Strategy Calcs'!AE73 + '1. Strategy Calcs'!AK73 + '1. Strategy Calcs'!AT73 + '1. Strategy Calcs'!AZ73 -> 0.9135068569 | N73: =M73*'Time Discounting'!C70 -> 0.9131705468 | O73: =O72 + N73 -> 60.79867085 | P73: ='1. Strategy Calcs'!AA73 + '1. Strategy Calcs'!AF73 + '1. Strategy Calcs'!AL73 + '1. Strategy Calcs'!AO73 + '1. Strategy Calcs'!AU73 + '1. Strategy Calcs'!BA73 -> 0.8667206108 | Q73: =P73*'Time Discounting'!E70 -> 0.8664015252 | R73: =R72 + Q73 -> 57.79365472 | T73: 1 | V73: =0 + W72 -> 0.000845222421 | W73: 0.0007577225237 | X73: 8.62965668e-05 | Y73: 1.203330426e-06 | Z73: =V73*(1) -> 0.000845222421 | AA73: =V73*(vQoLHealthy) -> 0.000845222421 | AB73: =0 + '1. Strategy Calcs'!X72 -> 9.626187797e-05 | AC73: 5.543735501e-05 | AD73: 4.082452296e-05 | AE73: =AB73*(1) -> 9.626187797e-05 | AF73: =AB73*(vQoLInfected) -> 8.663569017e-05 | AG73: =0 + '1. Strategy Calcs'!AD72 -> 4.553883651e-05 | AH73: 6.448882177e-06 | AI73: 3.908995433e-05 | AJ73: =AG73*((((((cDrugs+cICUWithoutVentilation)+cICUWithVentilation)+cInpatientCare)+cOutpatientCare)+cPCRTest)) -> 0.1084471643 | AK73: =AG73*(1) -> 4.553883651e-05 | AL73: =AG73*(vQoLDiseased) -> 1.184009749e-05 | AM73: =0 + '1. Strategy Calcs'!Y72 + '1. Strategy Calcs'!AH72 + AN72 + '1. Strategy Calcs'!AS72 + '1. Strategy Calcs'!AX72 -> 0.0864931431 | AN73: 0.0864931431 | AO73: =AM73*(vQoLDead) -> 0 | AP73: =0 + '1. Strategy Calcs'!AC72 + '1. Strategy Calcs'!AI72 + AQ72 + '1. Strategy Calcs'!AW72 -> 0.9104890529 | AQ73: 0.9081347423 | AR73: 0.002030075084 | AS73: 0.0003242355415 | AT73: =AP73*(1) -> 0.9104890529 | AU73: =AP73*(vQoLHealed) -> 0.8649646002 | AV73: =0 + '1. Strategy Calcs'!AR72 -> 0.002030780888 | AW73: 0.001932486776 | AX73: 9.82941124e-05 | AY73: =AV73*((((((cDrugs+cICUWithoutVentilation)+cICUWithVentilation)+cInpatientCare)+cOutpatientCare)+cPCRTest)) -> 4.836145268 | AZ73: =AV73*(1) -> 0.002030780888 | BA73: =AV73*(vQoLRelapse) -> 0.0008123123552 | BC73: 0.0003561114112 | BD73: =IF((InterpolateTable(tGeneralMortality,VALUE(cycle),2))=1,1,(1-EXP(LN(1-(InterpolateTable(tGeneralMortality,VALUE(cycle),2)))*(1/4)))) -> 0.001423684934
B74: 66 | D74: ='1. Strategy Calcs'!V74 -> 0.0007577225237 | E74: ='1. Strategy Calcs'!AB74 -> 8.62965668e-05 | F74: ='1. Strategy Calcs'!AG74 -> 4.082452296e-05 | G74: ='1. Strategy Calcs'!AM74 -> 0.08692332497 | H74: ='1. Strategy Calcs'!AP74 -> 0.9101617563 | I74: ='1. Strategy Calcs'!AV74 -> 0.002030075084 | J74: ='1. Strategy Calcs'!AJ74 + '1. Strategy Calcs'!AY74 -> 4.931684849 | K74: =J74*'Time Discounting'!D71 -> 4.929841308 | L74: 1269.208374 | M74: ='1. Strategy Calcs'!Z74 + '1. Strategy Calcs'!AE74 + '1. Strategy Calcs'!AK74 + '1. Strategy Calcs'!AT74 + '1. Strategy Calcs'!AZ74 -> 0.913076675 | N74: =M74*'Time Discounting'!C71 -> 0.9127353527 | O74: 61.7114062 | P74: ='1. Strategy Calcs'!AA74 + '1. Strategy Calcs'!AF74 + '1. Strategy Calcs'!AL74 + '1. Strategy Calcs'!AO74 + '1. Strategy Calcs'!AU74 + '1. Strategy Calcs'!BA74 -> 0.8663117024 | Q74: =P74*'Time Discounting'!E71 -> 0.8659878616 | R74: 58.65964259 | T74: 1 | V74: 0.0007577225237 | W74: 0.0006792808718 | X74: 7.73628938e-05 | Y74: 1.078758141e-06 | Z74: 0.0007577225237 | AA74: 0.0007577225237 | AB74: =0 + '1. Strategy Calcs'!X73 -> 8.62965668e-05 | AC74: 4.969831787e-05 | AD74: 3.659824893e-05 | AE74: 8.62965668e-05 | AF74: 7.766691012e-05 | AG74: =0 + '1. Strategy Calcs'!AD73 -> 4.082452296e-05 | AH74: 5.781275031e-06 | AI74: 3.504324793e-05 | AJ74: 0.0972203967 | AK74: 4.082452296e-05 | AL74: 1.061437597e-05 | AM74: =0 + '1. Strategy Calcs'!Y73 + '1. Strategy Calcs'!AH73 + AN73 + '1. Strategy Calcs'!AS73 + '1. Strategy Calcs'!AX73 -> 0.08692332497 | AN74: 0.08692332497 | AO74: 0 | AP74: =0 + '1. Strategy Calcs'!AC73 + '1. Strategy Calcs'!AI73 + AQ73 + '1. Strategy Calcs'!AW73 -> 0.9101617563 | AQ74: 0.907808292 | AR74: 0.002029345326 | AS74: 0.0003241189875 | AT74: 0.9101617563 | AU74: 0.8646536685 | AV74: =0 + '1. Strategy Calcs'!AR73 -> 0.002030075084 | AW74: 0.001931815134 | AX74: 9.825995e-05 | AY74: 4.834464452 | AZ74: 0.002030075084 | BA74: 0.0008120300337 | BC74: 0.0003561114112 | BD74: =IF((InterpolateTable(tGeneralMortality,VALUE(cycle),2))=1,1,(1-EXP(LN(1-(InterpolateTable(tGeneralMortality,VALUE(cycle),2)))*(1/4)))) -> 0.001423684934
B75: 67 | D75: ='1. Strategy Calcs'!V75 -> 0.0006792808718 | E75: ='1. Strategy Calcs'!AB75 -> 7.73628938e-05 | F75: ='1. Strategy Calcs'!AG75 -> 3.659824893e-05 | G75: ='1. Strategy Calcs'!AM75 -> 0.08735256394 | H75: ='1. Strategy Calcs'!AP75 -> 0.9098248487 | I75: ='1. Strategy Calcs'!AV75 -> 0.002029345326 | J75: ='1. Strategy Calcs'!AJ75 + '1. Strategy Calcs'!AY75 -> 4.919882448 | K75: =J75*'Time Discounting'!D72 -> 4.918015459 | L75: 1274.126389 | M75: ='1. Strategy Calcs'!Z75 + '1. Strategy Calcs'!AE75 + '1. Strategy Calcs'!AK75 + '1. Strategy Calcs'!AT75 + '1. Strategy Calcs'!AZ75 -> 0.9126474361 | N75: =M75*'Time Discounting'!C72 -> 0.9123011061 | O75: 62.62370731 | P75: ='1. Strategy Calcs'!AA75 + '1. Strategy Calcs'!AF75 + '1. Strategy Calcs'!AL75 + '1. Strategy Calcs'!AO75 + '1. Strategy Calcs'!AU75 + '1. Strategy Calcs'!BA75 -> 0.8659037674 | Q75: =P75*'Time Discounting'!E72 -> 0.8655751757 | R75: 59.52521776 | T75: 1 | V75: 0.0006792808718 | W75: 0.0006089597291 | X75: 6.935406075e-05 | Y75: 9.670819429e-07 | Z75: 0.0006792808718 | AA75: 0.0006792808718 | AB75: =0 + '1. Strategy Calcs'!X74 -> 7.73628938e-05 | AC75: 4.455340264e-05 | AD75: 3.280949116e-05 | AE75: 7.73628938e-05 | AF75: 6.962660442e-05 | AG75: =0 + '1. Strategy Calcs'!AD74 -> 3.659824893e-05 | AH75: 5.18278053e-06 | AI75: 3.14154684e-05 | AJ75: 0.08715585687 | AK75: 3.659824893e-05 | AL75: 9.515544722e-06 | AM75: =0 + '1. Strategy Calcs'!Y74 + '1. Strategy Calcs'!AH74 + AN74 + '1. Strategy Calcs'!AS74 + '1. Strategy Calcs'!AX74 -> 0.08735256394 | AN75: 0.08735256394 | AO75: 0 | AP75: =0 + '1. Strategy Calcs'!AC74 + '1. Strategy Calcs'!AI74 + AQ74 + '1. Strategy Calcs'!AW74 -> 0.9098248487 | AQ75: 0.9074722556 | AR75: 0.002028594139 | AS75: 0.0003239990109 | AT75: 0.9098248487 | AU75: 0.8643336063 | AV75: =0 + '1. Strategy Calcs'!AR74 -> 0.002029345326 | AW75: 0.001931120698 | AX75: 9.822462817e-05 | AY75: 4.832726591 | AZ75: 0.002029345326 | BA75: 0.0008117381305 | BC75: 0.0003561114112 | BD75: =IF((InterpolateTable(tGeneralMortality,VALUE(cycle),2))=1,1,(1-EXP(LN(1-(InterpolateTable(tGeneralMortality,VALUE(cycle),2)))*(1/4)))) -> 0.001423684934
B76: 68 | D76: ='1. Strategy Calcs'!V76 -> 0.0006089597291 | E76: ='1. Strategy Calcs'!AB76 -> 6.935406075e-05 | F76: ='1. Strategy Calcs'!AG76 -> 3.280949116e-05 | G76: ='1. Strategy Calcs'!AM76 -> 0.08778093744 | H76: ='1. Strategy Calcs'!AP76 -> 0.9094793451 | I76: ='1. Strategy Calcs'!AV76 -> 0.002028594139 | J76: ='1. Strategy Calcs'!AJ76 + '1. Strategy Calcs'!AY76 -> 4.909070925 | K76: =J76*'Time Discounting'!D73 -> 4.90718024 | L76: 1279.033569 | M76: ='1. Strategy Calcs'!Z76 + '1. Strategy Calcs'!AE76 + '1. Strategy Calcs'!AK76 + '1. Strategy Calcs'!AT76 + '1. Strategy Calcs'!AZ76 -> 0.9122190626 | N76: =M76*'Time Discounting'!C73 -> 0.9118677295 | O76: 63.53557504 | P76: ='1. Strategy Calcs'!AA76 + '1. Strategy Calcs'!AF76 + '1. Strategy Calcs'!AL76 + '1. Strategy Calcs'!AO76 + '1. Strategy Calcs'!AU76 + '1. Strategy Calcs'!BA76 -> 0.8654967244 | Q76: =P76*'Time Discounting'!E73 -> 0.865163386 | R76: 60.39038115 | T76: 1 | V76: 0.0006089597291 | W76: 0.0005459184368 | X76: 6.217432553e-05 | Y76: 8.669667915e-07 | Z76: 0.0006089597291 | AA76: 0.0006089597291 | AB76: =0 + '1. Strategy Calcs'!X75 -> 6.935406075e-05 | AC76: 3.994110408e-05 | AD76: 2.941295667e-05 | AE76: 6.935406075e-05 | AF76: 6.241865468e-05 | AG76: =0 + '1. Strategy Calcs'!AD75 -> 3.280949116e-05 | AH76: 4.64624393e-06 | AI76: 2.816324722e-05 | AJ76: 0.07813322764 | AK76: 3.280949116e-05 | AL76: 8.5304677e-06 | AM76: =0 + '1. Strategy Calcs'!Y75 + '1. Strategy Calcs'!AH75 + AN75 + '1. Strategy Calcs'!AS75 + '1. Strategy Calcs'!AX75 -> 0.08778093744 | AN76: 0.08778093744 | AO76: 0 | AP76: =0 + '1. Strategy Calcs'!AC75 + '1. Strategy Calcs'!AI75 + AQ75 + '1. Strategy Calcs'!AW75 -> 0.9094793451 | AQ76: 0.9071276454 | AR76: 0.002027823786 | AS76: 0.0003238759731 | AT76: 0.9094793451 | AU76: 0.8640053779 | AV76: =0 + '1. Strategy Calcs'!AR75 -> 0.002028594139 | AW76: 0.00193040587 | AX76: 9.818826911e-05 | AY76: 4.830937698 | AZ76: 0.002028594139 | BA76: 0.0008114376556 | BC76: 0.0003561114112 | BD76: =IF((InterpolateTable(tGeneralMortality,VALUE(cycle),2))=1,1,(1-EXP(LN(1-(InterpolateTable(tGeneralMortality,VALUE(cycle),2)))*(1/4)))) -> 0.001423684934
B77: 69 | D77: ='1. Strategy Calcs'!V77 -> 0.0005459184368 | E77: ='1. Strategy Calcs'!AB77 -> 6.217432553e-05 | F77: ='1. Strategy Calcs'!AG77 -> 2.941295667e-05 | G77: ='1. Strategy Calcs'!AM77 -> 0.08820851489 | H77: ='1. Strategy Calcs'!AP77 -> 0.9091261556 | I77: ='1. Strategy Calcs'!AV77 -> 0.002027823786 | J77: ='1. Strategy Calcs'!AJ77 + '1. Strategy Calcs'!AY77 -> 4.899147809 | K77: =J77*'Time Discounting'!D74 -> 4.897233203 | L77: 1283.930802 | M77: ='1. Strategy Calcs'!Z77 + '1. Strategy Calcs'!AE77 + '1. Strategy Calcs'!AK77 + '1. Strategy Calcs'!AT77 + '1. Strategy Calcs'!AZ77 -> 0.9117914851 | N77: =M77*'Time Discounting'!C74 -> 0.9114351535 | O77: 64.44701019 | P77: ='1. Strategy Calcs'!AA77 + '1. Strategy Calcs'!AF77 + '1. Strategy Calcs'!AL77 + '1. Strategy Calcs'!AO77 + '1. Strategy Calcs'!AU77 + '1. Strategy Calcs'!BA77 -> 0.8650905 | Q77: =P77*'Time Discounting'!E74 -> 0.8647524193 | R77: 61.25513357 | T77: 1 | V77: 0.0005459184368 | W77: 0.0004894033635 | X77: 5.573785749e-05 | Y77: 7.772158534e-07 | Z77: 0.0005459184368 | AA77: 0.0005459184368 | AB77: =0 + '1. Strategy Calcs'!X76 -> 6.217432553e-05 | AC77: 3.580628417e-05 | AD77: 2.636804136e-05 | AE77: 6.217432553e-05 | AF77: 5.595689297e-05 | AG77: =0 + '1. Strategy Calcs'!AD76 -> 2.941295667e-05 | AH77: 4.165251169e-06 | AI77: 2.52477055e-05 | AJ77: 0.07004464738 | AK77: 2.941295667e-05 | AL77: 7.647368733e-06 | AM77: =0 + '1. Strategy Calcs'!Y76 + '1. Strategy Calcs'!AH76 + AN76 + '1. Strategy Calcs'!AS76 + '1. Strategy Calcs'!AX76 -> 0.08820851489 | AN77: 0.08820851489 | AO77: 0 | AP77: =0 + '1. Strategy Calcs'!AC76 + '1. Strategy Calcs'!AI76 + AQ76 + '1. Strategy Calcs'!AW76 -> 0.9091261556 | AQ77: 0.9067753691 | AR77: 0.002027036296 | AS77: 0.0003237501983 | AT77: 0.9091261556 | AU77: 0.8636698478 | AV77: =0 + '1. Strategy Calcs'!AR76 -> 0.002027823786 | AW77: 0.001929672803 | AX77: 9.815098237e-05 | AY77: 4.829103162 | AZ77: 0.002027823786 | BA77: 0.0008111295143 | BC77: 0.0003561114112 | BD77: =IF((InterpolateTable(tGeneralMortality,VALUE(cycle),2))=1,1,(1-EXP(LN(1-(InterpolateTable(tGeneralMortality,VALUE(cycle),2)))*(1/4)))) -> 0.001423684934
B78: 70 | D78: ='1. Strategy Calcs'!V78 -> 0.0004894033635 | E78: ='1. Strategy Calcs'!AB78 -> 5.573785749e-05 | F78: ='1. Strategy Calcs'!AG78 -> 2.636804136e-05 | G78: ='1. Strategy Calcs'!AM78 -> 0.08863535854 | H78: ='1. Strategy Calcs'!AP78 -> 0.9087660959 | I78: ='1. Strategy Calcs'!AV78 -> 0.002027036296 | J78: ='1. Strategy Calcs'!AJ78 + '1. Strategy Calcs'!AY78 -> 4.890021236 | K78: =J78*'Time Discounting'!D75 -> 4.888082506 | L78: 1288.818885 | M78: ='1. Strategy Calcs'!Z78 + '1. Strategy Calcs'!AE78 + '1. Strategy Calcs'!AK78 + '1. Strategy Calcs'!AT78 + '1. Strategy Calcs'!AZ78 -> 0.9113646415 | N78: =M78*'Time Discounting'!C75 -> 0.9110033158 | O78: 65.3580135 | P78: ='1. Strategy Calcs'!AA78 + '1. Strategy Calcs'!AF78 + '1. Strategy Calcs'!AL78 + '1. Strategy Calcs'!AO78 + '1. Strategy Calcs'!AU78 + '1. Strategy Calcs'!BA78 -> 0.8646850288 | Q78: =P78*'Time Discounting'!E75 -> 0.86434221 | R78: 62.11947578 | T78: 1 | V78: 0.0004894033635 | W78: 0.0004387388958 | X78: 4.996771146e-05 | Y78: 6.96756195e-07 | Z78: 0.0004894033635 | AA78: 0.0004894033635 | AB78: =0 + '1. Strategy Calcs'!X77 -> 5.573785749e-05 | AC78: 3.20995129e-05 | AD78: 2.363834459e-05 | AE78: 5.573785749e-05 | AF78: 5.016407174e-05 | AG78: =0 + '1. Strategy Calcs'!AD77 -> 2.636804136e-05 | AH78: 3.734052185e-06 | AI78: 2.263398918e-05 | AJ78: 0.06279342061 | AK78: 2.636804136e-05 | AL78: 6.855690754e-06 | AM78: =0 + '1. Strategy Calcs'!Y77 + '1. Strategy Calcs'!AH77 + AN77 + '1. Strategy Calcs'!AS77 + '1. Strategy Calcs'!AX77 -> 0.08863535854 | AN78: 0.08863535854 | AO78: 0 | AP78: =0 + '1. Strategy Calcs'!AC77 + '1. Strategy Calcs'!AI77 + AQ77 + '1. Strategy Calcs'!AW77 -> 0.9087660959 | AQ78: 0.9064162404 | AR78: 0.002026233487 | AS78: 0.0003236219769 | AT78: 0.9087660959 | AU78: 0.8633277911 | AV78: =0 + '1. Strategy Calcs'!AR77 -> 0.002027036296 | AW78: 0.001928923429 | AX78: 9.811286617e-05 | AY78: 4.827227815 | AZ78: 0.002027036296 | BA78: 0.0008108145182 | BC78: 0.0003561114112 | BD78: =IF((InterpolateTable(tGeneralMortality,VALUE(cycle),2))=1,1,(1-EXP(LN(1-(InterpolateTable(tGeneralMortality,VALUE(cycle),2)))*(1/4)))) -> 0.001423684934
B79: 71 | D79: ='1. Strategy Calcs'!V79 -> 0.0004387388958 | E79: ='1. Strategy Calcs'!AB79 -> 4.996771146e-05 | F79: ='1. Strategy Calcs'!AG79 -> 2.363834459e-05 | G79: ='1. Strategy Calcs'!AM79 -> 0.08906152419 | H79: ='1. Strategy Calcs'!AP79 -> 0.9083998974 | I79: ='1. Strategy Calcs'!AV79 -> 0.002026233487 | J79: ='1. Strategy Calcs'!AJ79 + '1. Strategy Calcs'!AY79 -> 4.881608852 | K79: =J79*'Time Discounting'!D76 -> 4.879645815 | L79: 1293.698531 | M79: ='1. Strategy Calcs'!Z79 + '1. Strategy Calcs'!AE79 + '1. Strategy Calcs'!AK79 + '1. Strategy Calcs'!AT79 + '1. Strategy Calcs'!AZ79 -> 0.9109384758 | N79: =M79*'Time Discounting'!C76 -> 0.9105721608 | O79: 66.26858567 | P79: ='1. Strategy Calcs'!AA79 + '1. Strategy Calcs'!AF79 + '1. Strategy Calcs'!AL79 + '1. Strategy Calcs'!AO79 + '1. Strategy Calcs'!AU79 + '1. Strategy Calcs'!BA79 -> 0.8642802517 | Q79: =P79*'Time Discounting'!E76 -> 0.8639326993 | R79: 62.98340848 | T79: 1 | V79: 0.0004387388958 | W79: 0.000393319362 | X79: 4.479490781e-05 | Y79: 6.246259557e-07 | Z79: 0.0004387388958 | AA79: 0.0004387388958 | AB79: =0 + '1. Strategy Calcs'!X78 -> 4.996771146e-05 | AC79: 2.877647743e-05 | AD79: 2.119123402e-05 | AE79: 4.996771146e-05 | AF79: 4.497094031e-05 | AG79: =0 + '1. Strategy Calcs'!AD78 -> 2.363834459e-05 | AH79: 3.347492181e-06 | AI79: 2.029085241e-05 | AJ79: 0.05629286204 | AK79: 2.363834459e-05 | AL79: 6.145969595e-06 | AM79: =0 + '1. Strategy Calcs'!Y78 + '1. Strategy Calcs'!AH78 + AN78 + '1. Strategy Calcs'!AS78 + '1. Strategy Calcs'!AX78 -> 0.08906152419 | AN79: 0.08906152419 | AO79: 0 | AP79: =0 + '1. Strategy Calcs'!AC78 + '1. Strategy Calcs'!AI78 + AQ78 + '1. Strategy Calcs'!AW78 -> 0.9083998974 | AQ79: 0.9060509888 | AR79: 0.002025416991 | AS79: 0.0003234915694 | AT79: 0.9083998974 | AU79: 0.8629799025 | AV79: =0 + '1. Strategy Calcs'!AR78 -> 0.002026233487 | AW79: 0.001928159479 | AX79: 9.807400854e-05 | AY79: 4.82531599 | AZ79: 0.002026233487 | BA79: 0.0008104933949 | BC79: 0.0003561114112 | BD79: =IF((InterpolateTable(tGeneralMortality,VALUE(cycle),2))=1,1,(1-EXP(LN(1-(InterpolateTable(tGeneralMortality,VALUE(cycle),2)))*(1/4)))) -> 0.001423684934
B80: 72 | D80: ='1. Strategy Calcs'!V80 -> 0.000393319362 | E80: ='1. Strategy Calcs'!AB80 -> 4.479490781e-05 | F80: ='1. Strategy Calcs'!AG80 -> 2.119123402e-05 | G80: ='1. Strategy Calcs'!AM80 -> 0.08948706189 | H80: ='1. Strategy Calcs'!AP80 -> 0.9080282156 | I80: ='1. Strategy Calcs'!AV80 -> 0.002025416991 | J80: ='1. Strategy Calcs'!AJ80 + '1. Strategy Calcs'!AY80 -> 4.87383683 | K80: =J80*'Time Discounting'!D77 -> 4.871849319 | L80: 1298.57038 | M80: ='1. Strategy Calcs'!Z80 + '1. Strategy Calcs'!AE80 + '1. Strategy Calcs'!AK80 + '1. Strategy Calcs'!AT80 + '1. Strategy Calcs'!AZ80 -> 0.9105129381 | N80: =M80*'Time Discounting'!C77 -> 0.9101416383 | O80: 67.1787273 | P80: ='1. Strategy Calcs'!AA80 + '1. Strategy Calcs'!AF80 + '1. Strategy Calcs'!AL80 + '1. Strategy Calcs'!AO80 + '1. Strategy Calcs'!AU80 + '1. Strategy Calcs'!BA80 -> 0.8638761161 | Q80: =P80*'Time Discounting'!E77 -> 0.8635238345 | R80: 63.84693231 | T80: 1 | V80: 0.000393319362 | W80: 0.0003526017912 | X80: 4.015760794e-05 | Y80: 5.599628498e-07 | Z80: 0.000393319362 | AA80: 0.000393319362 | AB80: =0 + '1. Strategy Calcs'!X79 -> 4.479490781e-05 | AC80: 2.579745232e-05 | AD80: 1.899745549e-05 | AE80: 4.479490781e-05 | AF80: 4.031541703e-05 | AG80: =0 + '1. Strategy Calcs'!AD79 -> 2.119123402e-05 | AH80: 3.000949999e-06 | AI80: 1.819028402e-05 | AJ80: 0.05046526031 | AK80: 2.119123402e-05 | AL80: 5.509720846e-06 | AM80: =0 + '1. Strategy Calcs'!Y79 + '1. Strategy Calcs'!AH79 + AN79 + '1. Strategy Calcs'!AS79 + '1. Strategy Calcs'!AX79 -> 0.08948706189 | AN80: 0.08948706189 | AO80: 0 | AP80: =0 + '1. Strategy Calcs'!AC79 + '1. Strategy Calcs'!AI79 + AQ79 + '1. Strategy Calcs'!AW79 -> 0.9080282156 | AQ80: 0.9056802681 | AR80: 0.00202458827 | AS80: 0.0003233592093 | AT80: 0.9080282156 | AU80: 0.8626268048 | AV80: =0 + '1. Strategy Calcs'!AR79 -> 0.002025416991 | AW80: 0.001927382503 | AX80: 9.80344884e-05 | AY80: 4.82337157 | AZ80: 0.002025416991 | BA80: 0.0008101667965 | BC80: 0.0003561114112 | BD80: =IF((InterpolateTable(tGeneralMortality,VALUE(cycle),2))=1,1,(1-EXP(LN(1-(InterpolateTable(tGeneralMortality,VALUE(cycle),2)))*(1/4)))) -> 0.001423684934
B81: 73 | D81: ='1. Strategy Calcs'!V81 -> 0.0003526017912 | E81: ='1. Strategy Calcs'!AB81 -> 4.015760794e-05 | F81: ='1. Strategy Calcs'!AG81 -> 1.899745549e-05 | G81: ='1. Strategy Calcs'!AM81 -> 0.0899120165 | H81: ='1. Strategy Calcs'!AP81 -> 0.9076516384 | I81: ='1. Strategy Calcs'!AV81 -> 0.00202458827 | J81: ='1. Strategy Calcs'!AJ81 + '1. Strategy Calcs'!AY81 -> 4.866638983 | K81: =J81*'Time Discounting'!D78 -> 4.86462685 | L81: 1303.435007 | M81: ='1. Strategy Calcs'!Z81 + '1. Strategy Calcs'!AE81 + '1. Strategy Calcs'!AK81 + '1. Strategy Calcs'!AT81 + '1. Strategy Calcs'!AZ81 -> 0.9100879835 | N81: =M81*'Time Discounting'!C78 -> 0.9097117035 | O81: 68.08843901 | P81: ='1. Strategy Calcs'!AA81 + '1. Strategy Calcs'!AF81 + '1. Strategy Calcs'!AL81 + '1. Strategy Calcs'!AO81 + '1. Strategy Calcs'!AU81 + '1. Strategy Calcs'!BA81 -> 0.8634725747 | Q81: =P81*'Time Discounting'!E78 -> 0.8631155681 | R81: 64.71004788 | T81: 1 | V81: 0.0003526017912 | W81: 0.0003160399981 | X81: 3.60003749e-05 | Y81: 5.61418282e-07 | Z81: 0.0003526017912 | AA81: 0.0003526017912 | AB81: =0 + '1. Strategy Calcs'!X80 -> 4.015760794e-05 | AC81: 2.31268246e-05 | AD81: 1.703078333e-05 | AE81: 4.015760794e-05 | AF81: 3.614184714e-05 | AG81: =0 + '1. Strategy Calcs'!AD80 -> 1.899745549e-05 | AH81: 2.690282878e-06 | AI81: 1.630717262e-05 | AJ81: 0.04524094896 | AK81: 1.899745549e-05 | AL81: 4.939338428e-06 | AM81: =0 + '1. Strategy Calcs'!Y80 + '1. Strategy Calcs'!AH80 + AN80 + '1. Strategy Calcs'!AS80 + '1. Strategy Calcs'!AX80 -> 0.0899120165 | AN81: 0.0899120165 | AO81: 0 | AP81: =0 + '1. Strategy Calcs'!AC80 + '1. Strategy Calcs'!AI80 + AQ80 + '1. Strategy Calcs'!AW80 -> 0.9076516384 | AQ81: 0.9052663794 | AR81: 0.002023748633 | AS81: 0.0003615103319 | AT81: 0.9076516384 | AU81: 0.8622690565 | AV81: =0 + '1. Strategy Calcs'!AR80 -> 0.00202458827 | AW81: 0.001926593893 | AX81: 9.799437652e-05 | AY81: 4.821398034 | AZ81: 0.00202458827 | BA81: 0.0008098353079 | BC81: 0.00039829194 | BD81: =IF((InterpolateTable(tGeneralMortality,VALUE(cycle),2))=1,1,(1-EXP(LN(1-(InterpolateTable(tGeneralMortality,VALUE(cycle),2)))*(1/4)))) -> 0.001592216194
B82: 74 | D82: ='1. Strategy Calcs'!V82 -> 0.0003160399981 | E82: ='1. Strategy Calcs'!AB82 -> 3.60003749e-05 | F82: ='1. Strategy Calcs'!AG82 -> 1.703078333e-05 | G82: ='1. Strategy Calcs'!AM82 -> 0.09037477291 | H82: ='1. Strategy Calcs'!AP82 -> 0.9072324073 | I82: ='1. Strategy Calcs'!AV82 -> 0.002023748633 | J82: ='1. Strategy Calcs'!AJ82 + '1. Strategy Calcs'!AY82 -> 4.859955979 | K82: =J82*'Time Discounting'!D79 -> 4.857919089 | L82: 1308.292926 | M82: ='1. Strategy Calcs'!Z82 + '1. Strategy Calcs'!AE82 + '1. Strategy Calcs'!AK82 + '1. Strategy Calcs'!AT82 + '1. Strategy Calcs'!AZ82 -> 0.9096252271 | N82: =M82*'Time Discounting'!C79 -> 0.9092439876 | O82: 68.99768299 | P82: ='1. Strategy Calcs'!AA82 + '1. Strategy Calcs'!AF82 + '1. Strategy Calcs'!AL82 + '1. Strategy Calcs'!AO82 + '1. Strategy Calcs'!AU82 + '1. Strategy Calcs'!BA82 -> 0.8630331547 | Q82: =P82*'Time Discounting'!E79 -> 0.8626714428 | R82: 65.57271932 | T82: 1 | V82: 0.0003160399981 | W82: 0.0002832693504 | X82: 3.226744361e-05 | Y82: 5.032040028e-07 | Z82: 0.0003160399981 | AA82: 0.0003160399981 | AB82: =0 + '1. Strategy Calcs'!X81 -> 3.60003749e-05 | AC82: 2.073266807e-05 | AD82: 1.526770683e-05 | AE82: 3.60003749e-05 | AF82: 3.240033741e-05 | AG82: =0 + '1. Strategy Calcs'!AD81 -> 1.703078333e-05 | AH82: 2.411776925e-06 | AI82: 1.461900641e-05 | AJ82: 0.0405574736 | AK82: 1.703078333e-05 | AL82: 4.428003667e-06 | AM82: =0 + '1. Strategy Calcs'!Y81 + '1. Strategy Calcs'!AH81 + AN81 + '1. Strategy Calcs'!AS81 + '1. Strategy Calcs'!AX81 -> 0.09037477291 | AN82: 0.09037477291 | AO82: 0 | AP82: =0 + '1. Strategy Calcs'!AC81 + '1. Strategy Calcs'!AI81 + AQ81 + '1. Strategy Calcs'!AW81 -> 0.9072324073 | AQ82: 0.9048482501 | AR82: 0.002022813893 | AS82: 0.0003613433555 | AT82: 0.9072324073 | AU82: 0.8618707869 | AV82: =0 + '1. Strategy Calcs'!AR81 -> 0.002023748633 | AW82: 0.001925794897 | AX82: 9.795373632e-05 | AY82: 4.819398505 | AZ82: 0.002023748633 | BA82: 0.0008094994532 | BC82: 0.00039829194 | BD82: =IF((InterpolateTable(tGeneralMortality,VALUE(cycle),2))=1,1,(1-EXP(LN(1-(InterpolateTable(tGeneralMortality,VALUE(cycle),2)))*(1/4)))) -> 0.001592216194
B83: 75 | D83: ='1. Strategy Calcs'!V83 -> 0.0002832693504 | E83: ='1. Strategy Calcs'!AB83 -> 3.226744361e-05 | F83: ='1. Strategy Calcs'!AG83 -> 1.526770683e-05 | G83: ='1. Strategy Calcs'!AM83 -> 0.09083698498 | H83: ='1. Strategy Calcs'!AP83 -> 0.9068093966 | I83: ='1. Strategy Calcs'!AV83 -> 0.002022813893 | J83: ='1. Strategy Calcs'!AJ83 + '1. Strategy Calcs'!AY83 -> 4.853531341 | K83: =J83*'Time Discounting'!D80 -> 4.85146966 | L83: 1313.144396 | M83: ='1. Strategy Calcs'!Z83 + '1. Strategy Calcs'!AE83 + '1. Strategy Calcs'!AK83 + '1. Strategy Calcs'!AT83 + '1. Strategy Calcs'!AZ83 -> 0.909163015 | N83: =M83*'Time Discounting'!C80 -> 0.9087768211 | O83: 69.90645982 | P83: ='1. Strategy Calcs'!AA83 + '1. Strategy Calcs'!AF83 + '1. Strategy Calcs'!AL83 + '1. Strategy Calcs'!AO83 + '1. Strategy Calcs'!AU83 + '1. Strategy Calcs'!BA83 -> 0.862594332 | Q83: =P83*'Time Discounting'!E80 -> 0.8622279195 | R83: 66.43494724 | T83: 1 | V83: 0.0002832693504 | W83: 0.000253896739 | X83: 2.892158539e-05 | Y83: 4.51026047e-07 | Z83: 0.0002832693504 | AA83: 0.0002832693504 | AB83: =0 + '1. Strategy Calcs'!X82 -> 3.226744361e-05 | AC83: 1.858286753e-05 | AD83: 1.368457608e-05 | AE83: 3.226744361e-05 | AF83: 2.904069925e-05 | AG83: =0 + '1. Strategy Calcs'!AD82 -> 1.526770683e-05 | AH83: 2.162102724e-06 | AI83: 1.310560411e-05 | AJ83: 0.0363588453 | AK83: 1.526770683e-05 | AL83: 3.969603776e-06 | AM83: =0 + '1. Strategy Calcs'!Y82 + '1. Strategy Calcs'!AH82 + AN82 + '1. Strategy Calcs'!AS82 + '1. Strategy Calcs'!AX82 -> 0.09083698498 | AN83: 0.09083698498 | AO83: 0 | AP83: =0 + '1. Strategy Calcs'!AC82 + '1. Strategy Calcs'!AI82 + AQ82 + '1. Strategy Calcs'!AW82 -> 0.9068093966 | AQ83: 0.904426351 | AR83: 0.002021870726 | AS83: 0.0003611748738 | AT83: 0.9068093966 | AU83: 0.8614689268 | AV83: =0 + '1. Strategy Calcs'!AR82 -> 0.002022813893 | AW83: 0.0019249054 | AX83: 9.790849291e-05 | AY83: 4.817172495 | AZ83: 0.002022813893 | BA83: 0.0008091255572 | BC83: 0.00039829194 | BD83: =IF((InterpolateTable(tGeneralMortality,VALUE(cycle),2))=1,1,(1-EXP(LN(1-(InterpolateTable(tGeneralMortality,VALUE(cycle),2)))*(1/4)))) -> 0.001592216194
B84: 76 | D84: ='1. Strategy Calcs'!V84 -> 0.000253896739 | E84: ='1. Strategy Calcs'!AB84 -> 2.892158539e-05 | F84: ='1. Strategy Calcs'!AG84 -> 1.368457608e-05 | G84: ='1. Strategy Calcs'!AM84 -> 0.09129868148 | H84: ='1. Strategy Calcs'!AP84 -> 0.9063829449 | I84: ='1. Strategy Calcs'!AV84 -> 0.002021870726 | J84: ='1. Strategy Calcs'!AJ84 + '1. Strategy Calcs'!AY84 -> 4.84751516 | K84: =J84*'Time Discounting'!D81 -> 4.845428586 | L84: 1317.989824 | M84: ='1. Strategy Calcs'!Z84 + '1. Strategy Calcs'!AE84 + '1. Strategy Calcs'!AK84 + '1. Strategy Calcs'!AT84 + '1. Strategy Calcs'!AZ84 -> 0.9087013185 | N84: =M84*'Time Discounting'!C81 -> 0.9083101752 | O84: 70.81476999 | P84: ='1. Strategy Calcs'!AA84 + '1. Strategy Calcs'!AF84 + '1. Strategy Calcs'!AL84 + '1. Strategy Calcs'!AO84 + '1. Strategy Calcs'!AU84 + '1. Strategy Calcs'!BA84 -> 0.8621560301 | Q84: =P84*'Time Discounting'!E81 -> 0.8617849218 | R84: 67.29673216 | T84: 1 | V84: 0.000253896739 | W84: 0.0002275698164 | X84: 2.592266409e-05 | Y84: 4.042584994e-07 | Z84: 0.000253896739 | AA84: 0.000253896739 | AB84: =0 + '1. Strategy Calcs'!X83 -> 2.892158539e-05 | AC84: 1.665598294e-05 | AD84: 1.226560246e-05 | AE84: 2.892158539e-05 | AF84: 2.602942685e-05 | AG84: =0 + '1. Strategy Calcs'!AD83 -> 1.368457608e-05 | AH84: 1.937911144e-06 | AI84: 1.174666493e-05 | AJ84: 0.03258874369 | AK84: 1.368457608e-05 | AL84: 3.55798978e-06 | AM84: =0 + '1. Strategy Calcs'!Y83 + '1. Strategy Calcs'!AH83 + AN83 + '1. Strategy Calcs'!AS83 + '1. Strategy Calcs'!AX83 -> 0.09129868148 | AN84: 0.09129868148 | AO84: 0 | AP84: =0 + '1. Strategy Calcs'!AC83 + '1. Strategy Calcs'!AI83 + AQ83 + '1. Strategy Calcs'!AW83 -> 0.9063829449 | AQ84: 0.90400102 | AR84: 0.002020919886 | AS84: 0.0003610050215 | AT84: 0.9063829449 | AU84: 0.8610637977 | AV84: =0 + '1. Strategy Calcs'!AR83 -> 0.002021870726 | AW84: 0.001924007884 | AX84: 9.786284161e-05 | AY84: 4.814926417 | AZ84: 0.002021870726 | BA84: 0.0008087482903 | BC84: 0.00039829194 | BD84: =IF((InterpolateTable(tGeneralMortality,VALUE(cycle),2))=1,1,(1-EXP(LN(1-(InterpolateTable(tGeneralMortality,VALUE(cycle),2)))*(1/4)))) -> 0.001592216194
B85: 77 | D85: ='1. Strategy Calcs'!V85 -> 0.0002275698164 | E85: ='1. Strategy Calcs'!AB85 -> 2.592266409e-05 | F85: ='1. Strategy Calcs'!AG85 -> 1.226560246e-05 | G85: ='1. Strategy Calcs'!AM85 -> 0.09175989151 | H85: ='1. Strategy Calcs'!AP85 -> 0.9059534305 | I85: ='1. Strategy Calcs'!AV85 -> 0.002020919886 | J85: ='1. Strategy Calcs'!AJ85 + '1. Strategy Calcs'!AY85 -> 4.841871636 | K85: =J85*'Time Discounting'!D82 -> 4.839760074 | L85: 1322.829584 | M85: ='1. Strategy Calcs'!Z85 + '1. Strategy Calcs'!AE85 + '1. Strategy Calcs'!AK85 + '1. Strategy Calcs'!AT85 + '1. Strategy Calcs'!AZ85 -> 0.9082401085 | N85: =M85*'Time Discounting'!C82 -> 0.9078440208 | O85: 71.72261401 | P85: ='1. Strategy Calcs'!AA85 + '1. Strategy Calcs'!AF85 + '1. Strategy Calcs'!AL85 + '1. Strategy Calcs'!AO85 + '1. Strategy Calcs'!AU85 + '1. Strategy Calcs'!BA85 -> 0.8617182162 | Q85: =P85*'Time Discounting'!E82 -> 0.861342417 | R85: 68.15807458 | T85: 1 | V85: 0.0002275698164 | W85: 0.0002039727708 | X85: 2.32347053e-05 | Y85: 3.623403469e-07 | Z85: 0.0002275698164 | AA85: 0.0002275698164 | AB85: =0 + '1. Strategy Calcs'!X84 -> 2.592266409e-05 | AC85: 1.492889981e-05 | AD85: 1.099376428e-05 | AE85: 2.592266409e-05 | AF85: 2.333039768e-05 | AG85: =0 + '1. Strategy Calcs'!AD84 -> 1.226560246e-05 | AH85: 1.736966315e-06 | AI85: 1.052863614e-05 | AJ85: 0.0292095694 | AK85: 1.226560246e-05 | AL85: 3.189056639e-06 | AM85: =0 + '1. Strategy Calcs'!Y84 + '1. Strategy Calcs'!AH84 + AN84 + '1. Strategy Calcs'!AS84 + '1. Strategy Calcs'!AX84 -> 0.09175989151 | AN85: 0.09175989151 | AO85: 0 | AP85: =0 + '1. Strategy Calcs'!AC84 + '1. Strategy Calcs'!AI84 + AQ84 + '1. Strategy Calcs'!AW84 -> 0.9059534305 | AQ85: 0.9035726344 | AR85: 0.002019962218 | AS85: 0.0003608339494 | AT85: 0.9059534305 | AU85: 0.860655759 | AV85: =0 + '1. Strategy Calcs'!AR84 -> 0.002020919886 | AW85: 0.001923103067 | AX85: 9.781681896e-05 | AY85: 4.812662067 | AZ85: 0.002020919886 | BA85: 0.0008083679545 | BC85: 0.00039829194 | BD85: =IF((InterpolateTable(tGeneralMortality,VALUE(cycle),2))=1,1,(1-EXP(LN(1-(InterpolateTable(tGeneralMortality,VALUE(cycle),2)))*(1/4)))) -> 0.001592216194
B86: 78 | D86: ='1. Strategy Calcs'!V86 -> 0.0002039727708 | E86: ='1. Strategy Calcs'!AB86 -> 2.32347053e-05 | F86: ='1. Strategy Calcs'!AG86 -> 1.099376428e-05 | G86: ='1. Strategy Calcs'!AM86 -> 0.09222064158 | H86: ='1. Strategy Calcs'!AP86 -> 0.905521195 | I86: ='1. Strategy Calcs'!AV86 -> 0.002019962218 | J86: ='1. Strategy Calcs'!AJ86 + '1. Strategy Calcs'!AY86 -> 4.836562242 | K86: =J86*'Time Discounting'!D83 -> 4.834425608 | L86: 1327.66401 | M86: ='1. Strategy Calcs'!Z86 + '1. Strategy Calcs'!AE86 + '1. Strategy Calcs'!AK86 + '1. Strategy Calcs'!AT86 + '1. Strategy Calcs'!AZ86 -> 0.9077793584 | N86: =M86*'Time Discounting'!C83 -> 0.9073783314 | O86: 72.62999234 | P86: ='1. Strategy Calcs'!AA86 + '1. Strategy Calcs'!AF86 + '1. Strategy Calcs'!AL86 + '1. Strategy Calcs'!AO86 + '1. Strategy Calcs'!AU86 + '1. Strategy Calcs'!BA86 -> 0.8612808625 | Q86: =P86*'Time Discounting'!E83 -> 0.860900377 | R86: 69.01897496 | T86: 1 | V86: 0.0002039727708 | W86: 0.0001828225372 | X86: 2.082546487e-05 | Y86: 3.247687487e-07 | Z86: 0.0002039727708 | AA86: 0.0002039727708 | AB86: =0 + '1. Strategy Calcs'!X85 -> 2.32347053e-05 | AC86: 1.338090045e-05 | AD86: 9.85380485e-06 | AE86: 2.32347053e-05 | AF86: 2.091123477e-05 | AG86: =0 + '1. Strategy Calcs'!AD85 -> 1.099376428e-05 | AH86: 1.556857749e-06 | AI86: 9.436906527e-06 | AJ86: 0.02618078661 | AK86: 1.099376428e-05 | AL86: 2.858378712e-06 | AM86: =0 + '1. Strategy Calcs'!Y85 + '1. Strategy Calcs'!AH85 + AN85 + '1. Strategy Calcs'!AS85 + '1. Strategy Calcs'!AX85 -> 0.09222064158 | AN86: 0.09222064158 | AO86: 0 | AP86: =0 + '1. Strategy Calcs'!AC85 + '1. Strategy Calcs'!AI85 + AQ85 + '1. Strategy Calcs'!AW85 -> 0.905521195 | AQ86: 0.9031415347 | AR86: 0.002018998482 | AS86: 0.0003606617934 | AT86: 0.905521195 | AU86: 0.8602451352 | AV86: =0 + '1. Strategy Calcs'!AR85 -> 0.002019962218 | AW86: 0.001922191752 | AX86: 9.777046578e-05 | AY86: 4.810381455 | AZ86: 0.002019962218 | BA86: 0.0008079848872 | BC86: 0.00039829194 | BD86: =IF((InterpolateTable(tGeneralMortality,VALUE(cycle),2))=1,1,(1-EXP(LN(1-(InterpolateTable(tGeneralMortality,VALUE(cycle),2)))*(1/4)))) -> 0.001592216194
B87: 79 | D87: ='1. Strategy Calcs'!V87 -> 0.0001828225372 | E87: ='1. Strategy Calcs'!AB87 -> 2.082546487e-05 | F87: ='1. Strategy Calcs'!AG87 -> 9.85380485e-06 | G87: ='1. Strategy Calcs'!AM87 -> 0.09268095547 | H87: ='1. Strategy Calcs'!AP87 -> 0.9050865442 | I87: ='1. Strategy Calcs'!AV87 -> 0.002018998482 | J87: ='1. Strategy Calcs'!AJ87 + '1. Strategy Calcs'!AY87 -> 4.831552457 | K87: =J87*'Time Discounting'!D84 -> 4.829390679 | L87: 1332.493401 | M87: ='1. Strategy Calcs'!Z87 + '1. Strategy Calcs'!AE87 + '1. Strategy Calcs'!AK87 + '1. Strategy Calcs'!AT87 + '1. Strategy Calcs'!AZ87 -> 0.9073190445 | N87: =M87*'Time Discounting'!C84 -> 0.9069130833 | O87: 73.53690543 | P87: ='1. Strategy Calcs'!AA87 + '1. Strategy Calcs'!AF87 + '1. Strategy Calcs'!AL87 + '1. Strategy Calcs'!AO87 + '1. Strategy Calcs'!AU87 + '1. Strategy Calcs'!BA87 -> 0.8608439439 | Q87: =P87*'Time Discounting'!E84 -> 0.8604587769 | R87: 69.87943373 | T87: 1 | V87: 0.0001828225372 | W87: 0.0001638654021 | X87: 1.86660421e-05 | Y87: 2.910930042e-07 | Z87: 0.0001828225372 | AA87: 0.0001828225372 | AB87: =0 + '1. Strategy Calcs'!X86 -> 2.082546487e-05 | AC87: 1.19934154e-05 | AD87: 8.832049476e-06 | AE87: 2.082546487e-05 | AF87: 1.874291839e-05 | AG87: =0 + '1. Strategy Calcs'!AD86 -> 9.85380485e-06 | AH87: 1.395424902e-06 | AI87: 8.458379948e-06 | AJ87: 0.02346606273 | AK87: 9.85380485e-06 | AL87: 2.561989261e-06 | AM87: =0 + '1. Strategy Calcs'!Y86 + '1. Strategy Calcs'!AH86 + AN86 + '1. Strategy Calcs'!AS86 + '1. Strategy Calcs'!AX86 -> 0.09268095547 | AN87: 0.09268095547 | AO87: 0 | AP87: =0 + '1. Strategy Calcs'!AC86 + '1. Strategy Calcs'!AI86 + AQ86 + '1. Strategy Calcs'!AW86 -> 0.9050865442 | AQ87: 0.9027080262 | AR87: 0.002018029362 | AS87: 0.0003604886755 | AT87: 0.9050865442 | AU87: 0.859832217 | AV87: =0 + '1. Strategy Calcs'!AR86 -> 0.002018998482 | AW87: 0.001921274664 | AX87: 9.772381893e-05 | AY87: 4.808086395 | AZ87: 0.002018998482 | BA87: 0.000807599393 | BC87: 0.00039829194 | BD87: =IF((InterpolateTable(tGeneralMortality,VALUE(cycle),2))=1,1,(1-EXP(LN(1-(InterpolateTable(tGeneralMortality,VALUE(cycle),2)))*(1/4)))) -> 0.001592216194
B88: 80 | D88: ='1. Strategy Calcs'!V88 -> 0.0001638654021 | E88: ='1. Strategy Calcs'!AB88 -> 1.86660421e-05 | F88: ='1. Strategy Calcs'!AG88 -> 8.832049476e-06 | G88: ='1. Strategy Calcs'!AM88 -> 0.09314085448 | H88: ='1. Strategy Calcs'!AP88 -> 0.9046497527 | I88: ='1. Strategy Calcs'!AV88 -> 0.002018029362 | J88: ='1. Strategy Calcs'!AJ88 + '1. Strategy Calcs'!AY88 -> 4.826811343 | K88: =J88*'Time Discounting'!D85 -> 4.824624354 | L88: 1337.318025 | M88: ='1. Strategy Calcs'!Z88 + '1. Strategy Calcs'!AE88 + '1. Strategy Calcs'!AK88 + '1. Strategy Calcs'!AT88 + '1. Strategy Calcs'!AZ88 -> 0.9068591455 | N88: =M88*'Time Discounting'!C85 -> 0.9064482551 | O88: 74.44335368 | P88: ='1. Strategy Calcs'!AA88 + '1. Strategy Calcs'!AF88 + '1. Strategy Calcs'!AL88 + '1. Strategy Calcs'!AO88 + '1. Strategy Calcs'!AU88 + '1. Strategy Calcs'!BA88 -> 0.8604074379 | Q88: =P88*'Time Discounting'!E85 -> 0.8600175944 | R88: 70.73945133 | T88: 1 | V88: 0.0001638654021 | W88: 0.0001468739599 | X88: 1.673053301e-05 | Y88: 2.609091467e-07 | Z88: 0.0001638654021 | AA88: 0.0001638654021 | AB88: =0 + '1. Strategy Calcs'!X87 -> 1.86660421e-05 | AC88: 1.074980069e-05 | AD88: 7.916241405e-06 | AE88: 1.86660421e-05 | AF88: 1.679943789e-05 | AG88: =0 + '1. Strategy Calcs'!AD87 -> 8.832049476e-06 | AH88: 1.250731262e-06 | AI88: 7.581318214e-06 | AJ88: 0.02103283251 | AK88: 8.832049476e-06 | AL88: 2.296332864e-06 | AM88: =0 + '1. Strategy Calcs'!Y87 + '1. Strategy Calcs'!AH87 + AN87 + '1. Strategy Calcs'!AS87 + '1. Strategy Calcs'!AX87 -> 0.09314085448 | AN88: 0.09314085448 | AO88: 0 | AP88: =0 + '1. Strategy Calcs'!AC87 + '1. Strategy Calcs'!AI87 + AQ87 + '1. Strategy Calcs'!AW87 -> 0.9046497527 | AQ88: 0.9022723825 | AR88: 0.002017055468 | AS88: 0.000360314705 | AT88: 0.9046497527 | AU88: 0.859417265 | AV88: =0 + '1. Strategy Calcs'!AR87 -> 0.002018029362 | AW88: 0.001920352451 | AX88: 9.767691144e-05 | AY88: 4.80577851 | AZ88: 0.002018029362 | BA88: 0.0008072117448 | BC88: 0.00039829194 | BD88: =IF((InterpolateTable(tGeneralMortality,VALUE(cycle),2))=1,1,(1-EXP(LN(1-(InterpolateTable(tGeneralMortality,VALUE(cycle),2)))*(1/4)))) -> 0.001592216194
B89: 81 | D89: ='1. Strategy Calcs'!V89 -> 0.0001468739599 | E89: ='1. Strategy Calcs'!AB89 -> 1.673053301e-05 | F89: ='1. Strategy Calcs'!AG89 -> 7.916241405e-06 | G89: ='1. Strategy Calcs'!AM89 -> 0.09360035774 | H89: ='1. Strategy Calcs'!AP89 -> 0.9042110661 | I89: ='1. Strategy Calcs'!AV89 -> 0.002017055468 | J89: ='1. Strategy Calcs'!AJ89 + '1. Strategy Calcs'!AY89 -> 4.822311166 | K89: =J89*'Time Discounting'!D86 -> 4.820098911 | L89: 1342.138124 | M89: ='1. Strategy Calcs'!Z89 + '1. Strategy Calcs'!AE89 + '1. Strategy Calcs'!AK89 + '1. Strategy Calcs'!AT89 + '1. Strategy Calcs'!AZ89 -> 0.9063996423 | N89: =M89*'Time Discounting'!C86 -> 0.9059838276 | O89: 75.34933751 | P89: ='1. Strategy Calcs'!AA89 + '1. Strategy Calcs'!AF89 + '1. Strategy Calcs'!AL89 + '1. Strategy Calcs'!AO89 + '1. Strategy Calcs'!AU89 + '1. Strategy Calcs'!BA89 -> 0.8599713246 | Q89: =P89*'Time Discounting'!E86 -> 0.8595768092 | R89: 71.59902814 | T89: 1 | V89: 0.0001468739599 | W89: 0.0001316443851 | X89: 1.499571968e-05 | Y89: 2.338550974e-07 | Z89: 0.0001468739599 | AA89: 0.0001468739599 | AB89: =0 + '1. Strategy Calcs'!X88 -> 1.673053301e-05 | AC89: 9.635138204e-06 | AD89: 7.095394806e-06 | AE89: 1.673053301e-05 | AF89: 1.505747971e-05 | AG89: =0 + '1. Strategy Calcs'!AD88 -> 7.916241405e-06 | AH89: 1.121041116e-06 | AI89: 6.795200289e-06 | AJ89: 0.01885190748 | AK89: 7.916241405e-06 | AL89: 2.058222765e-06 | AM89: =0 + '1. Strategy Calcs'!Y88 + '1. Strategy Calcs'!AH88 + AN88 + '1. Strategy Calcs'!AS88 + '1. Strategy Calcs'!AX88 -> 0.09360035774 | AN89: 0.09360035774 | AO89: 0 | AP89: =0 + '1. Strategy Calcs'!AC88 + '1. Strategy Calcs'!AI88 + AQ88 + '1. Strategy Calcs'!AW88 -> 0.9042110661 | AQ89: 0.9018348487 | AR89: 0.002016077349 | AS89: 0.0003601399796 | AT89: 0.9042110661 | AU89: 0.8590005128 | AV89: =0 + '1. Strategy Calcs'!AR88 -> 0.002017055468 | AW89: 0.001919425695 | AX89: 9.762977291e-05 | AY89: 4.803459259 | AZ89: 0.002017055468 | BA89: 0.0008068221873 | BC89: 0.00039829194 | BD89: =IF((InterpolateTable(tGeneralMortality,VALUE(cycle),2))=1,1,(1-EXP(LN(1-(InterpolateTable(tGeneralMortality,VALUE(cycle),2)))*(1/4)))) -> 0.001592216194
B90: 82 | D90: ='1. Strategy Calcs'!V90 -> 0.0001316443851 | E90: ='1. Strategy Calcs'!AB90 -> 1.499571968e-05 | F90: ='1. Strategy Calcs'!AG90 -> 7.095394806e-06 | G90: ='1. Strategy Calcs'!AM90 -> 0.09405948239 | H90: ='1. Strategy Calcs'!AP90 -> 0.9037707048 | I90: ='1. Strategy Calcs'!AV90 -> 0.002016077349 | J90: ='1. Strategy Calcs'!AJ90 + '1. Strategy Calcs'!AY90 -> 4.81802707 | K90: =J90*'Time Discounting'!D87 -> 4.815789499 | L90: 1346.953913 | M90: ='1. Strategy Calcs'!Z90 + '1. Strategy Calcs'!AE90 + '1. Strategy Calcs'!AK90 + '1. Strategy Calcs'!AT90 + '1. Strategy Calcs'!AZ90 -> 0.9059405176 | N90: =M90*'Time Discounting'!C87 -> 0.9055197839 | O90: 76.25485729 | P90: ='1. Strategy Calcs'!AA90 + '1. Strategy Calcs'!AF90 + '1. Strategy Calcs'!AL90 + '1. Strategy Calcs'!AO90 + '1. Strategy Calcs'!AU90 + '1. Strategy Calcs'!BA90 -> 0.8595355858 | Q90: =P90*'Time Discounting'!E87 -> 0.8591364033 | R90: 72.45816454 | T90: 1 | V90: 0.0001316443851 | W90: 0.0001179939871 | X90: 1.344079167e-05 | Y90: 2.096063218e-07 | Z90: 0.0001316443851 | AA90: 0.0001316443851 | AB90: =0 + '1. Strategy Calcs'!X89 -> 1.499571968e-05 | AC90: 8.636056693e-06 | AD90: 6.359662986e-06 | AE90: 1.499571968e-05 | AF90: 1.349614771e-05 | AG90: =0 + '1. Strategy Calcs'!AD89 -> 7.095394806e-06 | AH90: 1.00479873e-06 | AI90: 6.090596076e-06 | AJ90: 0.01689712574 | AK90: 7.095394806e-06 | AL90: 1.84480265e-06 | AM90: =0 + '1. Strategy Calcs'!Y89 + '1. Strategy Calcs'!AH89 + AN89 + '1. Strategy Calcs'!AS89 + '1. Strategy Calcs'!AX89 -> 0.09405948239 | AN90: 0.09405948239 | AO90: 0 | AP90: =0 + '1. Strategy Calcs'!AC89 + '1. Strategy Calcs'!AI89 + AQ89 + '1. Strategy Calcs'!AW89 -> 0.9037707048 | AQ90: 0.9013956447 | AR90: 0.002015095496 | AS90: 0.0003599645873 | AT90: 0.9037707048 | AU90: 0.8585821695 | AV90: =0 + '1. Strategy Calcs'!AR89 -> 0.002016077349 | AW90: 0.001918494919 | AX90: 9.758242986e-05 | AY90: 4.801129945 | AZ90: 0.002016077349 | BA90: 0.0008064309396 | BC90: 0.00039829194 | BD90: =IF((InterpolateTable(tGeneralMortality,VALUE(cycle),2))=1,1,(1-EXP(LN(1-(InterpolateTable(tGeneralMortality,VALUE(cycle),2)))*(1/4)))) -> 0.001592216194
B91: 83 | D91: ='1. Strategy Calcs'!V91 -> 0.0001179939871 | E91: ='1. Strategy Calcs'!AB91 -> 1.344079167e-05 | F91: ='1. Strategy Calcs'!AG91 -> 6.359662986e-06 | G91: ='1. Strategy Calcs'!AM91 -> 0.09451824381 | H91: ='1. Strategy Calcs'!AP91 -> 0.9033288663 | I91: ='1. Strategy Calcs'!AV91 -> 0.002015095496 | J91: ='1. Strategy Calcs'!AJ91 + '1. Strategy Calcs'!AY91 -> 4.813936777 | K91: =J91*'Time Discounting'!D88 -> 4.811673847 | L91: 1351.765587 | M91: ='1. Strategy Calcs'!Z91 + '1. Strategy Calcs'!AE91 + '1. Strategy Calcs'!AK91 + '1. Strategy Calcs'!AT91 + '1. Strategy Calcs'!AZ91 -> 0.9054817562 | N91: =M91*'Time Discounting'!C88 -> 0.9050561084 | O91: 77.1599134 | P91: ='1. Strategy Calcs'!AA91 + '1. Strategy Calcs'!AF91 + '1. Strategy Calcs'!AL91 + '1. Strategy Calcs'!AO91 + '1. Strategy Calcs'!AU91 + '1. Strategy Calcs'!BA91 -> 0.8591002054 | Q91: =P91*'Time Discounting'!E88 -> 0.8586963606 | R91: 73.3168609 | T91: 1 | V91: 0.0001179939871 | W91: 0.0001057590188 | X91: 1.204709641e-05 | Y91: 1.878719371e-07 | Z91: 0.0001179939871 | AA91: 0.0001179939871 | AB91: =0 + '1. Strategy Calcs'!X90 -> 1.344079167e-05 | AC91: 7.740571399e-06 | AD91: 5.70022027e-06 | AE91: 1.344079167e-05 | AF91: 1.20967125e-05 | AG91: =0 + '1. Strategy Calcs'!AD90 -> 6.359662986e-06 | AH91: 9.006096867e-07 | AI91: 5.4590533e-06 | AJ91: 0.01514503817 | AK91: 6.359662986e-06 | AL91: 1.653512376e-06 | AM91: =0 + '1. Strategy Calcs'!Y90 + '1. Strategy Calcs'!AH90 + AN90 + '1. Strategy Calcs'!AS90 + '1. Strategy Calcs'!AX90 -> 0.09451824381 | AN91: 0.09451824381 | AO91: 0 | AP91: =0 + '1. Strategy Calcs'!AC90 + '1. Strategy Calcs'!AI90 + AQ90 + '1. Strategy Calcs'!AW90 -> 0.9033288663 | AQ91: 0.9009549673 | AR91: 0.002014110349 | AS91: 0.0003597886066 | AT91: 0.9033288663 | AU91: 0.8581624229 | AV91: =0 + '1. Strategy Calcs'!AR90 -> 0.002015095496 | AW91: 0.00191756059 | AX91: 9.753490608e-05 | AY91: 4.798791739 | AZ91: 0.002015095496 | BA91: 0.0008060381984 | BC91: 0.00039829194 | BD91: =IF((InterpolateTable(tGeneralMortality,VALUE(cycle),2))=1,1,(1-EXP(LN(1-(InterpolateTable(tGeneralMortality,VALUE(cycle),2)))*(1/4)))) -> 0.001592216194
B92: 84 | D92: ='1. Strategy Calcs'!V92 -> 0.0001057590188 | E92: ='1. Strategy Calcs'!AB92 -> 1.204709641e-05 | F92: ='1. Strategy Calcs'!AG92 -> 5.70022027e-06 | G92: ='1. Strategy Calcs'!AM92 -> 0.0949766558 | H92: ='1. Strategy Calcs'!AP92 -> 0.9028857275 | I92: ='1. Strategy Calcs'!AV92 -> 0.002014110349 | J92: ='1. Strategy Calcs'!AJ92 + '1. Strategy Calcs'!AY92 -> 4.810020316 | K92: =J92*'Time Discounting'!D89 -> 4.807731992 | L92: 1356.573319 | M92: ='1. Strategy Calcs'!Z92 + '1. Strategy Calcs'!AE92 + '1. Strategy Calcs'!AK92 + '1. Strategy Calcs'!AT92 + '1. Strategy Calcs'!AZ92 -> 0.9050233442 | N92: =M92*'Time Discounting'!C89 -> 0.9045927875 | O92: 78.06450619 | P92: ='1. Strategy Calcs'!AA92 + '1. Strategy Calcs'!AF92 + '1. Strategy Calcs'!AL92 + '1. Strategy Calcs'!AO92 + '1. Strategy Calcs'!AU92 + '1. Strategy Calcs'!BA92 -> 0.8586651687 | Q92: =P92*'Time Discounting'!E89 -> 0.8582566665 | R92: 74.17511757 | T92: 1 | V92: 0.0001057590188 | W92: 9.479271212e-05 | X92: 1.079791544e-05 | Y92: 1.683912223e-07 | Z92: 0.0001057590188 | AA92: 0.0001057590188 | AB92: =0 + '1. Strategy Calcs'!X91 -> 1.204709641e-05 | AC92: 6.937940279e-06 | AD92: 5.10915613e-06 | AE92: 1.204709641e-05 | AF92: 1.084238677e-05 | AG92: =0 + '1. Strategy Calcs'!AD91 -> 5.70022027e-06 | AH92: 8.072241568e-07 | AI92: 4.892996114e-06 | AJ92: 0.01357462711 | AK92: 5.70022027e-06 | AL92: 1.48205727e-06 | AM92: =0 + '1. Strategy Calcs'!Y91 + '1. Strategy Calcs'!AH91 + AN91 + '1. Strategy Calcs'!AS91 + '1. Strategy Calcs'!AX91 -> 0.0949766558 | AN92: 0.0949766558 | AO92: 0 | AP92: =0 + '1. Strategy Calcs'!AC91 + '1. Strategy Calcs'!AI91 + AQ91 + '1. Strategy Calcs'!AW91 -> 0.9028857275 | AQ92: 0.9005129931 | AR92: 0.002013122303 | AS92: 0.000359612108 | AT92: 0.9028857275 | AU92: 0.8577414411 | AV92: =0 + '1. Strategy Calcs'!AR91 -> 0.002014110349 | AW92: 0.001916623126 | AX92: 9.748722289e-05 | AY92: 4.796445689 | AZ92: 0.002014110349 | BA92: 0.0008056441397 | BC92: 0.00039829194 | BD92: =IF((InterpolateTable(tGeneralMortality,VALUE(cycle),2))=1,1,(1-EXP(LN(1-(InterpolateTable(tGeneralMortality,VALUE(cycle),2)))*(1/4)))) -> 0.001592216194
B93: 85 | D93: ='1. Strategy Calcs'!V93 -> 9.479271212e-05 | E93: ='1. Strategy Calcs'!AB93 -> 1.079791544e-05 | F93: ='1. Strategy Calcs'!AG93 -> 5.10915613e-06 | G93: ='1. Strategy Calcs'!AM93 -> 0.09543473075 | H93: ='1. Strategy Calcs'!AP93 -> 0.9024414472 | I93: ='1. Strategy Calcs'!AV93 -> 0.002013122303 | J93: ='1. Strategy Calcs'!AJ93 + '1. Strategy Calcs'!AY93 -> 4.80625979 | K93: =J93*'Time Discounting'!D90 -> 4.80394604 | L93: 1361.377265 | M93: ='1. Strategy Calcs'!Z93 + '1. Strategy Calcs'!AE93 + '1. Strategy Calcs'!AK93 + '1. Strategy Calcs'!AT93 + '1. Strategy Calcs'!AZ93 -> 0.9045652693 | N93: =M93*'Time Discounting'!C90 -> 0.9041298086 | O93: 78.968636 | P93: ='1. Strategy Calcs'!AA93 + '1. Strategy Calcs'!AF93 + '1. Strategy Calcs'!AL93 + '1. Strategy Calcs'!AO93 + '1. Strategy Calcs'!AU93 + '1. Strategy Calcs'!BA93 -> 0.8582304629 | Q93: =P93*'Time Discounting'!E90 -> 0.857817308 | R93: 75.03293488 | T93: 1 | V93: 9.479271212e-05 | W93: 8.494855259e-05 | X93: 9.678263864e-06 | Y93: 1.658956694e-07 | Z93: 9.479271212e-05 | AA93: 9.479271212e-05 | AB93: =0 + '1. Strategy Calcs'!X92 -> 1.079791544e-05 | AC93: 6.218535148e-06 | AD93: 4.579380291e-06 | AE93: 1.079791544e-05 | AF93: 9.718123895e-06 | AG93: =0 + '1. Strategy Calcs'!AD92 -> 5.10915613e-06 | AH93: 7.235219085e-07 | AI93: 4.385634221e-06 | AJ93: 0.01216705425 | AK93: 5.10915613e-06 | AL93: 1.328380594e-06 | AM93: =0 + '1. Strategy Calcs'!Y92 + '1. Strategy Calcs'!AH92 + AN92 + '1. Strategy Calcs'!AS92 + '1. Strategy Calcs'!AX92 -> 0.09543473075 | AN93: 0.09543473075 | AO93: 0 | AP93: =0 + '1. Strategy Calcs'!AC92 + '1. Strategy Calcs'!AI92 + AQ92 + '1. Strategy Calcs'!AW92 -> 0.9024414472 | AQ93: 0.9000342179 | AR93: 0.002012131712 | AS93: 0.0003950975711 | AT93: 0.9024414472 | AU93: 0.8573193748 | AV93: =0 + '1. Strategy Calcs'!AR92 -> 0.002013122303 | AW93: 0.001915682904 | AX93: 9.743939937e-05 | AY93: 4.794092735 | AZ93: 0.002013122303 | BA93: 0.0008052489213 | BC93: 0.0004378096467 | BD93: =IF((InterpolateTable(tGeneralMortality,VALUE(cycle),2))=1,1,(1-EXP(LN(1-(InterpolateTable(tGeneralMortality,VALUE(cycle),2)))*(1/4)))) -> 0.001750088859
B94: 86 | D94: ='1. Strategy Calcs'!V94 -> 8.494855259e-05 | E94: ='1. Strategy Calcs'!AB94 -> 9.678263864e-06 | F94: ='1. Strategy Calcs'!AG94 -> 4.579380291e-06 | G94: ='1. Strategy Calcs'!AM94 -> 0.09592815714 | H94: ='1. Strategy Calcs'!AP94 -> 0.901960505 | I94: ='1. Strategy Calcs'!AV94 -> 0.002012131712 | J94: ='1. Strategy Calcs'!AJ94 + '1. Strategy Calcs'!AY94 -> 4.802639155 | K94: =J94*'Time Discounting'!D91 -> 4.800299955 | L94: 1366.177565 | M94: ='1. Strategy Calcs'!Z94 + '1. Strategy Calcs'!AE94 + '1. Strategy Calcs'!AK94 + '1. Strategy Calcs'!AT94 + '1. Strategy Calcs'!AZ94 -> 0.9040718429 | N94: =M94*'Time Discounting'!C91 -> 0.9036315007 | O94: 79.8722675 | P94: ='1. Strategy Calcs'!AA94 + '1. Strategy Calcs'!AF94 + '1. Strategy Calcs'!AL94 + '1. Strategy Calcs'!AO94 + '1. Strategy Calcs'!AU94 + '1. Strategy Calcs'!BA94 -> 0.857762182 | Q94: =P94*'Time Discounting'!E91 -> 0.8573443957 | R94: 75.89027927 | T94: 1 | V94: 8.494855259e-05 | W94: 7.612670241e-05 | X94: 8.673182657e-06 | Y94: 1.486675154e-07 | Z94: 8.494855259e-05 | AA94: 8.494855259e-05 | AB94: =0 + '1. Strategy Calcs'!X93 -> 9.678263864e-06 | AC94: 5.573726184e-06 | AD94: 4.10453768e-06 | AE94: 9.678263864e-06 | AF94: 8.710437477e-06 | AG94: =0 + '1. Strategy Calcs'!AD93 -> 4.579380291e-06 | AH94: 6.484988683e-07 | AI94: 3.930881423e-06 | AJ94: 0.01090543468 | AK94: 4.579380291e-06 | AL94: 1.190638876e-06 | AM94: =0 + '1. Strategy Calcs'!Y93 + '1. Strategy Calcs'!AH93 + AN93 + '1. Strategy Calcs'!AS93 + '1. Strategy Calcs'!AX93 -> 0.09592815714 | AN94: 0.09592815714 | AO94: 0 | AP94: =0 + '1. Strategy Calcs'!AC93 + '1. Strategy Calcs'!AI93 + AQ93 + '1. Strategy Calcs'!AW93 -> 0.901960505 | AQ94: 0.8995545586 | AR94: 0.002011059378 | AS94: 0.00039488701 | AT94: 0.901960505 | AU94: 0.8568624797 | AV94: =0 + '1. Strategy Calcs'!AR93 -> 0.002012131712 | AW94: 0.001914740259 | AX94: 9.739145265e-05 | AY94: 4.79173372 | AZ94: 0.002012131712 | BA94: 0.0008048526848 | BC94: 0.0004378096467 | BD94: =IF((InterpolateTable(tGeneralMortality,VALUE(cycle),2))=1,1,(1-EXP(LN(1-(InterpolateTable(tGeneralMortality,VALUE(cycle),2)))*(1/4)))) -> 0.001750088859
B95: 87 | D95: ='1. Strategy Calcs'!V95 -> 7.612670241e-05 | E95: ='1. Strategy Calcs'!AB95 -> 8.673182657e-06 | F95: ='1. Strategy Calcs'!AG95 -> 4.10453768e-06 | G95: ='1. Strategy Calcs'!AM95 -> 0.09642123277 | H95: ='1. Strategy Calcs'!AP95 -> 0.9014788034 | I95: ='1. Strategy Calcs'!AV95 -> 0.002011059378 | J95: ='1. Strategy Calcs'!AJ95 + '1. Strategy Calcs'!AY95 -> 4.798954674 | K95: =J95*'Time Discounting'!D92 -> 4.796590097 | L95: 1370.974155 | M95: ='1. Strategy Calcs'!Z95 + '1. Strategy Calcs'!AE95 + '1. Strategy Calcs'!AK95 + '1. Strategy Calcs'!AT95 + '1. Strategy Calcs'!AZ95 -> 0.9035787672 | N95: =M95*'Time Discounting'!C92 -> 0.903133549 | O95: 80.77540105 | P95: ='1. Strategy Calcs'!AA95 + '1. Strategy Calcs'!AF95 + '1. Strategy Calcs'!AL95 + '1. Strategy Calcs'!AO95 + '1. Strategy Calcs'!AU95 + '1. Strategy Calcs'!BA95 -> 0.8572942868 | Q95: =P95*'Time Discounting'!E92 -> 0.8568718742 | R95: 76.74715115 | T95: 1 | V95: 7.612670241e-05 | W95: 6.822099546e-05 | X95: 7.772478459e-06 | Y95: 1.332284937e-07 | Z95: 7.612670241e-05 | AA95: 7.612670241e-05 | AB95: =0 + '1. Strategy Calcs'!X94 -> 8.673182657e-06 | AC95: 4.99489846e-06 | AD95: 3.678284197e-06 | AE95: 8.673182657e-06 | AF95: 7.805864391e-06 | AG95: =0 + '1. Strategy Calcs'!AD94 -> 4.10453768e-06 | AH95: 5.812550763e-07 | AI95: 3.523282604e-06 | AJ95: 0.009774634279 | AK95: 4.10453768e-06 | AL95: 1.067179797e-06 | AM95: =0 + '1. Strategy Calcs'!Y94 + '1. Strategy Calcs'!AH94 + AN94 + '1. Strategy Calcs'!AS94 + '1. Strategy Calcs'!AX94 -> 0.09642123277 | AN95: 0.09642123277 | AO95: 0 | AP95: =0 + '1. Strategy Calcs'!AC94 + '1. Strategy Calcs'!AI94 + AQ94 + '1. Strategy Calcs'!AW94 -> 0.9014788034 | AQ95: 0.899074142 | AR95: 0.00200998535 | AS95: 0.0003946761164 | AT95: 0.9014788034 | AU95: 0.8564048633 | AV95: =0 + '1. Strategy Calcs'!AR94 -> 0.002011059378 | AW95: 0.001913719828 | AX95: 9.733954938e-05 | AY95: 4.78918004 | AZ95: 0.002011059378 | BA95: 0.0008044237511 | BC95: 0.0004378096467 | BD95: =IF((InterpolateTable(tGeneralMortality,VALUE(cycle),2))=1,1,(1-EXP(LN(1-(InterpolateTable(tGeneralMortality,VALUE(cycle),2)))*(1/4)))) -> 0.001750088859
B96: 88 | D96: ='1. Strategy Calcs'!V96 -> 6.822099546e-05 | E96: ='1. Strategy Calcs'!AB96 -> 7.772478459e-06 | F96: ='1. Strategy Calcs'!AG96 -> 3.678284197e-06 | G96: ='1. Strategy Calcs'!AM96 -> 0.09691396292 | H96: ='1. Strategy Calcs'!AP96 -> 0.90099638 | I96: ='1. Strategy Calcs'!AV96 -> 0.00200998535 | J96: ='1. Strategy Calcs'!AJ96 + '1. Strategy Calcs'!AY96 -> 4.795381873 | K96: =J96*'Time Discounting'!D93 -> 4.792991904 | L96: 1375.767147 | M96: ='1. Strategy Calcs'!Z96 + '1. Strategy Calcs'!AE96 + '1. Strategy Calcs'!AK96 + '1. Strategy Calcs'!AT96 + '1. Strategy Calcs'!AZ96 -> 0.9030860371 | N96: =M96*'Time Discounting'!C93 -> 0.9026359483 | O96: 81.678037 | P96: ='1. Strategy Calcs'!AA96 + '1. Strategy Calcs'!AF96 + '1. Strategy Calcs'!AL96 + '1. Strategy Calcs'!AO96 + '1. Strategy Calcs'!AU96 + '1. Strategy Calcs'!BA96 -> 0.8568267277 | Q96: =P96*'Time Discounting'!E93 -> 0.8563996941 | R96: 77.60355084 | T96: 1 | V96: 6.822099546e-05 | W96: 6.113629087e-05 | X96: 6.965311788e-06 | Y96: 1.193928041e-07 | Z96: 6.822099546e-05 | AA96: 6.822099546e-05 | AB96: =0 + '1. Strategy Calcs'!X95 -> 7.772478459e-06 | AC96: 4.476181607e-06 | AD96: 3.296296852e-06 | AE96: 7.772478459e-06 | AF96: 6.995230613e-06 | AG96: =0 + '1. Strategy Calcs'!AD95 -> 3.678284197e-06 | AH96: 5.208921267e-07 | AI96: 3.15739207e-06 | AJ96: 0.00875954507 | AK96: 3.678284197e-06 | AL96: 9.563538912e-07 | AM96: =0 + '1. Strategy Calcs'!Y95 + '1. Strategy Calcs'!AH95 + AN95 + '1. Strategy Calcs'!AS95 + '1. Strategy Calcs'!AX95 -> 0.09691396292 | AN96: 0.09691396292 | AO96: 0 | AP96: =0 + '1. Strategy Calcs'!AC95 + '1. Strategy Calcs'!AI95 + AQ95 + '1. Strategy Calcs'!AW95 -> 0.90099638 | AQ96: 0.8985930054 | AR96: 0.002008909713 | AS96: 0.0003944649068 | AT96: 0.90099638 | AU96: 0.855946561 | AV96: =0 + '1. Strategy Calcs'!AR95 -> 0.00200998535 | AW96: 0.001912697786 | AX96: 9.728756416e-05 | AY96: 4.786622328 | AZ96: 0.00200998535 | BA96: 0.0008039941401 | BC96: 0.0004378096467 | BD96: =IF((InterpolateTable(tGeneralMortality,VALUE(cycle),2))=1,1,(1-EXP(LN(1-(InterpolateTable(tGeneralMortality,VALUE(cycle),2)))*(1/4)))) -> 0.001750088859
B97: 89 | D97: ='1. Strategy Calcs'!V97 -> 6.113629087e-05 | E97: ='1. Strategy Calcs'!AB97 -> 6.965311788e-06 | F97: ='1. Strategy Calcs'!AG97 -> 3.296296852e-06 | G97: ='1. Strategy Calcs'!AM97 -> 0.09740635567 | H97: ='1. Strategy Calcs'!AP97 -> 0.9005133367 | I97: ='1. Strategy Calcs'!AV97 -> 0.002008909713 | J97: ='1. Strategy Calcs'!AJ97 + '1. Strategy Calcs'!AY97 -> 4.791910654 | K97: =J97*'Time Discounting'!D94 -> 4.789495283 | L97: 1380.556643 | M97: ='1. Strategy Calcs'!Z97 + '1. Strategy Calcs'!AE97 + '1. Strategy Calcs'!AK97 + '1. Strategy Calcs'!AT97 + '1. Strategy Calcs'!AZ97 -> 0.9025936443 | N97: =M97*'Time Discounting'!C94 -> 0.9021386904 | O97: 82.58017569 | P97: ='1. Strategy Calcs'!AA97 + '1. Strategy Calcs'!AF97 + '1. Strategy Calcs'!AL97 + '1. Strategy Calcs'!AO97 + '1. Strategy Calcs'!AU97 + '1. Strategy Calcs'!BA97 -> 0.8563594959 | Q97: =P97*'Time Discounting'!E94 -> 0.8559278463 | R97: 78.45947869 | T97: 1 | V97: 6.113629087e-05 | W97: 5.478732809e-05 | X97: 6.241968833e-06 | Y97: 1.069939415e-07 | Z97: 6.113629087e-05 | AA97: 6.113629087e-05 | AB97: =0 + '1. Strategy Calcs'!X96 -> 6.965311788e-06 | AC97: 4.011333152e-06 | AD97: 2.953978636e-06 | AE97: 6.965311788e-06 | AF97: 6.268780609e-06 | AG97: =0 + '1. Strategy Calcs'!AD96 -> 3.296296852e-06 | AH97: 4.66797829e-07 | AI97: 2.829499023e-06 | AJ97: 0.007849872193 | AK97: 3.296296852e-06 | AL97: 8.570371814e-07 | AM97: =0 + '1. Strategy Calcs'!Y96 + '1. Strategy Calcs'!AH96 + AN96 + '1. Strategy Calcs'!AS96 + '1. Strategy Calcs'!AX96 -> 0.09740635567 | AN97: 0.09740635567 | AO97: 0 | AP97: =0 + '1. Strategy Calcs'!AC96 + '1. Strategy Calcs'!AI96 + AQ96 + '1. Strategy Calcs'!AW96 -> 0.9005133367 | AQ97: 0.8981112506 | AR97: 0.002007832694 | AS97: 0.0003942534258 | AT97: 0.9005133367 | AU97: 0.8554876699 | AV97: =0 + '1. Strategy Calcs'!AR96 -> 0.002008909713 | AW97: 0.001911674212 | AX97: 9.723550104e-05 | AY97: 4.784060782 | AZ97: 0.002008909713 | BA97: 0.0008035638852 | BC97: 0.0004378096467 | BD97: =IF((InterpolateTable(tGeneralMortality,VALUE(cycle),2))=1,1,(1-EXP(LN(1-(InterpolateTable(tGeneralMortality,VALUE(cycle),2)))*(1/4)))) -> 0.001750088859
B98: 90 | D98: ='1. Strategy Calcs'!V98 -> 5.478732809e-05 | E98: ='1. Strategy Calcs'!AB98 -> 6.241968833e-06 | F98: ='1. Strategy Calcs'!AG98 -> 2.953978636e-06 | G98: ='1. Strategy Calcs'!AM98 -> 0.09789841839 | H98: ='1. Strategy Calcs'!AP98 -> 0.9000297656 | I98: ='1. Strategy Calcs'!AV98 -> 0.002007832694 | J98: ='1. Strategy Calcs'!AJ98 + '1. Strategy Calcs'!AY98 -> 4.788530614 | K98: =J98*'Time Discounting'!D95 -> 4.786089834 | L98: 1385.342732 | M98: ='1. Strategy Calcs'!Z98 + '1. Strategy Calcs'!AE98 + '1. Strategy Calcs'!AK98 + '1. Strategy Calcs'!AT98 + '1. Strategy Calcs'!AZ98 -> 0.9021015816 | N98: =M98*'Time Discounting'!C95 -> 0.9016417679 | O98: 83.48181745 | P98: ='1. Strategy Calcs'!AA98 + '1. Strategy Calcs'!AF98 + '1. Strategy Calcs'!AL98 + '1. Strategy Calcs'!AO98 + '1. Strategy Calcs'!AU98 + '1. Strategy Calcs'!BA98 -> 0.8558925836 | Q98: =P98*'Time Discounting'!E95 -> 0.8554563232 | R98: 79.31493501 | T98: 1 | V98: 5.478732809e-05 | W98: 4.909770084e-05 | X98: 5.593744559e-06 | Y98: 9.588269249e-08 | Z98: 5.478732809e-05 | AA98: 5.478732809e-05 | AB98: =0 + '1. Strategy Calcs'!X97 -> 6.241968833e-06 | AC98: 3.594758896e-06 | AD98: 2.647209937e-06 | AE98: 6.241968833e-06 | AF98: 5.61777195e-06 | AG98: =0 + '1. Strategy Calcs'!AD97 -> 2.953978636e-06 | AH98: 4.183211877e-07 | AI98: 2.535657448e-06 | AJ98: 0.007034668234 | AK98: 2.953978636e-06 | AL98: 7.680344454e-07 | AM98: =0 + '1. Strategy Calcs'!Y97 + '1. Strategy Calcs'!AH97 + AN97 + '1. Strategy Calcs'!AS97 + '1. Strategy Calcs'!AX97 -> 0.09789841839 | AN98: 0.09789841839 | AO98: 0 | AP98: =0 + '1. Strategy Calcs'!AC97 + '1. Strategy Calcs'!AI97 + AQ97 + '1. Strategy Calcs'!AW97 -> 0.9000297656 | AQ98: 0.8976289694 | AR98: 0.002006754498 | AS98: 0.0003940417137 | AT98: 0.9000297656 | AU98: 0.8550282774 | AV98: =0 + '1. Strategy Calcs'!AR97 -> 0.002007832694 | AW98: 0.001910649323 | AX98: 9.718337103e-05 | AY98: 4.781495946 | AZ98: 0.002007832694 | BA98: 0.0008031330776 | BC98: 0.0004378096467 | BD98: =IF((InterpolateTable(tGeneralMortality,VALUE(cycle),2))=1,1,(1-EXP(LN(1-(InterpolateTable(tGeneralMortality,VALUE(cycle),2)))*(1/4)))) -> 0.001750088859
B99: 91 | D99: ='1. Strategy Calcs'!V99 -> 4.909770084e-05 | E99: ='1. Strategy Calcs'!AB99 -> 5.593744559e-06 | F99: ='1. Strategy Calcs'!AG99 -> 2.647209937e-06 | G99: ='1. Strategy Calcs'!AM99 -> 0.09839015768 | H99: ='1. Strategy Calcs'!AP99 -> 0.8995457492 | I99: ='1. Strategy Calcs'!AV99 -> 0.002006754498 | J99: ='1. Strategy Calcs'!AJ99 + '1. Strategy Calcs'!AY99 -> 4.785232429 | K99: =J99*'Time Discounting'!D96 -> 4.782766236 | L99: 1390.125499 | M99: ='1. Strategy Calcs'!Z99 + '1. Strategy Calcs'!AE99 + '1. Strategy Calcs'!AK99 + '1. Strategy Calcs'!AT99 + '1. Strategy Calcs'!AZ99 -> 0.9016098423 | N99: =M99*'Time Discounting'!C96 -> 0.9011451743 | O99: 84.38296263 | P99: ='1. Strategy Calcs'!AA99 + '1. Strategy Calcs'!AF99 + '1. Strategy Calcs'!AL99 + '1. Strategy Calcs'!AO99 + '1. Strategy Calcs'!AU99 + '1. Strategy Calcs'!BA99 -> 0.8554259839 | Q99: =P99*'Time Discounting'!E96 -> 0.8549851179 | R99: 80.16992013 | T99: 1 | V99: 4.909770084e-05 | W99: 4.399893756e-05 | X99: 5.012837941e-06 | Y99: 8.592533923e-08 | Z99: 4.909770084e-05 | AA99: 4.909770084e-05 | AB99: =0 + '1. Strategy Calcs'!X98 -> 5.593744559e-06 | AC99: 3.221445597e-06 | AD99: 2.372298962e-06 | AE99: 5.593744559e-06 | AF99: 5.034370103e-06 | AG99: =0 + '1. Strategy Calcs'!AD98 -> 2.647209937e-06 | AH99: 3.748788131e-07 | AI99: 2.272331124e-06 | AJ99: 0.006304122659 | AK99: 2.647209937e-06 | AL99: 6.882745837e-07 | AM99: =0 + '1. Strategy Calcs'!Y98 + '1. Strategy Calcs'!AH98 + AN98 + '1. Strategy Calcs'!AS98 + '1. Strategy Calcs'!AX98 -> 0.09839015768 | AN99: 0.09839015768 | AO99: 0 | AP99: =0 + '1. Strategy Calcs'!AC98 + '1. Strategy Calcs'!AI98 + AQ98 + '1. Strategy Calcs'!AW98 -> 0.8995457492 | AQ99: 0.8971462441 | AR99: 0.002005675309 | AS99: 0.0003938298066 | AT99: 0.8995457492 | AU99: 0.8545684617 | AV99: =0 + '1. Strategy Calcs'!AR98 -> 0.002006754498 | AW99: 0.001909623314 | AX99: 9.713118405e-05 | AY99: 4.778928307 | AZ99: 0.002006754498 | BA99: 0.0008027017992 | BC99: 0.0004378096467 | BD99: =IF((InterpolateTable(tGeneralMortality,VALUE(cycle),2))=1,1,(1-EXP(LN(1-(InterpolateTable(tGeneralMortality,VALUE(cycle),2)))*(1/4)))) -> 0.001750088859
B100: 92 | D100: ='1. Strategy Calcs'!V100 -> 4.399893756e-05 | E100: ='1. Strategy Calcs'!AB100 -> 5.012837941e-06 | F100: ='1. Strategy Calcs'!AG100 -> 2.372298962e-06 | G100: ='1. Strategy Calcs'!AM100 -> 0.09888157947 | H100: ='1. Strategy Calcs'!AP100 -> 0.8990613611 | I100: ='1. Strategy Calcs'!AV100 -> 0.002005675309 | J100: ='1. Strategy Calcs'!AJ100 + '1. Strategy Calcs'!AY100 -> 4.782007747 | K100: =J100*'Time Discounting'!D97 -> 4.779516139 | L100: 1394.905015 | M100: ='1. Strategy Calcs'!Z100 + '1. Strategy Calcs'!AE100 + '1. Strategy Calcs'!AK100 + '1. Strategy Calcs'!AT100 + '1. Strategy Calcs'!AZ100 -> 0.9011184205 | N100: =M100*'Time Discounting'!C97 -> 0.9006489037 | O100: 85.28361153 | P100: ='1. Strategy Calcs'!AA100 + '1. Strategy Calcs'!AF100 + '1. Strategy Calcs'!AL100 + '1. Strategy Calcs'!AO100 + '1. Strategy Calcs'!AU100 + '1. Strategy Calcs'!BA100 -> 0.8549596905 | Q100: =P100*'Time Discounting'!E97 -> 0.8545142241 | R100: 81.02443435 | T100: 1 | V100: 4.399893756e-05 | W100: 3.942967743e-05 | X100: 4.492258085e-06 | Y100: 7.700205042e-08 | Z100: 4.399893756e-05 | AA100: 4.399893756e-05 | AB100: =0 + '1. Strategy Calcs'!X99 -> 5.012837941e-06 | AC100: 2.886900634e-06 | AD100: 2.125937307e-06 | AE100: 5.012837941e-06 | AF100: 4.511554147e-06 | AG100: =0 + '1. Strategy Calcs'!AD99 -> 2.372298962e-06 | AH100: 3.359479e-07 | AI100: 2.036351062e-06 | AJ100: 0.005649443752 | AK100: 2.372298962e-06 | AL100: 6.167977301e-07 | AM100: =0 + '1. Strategy Calcs'!Y99 + '1. Strategy Calcs'!AH99 + AN99 + '1. Strategy Calcs'!AS99 + '1. Strategy Calcs'!AX99 -> 0.09888157947 | AN100: 0.09888157947 | AO100: 0 | AP100: =0 + '1. Strategy Calcs'!AC99 + '1. Strategy Calcs'!AI99 + AQ99 + '1. Strategy Calcs'!AW99 -> 0.8990613611 | AQ100: 0.8966631481 | AR100: 0.002004595292 | AS100: 0.0003936177369 | AT100: 0.8990613611 | AU100: 0.8541082931 | AV100: =0 + '1. Strategy Calcs'!AR99 -> 0.002005675309 | AW100: 0.00190859636 | AX100: 9.707894901e-05 | AY100: 4.776358303 | AZ100: 0.002005675309 | BA100: 0.0008022701236 | BC100: 0.0004378096467 | BD100: =IF((InterpolateTable(tGeneralMortality,VALUE(cycle),2))=1,1,(1-EXP(LN(1-(InterpolateTable(tGeneralMortality,VALUE(cycle),2)))*(1/4)))) -> 0.001750088859
B101: 93 | D101: ='1. Strategy Calcs'!V101 -> 3.942967743e-05 | E101: ='1. Strategy Calcs'!AB101 -> 4.492258085e-06 | F101: ='1. Strategy Calcs'!AG101 -> 2.125937307e-06 | G101: ='1. Strategy Calcs'!AM101 -> 0.09937268911 | H101: ='1. Strategy Calcs'!AP101 -> 0.8985766677 | I101: ='1. Strategy Calcs'!AV101 -> 0.002004595292 | J101: ='1. Strategy Calcs'!AJ101 + '1. Strategy Calcs'!AY101 -> 4.778849079 | K101: =J101*'Time Discounting'!D98 -> 4.77633206 | L101: 1399.681347 | M101: ='1. Strategy Calcs'!Z101 + '1. Strategy Calcs'!AE101 + '1. Strategy Calcs'!AK101 + '1. Strategy Calcs'!AT101 + '1. Strategy Calcs'!AZ101 -> 0.9006273109 | N101: =M101*'Time Discounting'!C98 -> 0.9001529506 | O101: 86.18376448 | P101: ='1. Strategy Calcs'!AA101 + '1. Strategy Calcs'!AF101 + '1. Strategy Calcs'!AL101 + '1. Strategy Calcs'!AO101 + '1. Strategy Calcs'!AU101 + '1. Strategy Calcs'!BA101 -> 0.8544936979 | Q101: =P101*'Time Discounting'!E98 -> 0.8540436362 | R101: 81.87847799 | T101: 1 | V101: 3.942967743e-05 | W101: 3.533493189e-05 | X101: 4.025740098e-06 | Y101: 6.900543916e-08 | Z101: 3.942967743e-05 | AA101: 3.942967743e-05 | AB101: =0 + '1. Strategy Calcs'!X100 -> 4.492258085e-06 | AC101: 2.587097941e-06 | AD101: 1.905160144e-06 | AE101: 4.492258085e-06 | AF101: 4.043032277e-06 | AG101: =0 + '1. Strategy Calcs'!AD100 -> 2.125937307e-06 | AH101: 3.01059936e-07 | AI101: 1.824877371e-06 | AJ101: 0.00506275281 | AK101: 2.125937307e-06 | AL101: 5.527436998e-07 | AM101: =0 + '1. Strategy Calcs'!Y100 + '1. Strategy Calcs'!AH100 + AN100 + '1. Strategy Calcs'!AS100 + '1. Strategy Calcs'!AX100 -> 0.09937268911 | AN101: 0.09937268911 | AO101: 0 | AP101: =0 + '1. Strategy Calcs'!AC100 + '1. Strategy Calcs'!AI100 + AQ100 + '1. Strategy Calcs'!AW100 -> 0.8985766677 | AQ101: 0.8961797476 | AR101: 0.002003514593 | AS101: 0.0003934055334 | AT101: 0.8985766677 | AU101: 0.8536478343 | AV101: =0 + '1. Strategy Calcs'!AR100 -> 0.002004595292 | AW101: 0.001907568618 | AX101: 9.702667387e-05 | AY101: 4.773786326 | AZ101: 0.002004595292 | BA101: 0.0008018381166 | BC101: 0.0004378096467 | BD101: =IF((InterpolateTable(tGeneralMortality,VALUE(cycle),2))=1,1,(1-EXP(LN(1-(InterpolateTable(tGeneralMortality,VALUE(cycle),2)))*(1/4)))) -> 0.001750088859
B102: 94 | D102: ='1. Strategy Calcs'!V102 -> 3.533493189e-05 | E102: ='1. Strategy Calcs'!AB102 -> 4.025740098e-06 | F102: ='1. Strategy Calcs'!AG102 -> 1.905160144e-06 | G102: ='1. Strategy Calcs'!AM102 -> 0.09986349138 | H102: ='1. Strategy Calcs'!AP102 -> 0.8980917282 | I102: ='1. Strategy Calcs'!AV102 -> 0.002003514593 | J102: ='1. Strategy Calcs'!AJ102 + '1. Strategy Calcs'!AY102 -> 4.775749717 | K102: =J102*'Time Discounting'!D99 -> 4.77320729 | L102: 1404.454554 | M102: ='1. Strategy Calcs'!Z102 + '1. Strategy Calcs'!AE102 + '1. Strategy Calcs'!AK102 + '1. Strategy Calcs'!AT102 + '1. Strategy Calcs'!AZ102 -> 0.9001365086 | N102: =M102*'Time Discounting'!C99 -> 0.8996573103 | O102: 87.08342179 | P102: ='1. Strategy Calcs'!AA102 + '1. Strategy Calcs'!AF102 + '1. Strategy Calcs'!AL102 + '1. Strategy Calcs'!AO102 + '1. Strategy Calcs'!AU102 + '1. Strategy Calcs'!BA102 -> 0.8540280011 | Q102: =P102*'Time Discounting'!E99 -> 0.8535733492 | R102: 82.73205134 | T102: 1 | V102: 3.533493189e-05 | W102: 3.166542293e-05 | X102: 3.607669691e-06 | Y102: 6.183927062e-08 | Z102: 3.533493189e-05 | AA102: 3.533493189e-05 | AB102: =0 + '1. Strategy Calcs'!X101 -> 4.025740098e-06 | AC102: 2.318429556e-06 | AD102: 1.707310542e-06 | AE102: 4.025740098e-06 | AF102: 3.623166088e-06 | AG102: =0 + '1. Strategy Calcs'!AD101 -> 1.905160144e-06 | AH102: 2.697950637e-07 | AI102: 1.635365081e-06 | AJ102: 0.004536989329 | AK102: 1.905160144e-06 | AL102: 4.953416375e-07 | AM102: =0 + '1. Strategy Calcs'!Y101 + '1. Strategy Calcs'!AH101 + AN101 + '1. Strategy Calcs'!AS101 + '1. Strategy Calcs'!AX101 -> 0.09986349138 | AN102: 0.09986349138 | AO102: 0 | AP102: =0 + '1. Strategy Calcs'!AC101 + '1. Strategy Calcs'!AI101 + AQ101 + '1. Strategy Calcs'!AW101 -> 0.8980917282 | AQ102: 0.8956961016 | AR102: 0.002002433346 | AS102: 0.0003931932222 | AT102: 0.8980917282 | AU102: 0.8531871418 | AV102: =0 + '1. Strategy Calcs'!AR101 -> 0.002003514593 | AW102: 0.001906540227 | AX102: 9.697436577e-05 | AY102: 4.771212728 | AZ102: 0.002003514593 | BA102: 0.0008014058373 | BC102: 0.0004378096467 | BD102: =IF((InterpolateTable(tGeneralMortality,VALUE(cycle),2))=1,1,(1-EXP(LN(1-(InterpolateTable(tGeneralMortality,VALUE(cycle),2)))*(1/4)))) -> 0.001750088859
B103: 95 | D103: ='1. Strategy Calcs'!V103 -> 3.166542293e-05 | E103: ='1. Strategy Calcs'!AB103 -> 3.607669691e-06 | F103: ='1. Strategy Calcs'!AG103 -> 1.707310542e-06 | G103: ='1. Strategy Calcs'!AM103 -> 0.1003539906 | H103: ='1. Strategy Calcs'!AP103 -> 0.8976065956 | I103: ='1. Strategy Calcs'!AV103 -> 0.002002433346 | J103: ='1. Strategy Calcs'!AJ103 + '1. Strategy Calcs'!AY103 -> 4.772703649 | K103: =J103*'Time Discounting'!D100 -> 4.770135821 | L103: 1409.22469 | M103: ='1. Strategy Calcs'!Z103 + '1. Strategy Calcs'!AE103 + '1. Strategy Calcs'!AK103 + '1. Strategy Calcs'!AT103 + '1. Strategy Calcs'!AZ103 -> 0.8996460094 | N103: =M103*'Time Discounting'!C100 -> 0.8991619785 | O103: 87.98258377 | P103: ='1. Strategy Calcs'!AA103 + '1. Strategy Calcs'!AF103 + '1. Strategy Calcs'!AL103 + '1. Strategy Calcs'!AO103 + '1. Strategy Calcs'!AU103 + '1. Strategy Calcs'!BA103 -> 0.8535625954 | Q103: =P103*'Time Discounting'!E100 -> 0.8531033585 | R103: 83.5851547 | T103: 1 | V103: 3.166542293e-05 | W103: 2.837699001e-05 | X103: 3.233015615e-06 | Y103: 5.541730387e-08 | Z103: 3.166542293e-05 | AA103: 3.166542293e-05 | AB103: =0 + '1. Strategy Calcs'!X102 -> 3.607669691e-06 | AC103: 2.077662203e-06 | AD103: 1.530007488e-06 | AE103: 3.607669691e-06 | AF103: 3.246902722e-06 | AG103: =0 + '1. Strategy Calcs'!AD102 -> 1.707310542e-06 | AH103: 2.417770274e-07 | AI103: 1.465533515e-06 | AJ103: 0.004065826032 | AK103: 1.707310542e-06 | AL103: 4.439007409e-07 | AM103: =0 + '1. Strategy Calcs'!Y102 + '1. Strategy Calcs'!AH102 + AN102 + '1. Strategy Calcs'!AS102 + '1. Strategy Calcs'!AX102 -> 0.1003539906 | AN103: 0.1003539906 | AO103: 0 | AP103: =0 + '1. Strategy Calcs'!AC102 + '1. Strategy Calcs'!AI102 + AQ102 + '1. Strategy Calcs'!AW102 -> 0.8976065956 | AQ103: 0.8952122632 | AR103: 0.002001351669 | AS103: 0.0003929808265 | AT103: 0.8976065956 | AU103: 0.8527262659 | AV103: =0 + '1. Strategy Calcs'!AR102 -> 0.002002433346 | AW103: 0.001905511315 | AX103: 9.692203111e-05 | AY103: 4.768637823 | AZ103: 0.002002433346 | BA103: 0.0008009733384 | BC103: 0.0004378096467 | BD103: =IF((InterpolateTable(tGeneralMortality,VALUE(cycle),2))=1,1,(1-EXP(LN(1-(InterpolateTable(tGeneralMortality,VALUE(cycle),2)))*(1/4)))) -> 0.001750088859
B104: 96 | D104: ='1. Strategy Calcs'!V104 -> 2.837699001e-05 | E104: ='1. Strategy Calcs'!AB104 -> 3.233015615e-06 | F104: ='1. Strategy Calcs'!AG104 -> 1.530007488e-06 | G104: ='1. Strategy Calcs'!AM104 -> 0.1008441907 | H104: ='1. Strategy Calcs'!AP104 -> 0.8971213177 | I104: ='1. Strategy Calcs'!AV104 -> 0.002001351669 | J104: ='1. Strategy Calcs'!AJ104 + '1. Strategy Calcs'!AY104 -> 4.769705485 | K104: =J104*'Time Discounting'!D101 -> 4.767112265 | L104: 1413.991802 | M104: ='1. Strategy Calcs'!Z104 + '1. Strategy Calcs'!AE104 + '1. Strategy Calcs'!AK104 + '1. Strategy Calcs'!AT104 + '1. Strategy Calcs'!AZ104 -> 0.8991558093 | N104: =M104*'Time Discounting'!C101 -> 0.8986669513 | O104: 88.88125072 | P104: ='1. Strategy Calcs'!AA104 + '1. Strategy Calcs'!AF104 + '1. Strategy Calcs'!AL104 + '1. Strategy Calcs'!AO104 + '1. Strategy Calcs'!AU104 + '1. Strategy Calcs'!BA104 -> 0.853097477 | Q104: =P104*'Time Discounting'!E101 -> 0.8526336602 | R104: 84.43778836 | T104: =SUM(D104:I104) -> 1 | V104: 2.837699001e-05 | W104: =V104*(1-(pHealthyToInfected)-(INDEX(pHealthyToDead_1,cycle+1))) -> 2.543005864e-05 | X104: =V104*(pHealthyToInfected) -> 2.897269113e-06 | Y104: =V104*(INDEX(pHealthyToDead_1,cycle+1)) -> 4.966225406e-08 | Z104: 2.837699001e-05 | AA104: 2.837699001e-05 | AB104: =0 + '1. Strategy Calcs'!X103 -> 3.233015615e-06 | AC104: =AB104*(1-(pInfectedToDiseased)) -> 1.861898377e-06 | AD104: =AB104*(pInfectedToDiseased) -> 1.371117237e-06 | AE104: 3.233015615e-06 | AF104: 2.909714053e-06 | AG104: =0 + '1. Strategy Calcs'!AD103 -> 1.530007488e-06 | AH104: =AG104*(pDiseasedToDead_Node1) -> 2.166686454e-07 | AI104: =AG104*(1-(pDiseasedToDead_Node1)) -> 1.313338843e-06 | AJ104: 0.003643592727 | AK104: 1.530007488e-06 | AL104: 3.978019469e-07 | AM104: =0 + '1. Strategy Calcs'!Y103 + '1. Strategy Calcs'!AH103 + AN103 + '1. Strategy Calcs'!AS103 + '1. Strategy Calcs'!AX103 -> 0.1008441907 | AN104: =AM104*(pDeadToDead) -> 0.1008441907 | AO104: 0 | AP104: =0 + '1. Strategy Calcs'!AC103 + '1. Strategy Calcs'!AI103 + AQ103 + '1. Strategy Calcs'!AW103 -> 0.8971213177 | AQ104: =AP104*(1-(pHealedToRelapse)-(INDEX(pHealedToDead_1,cycle+1))) -> 0.8947282796 | AR104: =AP104*(pHealedToRelapse) -> 0.002000269667 | AS104: =AP104*(INDEX(pHealedToDead_1,cycle+1)) -> 0.0003927683671 | AT104: 0.8971213177 | AU104: 0.8522652518 | AV104: =0 + '1. Strategy Calcs'!AR103 -> 0.002001351669 | AW104: =AV104*(1-(pRelapseToDeath)) -> 0.001904481993 | AX104: =AV104*(pRelapseToDeath) -> 9.686967562e-05 | AY104: 4.766061893 | AZ104: 0.002001351669 | BA104: 0.0008005406674 | BC104: =IF((INDEX(pHealthyToDead_1,cycle+1))=1,1,(1-EXP(LN(1-(INDEX(pHealthyToDead_1,cycle+1)))*(1/4)))) -> 0.0004378096467 | BD104: =IF((InterpolateTable(tGeneralMortality,VALUE(cycle),2))=1,1,(1-EXP(LN(1-(InterpolateTable(tGeneralMortality,VALUE(cycle),2)))*(1/4)))) -> 0.001750088859
B105: 97 | D105: ='1. Strategy Calcs'!V105 -> 2.543005864e-05 | E105: ='1. Strategy Calcs'!AB105 -> 2.897269113e-06 | F105: ='1. Strategy Calcs'!AG105 -> 1.371117237e-06 | G105: ='1. Strategy Calcs'!AM105 -> 0.101334095 | H105: ='1. Strategy Calcs'!AP105 -> 0.8966359369 | I105: ='1. Strategy Calcs'!AV105 -> 0.002000269667 | J105: ='1. Strategy Calcs'!AJ105 + '1. Strategy Calcs'!AY105 -> 4.766750399 | K105: =J105*'Time Discounting'!D102 -> 4.764131797 | L105: =L104 + K105 -> 1418.755934 | M105: ='1. Strategy Calcs'!Z105 + '1. Strategy Calcs'!AE105 + '1. Strategy Calcs'!AK105 + '1. Strategy Calcs'!AT105 + '1. Strategy Calcs'!AZ105 -> 0.898665905 | N105: =M105*'Time Discounting'!C102 -> 0.8981722252 | O105: =O104 + N105 -> 89.77942295 | P105: ='1. Strategy Calcs'!AA105 + '1. Strategy Calcs'!AF105 + '1. Strategy Calcs'!AL105 + '1. Strategy Calcs'!AO105 + '1. Strategy Calcs'!AU105 + '1. Strategy Calcs'!BA105 -> 0.852632642 | Q105: =P105*'Time Discounting'!E102 -> 0.8521642505 | R105: =R104 + Q105 -> 85.28995261 | T105: 1 | V105: =0 + W104 -> 2.543005864e-05 | W105: 2.27841799e-05 | X105: 2.59638966e-06 | Y105: 4.948908134e-08 | Z105: =V105*(1) -> 2.543005864e-05 | AA105: =V105*(vQoLHealthy) -> 2.543005864e-05 | AB105: =0 + '1. Strategy Calcs'!X104 -> 2.897269113e-06 | AC105: 1.668541481e-06 | AD105: 1.228727632e-06 | AE105: =AB105*(1) -> 2.897269113e-06 | AF105: =AB105*(vQoLInfected) -> 2.607542202e-06 | AG105: =0 + '1. Strategy Calcs'!AD104 -> 1.371117237e-06 | AH105: 1.94167752e-07 | AI105: 1.176949485e-06 | AJ105: =AG105*((((((cDrugs+cICUWithoutVentilation)+cICUWithVentilation)+cInpatientCare)+cOutpatientCare)+cPCRTest)) -> 0.003265208068 | AK105: =AG105*(1) -> 1.371117237e-06 | AL105: =AG105*(vQoLDiseased) -> 3.564904817e-07 | AM105: =0 + '1. Strategy Calcs'!Y104 + '1. Strategy Calcs'!AH104 + AN104 + '1. Strategy Calcs'!AS104 + '1. Strategy Calcs'!AX104 -> 0.101334095 | AN105: 0.101334095 | AO105: =AM105*(vQoLDead) -> 0 | AP105: =0 + '1. Strategy Calcs'!AC104 + '1. Strategy Calcs'!AI104 + AQ104 + '1. Strategy Calcs'!AW104 -> 0.8966359369 | AQ105: 0.894200198 | AR105: 0.001999187436 | AS105: 0.0004365513798 | AT105: =AP105*(1) -> 0.8966359369 | AU105: =AP105*(vQoLHealed) -> 0.85180414 | AV105: =0 + '1. Strategy Calcs'!AR104 -> 0.002000269667 | AW105: 0.001903452362 | AX105: 9.681730444e-05 | AY105: =AV105*((((((cDrugs+cICUWithoutVentilation)+cICUWithVentilation)+cInpatientCare)+cOutpatientCare)+cPCRTest)) -> 4.76348519 | AZ105: =AV105*(1) -> 0.002000269667 | BA105: =AV105*(vQoLRelapse) -> 0.0008001078667 | BC105: 0.0004868769607 | BD105: =IF((InterpolateTable(tGeneralMortality,VALUE(cycle),2))=1,1,(1-EXP(LN(1-(InterpolateTable(tGeneralMortality,VALUE(cycle),2)))*(1/4)))) -> 0.001946086009
B106: 98 | D106: ='1. Strategy Calcs'!V106 -> 2.27841799e-05 | E106: ='1. Strategy Calcs'!AB106 -> 2.59638966e-06 | F106: ='1. Strategy Calcs'!AG106 -> 1.228727632e-06 | G106: ='1. Strategy Calcs'!AM106 -> 0.1018677074 | H106: ='1. Strategy Calcs'!AP106 -> 0.8961064959 | I106: ='1. Strategy Calcs'!AV106 -> 0.001999187436 | J106: ='1. Strategy Calcs'!AJ106 + '1. Strategy Calcs'!AY106 -> 4.763834061 | K106: =J106*'Time Discounting'!D103 -> 4.761190089 | L106: 1423.517124 | M106: ='1. Strategy Calcs'!Z106 + '1. Strategy Calcs'!AE106 + '1. Strategy Calcs'!AK106 + '1. Strategy Calcs'!AT106 + '1. Strategy Calcs'!AZ106 -> 0.8981322926 | N106: =M106*'Time Discounting'!C103 -> 0.8976338209 | O106: 90.67705677 | P106: ='1. Strategy Calcs'!AA106 + '1. Strategy Calcs'!AF106 + '1. Strategy Calcs'!AL106 + '1. Strategy Calcs'!AO106 + '1. Strategy Calcs'!AU106 + '1. Strategy Calcs'!BA106 -> 0.8521262865 | Q106: =P106*'Time Discounting'!E103 -> 0.8516533486 | R106: 86.14160595 | T106: 1 | V106: 2.27841799e-05 | W106: 2.041359247e-05 | X106: 2.326247452e-06 | Y106: 4.433997374e-08 | Z106: 2.27841799e-05 | AA106: 2.27841799e-05 | AB106: =0 + '1. Strategy Calcs'!X105 -> 2.59638966e-06 | AC106: 1.495264568e-06 | AD106: 1.101125093e-06 | AE106: 2.59638966e-06 | AF106: 2.336750694e-06 | AG106: =0 + '1. Strategy Calcs'!AD105 -> 1.228727632e-06 | AH106: 1.740035613e-07 | AI106: 1.054724071e-06 | AJ106: 0.002926118402 | AK106: 1.228727632e-06 | AL106: 3.194691844e-07 | AM106: =0 + '1. Strategy Calcs'!Y105 + '1. Strategy Calcs'!AH105 + AN105 + '1. Strategy Calcs'!AS105 + '1. Strategy Calcs'!AX105 -> 0.1018677074 | AN106: 0.1018677074 | AO106: 0 | AP106: =0 + '1. Strategy Calcs'!AC105 + '1. Strategy Calcs'!AI105 + AQ105 + '1. Strategy Calcs'!AW105 -> 0.8961064959 | AQ106: 0.8936721953 | AR106: 0.001998006966 | AS106: 0.0004362936072 | AT106: 0.8961064959 | AU106: 0.8513011711 | AV106: =0 + '1. Strategy Calcs'!AR105 -> 0.001999187436 | AW106: 0.001902422514 | AX106: 9.676492216e-05 | AY106: 4.760907942 | AZ106: 0.001999187436 | BA106: 0.0007996749743 | BC106: 0.0004868769607 | BD106: =IF((InterpolateTable(tGeneralMortality,VALUE(cycle),2))=1,1,(1-EXP(LN(1-(InterpolateTable(tGeneralMortality,VALUE(cycle),2)))*(1/4)))) -> 0.001946086009
B107: 99 | D107: ='1. Strategy Calcs'!V107 -> 2.041359247e-05 | E107: ='1. Strategy Calcs'!AB107 -> 2.326247452e-06 | F107: ='1. Strategy Calcs'!AG107 -> 1.101125093e-06 | G107: ='1. Strategy Calcs'!AM107 -> 0.1024009842 | H107: ='1. Strategy Calcs'!AP107 -> 0.8955771678 | I107: ='1. Strategy Calcs'!AV107 -> 0.001998006966 | J107: ='1. Strategy Calcs'!AJ107 + '1. Strategy Calcs'!AY107 -> 4.760718989 | K107: =J107*'Time Discounting'!D104 -> 4.758049792 | L107: 1428.275174 | M107: ='1. Strategy Calcs'!Z107 + '1. Strategy Calcs'!AE107 + '1. Strategy Calcs'!AK107 + '1. Strategy Calcs'!AT107 + '1. Strategy Calcs'!AZ107 -> 0.8975990158 | N107: =M107*'Time Discounting'!C104 -> 0.897095758 | O107: 91.57415253 | P107: ='1. Strategy Calcs'!AA107 + '1. Strategy Calcs'!AF107 + '1. Strategy Calcs'!AL107 + '1. Strategy Calcs'!AO107 + '1. Strategy Calcs'!AU107 + '1. Strategy Calcs'!BA107 -> 0.8516203057 | Q107: =P107*'Time Discounting'!E104 -> 0.8511428269 | R107: 86.99274878 | T107: 1 | V107: 2.041359247e-05 | W107: 1.828965359e-05 | X107: 2.084212277e-06 | Y107: 3.972660672e-08 | Z107: 2.041359247e-05 | AA107: 2.041359247e-05 | AB107: =0 + '1. Strategy Calcs'!X106 -> 2.326247452e-06 | AC107: 1.339689278e-06 | AD107: 9.865581733e-07 | AE107: 2.326247452e-06 | AF107: 2.093622706e-06 | AG107: =0 + '1. Strategy Calcs'!AD106 -> 1.101125093e-06 | AH107: 1.559334082e-07 | AI107: 9.451916843e-07 | AJ107: 0.00262224297 | AK107: 1.101125093e-06 | AL107: 2.862925241e-07 | AM107: =0 + '1. Strategy Calcs'!Y106 + '1. Strategy Calcs'!AH106 + AN106 + '1. Strategy Calcs'!AS106 + '1. Strategy Calcs'!AX106 -> 0.1024009842 | AN107: 0.1024009842 | AO107: 0 | AP107: =0 + '1. Strategy Calcs'!AC106 + '1. Strategy Calcs'!AI106 + AQ106 + '1. Strategy Calcs'!AW106 -> 0.8955771678 | AQ107: 0.8931443052 | AR107: 0.001996826748 | AS107: 0.0004360358896 | AT107: 0.8955771678 | AU107: 0.8507983094 | AV107: =0 + '1. Strategy Calcs'!AR106 -> 0.001998006966 | AW107: 0.001901299181 | AX107: 9.67077849e-05 | AY107: 4.758096746 | AZ107: 0.001998006966 | BA107: 0.0007992027864 | BC107: 0.0004868769607 | BD107: =IF((InterpolateTable(tGeneralMortality,VALUE(cycle),2))=1,1,(1-EXP(LN(1-(InterpolateTable(tGeneralMortality,VALUE(cycle),2)))*(1/4)))) -> 0.001946086009
B108: 100 | D108: ='1. Strategy Calcs'!V108 -> 1.828965359e-05 | E108: ='1. Strategy Calcs'!AB108 -> 2.084212277e-06 | F108: ='1. Strategy Calcs'!AG108 -> 9.865581733e-07 | G108: ='1. Strategy Calcs'!AM108 -> 0.1029339236 | H108: ='1. Strategy Calcs'!AP108 -> 0.8950478892 | I108: ='1. Strategy Calcs'!AV108 -> 0.001996826748 | J108: ='1. Strategy Calcs'!AJ108 + '1. Strategy Calcs'!AY108 -> 4.75763556 | K108: =J108*'Time Discounting'!D105 -> 4.754941155 | L108: 1433.030115 | M108: ='1. Strategy Calcs'!Z108 + '1. Strategy Calcs'!AE108 + '1. Strategy Calcs'!AK108 + '1. Strategy Calcs'!AT108 + '1. Strategy Calcs'!AZ108 -> 0.8970660764 | N108: =M108*'Time Discounting'!C105 -> 0.8965580386 | O108: 92.47071057 | P108: ='1. Strategy Calcs'!AA108 + '1. Strategy Calcs'!AF108 + '1. Strategy Calcs'!AL108 + '1. Strategy Calcs'!AO108 + '1. Strategy Calcs'!AU108 + '1. Strategy Calcs'!BA108 -> 0.8511146474 | Q108: =P108*'Time Discounting'!E105 -> 0.8506326334 | R108: 87.84338141 | T108: 1 | V108: 1.828965359e-05 | W108: 1.638670062e-05 | X108: 1.867359731e-06 | Y108: 3.559323897e-08 | Z108: 1.828965359e-05 | AA108: 1.828965359e-05 | AB108: =0 + '1. Strategy Calcs'!X107 -> 2.084212277e-06 | AC108: 1.200300871e-06 | AD108: 8.839114066e-07 | AE108: 2.084212277e-06 | AF108: 1.875791049e-06 | AG108: =0 + '1. Strategy Calcs'!AD107 -> 9.865581733e-07 | AH108: 1.397092659e-07 | AI108: 8.468489074e-07 | AJ108: 0.002349410845 | AK108: 9.865581733e-07 | AL108: 2.565051251e-07 | AM108: =0 + '1. Strategy Calcs'!Y107 + '1. Strategy Calcs'!AH107 + AN107 + '1. Strategy Calcs'!AS107 + '1. Strategy Calcs'!AX107 -> 0.1029339236 | AN108: 0.1029339236 | AO108: 0 | AP108: =0 + '1. Strategy Calcs'!AC107 + '1. Strategy Calcs'!AI107 + AQ107 + '1. Strategy Calcs'!AW107 -> 0.8950478892 | AQ108: 0.8926164644 | AR108: 0.00199564664 | AS108: 0.000435778196 | AT108: 0.8950478892 | AU108: 0.8502954948 | AV108: =0 + '1. Strategy Calcs'!AR107 -> 0.001996826748 | AW108: 0.001900176088 | AX108: 9.665065983e-05 | AY108: 4.755286149 | AZ108: 0.001996826748 | BA108: 0.0007987306991 | BC108: 0.0004868769607 | BD108: =IF((InterpolateTable(tGeneralMortality,VALUE(cycle),2))=1,1,(1-EXP(LN(1-(InterpolateTable(tGeneralMortality,VALUE(cycle),2)))*(1/4)))) -> 0.001946086009
B109: 101 | D109: ='1. Strategy Calcs'!V109 -> 1.638670062e-05 | E109: ='1. Strategy Calcs'!AB109 -> 1.867359731e-06 | F109: ='1. Strategy Calcs'!AG109 -> 8.839114066e-07 | G109: ='1. Strategy Calcs'!AM109 -> 0.1034665277 | H109: ='1. Strategy Calcs'!AP109 -> 0.8945186877 | I109: ='1. Strategy Calcs'!AV109 -> 0.00199564664 | J109: ='1. Strategy Calcs'!AJ109 + '1. Strategy Calcs'!AY109 -> 4.75458078 | K109: =J109*'Time Discounting'!D106 -> 4.751861187 | L109: 1437.781976 | M109: ='1. Strategy Calcs'!Z109 + '1. Strategy Calcs'!AE109 + '1. Strategy Calcs'!AK109 + '1. Strategy Calcs'!AT109 + '1. Strategy Calcs'!AZ109 -> 0.8965334723 | N109: =M109*'Time Discounting'!C106 -> 0.8960206601 | O109: 93.36673123 | P109: ='1. Strategy Calcs'!AA109 + '1. Strategy Calcs'!AF109 + '1. Strategy Calcs'!AL109 + '1. Strategy Calcs'!AO109 + '1. Strategy Calcs'!AU109 + '1. Strategy Calcs'!BA109 -> 0.8506093091 | Q109: =P109*'Time Discounting'!E106 -> 0.8501227653 | R109: 88.69350418 | T109: 1 | V109: 1.638670062e-05 | W109: 1.468174101e-05 | X109: 1.673069679e-06 | Y109: 3.188992882e-08 | Z109: 1.638670062e-05 | AA109: 1.638670062e-05 | AB109: =0 + '1. Strategy Calcs'!X108 -> 1.867359731e-06 | AC109: 1.075415175e-06 | AD109: 7.919445561e-07 | AE109: 1.867359731e-06 | AF109: 1.680623758e-06 | AG109: =0 + '1. Strategy Calcs'!AD108 -> 8.839114066e-07 | AH109: 1.251731698e-07 | AI109: 7.587382367e-07 | AJ109: 0.002104965628 | AK109: 8.839114066e-07 | AL109: 2.298169657e-07 | AM109: =0 + '1. Strategy Calcs'!Y108 + '1. Strategy Calcs'!AH108 + AN108 + '1. Strategy Calcs'!AS108 + '1. Strategy Calcs'!AX108 -> 0.1034665277 | AN109: 0.1034665277 | AO109: 0 | AP109: =0 + '1. Strategy Calcs'!AC108 + '1. Strategy Calcs'!AI108 + AQ108 + '1. Strategy Calcs'!AW108 -> 0.8945186877 | AQ109: 0.8920887004 | AR109: 0.001994466704 | AS109: 0.0004355205399 | AT109: 0.8945186877 | AU109: 0.8497927533 | AV109: =0 + '1. Strategy Calcs'!AR108 -> 0.00199564664 | AW109: 0.0018990531 | AX109: 9.659354011e-05 | AY109: 4.752475815 | AZ109: 0.00199564664 | BA109: 0.000798258656 | BC109: 0.0004868769607 | BD109: =IF((InterpolateTable(tGeneralMortality,VALUE(cycle),2))=1,1,(1-EXP(LN(1-(InterpolateTable(tGeneralMortality,VALUE(cycle),2)))*(1/4)))) -> 0.001946086009
B110: 102 | D110: ='1. Strategy Calcs'!V110 -> 1.468174101e-05 | E110: ='1. Strategy Calcs'!AB110 -> 1.673069679e-06 | F110: ='1. Strategy Calcs'!AG110 -> 7.919445561e-07 | G110: ='1. Strategy Calcs'!AM110 -> 0.1039987989 | H110: ='1. Strategy Calcs'!AP110 -> 0.8939895877 | I110: ='1. Strategy Calcs'!AV110 -> 0.001994466704 | J110: ='1. Strategy Calcs'!AJ110 + '1. Strategy Calcs'!AY110 -> 4.751551843 | K110: =J110*'Time Discounting'!D107 -> 4.74880708 | L110: 1442.530783 | M110: ='1. Strategy Calcs'!Z110 + '1. Strategy Calcs'!AE110 + '1. Strategy Calcs'!AK110 + '1. Strategy Calcs'!AT110 + '1. Strategy Calcs'!AZ110 -> 0.8960012011 | N110: =M110*'Time Discounting'!C107 -> 0.8954836206 | O110: 94.26221485 | P110: ='1. Strategy Calcs'!AA110 + '1. Strategy Calcs'!AF110 + '1. Strategy Calcs'!AL110 + '1. Strategy Calcs'!AO110 + '1. Strategy Calcs'!AU110 + '1. Strategy Calcs'!BA110 -> 0.8501042884 | Q110: =P110*'Time Discounting'!E107 -> 0.8496132205 | R110: 89.5431174 | T110: 1 | V110: 1.468174101e-05 | W110: 1.315417448e-05 | X110: 1.498994599e-06 | Y110: 2.857193078e-08 | Z110: 1.468174101e-05 | AA110: 1.468174101e-05 | AB110: =0 + '1. Strategy Calcs'!X109 -> 1.673069679e-06 | AC110: 9.635232527e-07 | AD110: 7.095464266e-07 | AE110: 1.673069679e-06 | AF110: 1.505762711e-06 | AG110: =0 + '1. Strategy Calcs'!AD109 -> 7.919445561e-07 | AH110: 1.121494866e-07 | AI110: 6.797950696e-07 | AJ110: 0.001885953793 | AK110: 7.919445561e-07 | AL110: 2.059055846e-07 | AM110: =0 + '1. Strategy Calcs'!Y109 + '1. Strategy Calcs'!AH109 + AN109 + '1. Strategy Calcs'!AS109 + '1. Strategy Calcs'!AX109 -> 0.1039987989 | AN110: 0.1039987989 | AO110: 0 | AP110: =0 + '1. Strategy Calcs'!AC109 + '1. Strategy Calcs'!AI109 + AQ109 + '1. Strategy Calcs'!AW109 -> 0.8939895877 | AQ110: 0.8915610377 | AR110: 0.001993286994 | AS110: 0.0004352629333 | AT110: 0.8939895877 | AU110: 0.8492901083 | AV110: =0 + '1. Strategy Calcs'!AR109 -> 0.001994466704 | AW110: 0.001897930275 | AX110: 9.653642869e-05 | AY110: 4.749665889 | AZ110: 0.001994466704 | BA110: 0.0007977866815 | BC110: 0.0004868769607 | BD110: =IF((InterpolateTable(tGeneralMortality,VALUE(cycle),2))=1,1,(1-EXP(LN(1-(InterpolateTable(tGeneralMortality,VALUE(cycle),2)))*(1/4)))) -> 0.001946086009
B111: 103 | D111: ='1. Strategy Calcs'!V111 -> 1.315417448e-05 | E111: ='1. Strategy Calcs'!AB111 -> 1.498994599e-06 | F111: ='1. Strategy Calcs'!AG111 -> 7.095464266e-07 | G111: ='1. Strategy Calcs'!AM111 -> 0.104530739 | H111: ='1. Strategy Calcs'!AP111 -> 0.8934606113 | I111: ='1. Strategy Calcs'!AV111 -> 0.001993286994 | J111: ='1. Strategy Calcs'!AJ111 + '1. Strategy Calcs'!AY111 -> 4.748546233 | K111: =J111*'Time Discounting'!D108 -> 4.745776322 | L111: 1447.27656 | M111: ='1. Strategy Calcs'!Z111 + '1. Strategy Calcs'!AE111 + '1. Strategy Calcs'!AK111 + '1. Strategy Calcs'!AT111 + '1. Strategy Calcs'!AZ111 -> 0.895469261 | N111: =M111*'Time Discounting'!C108 -> 0.8949469179 | O111: 95.15716176 | P111: ='1. Strategy Calcs'!AA111 + '1. Strategy Calcs'!AF111 + '1. Strategy Calcs'!AL111 + '1. Strategy Calcs'!AO111 + '1. Strategy Calcs'!AU111 + '1. Strategy Calcs'!BA111 -> 0.8495995833 | Q111: =P111*'Time Discounting'!E108 -> 0.8491039968 | R111: 90.3922214 | T111: 1 | V111: 1.315417448e-05 | W111: 1.178554411e-05 | X111: 1.343031217e-06 | Y111: 2.559915493e-08 | Z111: 1.315417448e-05 | AA111: 1.315417448e-05 | AB111: =0 + '1. Strategy Calcs'!X110 -> 1.498994599e-06 | AC111: 8.632731617e-07 | AD111: 6.357214373e-07 | AE111: 1.498994599e-06 | AF111: 1.349095139e-06 | AG111: =0 + '1. Strategy Calcs'!AD110 -> 7.095464266e-07 | AH111: 1.004808567e-07 | AI111: 6.090655699e-07 | AJ111: 0.001689729116 | AK111: 7.095464266e-07 | AL111: 1.844820709e-07 | AM111: =0 + '1. Strategy Calcs'!Y110 + '1. Strategy Calcs'!AH110 + AN110 + '1. Strategy Calcs'!AS110 + '1. Strategy Calcs'!AX110 -> 0.104530739 | AN111: 0.104530739 | AO111: 0 | AP111: =0 + '1. Strategy Calcs'!AC110 + '1. Strategy Calcs'!AI110 + AQ110 + '1. Strategy Calcs'!AW110 -> 0.8934606113 | AQ111: 0.8910334984 | AR111: 0.00199210756 | AS111: 0.000435005387 | AT111: 0.8934606113 | AU111: 0.8487875808 | AV111: =0 + '1. Strategy Calcs'!AR110 -> 0.001993286994 | AW111: 0.001896807666 | AX111: 9.647932823e-05 | AY111: 4.746856504 | AZ111: 0.001993286994 | BA111: 0.0007973147977 | BC111: 0.0004868769607 | BD111: =IF((InterpolateTable(tGeneralMortality,VALUE(cycle),2))=1,1,(1-EXP(LN(1-(InterpolateTable(tGeneralMortality,VALUE(cycle),2)))*(1/4)))) -> 0.001946086009
B112: 104 | D112: ='1. Strategy Calcs'!V112 -> 1.178554411e-05 | E112: ='1. Strategy Calcs'!AB112 -> 1.343031217e-06 | F112: ='1. Strategy Calcs'!AG112 -> 6.357214373e-07 | G112: ='1. Strategy Calcs'!AM112 -> 0.1050623498 | H112: ='1. Strategy Calcs'!AP112 -> 0.8929317784 | I112: ='1. Strategy Calcs'!AV112 -> 0.00199210756 | J112: ='1. Strategy Calcs'!AJ112 + '1. Strategy Calcs'!AY112 -> 4.745561695 | K112: =J112*'Time Discounting'!D109 -> 4.742766657 | L112: 1452.019326 | M112: ='1. Strategy Calcs'!Z112 + '1. Strategy Calcs'!AE112 + '1. Strategy Calcs'!AK112 + '1. Strategy Calcs'!AT112 + '1. Strategy Calcs'!AZ112 -> 0.8949376502 | N112: =M112*'Time Discounting'!C109 -> 0.8944105505 | O112: 96.05157231 | P112: ='1. Strategy Calcs'!AA112 + '1. Strategy Calcs'!AF112 + '1. Strategy Calcs'!AL112 + '1. Strategy Calcs'!AO112 + '1. Strategy Calcs'!AU112 + '1. Strategy Calcs'!BA112 -> 0.849095192 | Q112: =P112*'Time Discounting'!E109 -> 0.8485950925 | R112: 91.24081649 | T112: 1 | V112: 1.178554411e-05 | W112: 1.055931333e-05 | X112: 1.203295097e-06 | Y112: 2.293568251e-08 | Z112: 1.178554411e-05 | AA112: 1.178554411e-05 | AB112: =0 + '1. Strategy Calcs'!X111 -> 1.343031217e-06 | AC112: 7.734536242e-07 | AD112: 5.695775931e-07 | AE112: 1.343031217e-06 | AF112: 1.208728096e-06 | AG112: =0 + '1. Strategy Calcs'!AD111 -> 6.357214373e-07 | AH112: 9.002629317e-08 | AI112: 5.456951442e-07 | AJ112: 0.001513920699 | AK112: 6.357214373e-07 | AL112: 1.652875737e-07 | AM112: =0 + '1. Strategy Calcs'!Y111 + '1. Strategy Calcs'!AH111 + AN111 + '1. Strategy Calcs'!AS111 + '1. Strategy Calcs'!AX111 -> 0.1050623498 | AN112: 0.1050623498 | AO112: 0 | AP112: =0 + '1. Strategy Calcs'!AC111 + '1. Strategy Calcs'!AI111 + AQ111 + '1. Strategy Calcs'!AW111 -> 0.8929317784 | AQ112: 0.890506102 | AR112: 0.001990928446 | AS112: 0.0004347479104 | AT112: 0.8929317784 | AU112: 0.8482851895 | AV112: =0 + '1. Strategy Calcs'!AR111 -> 0.00199210756 | AW112: 0.001895685319 | AX112: 9.642224112e-05 | AY112: 4.744047774 | AZ112: 0.00199210756 | BA112: 0.0007968430241 | BC112: 0.0004868769607 | BD112: =IF((InterpolateTable(tGeneralMortality,VALUE(cycle),2))=1,1,(1-EXP(LN(1-(InterpolateTable(tGeneralMortality,VALUE(cycle),2)))*(1/4)))) -> 0.001946086009
B113: 105 | D113: ='1. Strategy Calcs'!V113 -> 1.055931333e-05 | E113: ='1. Strategy Calcs'!AB113 -> 1.203295097e-06 | F113: ='1. Strategy Calcs'!AG113 -> 5.695775931e-07 | G113: ='1. Strategy Calcs'!AM113 -> 0.1055936329 | H113: ='1. Strategy Calcs'!AP113 -> 0.8924031065 | I113: ='1. Strategy Calcs'!AV113 -> 0.001990928446 | J113: ='1. Strategy Calcs'!AJ113 + '1. Strategy Calcs'!AY113 -> 4.742596211 | K113: =J113*'Time Discounting'!D110 -> 4.739776069 | L113: 1456.759102 | M113: ='1. Strategy Calcs'!Z113 + '1. Strategy Calcs'!AE113 + '1. Strategy Calcs'!AK113 + '1. Strategy Calcs'!AT113 + '1. Strategy Calcs'!AZ113 -> 0.8944063671 | N113: =M113*'Time Discounting'!C110 -> 0.8938745165 | O113: 96.94544683 | P113: ='1. Strategy Calcs'!AA113 + '1. Strategy Calcs'!AF113 + '1. Strategy Calcs'!AL113 + '1. Strategy Calcs'!AO113 + '1. Strategy Calcs'!AU113 + '1. Strategy Calcs'!BA113 -> 0.8485911129 | Q113: =P113*'Time Discounting'!E110 -> 0.8480865059 | R113: 92.088903 | T113: 1 | V113: 1.055931333e-05 | W113: 9.460666133e-06 | X113: 1.078097866e-06 | Y113: 2.054933194e-08 | Z113: 1.055931333e-05 | AA113: 1.055931333e-05 | AB113: =0 + '1. Strategy Calcs'!X112 -> 1.203295097e-06 | AC113: 6.929793897e-07 | AD113: 5.103157068e-07 | AE113: 1.203295097e-06 | AF113: 1.082965587e-06 | AG113: =0 + '1. Strategy Calcs'!AD112 -> 5.695775931e-07 | AH113: 8.065947815e-08 | AI113: 4.88918115e-07 | AJ113: 0.001356404326 | AK113: 5.695775931e-07 | AL113: 1.480901742e-07 | AM113: =0 + '1. Strategy Calcs'!Y112 + '1. Strategy Calcs'!AH112 + AN112 + '1. Strategy Calcs'!AS112 + '1. Strategy Calcs'!AX112 -> 0.1055936329 | AN113: 0.1055936329 | AO113: 0 | AP113: =0 + '1. Strategy Calcs'!AC112 + '1. Strategy Calcs'!AI112 + AQ112 + '1. Strategy Calcs'!AW112 -> 0.8924031065 | AQ113: 0.8899788663 | AR113: 0.001989749691 | AS113: 0.0004344905122 | AT113: 0.8924031065 | AU113: 0.8477829512 | AV113: =0 + '1. Strategy Calcs'!AR112 -> 0.001990928446 | AW113: 0.001894563277 | AX113: 9.636516949e-05 | AY113: 4.741239806 | AZ113: 0.001990928446 | BA113: 0.0007963713784 | BC113: 0.0004868769607 | BD113: =IF((InterpolateTable(tGeneralMortality,VALUE(cycle),2))=1,1,(1-EXP(LN(1-(InterpolateTable(tGeneralMortality,VALUE(cycle),2)))*(1/4)))) -> 0.001946086009
B114: 106 | D114: ='1. Strategy Calcs'!V114 -> 9.460666133e-06 | E114: ='1. Strategy Calcs'!AB114 -> 1.078097866e-06 | F114: ='1. Strategy Calcs'!AG114 -> 5.103157068e-07 | G114: ='1. Strategy Calcs'!AM114 -> 0.1061245898 | H114: ='1. Strategy Calcs'!AP114 -> 0.8918746115 | I114: ='1. Strategy Calcs'!AV114 -> 0.001989749691 | J114: ='1. Strategy Calcs'!AJ114 + '1. Strategy Calcs'!AY114 -> 4.73964797 | K114: =J114*'Time Discounting'!D111 -> 4.736802748 | L114: 1461.495905 | M114: ='1. Strategy Calcs'!Z114 + '1. Strategy Calcs'!AE114 + '1. Strategy Calcs'!AK114 + '1. Strategy Calcs'!AT114 + '1. Strategy Calcs'!AZ114 -> 0.8938754102 | N114: =M114*'Time Discounting'!C111 -> 0.8933388146 | O114: 97.83878565 | P114: ='1. Strategy Calcs'!AA114 + '1. Strategy Calcs'!AF114 + '1. Strategy Calcs'!AL114 + '1. Strategy Calcs'!AO114 + '1. Strategy Calcs'!AU114 + '1. Strategy Calcs'!BA114 -> 0.8480873444 | Q114: =P114*'Time Discounting'!E111 -> 0.8475782355 | R114: 92.93648123 | T114: 1 | V114: 9.460666133e-06 | W114: 8.476328041e-06 | X114: 9.65926822e-07 | Y114: 1.841127e-08 | Z114: 9.460666133e-06 | AA114: 9.460666133e-06 | AB114: =0 + '1. Strategy Calcs'!X113 -> 1.078097866e-06 | AC114: 6.208781232e-07 | AD114: 4.572197427e-07 | AE114: 1.078097866e-06 | AF114: 9.702880793e-07 | AG114: =0 + '1. Strategy Calcs'!AD113 -> 5.103157068e-07 | AH114: 7.226723645e-08 | AI114: 4.380484703e-07 | AJ114: 0.001215276796 | AK114: 5.103157068e-07 | AL114: 1.326820838e-07 | AM114: =0 + '1. Strategy Calcs'!Y113 + '1. Strategy Calcs'!AH113 + AN113 + '1. Strategy Calcs'!AS113 + '1. Strategy Calcs'!AX113 -> 0.1061245898 | AN114: 0.1061245898 | AO114: 0 | AP114: =0 + '1. Strategy Calcs'!AC113 + '1. Strategy Calcs'!AI113 + AQ113 + '1. Strategy Calcs'!AW113 -> 0.8918746115 | AQ114: 0.8894518069 | AR114: 0.00198857133 | AS114: 0.0004342332002 | AT114: 0.8918746115 | AU114: 0.8472808809 | AV114: =0 + '1. Strategy Calcs'!AR113 -> 0.001989749691 | AW114: 0.001893441576 | AX114: 9.630811524e-05 | AY114: 4.738432694 | AZ114: 0.001989749691 | BA114: 0.0007958998764 | BC114: 0.0004868769607 | BD114: =IF((InterpolateTable(tGeneralMortality,VALUE(cycle),2))=1,1,(1-EXP(LN(1-(InterpolateTable(tGeneralMortality,VALUE(cycle),2)))*(1/4)))) -> 0.001946086009
B115: 107 | D115: ='1. Strategy Calcs'!V115 -> 8.476328041e-06 | E115: ='1. Strategy Calcs'!AB115 -> 9.65926822e-07 | F115: ='1. Strategy Calcs'!AG115 -> 4.572197427e-07 | G115: ='1. Strategy Calcs'!AM115 -> 0.1066552218 | H115: ='1. Strategy Calcs'!AP115 -> 0.8913463074 | I115: ='1. Strategy Calcs'!AV115 -> 0.00198857133 | J115: ='1. Strategy Calcs'!AJ115 + '1. Strategy Calcs'!AY115 -> 4.736715353 | K115: =J115*'Time Discounting'!D112 -> 4.733845074 | L115: 1466.22975 | M115: ='1. Strategy Calcs'!Z115 + '1. Strategy Calcs'!AE115 + '1. Strategy Calcs'!AK115 + '1. Strategy Calcs'!AT115 + '1. Strategy Calcs'!AZ115 -> 0.8933447782 | N115: =M115*'Time Discounting'!C112 -> 0.8928034435 | O115: 98.73158909 | P115: ='1. Strategy Calcs'!AA115 + '1. Strategy Calcs'!AF115 + '1. Strategy Calcs'!AL115 + '1. Strategy Calcs'!AO115 + '1. Strategy Calcs'!AU115 + '1. Strategy Calcs'!BA115 -> 0.8475838851 | Q115: =P115*'Time Discounting'!E112 -> 0.8470702798 | R115: 93.78355151 | T115: 1 | V115: 8.476328041e-06 | W115: 7.594405727e-06 | X115: 8.654266509e-07 | Y115: 1.649566341e-08 | Z115: 8.476328041e-06 | AA115: 8.476328041e-06 | AB115: =0 + '1. Strategy Calcs'!X114 -> 9.65926822e-07 | AC115: 5.562786565e-07 | AD115: 4.096481655e-07 | AE115: 9.65926822e-07 | AF115: 8.693341398e-07 | AG115: =0 + '1. Strategy Calcs'!AD114 -> 4.572197427e-07 | AH115: 6.474816828e-08 | AI115: 3.924715744e-07 | AJ115: 0.001088832925 | AK115: 4.572197427e-07 | AL115: 1.188771331e-07 | AM115: =0 + '1. Strategy Calcs'!Y114 + '1. Strategy Calcs'!AH114 + AN114 + '1. Strategy Calcs'!AS114 + '1. Strategy Calcs'!AX114 -> 0.1066552218 | AN115: 0.1066552218 | AO115: 0 | AP115: =0 + '1. Strategy Calcs'!AC114 + '1. Strategy Calcs'!AI114 + AQ114 + '1. Strategy Calcs'!AW114 -> 0.8913463074 | AQ115: 0.8889249381 | AR115: 0.001987393395 | AS115: 0.0004339759811 | AT115: 0.8913463074 | AU115: 0.8467789921 | AV115: =0 + '1. Strategy Calcs'!AR114 -> 0.00198857133 | AW115: 0.00189232025 | AX115: 9.625108007e-05 | AY115: 4.73562652 | AZ115: 0.00198857133 | BA115: 0.0007954285321 | BC115: 0.0004868769607 | BD115: =IF((InterpolateTable(tGeneralMortality,VALUE(cycle),2))=1,1,(1-EXP(LN(1-(InterpolateTable(tGeneralMortality,VALUE(cycle),2)))*(1/4)))) -> 0.001946086009
B116: 108 | D116: ='1. Strategy Calcs'!V116 -> 7.594405727e-06 | E116: ='1. Strategy Calcs'!AB116 -> 8.654266509e-07 | F116: ='1. Strategy Calcs'!AG116 -> 4.096481655e-07 | G116: ='1. Strategy Calcs'!AM116 -> 0.1071855301 | H116: ='1. Strategy Calcs'!AP116 -> 0.8908182071 | I116: ='1. Strategy Calcs'!AV116 -> 0.001987393395 | J116: ='1. Strategy Calcs'!AJ116 + '1. Strategy Calcs'!AY116 -> 4.733796905 | K116: =J116*'Time Discounting'!D113 -> 4.730901595 | L116: 1470.960652 | M116: ='1. Strategy Calcs'!Z116 + '1. Strategy Calcs'!AE116 + '1. Strategy Calcs'!AK116 + '1. Strategy Calcs'!AT116 + '1. Strategy Calcs'!AZ116 -> 0.8928144699 | N116: =M116*'Time Discounting'!C113 -> 0.8922684019 | O116: 99.62385749 | P116: ='1. Strategy Calcs'!AA116 + '1. Strategy Calcs'!AF116 + '1. Strategy Calcs'!AL116 + '1. Strategy Calcs'!AO116 + '1. Strategy Calcs'!AU116 + '1. Strategy Calcs'!BA116 -> 0.8470807339 | Q116: =P116*'Time Discounting'!E113 -> 0.8465626377 | R116: 94.63011415 | T116: 1 | V116: 7.594405727e-06 | W116: 6.804243307e-06 | X116: 7.753830529e-07 | Y116: 1.477936674e-08 | Z116: 7.594405727e-06 | AA116: 7.594405727e-06 | AB116: =0 + '1. Strategy Calcs'!X115 -> 8.654266509e-07 | AC116: 4.984004623e-07 | AD116: 3.670261886e-07 | AE116: 8.654266509e-07 | AF116: 7.788839858e-07 | AG116: =0 + '1. Strategy Calcs'!AD115 -> 4.096481655e-07 | AH116: 5.8011424e-08 | AI116: 3.516367415e-07 | AJ116: 0.0009755449488 | AK116: 4.096481655e-07 | AL116: 1.06508523e-07 | AM116: =0 + '1. Strategy Calcs'!Y115 + '1. Strategy Calcs'!AH115 + AN115 + '1. Strategy Calcs'!AS115 + '1. Strategy Calcs'!AX115 -> 0.1071855301 | AN116: 0.1071855301 | AO116: 0 | AP116: =0 + '1. Strategy Calcs'!AC115 + '1. Strategy Calcs'!AI115 + AQ115 + '1. Strategy Calcs'!AW115 -> 0.8908182071 | AQ116: 0.8883982723 | AR116: 0.001986215914 | AS116: 0.0004337188612 | AT116: 0.8908182071 | AU116: 0.8462772967 | AV116: =0 + '1. Strategy Calcs'!AR115 -> 0.001987393395 | AW116: 0.00189119933 | AX116: 9.619406551e-05 | AY116: 4.73282136 | AZ116: 0.001987393395 | BA116: 0.0007949573581 | BC116: 0.0004868769607 | BD116: =IF((InterpolateTable(tGeneralMortality,VALUE(cycle),2))=1,1,(1-EXP(LN(1-(InterpolateTable(tGeneralMortality,VALUE(cycle),2)))*(1/4)))) -> 0.001946086009
B117: 109 | D117: ='1. Strategy Calcs'!V117 -> 6.804243307e-06 | E117: ='1. Strategy Calcs'!AB117 -> 7.753830529e-07 | F117: ='1. Strategy Calcs'!AG117 -> 3.670261886e-07 | G117: ='1. Strategy Calcs'!AM117 -> 0.1077155158 | H117: ='1. Strategy Calcs'!AP117 -> 0.8902903217 | I117: ='1. Strategy Calcs'!AV117 -> 0.001986215914 | J117: ='1. Strategy Calcs'!AJ117 + '1. Strategy Calcs'!AY117 -> 4.730891326 | K117: =J117*'Time Discounting'!D114 -> 4.727971009 | L117: 1475.688623 | M117: ='1. Strategy Calcs'!Z117 + '1. Strategy Calcs'!AE117 + '1. Strategy Calcs'!AK117 + '1. Strategy Calcs'!AT117 + '1. Strategy Calcs'!AZ117 -> 0.8922844842 | N117: =M117*'Time Discounting'!C114 -> 0.8917336887 | O117: 100.5155912 | P117: ='1. Strategy Calcs'!AA117 + '1. Strategy Calcs'!AF117 + '1. Strategy Calcs'!AL117 + '1. Strategy Calcs'!AO117 + '1. Strategy Calcs'!AU117 + '1. Strategy Calcs'!BA117 -> 0.8465778895 | Q117: =P117*'Time Discounting'!E114 -> 0.846055308 | R117: 95.47616946 | T117: 1 | V117: 6.804243307e-06 | W117: 6.09460719e-06 | X117: 6.947080704e-07 | Y117: 1.49280468e-08 | Z117: 6.804243307e-06 | AA117: 6.804243307e-06 | AB117: =0 + '1. Strategy Calcs'!X116 -> 7.753830529e-07 | AC117: 4.465442237e-07 | AD117: 3.288388292e-07 | AE117: 7.753830529e-07 | AF117: 6.978447476e-07 | AG117: =0 + '1. Strategy Calcs'!AD116 -> 3.670261886e-07 | AH117: 5.197560648e-08 | AI117: 3.150505821e-07 | AJ117: 0.0008740440566 | AK117: 3.670261886e-07 | AL117: 9.542680903e-08 | AM117: =0 + '1. Strategy Calcs'!Y116 + '1. Strategy Calcs'!AH116 + AN116 + '1. Strategy Calcs'!AS116 + '1. Strategy Calcs'!AX116 -> 0.1077155158 | AN117: 0.1077155158 | AO117: 0 | AP117: =0 + '1. Strategy Calcs'!AC116 + '1. Strategy Calcs'!AI116 + AQ116 + '1. Strategy Calcs'!AW116 -> 0.8902903217 | AQ117: 0.8878165714 | AR117: 0.001985038913 | AS117: 0.0004887113545 | AT117: 0.8902903217 | AU117: 0.8457758056 | AV117: =0 + '1. Strategy Calcs'!AR116 -> 0.001986215914 | AW117: 0.001890078841 | AX117: 9.613707294e-05 | AY117: 4.730017282 | AZ117: 0.001986215914 | BA117: 0.0007944863658 | BC117: 0.0005489348167 | BD117: =IF((InterpolateTable(tGeneralMortality,VALUE(cycle),2))=1,1,(1-EXP(LN(1-(InterpolateTable(tGeneralMortality,VALUE(cycle),2)))*(1/4)))) -> 0.002193931952
B118: 110 | D118: ='1. Strategy Calcs'!V118 -> 6.09460719e-06 | E118: ='1. Strategy Calcs'!AB118 -> 6.947080704e-07 | F118: ='1. Strategy Calcs'!AG118 -> 3.288388292e-07 | G118: ='1. Strategy Calcs'!AM118 -> 0.1083004311 | H118: ='1. Strategy Calcs'!AP118 -> 0.8897074118 | I118: ='1. Strategy Calcs'!AV118 -> 0.001985038913 | J118: ='1. Strategy Calcs'!AJ118 + '1. Strategy Calcs'!AY118 -> 4.727997449 | K118: =J118*'Time Discounting'!D115 -> 4.725052151 | L118: 1480.413675 | M118: ='1. Strategy Calcs'!Z118 + '1. Strategy Calcs'!AE118 + '1. Strategy Calcs'!AK118 + '1. Strategy Calcs'!AT118 + '1. Strategy Calcs'!AZ118 -> 0.8916995689 | N118: =M118*'Time Discounting'!C115 -> 0.8911440861 | O118: 101.4067353 | P118: ='1. Strategy Calcs'!AA118 + '1. Strategy Calcs'!AF118 + '1. Strategy Calcs'!AL118 + '1. Strategy Calcs'!AO118 + '1. Strategy Calcs'!AU118 + '1. Strategy Calcs'!BA118 -> 0.8460228621 | Q118: =P118*'Time Discounting'!E115 -> 0.8454958336 | R118: 96.32166529 | T118: 1 | V118: 6.09460719e-06 | W118: 5.458981275e-06 | X118: 6.222547622e-07 | Y118: 1.337115345e-08 | Z118: 6.09460719e-06 | AA118: 6.09460719e-06 | AB118: =0 + '1. Strategy Calcs'!X117 -> 6.947080704e-07 | AC118: 4.000833844e-07 | AD118: 2.94624686e-07 | AE118: 6.947080704e-07 | AF118: 6.252372633e-07 | AG118: =0 + '1. Strategy Calcs'!AD117 -> 3.288388292e-07 | AH118: 4.656778756e-08 | AI118: 2.822710416e-07 | AJ118: 0.0007831038578 | AK118: 3.288388292e-07 | AL118: 8.549809558e-08 | AM118: =0 + '1. Strategy Calcs'!Y117 + '1. Strategy Calcs'!AH117 + AN117 + '1. Strategy Calcs'!AS117 + '1. Strategy Calcs'!AX117 -> 0.1083004311 | AN118: 0.1083004311 | AO118: 0 | AP118: =0 + '1. Strategy Calcs'!AC117 + '1. Strategy Calcs'!AI117 + AQ117 + '1. Strategy Calcs'!AW117 -> 0.8897074118 | AQ118: 0.8872352812 | AR118: 0.001983739226 | AS118: 0.000488391375 | AT118: 0.8897074118 | AU118: 0.8452220412 | AV118: =0 + '1. Strategy Calcs'!AR117 -> 0.001985038913 | AW118: 0.001888958809 | AX118: 9.608010356e-05 | AY118: 4.727214345 | AZ118: 0.001985038913 | BA118: 0.0007940155651 | BC118: 0.0005489348167 | BD118: =IF((InterpolateTable(tGeneralMortality,VALUE(cycle),2))=1,1,(1-EXP(LN(1-(InterpolateTable(tGeneralMortality,VALUE(cycle),2)))*(1/4)))) -> 0.002193931952
B119: 111 | D119: ='1. Strategy Calcs'!V119 -> 5.458981275e-06 | E119: ='1. Strategy Calcs'!AB119 -> 6.222547622e-07 | F119: ='1. Strategy Calcs'!AG119 -> 2.94624686e-07 | G119: ='1. Strategy Calcs'!AM119 -> 0.1088849625 | H119: ='1. Strategy Calcs'!AP119 -> 0.8891249224 | I119: ='1. Strategy Calcs'!AV119 -> 0.001983739226 | J119: ='1. Strategy Calcs'!AJ119 + '1. Strategy Calcs'!AY119 -> 4.724820869 | K119: =J119*'Time Discounting'!D116 -> 4.7218508 | L119: 1485.135526 | M119: ='1. Strategy Calcs'!Z119 + '1. Strategy Calcs'!AE119 + '1. Strategy Calcs'!AK119 + '1. Strategy Calcs'!AT119 + '1. Strategy Calcs'!AZ119 -> 0.8911150375 | N119: =M119*'Time Discounting'!C116 -> 0.8905548739 | O119: 102.2972901 | P119: ='1. Strategy Calcs'!AA119 + '1. Strategy Calcs'!AF119 + '1. Strategy Calcs'!AL119 + '1. Strategy Calcs'!AO119 + '1. Strategy Calcs'!AU119 + '1. Strategy Calcs'!BA119 -> 0.8454682676 | Q119: =P119*'Time Discounting'!E116 -> 0.844936798 | R119: 97.16660209 | T119: 1 | V119: 5.458981275e-06 | W119: 4.889646802e-06 | X119: 5.573578393e-07 | Y119: 1.197663344e-08 | Z119: 5.458981275e-06 | AA119: 5.458981275e-06 | AB119: =0 + '1. Strategy Calcs'!X118 -> 6.222547622e-07 | AC119: 3.583574192e-07 | AD119: 2.638973429e-07 | AE119: 6.222547622e-07 | AF119: 5.600292859e-07 | AG119: =0 + '1. Strategy Calcs'!AD118 -> 2.94624686e-07 | AH119: 4.172262692e-08 | AI119: 2.529020591e-07 | AJ119: 0.0007016255616 | AK119: 2.94624686e-07 | AL119: 7.660241835e-08 | AM119: =0 + '1. Strategy Calcs'!Y118 + '1. Strategy Calcs'!AH118 + AN118 + '1. Strategy Calcs'!AS118 + '1. Strategy Calcs'!AX118 -> 0.1088849625 | AN119: 0.1088849625 | AO119: 0 | AP119: =0 + '1. Strategy Calcs'!AC118 + '1. Strategy Calcs'!AI118 + AQ118 + '1. Strategy Calcs'!AW118 -> 0.8891249224 | AQ119: 0.8866544103 | AR119: 0.001982440476 | AS119: 0.0004880716263 | AT119: 0.8891249224 | AU119: 0.8446686763 | AV119: =0 + '1. Strategy Calcs'!AR118 -> 0.001983739226 | AW119: 0.00188772203 | AX119: 9.601719595e-05 | AY119: 4.724119243 | AZ119: 0.001983739226 | BA119: 0.0007934956904 | BC119: 0.0005489348167 | BD119: =IF((InterpolateTable(tGeneralMortality,VALUE(cycle),2))=1,1,(1-EXP(LN(1-(InterpolateTable(tGeneralMortality,VALUE(cycle),2)))*(1/4)))) -> 0.002193931952
B120: 112 | D120: ='1. Strategy Calcs'!V120 -> 4.889646802e-06 | E120: ='1. Strategy Calcs'!AB120 -> 5.573578393e-07 | F120: ='1. Strategy Calcs'!AG120 -> 2.638973429e-07 | G120: ='1. Strategy Calcs'!AM120 -> 0.109469105 | H120: ='1. Strategy Calcs'!AP120 -> 0.8885427436 | I120: ='1. Strategy Calcs'!AV120 -> 0.001982440476 | J120: ='1. Strategy Calcs'!AJ120 + '1. Strategy Calcs'!AY120 -> 4.721654824 | K120: =J120*'Time Discounting'!D117 -> 4.718660015 | L120: 1489.854186 | M120: ='1. Strategy Calcs'!Z120 + '1. Strategy Calcs'!AE120 + '1. Strategy Calcs'!AK120 + '1. Strategy Calcs'!AT120 + '1. Strategy Calcs'!AZ120 -> 0.890530895 | N120: =M120*'Time Discounting'!C117 -> 0.889966057 | O120: 103.1872562 | P120: ='1. Strategy Calcs'!AA120 + '1. Strategy Calcs'!AF120 + '1. Strategy Calcs'!AL120 + '1. Strategy Calcs'!AO120 + '1. Strategy Calcs'!AU120 + '1. Strategy Calcs'!BA120 -> 0.8449140425 | Q120: =P120*'Time Discounting'!E117 -> 0.8443781379 | R120: 98.01098023 | T120: 1 | V120: 4.889646802e-06 | W120: 4.379690027e-06 | X120: 4.992292223e-07 | Y120: 1.072755235e-08 | Z120: 4.889646802e-06 | AA120: 4.889646802e-06 | AB120: =0 + '1. Strategy Calcs'!X119 -> 5.573578393e-07 | AC120: 3.209831873e-07 | AD120: 2.36374652e-07 | AE120: 5.573578393e-07 | AF120: 5.016220553e-07 | AG120: =0 + '1. Strategy Calcs'!AD119 -> 2.638973429e-07 | AH120: 3.737124182e-08 | AI120: 2.265261011e-07 | AJ120: 0.0006284508063 | AK120: 2.638973429e-07 | AL120: 6.861330916e-08 | AM120: =0 + '1. Strategy Calcs'!Y119 + '1. Strategy Calcs'!AH119 + AN119 + '1. Strategy Calcs'!AS119 + '1. Strategy Calcs'!AX119 -> 0.109469105 | AN120: 0.109469105 | AO120: 0 | AP120: =0 + '1. Strategy Calcs'!AC119 + '1. Strategy Calcs'!AI119 + AQ119 + '1. Strategy Calcs'!AW119 -> 0.8885427436 | AQ120: 0.8860738491 | AR120: 0.001981142419 | AS120: 0.0004877520481 | AT120: 0.8885427436 | AU120: 0.8441156064 | AV120: =0 + '1. Strategy Calcs'!AR119 -> 0.001982440476 | AW120: 0.001886486143 | AX120: 9.595433371e-05 | AY120: 4.721026373 | AZ120: 0.001982440476 | BA120: 0.0007929761905 | BC120: 0.0005489348167 | BD120: =IF((InterpolateTable(tGeneralMortality,VALUE(cycle),2))=1,1,(1-EXP(LN(1-(InterpolateTable(tGeneralMortality,VALUE(cycle),2)))*(1/4)))) -> 0.002193931952
B121: 113 | D121: ='1. Strategy Calcs'!V121 -> 4.379690027e-06 | E121: ='1. Strategy Calcs'!AB121 -> 4.992292223e-07 | F121: ='1. Strategy Calcs'!AG121 -> 2.36374652e-07 | G121: ='1. Strategy Calcs'!AM121 -> 0.1100528595 | H121: ='1. Strategy Calcs'!AP121 -> 0.8879608828 | I121: ='1. Strategy Calcs'!AV121 -> 0.001981142419 | J121: ='1. Strategy Calcs'!AJ121 + '1. Strategy Calcs'!AY121 -> 4.71849806 | K121: =J121*'Time Discounting'!D118 -> 4.71547854 | L121: 1494.569664 | M121: ='1. Strategy Calcs'!Z121 + '1. Strategy Calcs'!AE121 + '1. Strategy Calcs'!AK121 + '1. Strategy Calcs'!AT121 + '1. Strategy Calcs'!AZ121 -> 0.8899471405 | N121: =M121*'Time Discounting'!C118 -> 0.8893776345 | O121: 104.0766338 | P121: ='1. Strategy Calcs'!AA121 + '1. Strategy Calcs'!AF121 + '1. Strategy Calcs'!AL121 + '1. Strategy Calcs'!AO121 + '1. Strategy Calcs'!AU121 + '1. Strategy Calcs'!BA121 -> 0.844360186 | Q121: =P121*'Time Discounting'!E118 -> 0.8438198526 | R121: 98.85480008 | T121: 1 | V121: 4.379690027e-06 | W121: 3.922918262e-06 | X121: 4.471630232e-07 | Y121: 9.60874189e-09 | Z121: 4.379690027e-06 | AA121: 4.379690027e-06 | AB121: =0 + '1. Strategy Calcs'!X120 -> 4.992292223e-07 | AC121: 2.875068325e-07 | AD121: 2.117223898e-07 | AE121: 4.992292223e-07 | AF121: 4.493063001e-07 | AG121: =0 + '1. Strategy Calcs'!AD120 -> 2.36374652e-07 | AH121: 3.347367647e-08 | AI121: 2.029009755e-07 | AJ121: 0.0005629076783 | AK121: 2.36374652e-07 | AL121: 6.145740951e-08 | AM121: =0 + '1. Strategy Calcs'!Y120 + '1. Strategy Calcs'!AH120 + AN120 + '1. Strategy Calcs'!AS120 + '1. Strategy Calcs'!AX120 -> 0.1100528595 | AN121: 0.1100528595 | AO121: 0 | AP121: =0 + '1. Strategy Calcs'!AC120 + '1. Strategy Calcs'!AI120 + AQ120 + '1. Strategy Calcs'!AW120 -> 0.8879608828 | AQ121: 0.885493605 | AR121: 0.001979845071 | AS121: 0.0004874326444 | AT121: 0.8879608828 | AU121: 0.8435628386 | AV121: =0 + '1. Strategy Calcs'!AR120 -> 0.001981142419 | AW121: 0.001885250914 | AX121: 9.589150499e-05 | AY121: 4.717935152 | AZ121: 0.001981142419 | BA121: 0.0007924569677 | BC121: 0.0005489348167 | BD121: =IF((InterpolateTable(tGeneralMortality,VALUE(cycle),2))=1,1,(1-EXP(LN(1-(InterpolateTable(tGeneralMortality,VALUE(cycle),2)))*(1/4)))) -> 0.002193931952
B122: 114 | D122: ='1. Strategy Calcs'!V122 -> 3.922918262e-06 | E122: ='1. Strategy Calcs'!AB122 -> 4.471630232e-07 | F122: ='1. Strategy Calcs'!AG122 -> 2.117223898e-07 | G122: ='1. Strategy Calcs'!AM122 -> 0.1106362268 | H122: ='1. Strategy Calcs'!AP122 -> 0.8873793464 | I122: ='1. Strategy Calcs'!AV122 -> 0.001979845071 | J122: ='1. Strategy Calcs'!AJ122 + '1. Strategy Calcs'!AY122 -> 4.71534982 | K122: =J122*'Time Discounting'!D119 -> 4.71230562 | L122: 1499.28197 | M122: ='1. Strategy Calcs'!Z122 + '1. Strategy Calcs'!AE122 + '1. Strategy Calcs'!AK122 + '1. Strategy Calcs'!AT122 + '1. Strategy Calcs'!AZ122 -> 0.8893637732 | N122: =M122*'Time Discounting'!C119 -> 0.8887896056 | O122: 104.9654234 | P122: ='1. Strategy Calcs'!AA122 + '1. Strategy Calcs'!AF122 + '1. Strategy Calcs'!AL122 + '1. Strategy Calcs'!AO122 + '1. Strategy Calcs'!AU122 + '1. Strategy Calcs'!BA122 -> 0.8438066975 | Q122: =P122*'Time Discounting'!E119 -> 0.8432619412 | R122: 99.69806202 | T122: 1 | V122: 3.922918262e-06 | W122: 3.513784673e-06 | X122: 4.005269731e-07 | Y122: 8.60661572e-09 | Z122: 3.922918262e-06 | AA122: 3.922918262e-06 | AB122: =0 + '1. Strategy Calcs'!X121 -> 4.471630232e-07 | AC122: 2.57521833e-07 | AD122: 1.896411902e-07 | AE122: 4.471630232e-07 | AF122: 4.024467209e-07 | AG122: =0 + '1. Strategy Calcs'!AD121 -> 2.117223898e-07 | AH122: 2.998260057e-08 | AI122: 1.817397892e-07 | AJ122: 0.000504200251 | AK122: 2.117223898e-07 | AL122: 5.504782134e-08 | AM122: =0 + '1. Strategy Calcs'!Y121 + '1. Strategy Calcs'!AH121 + AN121 + '1. Strategy Calcs'!AS121 + '1. Strategy Calcs'!AX121 -> 0.1106362268 | AN122: 0.1106362268 | AO122: 0 | AP122: =0 + '1. Strategy Calcs'!AC121 + '1. Strategy Calcs'!AI121 + AQ121 + '1. Strategy Calcs'!AW121 -> 0.8873793464 | AQ122: 0.8849136845 | AR122: 0.001978548447 | AS122: 0.0004871134188 | AT122: 0.8873793464 | AU122: 0.843010379 | AV122: =0 + '1. Strategy Calcs'!AR121 -> 0.001979845071 | AW122: 0.001884016361 | AX122: 9.582871059e-05 | AY122: 4.714845619 | AZ122: 0.001979845071 | BA122: 0.0007919380285 | BC122: 0.0005489348167 | BD122: =IF((InterpolateTable(tGeneralMortality,VALUE(cycle),2))=1,1,(1-EXP(LN(1-(InterpolateTable(tGeneralMortality,VALUE(cycle),2)))*(1/4)))) -> 0.002193931952
B123: 115 | D123: ='1. Strategy Calcs'!V123 -> 3.513784673e-06 | E123: ='1. Strategy Calcs'!AB123 -> 4.005269731e-07 | F123: ='1. Strategy Calcs'!AG123 -> 1.896411902e-07 | G123: ='1. Strategy Calcs'!AM123 -> 0.1112192075 | H123: ='1. Strategy Calcs'!AP123 -> 0.8867981401 | I123: ='1. Strategy Calcs'!AV123 -> 0.001978548447 | J123: ='1. Strategy Calcs'!AJ123 + '1. Strategy Calcs'!AY123 -> 4.712209425 | K123: =J123*'Time Discounting'!D120 -> 4.709140576 | L123: 1503.99111 | M123: ='1. Strategy Calcs'!Z123 + '1. Strategy Calcs'!AE123 + '1. Strategy Calcs'!AK123 + '1. Strategy Calcs'!AT123 + '1. Strategy Calcs'!AZ123 -> 0.8887807925 | N123: =M123*'Time Discounting'!C120 -> 0.8882019696 | O123: 105.8536254 | P123: ='1. Strategy Calcs'!AA123 + '1. Strategy Calcs'!AF123 + '1. Strategy Calcs'!AL123 + '1. Strategy Calcs'!AO123 + '1. Strategy Calcs'!AU123 + '1. Strategy Calcs'!BA123 -> 0.8432535761 | Q123: =P123*'Time Discounting'!E120 -> 0.842704403 | R123: 100.5407664 | T123: 1 | V123: 3.513784673e-06 | W123: 3.147320924e-06 | X123: 3.587547446e-07 | Y123: 7.709004467e-09 | Z123: 3.513784673e-06 | AA123: 3.513784673e-06 | AB123: =0 + '1. Strategy Calcs'!X122 -> 4.005269731e-07 | AC123: 2.306640642e-07 | AD123: 1.698629089e-07 | AE123: 4.005269731e-07 | AF123: 3.604742758e-07 | AG123: =0 + '1. Strategy Calcs'!AD122 -> 1.896411902e-07 | AH123: 2.685562006e-08 | AI123: 1.627855701e-07 | AJ123: 0.0004516156075 | AK123: 1.896411902e-07 | AL123: 4.930670944e-08 | AM123: =0 + '1. Strategy Calcs'!Y122 + '1. Strategy Calcs'!AH122 + AN122 + '1. Strategy Calcs'!AS122 + '1. Strategy Calcs'!AX122 -> 0.1112192075 | AN123: 0.1112192075 | AO123: 0 | AP123: =0 + '1. Strategy Calcs'!AC122 + '1. Strategy Calcs'!AI122 + AQ122 + '1. Strategy Calcs'!AW122 -> 0.8867981401 | AQ123: 0.8843340932 | AR123: 0.001977252558 | AS123: 0.0004867943745 | AT123: 0.8867981401 | AU123: 0.8424582331 | AV123: =0 + '1. Strategy Calcs'!AR122 -> 0.001978548447 | AW123: 0.001882782495 | AX123: 9.57659512e-05 | AY123: 4.71175781 | AZ123: 0.001978548447 | BA123: 0.0007914193787 | BC123: 0.0005489348167 | BD123: =IF((InterpolateTable(tGeneralMortality,VALUE(cycle),2))=1,1,(1-EXP(LN(1-(InterpolateTable(tGeneralMortality,VALUE(cycle),2)))*(1/4)))) -> 0.002193931952
B124: 116 | D124: ='1. Strategy Calcs'!V124 -> 3.147320924e-06 | E124: ='1. Strategy Calcs'!AB124 -> 3.587547446e-07 | F124: ='1. Strategy Calcs'!AG124 -> 1.698629089e-07 | G124: ='1. Strategy Calcs'!AM124 -> 0.1118018024 | H124: ='1. Strategy Calcs'!AP124 -> 0.8862172691 | I124: ='1. Strategy Calcs'!AV124 -> 0.001977252558 | J124: ='1. Strategy Calcs'!AJ124 + '1. Strategy Calcs'!AY124 -> 4.709076268 | K124: =J124*'Time Discounting'!D121 -> 4.7059828 | L124: 1508.697093 | M124: ='1. Strategy Calcs'!Z124 + '1. Strategy Calcs'!AE124 + '1. Strategy Calcs'!AK124 + '1. Strategy Calcs'!AT124 + '1. Strategy Calcs'!AZ124 -> 0.8881981976 | N124: =M124*'Time Discounting'!C121 -> 0.8876147259 | O124: 106.7412401 | P124: ='1. Strategy Calcs'!AA124 + '1. Strategy Calcs'!AF124 + '1. Strategy Calcs'!AL124 + '1. Strategy Calcs'!AO124 + '1. Strategy Calcs'!AU124 + '1. Strategy Calcs'!BA124 -> 0.8427008211 | Q124: =P124*'Time Discounting'!E121 -> 0.8421472373 | R124: 101.3829137 | T124: 1 | V124: 3.147320924e-06 | W124: 2.819076842e-06 | X124: 3.213390744e-07 | Y124: 6.905007938e-09 | Z124: 3.147320924e-06 | AA124: 3.147320924e-06 | AB124: =0 + '1. Strategy Calcs'!X123 -> 3.587547446e-07 | AC124: 2.066073773e-07 | AD124: 1.521473673e-07 | AE124: 3.587547446e-07 | AF124: 3.228792702e-07 | AG124: =0 + '1. Strategy Calcs'!AD123 -> 1.698629089e-07 | AH124: 2.405476226e-08 | AI124: 1.458081467e-07 | AJ124: 0.0004045151833 | AK124: 1.698629089e-07 | AL124: 4.416435632e-08 | AM124: =0 + '1. Strategy Calcs'!Y123 + '1. Strategy Calcs'!AH123 + AN123 + '1. Strategy Calcs'!AS123 + '1. Strategy Calcs'!AX123 -> 0.1118018024 | AN124: 0.1118018024 | AO124: 0 | AP124: =0 + '1. Strategy Calcs'!AC123 + '1. Strategy Calcs'!AI123 + AQ123 + '1. Strategy Calcs'!AW123 -> 0.8862172691 | AQ124: 0.8837548362 | AR124: 0.001975957417 | AS124: 0.0004864755142 | AT124: 0.8862172691 | AU124: 0.8419064057 | AV124: =0 + '1. Strategy Calcs'!AR123 -> 0.001977252558 | AW124: 0.001881549331 | AX124: 9.570322744e-05 | AY124: 4.708671753 | AZ124: 0.001977252558 | BA124: 0.0007909010233 | BC124: 0.0005489348167 | BD124: =IF((InterpolateTable(tGeneralMortality,VALUE(cycle),2))=1,1,(1-EXP(LN(1-(InterpolateTable(tGeneralMortality,VALUE(cycle),2)))*(1/4)))) -> 0.002193931952
B125: 117 | D125: ='1. Strategy Calcs'!V125 -> 2.819076842e-06 | E125: ='1. Strategy Calcs'!AB125 -> 3.213390744e-07 | F125: ='1. Strategy Calcs'!AG125 -> 1.521473673e-07 | G125: ='1. Strategy Calcs'!AM125 -> 0.1123840121 | H125: ='1. Strategy Calcs'!AP125 -> 0.8856367379 | I125: ='1. Strategy Calcs'!AV125 -> 0.001975957417 | J125: ='1. Strategy Calcs'!AJ125 + '1. Strategy Calcs'!AY125 -> 4.705949803 | K125: =J125*'Time Discounting'!D122 -> 4.702831747 | L125: 1513.399925 | M125: ='1. Strategy Calcs'!Z125 + '1. Strategy Calcs'!AE125 + '1. Strategy Calcs'!AK125 + '1. Strategy Calcs'!AT125 + '1. Strategy Calcs'!AZ125 -> 0.8876159879 | N125: =M125*'Time Discounting'!C122 -> 0.8870278737 | O125: 107.628268 | P125: ='1. Strategy Calcs'!AA125 + '1. Strategy Calcs'!AF125 + '1. Strategy Calcs'!AL125 + '1. Strategy Calcs'!AO125 + '1. Strategy Calcs'!AU125 + '1. Strategy Calcs'!BA125 -> 0.8421484319 | Q125: =P125*'Time Discounting'!E122 -> 0.8415904434 | R125: 102.2245041 | T125: 1 | V125: 2.819076842e-06 | W125: 2.525066376e-06 | X125: 2.87825603e-07 | Y125: 6.184862758e-09 | Z125: 2.819076842e-06 | AA125: 2.819076842e-06 | AB125: =0 + '1. Strategy Calcs'!X124 -> 3.213390744e-07 | AC125: 1.850596386e-07 | AD125: 1.362794358e-07 | AE125: 3.213390744e-07 | AF125: 2.892051669e-07 | AG125: =0 + '1. Strategy Calcs'!AD124 -> 1.521473673e-07 | AH125: 2.15460148e-08 | AI125: 1.306013525e-07 | AJ125: 0.0003623270118 | AK125: 1.521473673e-07 | AL125: 3.955831551e-08 | AM125: =0 + '1. Strategy Calcs'!Y124 + '1. Strategy Calcs'!AH124 + AN124 + '1. Strategy Calcs'!AS124 + '1. Strategy Calcs'!AX124 -> 0.1123840121 | AN125: 0.1123840121 | AO125: 0 | AP125: =0 + '1. Strategy Calcs'!AC124 + '1. Strategy Calcs'!AI124 + AQ124 + '1. Strategy Calcs'!AW124 -> 0.8856367379 | AQ125: 0.8831759181 | AR125: 0.001974663034 | AS125: 0.0004861568404 | AT125: 0.8856367379 | AU125: 0.841354901 | AV125: =0 + '1. Strategy Calcs'!AR124 -> 0.001975957417 | AW125: 0.001880316877 | AX125: 9.564053986e-05 | AY125: 4.705587476 | AZ125: 0.001975957417 | BA125: 0.0007903829668 | BC125: 0.0005489348167 | BD125: =IF((InterpolateTable(tGeneralMortality,VALUE(cycle),2))=1,1,(1-EXP(LN(1-(InterpolateTable(tGeneralMortality,VALUE(cycle),2)))*(1/4)))) -> 0.002193931952
B126: 118 | D126: ='1. Strategy Calcs'!V126 -> 2.525066376e-06 | E126: ='1. Strategy Calcs'!AB126 -> 2.87825603e-07 | F126: ='1. Strategy Calcs'!AG126 -> 1.362794358e-07 | G126: ='1. Strategy Calcs'!AM126 -> 0.1129658372 | H126: ='1. Strategy Calcs'!AP126 -> 0.8850565506 | I126: ='1. Strategy Calcs'!AV126 -> 0.001974663034 | J126: ='1. Strategy Calcs'!AJ126 + '1. Strategy Calcs'!AY126 -> 4.702829543 | K126: =J126*'Time Discounting'!D123 -> 4.699686931 | L126: 1518.099612 | M126: ='1. Strategy Calcs'!Z126 + '1. Strategy Calcs'!AE126 + '1. Strategy Calcs'!AK126 + '1. Strategy Calcs'!AT126 + '1. Strategy Calcs'!AZ126 -> 0.8870341628 | N126: =M126*'Time Discounting'!C123 -> 0.8864414124 | O126: 108.5147094 | P126: ='1. Strategy Calcs'!AA126 + '1. Strategy Calcs'!AF126 + '1. Strategy Calcs'!AL126 + '1. Strategy Calcs'!AO126 + '1. Strategy Calcs'!AU126 + '1. Strategy Calcs'!BA126 -> 0.8415964078 | Q126: =P126*'Time Discounting'!E123 -> 0.8410340207 | R126: 103.0655381 | T126: 1 | V126: 2.525066376e-06 | W126: 2.261719194e-06 | X126: 2.578073579e-07 | Y126: 5.539823803e-09 | Z126: 2.525066376e-06 | AA126: 2.525066376e-06 | AB126: =0 + '1. Strategy Calcs'!X125 -> 2.87825603e-07 | AC126: 1.657591819e-07 | AD126: 1.220664212e-07 | AE126: 2.87825603e-07 | AF126: 2.590430427e-07 | AG126: =0 + '1. Strategy Calcs'!AD125 -> 1.362794358e-07 | AH126: 1.929891258e-08 | AI126: 1.169805232e-07 | AJ126: 0.0003245387784 | AK126: 1.362794358e-07 | AL126: 3.543265331e-08 | AM126: =0 + '1. Strategy Calcs'!Y125 + '1. Strategy Calcs'!AH125 + AN125 + '1. Strategy Calcs'!AS125 + '1. Strategy Calcs'!AX125 -> 0.1129658372 | AN126: 0.1129658372 | AO126: 0 | AP126: =0 + '1. Strategy Calcs'!AC125 + '1. Strategy Calcs'!AI125 + AQ125 + '1. Strategy Calcs'!AW125 -> 0.8850565506 | AQ126: 0.8825973428 | AR126: 0.001973369417 | AS126: 0.0004858383554 | AT126: 0.8850565506 | AU126: 0.8408037231 | AV126: =0 + '1. Strategy Calcs'!AR125 -> 0.001974663034 | AW126: 0.001879085145 | AX126: 9.557788895e-05 | AY126: 4.702505004 | AZ126: 0.001974663034 | BA126: 0.0007898652135 | BC126: 0.0005489348167 | BD126: =IF((InterpolateTable(tGeneralMortality,VALUE(cycle),2))=1,1,(1-EXP(LN(1-(InterpolateTable(tGeneralMortality,VALUE(cycle),2)))*(1/4)))) -> 0.002193931952
B127: 119 | D127: ='1. Strategy Calcs'!V127 -> 2.261719194e-06 | E127: ='1. Strategy Calcs'!AB127 -> 2.578073579e-07 | F127: ='1. Strategy Calcs'!AG127 -> 1.220664212e-07 | G127: ='1. Strategy Calcs'!AM127 -> 0.1135472783 | H127: ='1. Strategy Calcs'!AP127 -> 0.8844767107 | I127: ='1. Strategy Calcs'!AV127 -> 0.001973369417 | J127: ='1. Strategy Calcs'!AJ127 + '1. Strategy Calcs'!AY127 -> 4.699715049 | K127: =J127*'Time Discounting'!D124 -> 4.696547912 | L127: 1522.79616 | M127: ='1. Strategy Calcs'!Z127 + '1. Strategy Calcs'!AE127 + '1. Strategy Calcs'!AK127 + '1. Strategy Calcs'!AT127 + '1. Strategy Calcs'!AZ127 -> 0.8864527217 | N127: =M127*'Time Discounting'!C124 -> 0.8858553416 | O127: 109.4005648 | P127: ='1. Strategy Calcs'!AA127 + '1. Strategy Calcs'!AF127 + '1. Strategy Calcs'!AL127 + '1. Strategy Calcs'!AO127 + '1. Strategy Calcs'!AU127 + '1. Strategy Calcs'!BA127 -> 0.8410447484 | Q127: =P127*'Time Discounting'!E124 -> 0.8404779687 | R127: 103.9060161 | T127: 1 | V127: 2.261719194e-06 | W127: 2.025837326e-06 | X127: 2.309198108e-07 | Y127: 4.962058007e-09 | Z127: 2.261719194e-06 | AA127: 2.261719194e-06 | AB127: =0 + '1. Strategy Calcs'!X126 -> 2.578073579e-07 | AC127: 1.48471631e-07 | AD127: 1.093357269e-07 | AE127: 2.578073579e-07 | AF127: 2.320266221e-07 | AG127: =0 + '1. Strategy Calcs'!AD126 -> 1.220664212e-07 | AH127: 1.728616777e-08 | AI127: 1.047802534e-07 | AJ127: 0.0002906915998 | AK127: 1.220664212e-07 | AL127: 3.17372695e-08 | AM127: =0 + '1. Strategy Calcs'!Y126 + '1. Strategy Calcs'!AH126 + AN126 + '1. Strategy Calcs'!AS126 + '1. Strategy Calcs'!AX126 -> 0.1135472783 | AN127: 0.1135472783 | AO127: 0 | AP127: =0 + '1. Strategy Calcs'!AC126 + '1. Strategy Calcs'!AI126 + AQ126 + '1. Strategy Calcs'!AW126 -> 0.8844767107 | AQ127: 0.8820191141 | AR127: 0.001972076575 | AS127: 0.0004855200611 | AT127: 0.8844767107 | AU127: 0.8402528752 | AV127: =0 + '1. Strategy Calcs'!AR126 -> 0.001973369417 | AW127: 0.001877854142 | AX127: 9.551527516e-05 | AY127: 4.699424357 | AZ127: 0.001973369417 | BA127: 0.0007893477668 | BC127: 0.0005489348167 | BD127: =IF((InterpolateTable(tGeneralMortality,VALUE(cycle),2))=1,1,(1-EXP(LN(1-(InterpolateTable(tGeneralMortality,VALUE(cycle),2)))*(1/4)))) -> 0.002193931952
B128: 120 | D128: ='1. Strategy Calcs'!V128 -> 2.025837326e-06 | E128: ='1. Strategy Calcs'!AB128 -> 2.309198108e-07 | F128: ='1. Strategy Calcs'!AG128 -> 1.093357269e-07 | G128: ='1. Strategy Calcs'!AM128 -> 0.1141283359 | H128: ='1. Strategy Calcs'!AP128 -> 0.8838972215 | I128: ='1. Strategy Calcs'!AV128 -> 0.001972076575 | J128: ='1. Strategy Calcs'!AJ128 + '1. Strategy Calcs'!AY128 -> 0 | K128: =J128*'Time Discounting'!D125 -> 0 | L128: 1522.79616 | M128: ='1. Strategy Calcs'!Z128 + '1. Strategy Calcs'!AE128 + '1. Strategy Calcs'!AK128 + '1. Strategy Calcs'!AT128 + '1. Strategy Calcs'!AZ128 -> 0 | N128: =M128*'Time Discounting'!C125 -> 0 | O128: 109.4005648 | P128: ='1. Strategy Calcs'!AA128 + '1. Strategy Calcs'!AF128 + '1. Strategy Calcs'!AL128 + '1. Strategy Calcs'!AO128 + '1. Strategy Calcs'!AU128 + '1. Strategy Calcs'!BA128 -> 0 | Q128: =P128*'Time Discounting'!E125 -> 0 | R128: 103.9060161 | T128: 1 | V128: 2.025837326e-06 | Z128: =0 -> 0 | AA128: =0 -> 0 | AB128: =0 + '1. Strategy Calcs'!X127 -> 2.309198108e-07 | AE128: =0 -> 0 | AF128: =0 -> 0 | AG128: =0 + '1. Strategy Calcs'!AD127 -> 1.093357269e-07 | AJ128: =0 -> 0 | AK128: =0 -> 0 | AL128: =0 -> 0 | AM128: =0 + '1. Strategy Calcs'!Y127 + '1. Strategy Calcs'!AH127 + AN127 + '1. Strategy Calcs'!AS127 + '1. Strategy Calcs'!AX127 -> 0.1141283359 | AO128: =0 -> 0 | AP128: =0 + '1. Strategy Calcs'!AC127 + '1. Strategy Calcs'!AI127 + AQ127 + '1. Strategy Calcs'!AW127 -> 0.8838972215 | AT128: =0 -> 0 | AU128: =0 -> 0 | AV128: =0 + '1. Strategy Calcs'!AR127 -> 0.001972076575 | AY128: =0 -> 0 | AZ128: =0 -> 0 | BA128: =0 -> 0 | BC128: 0.0005489348167 | BD128: =IF((InterpolateTable(tGeneralMortality,VALUE(cycle),2))=1,1,(1-EXP(LN(1-(InterpolateTable(tGeneralMortality,VALUE(cycle),2)))*(1/4)))) -> 0.002193931952
B130: Total | J130: =SUM(J8:J128) -> 1523.048009 | K130: =SUM(K8:K128) -> 1522.79616 | L130: =L128 -> 1522.79616 | M130: =SUM(M8:M128) -> 109.4372345 | N130: =SUM(N8:N128) -> 109.4005648 | O130: =O128 -> 109.4005648 | P130: =SUM(P8:P128) -> 103.9408119 | Q130: =SUM(Q8:Q128) -> 103.9060161 | R130: =R128 -> 103.9060161

Sheet 2. Strategy Calcs
B1: Strategy | C1: 2 | D1: Ribavirin
B2: States | C2: All
V3: Healthy - State 2.1 | AB3: Infected - State 2.2 | AG3: Diseased - State 2.3 | AM3: Dead - State 2.4 | AP3: Healed - State 2.5 | AV3: Relapse - State 2.6
D4: Cohort State Proportions | V4: Cohort % | Z4: Payoff 1 - Life Expectancy | AA4: Payoff 3 - Quality of Life | AB4: Cohort % | AE4: Payoff 1 - Life Expectancy | AF4: Payoff 3 - Quality of Life | AG4: Cohort % | AJ4: Payoff 2 - Total Direct Cost | AK4: Payoff 1 - Life Expectancy | AL4: Payoff 3 - Quality of Life | AM4: Cohort % | AO4: Payoff 3 - Quality of Life | AP4: Cohort % | AT4: Payoff 1 - Life Expectancy | AU4: Payoff 3 - Quality of Life | AV4: Cohort % | AY4: Payoff 2 - Total Direct Cost | AZ4: Payoff 1 - Life Expectancy | BA4: Payoff 3 - Quality of Life
B5: Cycle | D5: Healthy | E5: Infected | F5: Diseased | G5: Dead | H5: Healed | I5: Relapse | J5: Payoff 2 - Total Direct Cost | M5: Payoff 1 - Life Expectancy | P5: Payoff 3 - Quality of Life | T5: Checksum of Cohort % | V5: 2.1 State | W5: 2.1.1 Transition | X5: 2.1.2 Transition | Y5: 2.1.3 Transition | Z5: 2.1 State | AA5: 2.1 State | AB5: 2.2 State | AC5: 2.2.1 Transition | AD5: 2.2.2 Transition | AE5: 2.2 State | AF5: 2.2 State | AG5: 2.3 State | AH5: 2.3.1 Transition | AI5: 2.3.2 Transition | AJ5: 2.3 State | AK5: 2.3 State | AL5: 2.3 State | AM5: 2.4 State | AN5: 2.4.1 Transition | AO5: 2.4 State | AP5: 2.5 State | AQ5: 2.5.1 Transition | AR5: 2.5.2 Transition | AS5: 2.5.3 Transition | AT5: 2.5 State | AU5: 2.5 State | AV5: 2.6 State | AW5: 2.6.1 Transition | AX5: 2.6.2 Transition | AY5: 2.6 State | AZ5: 2.6 State | BA5: 2.6 State | BC5: pHealedToDead | BD5: pHealthyToDead
J6: No Discount | K6: Discounted | L6: Cum Disc | M6: No Discount | N6: Discounted | O6: Cum Disc | P6: No Discount | Q6: Discounted | R6: Cum Disc | V6: Healthy | W6: HealthyToHealthy | X6: HealthyToInfected | Y6: HealthyToDead | Z6: Healthy | AA6: Healthy | AB6: Infected | AC6: InfectedToHealed | AD6: InfectedToDiseased | AE6: Infected | AF6: Infected | AG6: Diseased | AH6: DiseasedToDead | AI6: DiseasedToHealed | AJ6: Diseased | AK6: Diseased | AL6: Diseased | AM6: Dead | AN6: DeadToDead | AO6: Dead | AP6: Healed | AQ6: HealedToHealed | AR6: HealedToRelapse | AS6: HealedToDeath | AT6: Healed | AU6: Healed | AV6: Relapse | AW6: RelapseToHealed | AX6: RelapseToDeath | AY6: Relapse | AZ6: Relapse | BA6: Relapse
B8: 0 | D8: =1 -> 1 | E8: =0 -> 0 | F8: =0 -> 0 | G8: =0 -> 0 | H8: =0 -> 0 | I8: =0 -> 0 | J8: ='2. Strategy Calcs'!AJ8 + '2. Strategy Calcs'!AY8 -> 0 | K8: =J8*'Time Discounting'!D5 -> 0 | L8: =K8 -> 0 | M8: ='2. Strategy Calcs'!Z8 + '2. Strategy Calcs'!AE8 + '2. Strategy Calcs'!AK8 + '2. Strategy Calcs'!AT8 + '2. Strategy Calcs'!AZ8 -> 0 | N8: =M8*'Time Discounting'!C5 -> 0 | O8: =N8 -> 0 | P8: ='2. Strategy Calcs'!AA8 + '2. Strategy Calcs'!AF8 + '2. Strategy Calcs'!AL8 + '2. Strategy Calcs'!AO8 + '2. Strategy Calcs'!AU8 + '2. Strategy Calcs'!BA8 -> 0 | Q8: =P8*'Time Discounting'!E5 -> 0 | R8: =Q8 -> 0 | T8: =SUM(D8:I8) -> 1 | V8: ='2. Strategy Calcs'!D8 -> 1 | W8: =V8*(1-(pHealthyToInfected)-(INDEX(pHealthyToDead_2,cycle+1))) -> 0.8970801931 | X8: =V8*(pHealthyToInfected) -> 0.10209924 | Y8: =V8*(INDEX(pHealthyToDead_2,cycle+1)) -> 0.0008205669428 | Z8: =0 -> 0 | AA8: =0 -> 0 | AB8: ='2. Strategy Calcs'!E8 -> 0 | AC8: =AB8*(1-(pInfectedToDiseased)) -> 0 | AD8: =AB8*(pInfectedToDiseased) -> 0 | AE8: =0 -> 0 | AF8: =0 -> 0 | AG8: ='2. Strategy Calcs'!F8 -> 0 | AH8: =AG8*(pDiseasedToDead_Node22) -> 0 | AI8: =AG8*(1-(pDiseasedToDead_Node22)) -> 0 | AJ8: =0 -> 0 | AK8: =0 -> 0 | AL8: =0 -> 0 | AM8: ='2. Strategy Calcs'!G8 -> 0 | AN8: =AM8*(pDeadToDead) -> 0 | AO8: =0 -> 0 | AP8: ='2. Strategy Calcs'!H8 -> 0 | AQ8: =AP8*(1-(pHealedToRelapse)-(INDEX(pHealedToDead_2,cycle+1))) -> 0 | AR8: =AP8*(pHealedToRelapse) -> 0 | AS8: =AP8*(INDEX(pHealedToDead_2,cycle+1)) -> 0 | AT8: =0 -> 0 | AU8: =0 -> 0 | AV8: ='2. Strategy Calcs'!I8 -> 0 | AW8: =AV8*(1-(pRelapseToDeath)) -> 0 | AX8: =AV8*(pRelapseToDeath) -> 0 | AY8: =0 -> 0 | AZ8: =0 -> 0 | BA8: =0 -> 0 | BC8: =IF((INDEX(pHealthyToDead_2,cycle+1))=1,1,(1-EXP(LN(1-(INDEX(pHealthyToDead_2,cycle+1)))*(1/4)))) -> 0.0002052048906 | BD8: =IF((InterpolateTable(tGeneralMortality,VALUE(cycle),2))=1,1,(1-EXP(LN(1-(InterpolateTable(tGeneralMortality,VALUE(cycle),2)))*(1/4)))) -> 0.0008205669428
B9: 1 | D9: ='2. Strategy Calcs'!V9 -> 0.8970801931 | E9: ='2. Strategy Calcs'!AB9 -> 0.10209924 | F9: ='2. Strategy Calcs'!AG9 -> 0 | G9: ='2. Strategy Calcs'!AM9 -> 0.0008205669428 | H9: ='2. Strategy Calcs'!AP9 -> 0 | I9: ='2. Strategy Calcs'!AV9 -> 0 | J9: ='2. Strategy Calcs'!AJ9 + '2. Strategy Calcs'!AY9 -> 0 | K9: =J9*'Time Discounting'!D6 -> 0 | L9: =L8 + K9 -> 0 | M9: ='2. Strategy Calcs'!Z9 + '2. Strategy Calcs'!AE9 + '2. Strategy Calcs'!AK9 + '2. Strategy Calcs'!AT9 + '2. Strategy Calcs'!AZ9 -> 0.9991794331 | N9: =M9*'Time Discounting'!C6 -> 0.9991737728 | O9: =O8 + N9 -> 0.9991737728 | P9: ='2. Strategy Calcs'!AA9 + '2. Strategy Calcs'!AF9 + '2. Strategy Calcs'!AL9 + '2. Strategy Calcs'!AO9 + '2. Strategy Calcs'!AU9 + '2. Strategy Calcs'!BA9 -> 0.9889695091 | Q9: =P9*'Time Discounting'!E6 -> 0.9889639066 | R9: =R8 + Q9 -> 0.9889639066 | T9: 1 | V9: =0 + W8 -> 0.8970801931 | W9: 0.8047528728 | X9: 0.09159120592 | Y9: 0.0007361143514 | Z9: =V9*(1) -> 0.8970801931 | AA9: =V9*(vQoLHealthy) -> 0.8970801931 | AB9: =0 + '2. Strategy Calcs'!X8 -> 0.10209924 | AC9: 0.05879910026 | AD9: 0.04330013973 | AE9: =AB9*(1) -> 0.10209924 | AF9: =AB9*(vQoLInfected) -> 0.09188931599 | AG9: =0 + '2. Strategy Calcs'!AD8 -> 0 | AH9: 0 | AI9: 0 | AJ9: =AG9*(((((((cDrugs+cICUWithoutVentilation)+cICUWithVentilation)+cInpatientCare)+cOutpatientCare)+cPCRTest)+cRibavirine)) -> 0 | AK9: =AG9*(1) -> 0 | AL9: =AG9*(vQoLDiseased) -> 0 | AM9: =0 + '2. Strategy Calcs'!Y8 + '2. Strategy Calcs'!AH8 + AN8 + '2. Strategy Calcs'!AS8 + '2. Strategy Calcs'!AX8 -> 0.0008205669428 | AN9: 0.0008205669428 | AO9: =AM9*(vQoLDead) -> 0 | AP9: =0 + '2. Strategy Calcs'!AC8 + '2. Strategy Calcs'!AI8 + AQ8 + '2. Strategy Calcs'!AW8 -> 0 | AQ9: 0 | AR9: 0 | AS9: 0 | AT9: =AP9*(1) -> 0 | AU9: =AP9*(vQoLHealed) -> 0 | AV9: =0 + '2. Strategy Calcs'!AR8 -> 0 | AW9: 0 | AX9: 0 | AY9: =AV9*(((((((cDrugs+cICUWithoutVentilation)+cICUWithVentilation)+cInpatientCare)+cOutpatientCare)+cPCRTest)+cRibavirine)) -> 0 | AZ9: =AV9*(1) -> 0 | BA9: =AV9*(vQoLRelapse) -> 0 | BC9: 0.0002052048906 | BD9: =IF((InterpolateTable(tGeneralMortality,VALUE(cycle),2))=1,1,(1-EXP(LN(1-(InterpolateTable(tGeneralMortality,VALUE(cycle),2)))*(1/4)))) -> 0.0008205669428
B10: 2 | D10: ='2. Strategy Calcs'!V10 -> 0.8047528728 | E10: ='2. Strategy Calcs'!AB10 -> 0.09159120592 | F10: ='2. Strategy Calcs'!AG10 -> 0.04330013973 | G10: ='2. Strategy Calcs'!AM10 -> 0.001556681294 | H10: ='2. Strategy Calcs'!AP10 -> 0.05879910026 | I10: ='2. Strategy Calcs'!AV10 -> 0 | J10: ='2. Strategy Calcs'!AJ10 + '2. Strategy Calcs'!AY10 -> 107.4896308 | K10: =J10*'Time Discounting'!D7 -> 107.488413 | L10: 107.488413 | M10: ='2. Strategy Calcs'!Z10 + '2. Strategy Calcs'!AE10 + '2. Strategy Calcs'!AK10 + '2. Strategy Calcs'!AT10 + '2. Strategy Calcs'!AZ10 -> 0.9984433187 | N10: =M10*'Time Discounting'!C7 -> 0.9984320065 | O10: 1.997605779 | P10: ='2. Strategy Calcs'!AA10 + '2. Strategy Calcs'!AF10 + '2. Strategy Calcs'!AL10 + '2. Strategy Calcs'!AO10 + '2. Strategy Calcs'!AU10 + '2. Strategy Calcs'!BA10 -> 0.9543021397 | Q10: =P10*'Time Discounting'!E7 -> 0.9542913276 | R10: 1.943255234 | T10: 1 | V10: 0.8047528728 | W10: 0.7219278625 | X10: 0.08216465669 | Y10: 0.0006603536045 | Z10: 0.8047528728 | AA10: 0.8047528728 | AB10: =0 + '2. Strategy Calcs'!X9 -> 0.09159120592 | AC10: 0.05274750821 | AD10: 0.03884369771 | AE10: 0.09159120592 | AF10: 0.08243208533 | AG10: =0 + '2. Strategy Calcs'!AD9 -> 0.04330013973 | AH10: 0.003588688032 | AI10: 0.0397114517 | AJ10: 107.4896308 | AK10: 0.04330013973 | AL10: 0.01125803633 | AM10: =0 + '2. Strategy Calcs'!Y9 + '2. Strategy Calcs'!AH9 + AN9 + '2. Strategy Calcs'!AS9 + '2. Strategy Calcs'!AX9 -> 0.001556681294 | AN10: 0.001556681294 | AO10: 0 | AP10: =0 + '2. Strategy Calcs'!AC9 + '2. Strategy Calcs'!AI9 + AQ9 + '2. Strategy Calcs'!AW9 -> 0.05879910026 | AQ10: 0.05865593278 | AR10: 0.0001311016184 | AS10: 1.206586294e-05 | AT10: 0.05879910026 | AU10: 0.05585914524 | AV10: =0 + '2. Strategy Calcs'!AR9 -> 0 | AW10: 0 | AX10: 0 | AY10: 0 | AZ10: 0 | BA10: 0 | BC10: 0.0002052048906 | BD10: =IF((InterpolateTable(tGeneralMortality,VALUE(cycle),2))=1,1,(1-EXP(LN(1-(InterpolateTable(tGeneralMortality,VALUE(cycle),2)))*(1/4)))) -> 0.0008205669428
B11: 3 | D11: ='2. Strategy Calcs'!V11 -> 0.7219278625 | E11: ='2. Strategy Calcs'!AB11 -> 0.08216465669 | F11: ='2. Strategy Calcs'!AG11 -> 0.03884369771 | G11: ='2. Strategy Calcs'!AM11 -> 0.005817788794 | H11: ='2. Strategy Calcs'!AP11 -> 0.1511148927 | I11: ='2. Strategy Calcs'!AV11 -> 0.0001311016184 | J11: ='2. Strategy Calcs'!AJ11 + '2. Strategy Calcs'!AY11 -> 96.75226956 | K11: =J11*'Time Discounting'!D8 -> 96.75062529 | L11: 204.2390383 | M11: ='2. Strategy Calcs'!Z11 + '2. Strategy Calcs'!AE11 + '2. Strategy Calcs'!AK11 + '2. Strategy Calcs'!AT11 + '2. Strategy Calcs'!AZ11 -> 0.9941822112 | N11: =M11*'Time Discounting'!C8 -> 0.9941653154 | O11: 2.991771095 | P11: ='2. Strategy Calcs'!AA11 + '2. Strategy Calcs'!AF11 + '2. Strategy Calcs'!AL11 + '2. Strategy Calcs'!AO11 + '2. Strategy Calcs'!AU11 + '2. Strategy Calcs'!BA11 -> 0.9495870036 | Q11: =P11*'Time Discounting'!E8 -> 0.9495708657 | R11: 2.8928261 | T11: 1 | V11: 0.7219278625 | W11: 0.6476271863 | X11: 0.07370828609 | Y11: 0.000592390139 | Z11: 0.7219278625 | AA11: 0.7219278625 | AB11: =0 + '2. Strategy Calcs'!X10 -> 0.08216465669 | AC11: 0.04731874485 | AD11: 0.03484591184 | AE11: 0.08216465669 | AF11: 0.07394819102 | AG11: =0 + '2. Strategy Calcs'!AD10 -> 0.03884369771 | AH11: 0.003219340953 | AI11: 0.03562435676 | AJ11: 96.42681877 | AK11: 0.03884369771 | AL11: 0.0100993614 | AM11: =0 + '2. Strategy Calcs'!Y10 + '2. Strategy Calcs'!AH10 + AN10 + '2. Strategy Calcs'!AS10 + '2. Strategy Calcs'!AX10 -> 0.005817788794 | AN11: 0.005817788794 | AO11: 0 | AP11: =0 + '2. Strategy Calcs'!AC10 + '2. Strategy Calcs'!AI10 + AQ10 + '2. Strategy Calcs'!AW10 -> 0.1511148927 | AQ11: 0.1507469493 | AR11: 0.0003369338462 | AS11: 3.100951502e-05 | AT11: 0.1511148927 | AU11: 0.1435591481 | AV11: =0 + '2. Strategy Calcs'!AR10 -> 0.0001311016184 | AW11: 0.0001247560214 | AX11: 6.345597054e-06 | AY11: 0.3254507873 | AZ11: 0.0001311016184 | BA11: 5.244064738e-05 | BC11: 0.0002052048906 | BD11: =IF((InterpolateTable(tGeneralMortality,VALUE(cycle),2))=1,1,(1-EXP(LN(1-(InterpolateTable(tGeneralMortality,VALUE(cycle),2)))*(1/4)))) -> 0.0008205669428
B12: 4 | D12: ='2. Strategy Calcs'!V12 -> 0.6476271863 | E12: ='2. Strategy Calcs'!AB12 -> 0.07370828609 | F12: ='2. Strategy Calcs'!AG12 -> 0.03484591184 | G12: ='2. Strategy Calcs'!AM12 -> 0.009666874998 | H12: ='2. Strategy Calcs'!AP12 -> 0.233814807 | I12: ='2. Strategy Calcs'!AV12 -> 0.0003369338462 | J12: ='2. Strategy Calcs'!AJ12 + '2. Strategy Calcs'!AY12 -> 87.33900439 | K12: =J12*'Time Discounting'!D9 -> 87.33702534 | L12: 291.5760636 | M12: ='2. Strategy Calcs'!Z12 + '2. Strategy Calcs'!AE12 + '2. Strategy Calcs'!AK12 + '2. Strategy Calcs'!AT12 + '2. Strategy Calcs'!AZ12 -> 0.990333125 | N12: =M12*'Time Discounting'!C9 -> 0.9903106846 | O12: 3.982081779 | P12: ='2. Strategy Calcs'!AA12 + '2. Strategy Calcs'!AF12 + '2. Strategy Calcs'!AL12 + '2. Strategy Calcs'!AO12 + '2. Strategy Calcs'!AU12 + '2. Strategy Calcs'!BA12 -> 0.945283421 | Q12: =P12*'Time Discounting'!E9 -> 0.9452620014 | R12: 3.838088101 | T12: 1 | V12: 0.6476271863 | W12: 0.5809735213 | X12: 0.06612224351 | Y12: 0.0005314214603 | Z12: 0.6476271863 | AA12: 0.6476271863 | AB12: =0 + '2. Strategy Calcs'!X11 -> 0.07370828609 | AC12: 0.04244870877 | AD12: 0.03125957732 | AE12: 0.07370828609 | AF12: 0.06633745748 | AG12: =0 + '2. Strategy Calcs'!AD11 -> 0.03484591184 | AH12: 0.002888007004 | AI12: 0.03195790484 | AJ12: 86.5025892 | AK12: 0.03484591184 | AL12: 0.009059937079 | AM12: =0 + '2. Strategy Calcs'!Y11 + '2. Strategy Calcs'!AH11 + AN11 + '2. Strategy Calcs'!AS11 + '2. Strategy Calcs'!AX11 -> 0.009666874998 | AN12: 0.009666874998 | AO12: 0 | AP12: =0 + '2. Strategy Calcs'!AC11 + '2. Strategy Calcs'!AI11 + AQ11 + '2. Strategy Calcs'!AW11 -> 0.233814807 | AQ12: 0.233245501 | AR12: 0.0005213259977 | AS12: 4.797994189e-05 | AT12: 0.233814807 | AU12: 0.2221240666 | AV12: =0 + '2. Strategy Calcs'!AR11 -> 0.0003369338462 | AW12: 0.0003206255317 | AX12: 1.630831447e-05 | AY12: 0.8364151932 | AZ12: 0.0003369338462 | BA12: 0.0001347735385 | BC12: 0.0002052048906 | BD12: =IF((InterpolateTable(tGeneralMortality,VALUE(cycle),2))=1,1,(1-EXP(LN(1-(InterpolateTable(tGeneralMortality,VALUE(cycle),2)))*(1/4)))) -> 0.0008205669428
B13: 5 | D13: ='2. Strategy Calcs'!V13 -> 0.5809735213 | E13: ='2. Strategy Calcs'!AB13 -> 0.06612224351 | F13: ='2. Strategy Calcs'!AG13 -> 0.03125957732 | G13: ='2. Strategy Calcs'!AM13 -> 0.01315059172 | H13: ='2. Strategy Calcs'!AP13 -> 0.3079727401 | I13: ='2. Strategy Calcs'!AV13 -> 0.0005213259977 | J13: ='2. Strategy Calcs'!AJ13 + '2. Strategy Calcs'!AY13 -> 78.8939155 | K13: =J13*'Time Discounting'!D10 -> 78.89168089 | L13: 370.4677445 | M13: ='2. Strategy Calcs'!Z13 + '2. Strategy Calcs'!AE13 + '2. Strategy Calcs'!AK13 + '2. Strategy Calcs'!AT13 + '2. Strategy Calcs'!AZ13 -> 0.9868494083 | N13: =M13*'Time Discounting'!C10 -> 0.9868214565 | O13: 4.968903236 | P13: ='2. Strategy Calcs'!AA13 + '2. Strategy Calcs'!AF13 + '2. Strategy Calcs'!AL13 + '2. Strategy Calcs'!AO13 + '2. Strategy Calcs'!AU13 + '2. Strategy Calcs'!BA13 -> 0.9413936641 | Q13: =P13*'Time Discounting'!E10 -> 0.9413669998 | R13: 4.779455101 | T13: 1 | V13: 0.5809735213 | W13: 0.5211798387 | X13: 0.05931695498 | Y13: 0.0004767276662 | Z13: 0.5809735213 | AA13: 0.5809735213 | AB13: =0 + '2. Strategy Calcs'!X12 -> 0.06612224351 | AC13: 0.03807989586 | AD13: 0.02804234766 | AE13: 0.06612224351 | AF13: 0.05951001916 | AG13: =0 + '2. Strategy Calcs'!AD12 -> 0.03125957732 | AH13: 0.00259077388 | AI13: 0.02866880344 | AJ13: 77.59975942 | AK13: 0.03125957732 | AL13: 0.008127490104 | AM13: =0 + '2. Strategy Calcs'!Y12 + '2. Strategy Calcs'!AH12 + AN12 + '2. Strategy Calcs'!AS12 + '2. Strategy Calcs'!AX12 -> 0.01315059172 | AN13: 0.01315059172 | AO13: 0 | AP13: =0 + '2. Strategy Calcs'!AC12 + '2. Strategy Calcs'!AI12 + AQ12 + '2. Strategy Calcs'!AW12 -> 0.3079727401 | AQ13: 0.3072228701 | AR13: 0.0006866724915 | AS13: 6.319751246e-05 | AT13: 0.3079727401 | AU13: 0.2925741031 | AV13: =0 + '2. Strategy Calcs'!AR12 -> 0.0005213259977 | AW13: 0.0004960927111 | AX13: 2.523328663e-05 | AY13: 1.294156079 | AZ13: 0.0005213259977 | BA13: 0.0002085303991 | BC13: 0.0002052048906 | BD13: =IF((InterpolateTable(tGeneralMortality,VALUE(cycle),2))=1,1,(1-EXP(LN(1-(InterpolateTable(tGeneralMortality,VALUE(cycle),2)))*(1/4)))) -> 0.0008205669428
B14: 6 | D14: ='2. Strategy Calcs'!V14 -> 0.5211798387 | E14: ='2. Strategy Calcs'!AB14 -> 0.05931695498 | F14: ='2. Strategy Calcs'!AG14 -> 0.02804234766 | G14: ='2. Strategy Calcs'!AM14 -> 0.01630652406 | H14: ='2. Strategy Calcs'!AP14 -> 0.3744676622 | I14: ='2. Strategy Calcs'!AV14 -> 0.0006866724915 | J14: ='2. Strategy Calcs'!AJ14 + '2. Strategy Calcs'!AY14 -> 71.31782459 | K14: =J14*'Time Discounting'!D11 -> 71.31540056 | L14: 441.7831451 | M14: ='2. Strategy Calcs'!Z14 + '2. Strategy Calcs'!AE14 + '2. Strategy Calcs'!AK14 + '2. Strategy Calcs'!AT14 + '2. Strategy Calcs'!AZ14 -> 0.9836934759 | N14: =M14*'Time Discounting'!C11 -> 0.9836600412 | O14: 5.952563277 | P14: ='2. Strategy Calcs'!AA14 + '2. Strategy Calcs'!AF14 + '2. Strategy Calcs'!AL14 + '2. Strategy Calcs'!AO14 + '2. Strategy Calcs'!AU14 + '2. Strategy Calcs'!BA14 -> 0.9378750566 | Q14: =P14*'Time Discounting'!E11 -> 0.9378431791 | R14: 5.71729828 | T14: 1 | V14: 0.5211798387 | W14: 0.4675401103 | X14: 0.05321206542 | Y14: 0.0004276629468 | Z14: 0.5211798387 | AA14: 0.5211798387 | AB14: =0 + '2. Strategy Calcs'!X13 -> 0.05931695498 | AC14: 0.03416072033 | AD14: 0.02515623465 | AE14: 0.05931695498 | AF14: 0.05338525948 | AG14: =0 + '2. Strategy Calcs'!AD13 -> 0.02804234766 | AH14: 0.002324131933 | AI14: 0.02571821573 | AJ14: 69.61320716 | AK14: 0.02804234766 | AL14: 0.007291010391 | AM14: =0 + '2. Strategy Calcs'!Y13 + '2. Strategy Calcs'!AH13 + AN13 + '2. Strategy Calcs'!AS13 + '2. Strategy Calcs'!AX13 -> 0.01630652406 | AN14: 0.01630652406 | AO14: 0 | AP14: =0 + '2. Strategy Calcs'!AC13 + '2. Strategy Calcs'!AI13 + AQ13 + '2. Strategy Calcs'!AW13 -> 0.3744676622 | AQ14: 0.3735558864 | AR14: 0.0008349331256 | AS14: 7.684259565e-05 | AT14: 0.3744676622 | AU14: 0.355744279 | AV14: =0 + '2. Strategy Calcs'!AR13 -> 0.0006866724915 | AW14: 0.000653436083 | AX14: 3.323640845e-05 | AY14: 1.704617423 | AZ14: 0.0006866724915 | BA14: 0.0002746689966 | BC14: 0.0002052048906 | BD14: =IF((InterpolateTable(tGeneralMortality,VALUE(cycle),2))=1,1,(1-EXP(LN(1-(InterpolateTable(tGeneralMortality,VALUE(cycle),2)))*(1/4)))) -> 0.0008205669428
B15: 7 | D15: ='2. Strategy Calcs'!V15 -> 0.4675401103 | E15: ='2. Strategy Calcs'!AB15 -> 0.05321206542 | F15: ='2. Strategy Calcs'!AG15 -> 0.02515623465 | G15: ='2. Strategy Calcs'!AM15 -> 0.01916839795 | H15: ='2. Strategy Calcs'!AP15 -> 0.4340882586 | I15: ='2. Strategy Calcs'!AV15 -> 0.0008349331256 | J15: ='2. Strategy Calcs'!AJ15 + '2. Strategy Calcs'!AY15 -> 64.52129361 | K15: =J15*'Time Discounting'!D12 -> 64.5187351 | L15: 506.3018802 | M15: ='2. Strategy Calcs'!Z15 + '2. Strategy Calcs'!AE15 + '2. Strategy Calcs'!AK15 + '2. Strategy Calcs'!AT15 + '2. Strategy Calcs'!AZ15 -> 0.9808316021 | N15: =M15*'Time Discounting'!C12 -> 0.9807927084 | O15: 6.933355985 | P15: ='2. Strategy Calcs'!AA15 + '2. Strategy Calcs'!AF15 + '2. Strategy Calcs'!AL15 + '2. Strategy Calcs'!AO15 + '2. Strategy Calcs'!AU15 + '2. Strategy Calcs'!BA15 -> 0.9346894091 | Q15: =P15*'Time Discounting'!E12 -> 0.9346523451 | R15: 6.651950625 | T15: 1 | V15: 0.4675401103 | W15: 0.4194209724 | X15: 0.04773548992 | Y15: 0.0003836479589 | Z15: 0.4675401103 | AA15: 0.4675401103 | AB15: =0 + '2. Strategy Calcs'!X14 -> 0.05321206542 | AC15: 0.03064490559 | AD15: 0.02256715984 | AE15: 0.05321206542 | AF15: 0.04789085888 | AG15: =0 + '2. Strategy Calcs'!AD14 -> 0.02515623465 | AH15: 0.002084932723 | AI15: 0.02307130193 | AJ15: 62.44862932 | AK15: 0.02515623465 | AL15: 0.00654062101 | AM15: =0 + '2. Strategy Calcs'!Y14 + '2. Strategy Calcs'!AH14 + AN14 + '2. Strategy Calcs'!AS14 + '2. Strategy Calcs'!AX14 -> 0.01916839795 | AN15: 0.01916839795 | AO15: 0 | AP15: =0 + '2. Strategy Calcs'!AC14 + '2. Strategy Calcs'!AI14 + AQ14 + '2. Strategy Calcs'!AW14 -> 0.4340882586 | AQ15: 0.4330313151 | AR15: 0.0009678663958 | AS15: 8.907703362e-05 | AT15: 0.4340882586 | AU15: 0.4123838456 | AV15: =0 + '2. Strategy Calcs'!AR14 -> 0.0008349331256 | AW15: 0.0007945205873 | AX15: 4.041253834e-05 | AY15: 2.072664291 | AZ15: 0.0008349331256 | BA15: 0.0003339732503 | BC15: 0.0002052048906 | BD15: =IF((InterpolateTable(tGeneralMortality,VALUE(cycle),2))=1,1,(1-EXP(LN(1-(InterpolateTable(tGeneralMortality,VALUE(cycle),2)))*(1/4)))) -> 0.0008205669428
B16: 8 | D16: ='2. Strategy Calcs'!V16 -> 0.4194209724 | E16: ='2. Strategy Calcs'!AB16 -> 0.04773548992 | F16: ='2. Strategy Calcs'!AG16 -> 0.02256715984 | G16: ='2. Strategy Calcs'!AM16 -> 0.0217664682 | H16: ='2. Strategy Calcs'!AP16 -> 0.4875420432 | I16: ='2. Strategy Calcs'!AV16 -> 0.0009678663958 | J16: ='2. Strategy Calcs'!AJ16 + '2. Strategy Calcs'!AY16 -> 58.42409048 | K16: =J16*'Time Discounting'!D13 -> 58.42144279 | L16: 564.723323 | M16: ='2. Strategy Calcs'!Z16 + '2. Strategy Calcs'!AE16 + '2. Strategy Calcs'!AK16 + '2. Strategy Calcs'!AT16 + '2. Strategy Calcs'!AZ16 -> 0.9782335318 | N16: =M16*'Time Discounting'!C13 -> 0.9781891998 | O16: 7.911545185 | P16: ='2. Strategy Calcs'!AA16 + '2. Strategy Calcs'!AF16 + '2. Strategy Calcs'!AL16 + '2. Strategy Calcs'!AO16 + '2. Strategy Calcs'!AU16 + '2. Strategy Calcs'!BA16 -> 0.9318024625 | Q16: =P16*'Time Discounting'!E13 -> 0.9317602347 | R16: 7.58371086 | T16: 1 | V16: 0.4194209724 | W16: 0.3762542469 | X16: 0.04282256252 | Y16: 0.0003441629851 | Z16: 0.4194209724 | AA16: 0.4194209724 | AB16: =0 + '2. Strategy Calcs'!X15 -> 0.04773548992 | AC16: 0.02749093782 | AD16: 0.0202445521 | AE16: 0.04773548992 | AF16: 0.04296194093 | AG16: =0 + '2. Strategy Calcs'!AD15 -> 0.02256715984 | AH16: 0.00187035185 | AI16: 0.02069680799 | AJ16: 56.02142845 | AK16: 0.02256715984 | AL16: 0.005867461558 | AM16: =0 + '2. Strategy Calcs'!Y15 + '2. Strategy Calcs'!AH15 + AN15 + '2. Strategy Calcs'!AS15 + '2. Strategy Calcs'!AX15 -> 0.0217664682 | AN16: 0.0217664682 | AO16: 0 | AP16: =0 + '2. Strategy Calcs'!AC15 + '2. Strategy Calcs'!AI15 + AQ15 + '2. Strategy Calcs'!AW15 -> 0.4875420432 | AQ16: 0.4863549474 | AR16: 0.001087049813 | AS16: 0.0001000460117 | AT16: 0.4875420432 | AU16: 0.4631649411 | AV16: =0 + '2. Strategy Calcs'!AR15 -> 0.0009678663958 | AW16: 0.0009210196046 | AX16: 4.684679124e-05 | AY16: 2.402662029 | AZ16: 0.0009678663958 | BA16: 0.0003871465583 | BC16: 0.0002052048906 | BD16: =IF((InterpolateTable(tGeneralMortality,VALUE(cycle),2))=1,1,(1-EXP(LN(1-(InterpolateTable(tGeneralMortality,VALUE(cycle),2)))*(1/4)))) -> 0.0008205669428
B17: 9 | D17: ='2. Strategy Calcs'!V17 -> 0.3762542469 | E17: ='2. Strategy Calcs'!AB17 -> 0.04282256252 | F17: ='2. Strategy Calcs'!AG17 -> 0.0202445521 | G17: ='2. Strategy Calcs'!AM17 -> 0.02412787584 | H17: ='2. Strategy Calcs'!AP17 -> 0.5354637128 | I17: ='2. Strategy Calcs'!AV17 -> 0.001087049813 | J17: ='2. Strategy Calcs'!AJ17 + '2. Strategy Calcs'!AY17 -> 52.95424055 | K17: =J17*'Time Discounting'!D14 -> 52.95154078 | L17: 617.6748637 | M17: ='2. Strategy Calcs'!Z17 + '2. Strategy Calcs'!AE17 + '2. Strategy Calcs'!AK17 + '2. Strategy Calcs'!AT17 + '2. Strategy Calcs'!AZ17 -> 0.9758721242 | N17: =M17*'Time Discounting'!C14 -> 0.9758223712 | O17: 8.887367556 | P17: ='2. Strategy Calcs'!AA17 + '2. Strategy Calcs'!AF17 + '2. Strategy Calcs'!AL17 + '2. Strategy Calcs'!AO17 + '2. Strategy Calcs'!AU17 + '2. Strategy Calcs'!BA17 -> 0.9291834838 | Q17: =P17*'Time Discounting'!E14 -> 0.9291361112 | R17: 8.512846971 | T17: 1 | V17: 0.3762542469 | W17: 0.3375302325 | X17: 0.03841527265 | Y17: 0.0003087417971 | Z17: 0.3762542469 | AA17: 0.3762542469 | AB17: =0 + '2. Strategy Calcs'!X16 -> 0.04282256252 | AC17: 0.02466157581 | AD17: 0.01816098671 | AE17: 0.04282256252 | AF17: 0.03854030627 | AG17: =0 + '2. Strategy Calcs'!AD16 -> 0.0202445521 | AH17: 0.001677855598 | AI17: 0.01856669651 | AJ17: 50.25571385 | AK17: 0.0202445521 | AL17: 0.005263583547 | AM17: =0 + '2. Strategy Calcs'!Y16 + '2. Strategy Calcs'!AH16 + AN16 + '2. Strategy Calcs'!AS16 + '2. Strategy Calcs'!AX16 -> 0.02412787584 | AN17: 0.02412787584 | AO17: 0 | AP17: =0 + '2. Strategy Calcs'!AC16 + '2. Strategy Calcs'!AI16 + AQ16 + '2. Strategy Calcs'!AW16 -> 0.5354637128 | AQ17: 0.5341599345 | AR17: 0.00119389853 | AS17: 0.0001098797726 | AT17: 0.5354637128 | AU17: 0.5086905272 | AV17: =0 + '2. Strategy Calcs'!AR16 -> 0.001087049813 | AW17: 0.001034434291 | AX17: 5.2615522e-05 | AY17: 2.698526697 | AZ17: 0.001087049813 | BA17: 0.0004348199251 | BC17: 0.0002052048906 | BD17: =IF((InterpolateTable(tGeneralMortality,VALUE(cycle),2))=1,1,(1-EXP(LN(1-(InterpolateTable(tGeneralMortality,VALUE(cycle),2)))*(1/4)))) -> 0.0008205669428
B18: 10 | D18: ='2. Strategy Calcs'!V18 -> 0.3375302325 | E18: ='2. Strategy Calcs'!AB18 -> 0.03841527265 | F18: ='2. Strategy Calcs'!AG18 -> 0.01816098671 | G18: ='2. Strategy Calcs'!AM18 -> 0.02627696853 | H18: ='2. Strategy Calcs'!AP18 -> 0.5784226411 | I18: ='2. Strategy Calcs'!AV18 -> 0.00119389853 | J18: ='2. Strategy Calcs'!AJ18 + '2. Strategy Calcs'!AY18 -> 48.0471768 | K18: =J18*'Time Discounting'!D15 -> 48.04445504 | L18: 665.7193188 | M18: ='2. Strategy Calcs'!Z18 + '2. Strategy Calcs'!AE18 + '2. Strategy Calcs'!AK18 + '2. Strategy Calcs'!AT18 + '2. Strategy Calcs'!AZ18 -> 0.9737230315 | N18: =M18*'Time Discounting'!C15 -> 0.9736678723 | O18: 9.861035429 | P18: ='2. Strategy Calcs'!AA18 + '2. Strategy Calcs'!AF18 + '2. Strategy Calcs'!AL18 + '2. Strategy Calcs'!AO18 + '2. Strategy Calcs'!AU18 + '2. Strategy Calcs'!BA18 -> 0.9268049029 | Q18: =P18*'Time Discounting'!E15 -> 0.9267524015 | R18: 9.439599373 | T18: 1 | V18: 0.3375302325 | W18: 0.3027916861 | X18: 0.03446158021 | Y18: 0.0002769661509 | Z18: 0.3375302325 | AA18: 0.3375302325 | AB18: =0 + '2. Strategy Calcs'!X17 -> 0.03841527265 | AC18: 0.02212341119 | AD18: 0.01629186146 | AE18: 0.03841527265 | AF18: 0.03457374539 | AG18: =0 + '2. Strategy Calcs'!AD17 -> 0.01816098671 | AH18: 0.001505171024 | AI18: 0.01665581569 | AJ18: 45.08340548 | AK18: 0.01816098671 | AL18: 0.004721856545 | AM18: =0 + '2. Strategy Calcs'!Y17 + '2. Strategy Calcs'!AH17 + AN17 + '2. Strategy Calcs'!AS17 + '2. Strategy Calcs'!AX17 -> 0.02627696853 | AN18: 0.02627696853 | AO18: 0 | AP18: =0 + '2. Strategy Calcs'!AC17 + '2. Strategy Calcs'!AI17 + AQ17 + '2. Strategy Calcs'!AW17 -> 0.5784226411 | AQ18: 0.5770142639 | AR18: 0.001289682054 | AS18: 0.0001186951548 | AT18: 0.5784226411 | AU18: 0.5495015091 | AV18: =0 + '2. Strategy Calcs'!AR17 -> 0.00119389853 | AW18: 0.001136111303 | AX18: 5.778722708e-05 | AY18: 2.963771319 | AZ18: 0.00119389853 | BA18: 0.000477559412 | BC18: 0.0002052048906 | BD18: =IF((InterpolateTable(tGeneralMortality,VALUE(cycle),2))=1,1,(1-EXP(LN(1-(InterpolateTable(tGeneralMortality,VALUE(cycle),2)))*(1/4)))) -> 0.0008205669428
